{"text_format":"1","workbook":"xlsx","n_sheets":17,"sheets":["Forside","BR18","Opsummering","Inddata","Anlæg","Bygningsautomatik_før","Bygningsautomatik_efter","Varmeanlæg","Varmt brugsvand","Køleanlæg","Ventilationsanlæg","Belysningsanlæg","Solafskærmning","CTS_anlæg","Vejledning","BAC efficiency","Priser"],"not_rendered":{"charts":1,"images":25,"macros":1,"external_links":0,"defined_names":8,"comments":3,"pivot_tables":0},"unopened":[],"bounds":{"document_bytes":16777216,"sheet_cells":100000,"rows_first":2000,"rows_last":500,"rows_between":2000,"halvings":0,"cell_chars":16384,"cell_head_chars":4096},"cells_cut":0,"cells_raw":0,"read":"whole","date_system":"1900"}

{"sheet":"Forside","index":0,"n_rows":0,"n_cols":0,"rows_kept":0,"cut":false,"hidden":false,"merged":[]}

{"sheet":"BR18","index":1,"n_rows":65,"n_cols":4,"rows_kept":65,"cut":false,"hidden":false,"merged":[[9,4,10,4]]}
[]
[]
[null,null,"§ 295 - § 296","Bygningsautomatik"]
[]
[null,null,"§ 295","I nye bygninger omfattet af § 260 med et dimensionerende varmebehov eller kølebehov over 290 kW skal der installeres bygningsautomatik til styring af de tekniske anlæg."]
[]
[null,null,null,"Stk. 2. I eksisterende bygninger omfattet af § 260 med et dimensionerende varmebehov eller kølebehov over 290 kW skal der installeres bygningsautomatik til styring af de tekniske anlæg, hvis det er teknisk gennemførligt og rentabelt, jf. § 275. Installationen skal være gennemført inden udgangen af 2025."]
[]
[null,null,null,"Stk. 3. Bygningsautomatik efter § 295 og § 296 udgøres af det samlede system, der benyttes til at regulere og styre de tekniske anlæg. Systemet skal være i stand til:"]
[]
[null,null,null,"1)  løbende at overvåge og analysere energiforbruget,"]
[null,null,null,"2)  at kommunikere med de tekniske anlæg og regulere disse anlæg energieffektivt efter behovet i bygningen,"]
[null,null,null,"3)  at kunne udtrykke den energimæssige effektivitet af bygningen og dens tekniske anlæg, og"]
[null,null,null,"4)  detektere fejl i anlæggene og underrette driftspersonalet om fejlene."]
[]
[null,null,"§ 296","Der skal gennemføres en funktionsafprøvning af bygningsautomatik inden ibrugtagning. Funktionsafprøvningen skal påvise, at bygningsautomatikken er korrekt installeret og reguleret, virker efter hensigten og giver bygningen den forudsatte energimæssige effektivitet."]
[]
[]
[null,null,"9.6.","Krav til bygningsautomatikken"]
[]
[null,null,null,"For at bygningsautomatikken opfylder kravene i § 295 stk. 3 skal den overholde følgende krav:"]
[]
[null,null,null,"Et fælles eller flere separate systemer for bygningsautomatik"]
[]
[null,null,null,"Kravene til bygningsautomatikken kan opfyldes med et eller flere it-baserede systemer, som tilsammen dækker funktionerne angivet i § 295 stk. 3. Hvis der er flere systemer, skal der være automatisk dataudveksling mellem systemerne og alle bygningsautomatikkens funktioner, indstillinger og indreguleringer skal kunne betjenes fra den samme enhed fx en pc. Desuden skal driftspersonalet underrettes om væsentlige fejlmeddelelser og alarmer, fx på mobiltelefon (smartphone). "]
[]
[null,null,null,"Der er således frihed til at opbygge bygningsautomatikken, som det er mest hensigtsmæssigt i den aktuelle bygning. Det kan så være alt fra et CTS-anlæg med alle funktionerne inkluderet til en konstellation af fx individuelle automatik på de enkelte anlæg med fuld datadeling, vejrdata fra fx DMI, internet opkobling af målerne og software til energianalyse. Det afgørende er, at alt kan betjenes fra samme enhed med datadeling af de afgørende data mellem systemerne, og at driftspersonalet får de angivne fejlmeddelelser og alarmer på mobiltelefonen, så der bliver samme funktionalitet af bygningsautomatikken med de forskellige løsninger."]
[]
[null,null,null,"Der kan etableres separat selvvirkende automatik til regulering af varmetilførslen i rummene, som ikke tilkobles bygningsautomatikken, herunder elektroniske termostater og mekaniske radiatortermostatventiler. Det forudsætter dog at der etableres selvstændige følere til måling af rumtemperaturen således, at mindst 80 % af bygningens etageareal er omfattet af rumtemperaturmåling."]
[]
[null,null,null,"Omfang"]
[]
[null,null,null,"Bygningsautomatikken skal omfatte alle de parametre, styringer og reguleringer, der håndterer energitilførslen, energieffektiviteten, det termiske indeklima (herunder udluftning, mekanisk og naturlig ventilation og automatisk styret solafskærmning), luftkvaliteten og belysningen i bygningen og de enkelte rum. Det omfatter blandt andet, det der er stillet af krav til i bygningsreglementet og underliggende standarder: DS 447 og DS 469 samt i Ecodesign og Arbejdstilsynets regler."]
[]
[null,null,null,"Fra bygningsautomatikken opsamles data fra alle energi- og forbrugsmålere, der installeres som følge af krav i bygningsreglementet, eller benyttes til afregning."]
[]
[null,null,null,"Dynamiske anlægsbilleder"]
[]
[null,null,null,"Bygningsautomatikken viser diagrammer med installationerne, etageplaner og zoner med rummene med dynamisk angivelse af aktuelle værdier (setpunkter og parametre) og driftsform fra automatikken, samt eventuelle alarmer. Se fx Molio tegningsstandard C213, del 7 Bygningsautomatik."]
[]
[null,null,null,"Alarmhåndtering"]
[]
[null,null,null,"Overvågning og fejldetektering omfatter alarmgrænser på alle parametre, uanset om de er regulerede, målte eller styrede parametre samt driftsstatus for anlæggene. Det omfatter også detektering af pendlende regulerings- og styringssignaler. Overvågning omfatter desuden alarmer for vedligehold af anlæggene fx for filterskift."]
[]
[null,null,null,"Datalogning"]
[]
[null,null,null,"Alle data fra regulerede eller styrede parametre, regulerings- og styringssignaler, driftsstatus og alarmer skal opsamles med højst 5 minutters opløsning og gemmes i mindst 60 uger. Rum- og udetemperaturer behøver dog kun at blive logget med højst 15 minutters opløsning."]
[]
[null,null,null,"Desuden etableres mulighed for at driftspersonalet kan etablere samlede ad hoc logninger af parametre, signaler, driftsstatus og alarmer efter eget valg, med valgfri opløsning (5 sek. – 6 timer) og for tidsperioder, de selv kan bestemme."]
[]
[null,null,null,"Målerdata opsamles med interval på højest en time og gemmes mindst 10 år. Målerdata vises i diagrammer og i tabeller som timeværdier og summeret for døgn, uge, måned og år. Tabellerne udformes, så data kan trækkes over til videre anvendelse i andre it-systemer."]
[]
[null,null,null,"Præsentation af loggede data"]
[]
[null,null,null,"Datalogningerne skal kunne vises i diagrammer og i tabeller med hensigtsmæssig opløsning."]
[]
[null,null,null,"Overvågning og analysering af energiforbruget"]
[]
[null,null,null,"Analyse af energi- og forbrugsdata fra målerne tager udgangspunkt i bygningens forventede energiforbrug fra energiberegningen ved byggetilladelsen eller energimærkningen, justeret til den aktuelle anvendelse af bygningen fx hvad angår brugstid, rumtemperaturer, ventilationsrater og internt varmetilskud. For eksisterende bygninger tages der desuden højde for eventuelle ændringer i bygningen og dens installationer."]
[]
[null,null,null,"Målerdataene sammenholdes med vejrdata for lufttemperatur og soltilskud fx med energisignatur på døgn og ugebasis samt ved vejrkorrektioner af uge-, måneds- og årsforbrug. Vejrkorrektionen er tilpasset forholdene i bygningen. Ved afvigelse i forbrug udløses en alarm til driftspersonalet. Vejrdata kan være fra nærmeste meteorologiske station eller fra kalibreret vejrstation på bygningen."]
[]
[null,null,null,"Funktionsafprøvning"]
[]
[null,null,null,"Bygningsautomatikken skal funktionsafprøves ifølge bygningsreglementets §296. Funktionsafprøvningen skal gennemføres, så det sikres, at bygningsautomatikken er korrekt installeret og virker efter hensigten. Se mere om funktionsafprøvning i bygningsreglementets vejledning om funktionsafprøvning."]

{"sheet":"Opsummering","index":2,"n_rows":22,"n_cols":11,"rows_kept":22,"cut":false,"hidden":false,"merged":[[3,3,4,10],[5,7,5,8],[21,7,21,8]]}
[]
[]
[null,null,0,"Opsummering"]
[null,null,null,"Energibesparelse, investering og rentabilitet (levetid = 15 år)"]
[]
[null,null,null,null,null,"Årlig energibesparelse [kr.]",null,"Investering [kr.]",null,null,"Rentabilitet [-]"]
[]
[null,null,null,"Varmeanlæg",null,{"$f":"Varmeanlæg!F47","v":0},null,null,{"$f":"Varmeanlæg!F49","v":0},null,{"$f":"IF(F8<>0,IF(H8+I8=0,\"\",F8*15/(H8+I8)),\"\")","v":""}]
[]
[null,null,null,"Anlæg til varmt brugsvand",null,{"$f":"'Varmt brugsvand'!F43","v":0},null,null,{"$f":"'Varmt brugsvand'!F45","v":0},null,{"$f":"IF(F10<>0,IF(H10+I10=0,\"\",F10*15/(H10+I10)),\"\")","v":""}]
[]
[null,null,null,"Køling",null,{"$f":"Køleanlæg!F49","v":0},null,null,{"$f":"IF(Anlæg!AM47=0,0,Køleanlæg!F51)","v":0},null,{"$f":"IF(F12<>0,IF(H12+I12=0,\"\",F12*15/(H12+I12)),\"\")","v":""}]
[]
[null,null,null,"Ventilation",null,{"$f":"Ventilationsanlæg!F65","v":0},null,null,{"$f":"IF(Anlæg!AM70=0,0,Ventilationsanlæg!F67)","v":0},null,{"$f":"IF(F14<>0,IF(H14+I14=0,\"\",F14*15/(H14+I14)),\"\")","v":""}]
[]
[null,null,null,"Belysning",null,{"$f":"Belysningsanlæg!F38","v":0},null,null,{"$f":"Belysningsanlæg!F40","v":0},null,{"$f":"IF(F16<>0,IF(H16+I16=0,\"\",F16*15/(H16+I16)),\"\")","v":""}]
[]
[null,null,null,"Solafskærming",null,{"$f":"Solafskærmning!F29","v":0},null,null,{"$f":"IF(Anlæg!AT99=0,0,Solafskærmning!F31)","v":0},null,{"$f":"IF(F18<>0,IF(H18+I18=0,\"\",F18*15/(H18+I18)),\"\")","v":""}]
[]
[null,null,null,"CTS-anlæg",null,{"$f":"CTS_anlæg!F42","v":0},null,null,{"$f":"IF(Anlæg!AM250=0,0,CTS_anlæg!F44)","v":0},null,{"$f":"IF(F20<>0,IF(H20+I20=0,\"\",F20*15/(H20+I20)),\"\")","v":""}]
[]
[null,null,null,"I alt",null,{"$f":"SUM(F8,F10,F12,F14,F16,F18,F20)","v":0},null,{"$f":"SUM(H8:I20)","v":0},null,null,{"$f":"IF(F22=0,\"\",(F22*15)/H22)","v":""}]

{"sheet":"Inddata","index":3,"n_rows":119,"n_cols":33,"rows_kept":119,"cut":false,"hidden":false,"merged":[[33,3,33,4],[4,3,4,4],[4,5,4,7],[6,3,6,4],[8,3,8,4],[10,3,10,4],[12,3,12,4],[20,3,20,4],[22,3,22,4],[24,3,24,4],[26,3,26,4],[28,3,28,4],[57,3,57,4],[35,3,35,4],[37,3,37,4],[39,3,39,4],[41,3,41,4],[43,3,43,4],[55,3,55,4]]}
[]
[]
[null,null,1,"Bygningsdata"]
[]
[null,null,null,"Bygningstype",null,"Uddannelsesbygninger (skoler)"]
[]
[null,null,null,"Bygningsareal",null,null,"m2",null," = Inputfelt (gult)",null,null,null,null,null,null,null,null,null,null,null,null,null,null,null,"Kontorer"]
[null,null,null,null,null,null,null,null,null,null,null,null,null,null,null,null,null,null,null,null,null,null,null,null,"Auditorier"]
[null,null,null,"Antal etager",null,null,"-",null," = Resultatfelt (grønt)",null,null,null,null,null,null,null,null,null,null,null,null,null,null,null,"Uddannelsesbygninger (skoler)"]
[null,null,null,null,null,null,null,null,null,null,null,null,null,null,null,null,null,null,null,null,null,null,null,null,"Hospitaler"]
[null,null,null,"Antal lokaler",null,null,"stk.",null,null,null,null,null,null,null,null,null,null,null,null,null,null,null,null,null,"Hoteller"]
[null,null,null,null,null,null,null,null,null,null,null,null,null,null,null,null,null,null,null,null,null,null,null,null,"Restauranter"]
[null,null,null,"Dimensionerende varmetab fra klimaskærm\n",null,{"$f":"IF(F7=\"\",\"\",IF(H13=\"\",(Z73*1000)/F7,H13))","v":""},"W/m2",null,"W/m2",null,null,null,null,null,null,null,null,null,null,null,null,null,null,null,"Engros- og detailhandel"]
[null,null,null,null,null,null,null,null,null,null,null,null,null,null,null,null,null,null,null,null,null,null,null,null,"Andre typer: - Sportsfaciliteter, - Lager, - Industribygninger osv."]
[]
[]
[null,null,2,"Energiforbrug",null,null,null,null,null,null,null,null,null,null,null,null,null,null,null,null,null,null,null,null,{"$f":"IF(F5=\"\",0,IF(F5=\"Kontorer\",1,IF(F5=\"Auditorier\",2,IF(F5=\"Uddannelsesbygninger (skoler)\",3,IF(F5=\"Hospitaler\",4,IF(F5=\"Hoteller\",5,IF(F5=\"Restauranter\",6,IF(F5=\"Engros- og detailhandel\",7,IF(F5=\"Andre typer: - Sportsfaciliteter, - Lager, - Industribygninger osv.\",8)))))))))","v":3}]
[]
[null,null,null,"Varmeforbrug"]
[]
[null,null,null,"Opvarmningsform",null,"Fjernvarme"]
[null,null,null,null,null,null,null,null,null,null,null,null,null,null,null,null,null,null,null,null,null,null,null,null,"Fjernvarme"]
[null,null,null,"Totalt varmeforbrug",null,null,"kWh/år",null,null,null,null,null,null,null,null,null,null,null,null,null,{"$f":"F23*$F$56","v":0},null,null,null,"Naturgas"]
[null,null,null,null,null,null,null,null,null,null,null,null,null,null,null,null,null,null,null,null,null,null,null,null,"Olie"]
[null,null,null,"Rumvarme",null,null,"%",{"$f":"F25/100*$F$23","v":0},"kWh/år","Gå til varmeanlæg",null,null,null,null,null,null,null,null,null,null,{"$f":"H25*$F$56","v":0},null,null,null,"Varmepumpe"]
[null,null,null,null,null,null,null,null,null,null,null,null,null,null,null,null,null,null,null,null,null,null,null,null,"Elvarme"]
[null,null,null,"Varmt brugsvand",null,null,"%",{"$f":"F27/100*$F$23","v":0},"kWh/år","Gå til varmt brugsvand",null,null,null,null,null,null,null,null,null,null,0]
[null,null,null,null,null,null,null,null,null,null,null,null,null,null,null,null,null,null,null,null,null,null,null,null,{"$f":"IF(F21=\"\",0,IF(F21=Y22,1,IF(F21=Y23,2,IF(F21=Y24,3,IF(F21=Y25,4,IF(F21=Y26,5))))))","v":1}]
[null,null,null,"Ventilation",null,null,"%",{"$f":"F29/100*$F$23","v":0},"kWh/år","Gå til ventilationsanlæg",null,null,null,null,null,null,null,null,null,null,0]
[]
[]
[null,null,null,"Elforbrug"]
[]
[null,null,null,"Totalt elforbrug",null,null,"kWh/år",null,null,null,null,null,null,null,null,null,null,null,null,null,{"$f":"F34*$F$58","v":0}]
[]
[null,null,null,"Køling",null,null,"%",{"$f":"F36/100*$F$34","v":0},"kWh/år","Gå til køleanlæg",null,null,null,null,null,null,null,null,null,null,{"$f":"H36*$F$58","v":0}]
[]
[null,null,null,"Ventilation",null,null,"%",{"$f":"F38/100*$F$34","v":0},"kWh/år",null,null,null,null,null,null,null,null,null,null,null,{"$f":"H38*$F$58","v":0}]
[]
[null,null,null,"Belysning",null,null,"%",{"$f":"F40/100*$F$34","v":0},"kWh/år","Gå til belysningsanlæg",null,null,null,null,null,null,null,null,null,null,{"$f":"H40*$F$58","v":0}]
[]
[null,null,null,"Pumpning",null,null,"%",{"$f":"F42/100*$F$34","v":0},"kWh/år",null,null,null,null,null,null,null,null,null,null,null,{"$f":"H42*$F$58","v":0}]
[]
[null,null,null,"Andet",null,{"$f":"100-(F36+F38+F40+F42)","v":100},"%",{"$f":"F44/100*$F$34","v":0},"kWh/år",null,null,null,null,null,null,null,null,null,null,null,{"$f":"H44*$F$58","v":0}]
[]
[]
[null,null,null,"Nøgletal"]
[null,null,null,null,null,null,null,null,null,null,null,null,null,null,null,null,null,null,null,null,null,"Aktuel",0.25,0.5,0.75,null,"Varme",null,null,null,"a","b"]
[null,null,null,"Nøgletal for varmeforbrug",null,{"$f":"IF(F7=\"\",\"\",F23/F7)","v":""},"kWh/m2/år",null,null,null,null,null,null,null,null,null,null,null,null,null,"Varme",{"$f":"F49","v":""},64.740382563273116,91.546460357666021,127.42405544535319,null,{"$f":"W48","v":0.25},{"$f":"W49","v":64.740382563273116},null,null,{"$f":"LINEST(AB49:AB51,AA49:AA51,TRUE,TRUE)","v":125.36734576416016},31.886626573350689]
[null,null,null,null,null,null,null,null,null,null,null,null,null,null,null,null,null,null,null,null,null,null,null,null,null,null,{"$f":"X48","v":0.5},{"$f":"X49","v":91.546460357666021},null,null,10.474885902483566,5.6570849482836669]
[null,null,null,"Nøgletal for elforbrug",null,{"$f":"IF(F7=\"\",\"\",F34/F7)","v":""},"kWh/m2/år",null,null,null,null,null,null,null,null,null,null,null,null,null,"El",{"$f":"F51","v":""},11.475758695284526,29.691394607543945,70.734396321614582,null,{"$f":"Y48","v":0.75},{"$f":"Y49","v":127.42405544535319},null,null,0.9930672046618656,3.7034314269007496]
[null,null,null,null,null,null,null,null,null,null,null,null,null,null,null,null,null,null,null,null,null,null,null,null,null,null,null,null,null,null,143.24196175234275,1]
[null,null,null,null,null,null,null,null,null,null,null,null,null,null,null,null,null,null,null,null,null,null,null,null,null,null,null,null,null,null,1964.6214229938105,13.715404333756123]
[null,null,3,"Energipriser"]
[null,null,null,null,null,null,null,null,null,null,null,null,null,null,null,null,null,null,null,null,null,null,null,null,null,null,"El",null,null,null,"a^2","a","b"]
[null,null,null,"Varmepris",null,null,"kr./kWh",null,null,null,null,null,null,null,null,null,null,null,null,null,null,null,null,null,null,null,{"$f":"W48","v":0.25},{"$f":"AA56^2","v":6.25E-2},{"$f":"W51","v":11.475758695284526},null,{"$f":"LINEST(AC56:AC58,AA56:AB58,TRUE,TRUE)","v":182.61892641448966},-64.101651161829565,16.087488584836315]
[null,null,null,null,null,null,null,null,null,null,null,null,null,null,null,null,null,null,null,null,null,null,null,null,null,null,{"$f":"X48","v":0.5},{"$f":"AA57^2","v":0.25},{"$f":"X51","v":29.691394607543945},null,0,0,0]
[null,null,null,"Elpris",null,null,"kr./kWh",null,null,null,null,null,null,null,null,null,null,null,null,null,null,null,null,null,null,null,{"$f":"Y48","v":0.75},0.5625,{"$f":"Y51","v":70.734396321614582},null,1,0,{"$error":"#N/A"}]
[null,null,null,null,null,null,null,null,null,null,null,null,null,null,null,null,null,null,null,null,null,null,null,null,null,null,null,null,null,null,{"$error":"#NUM!"},0,{"$error":"#N/A"}]
[null,null,null,null,null,null,null,null,null,null,null,null,null,null,null,null,null,null,null,null,null,null,null,null,null,null,null,null,null,null,1842.6411715726335,0,{"$error":"#N/A"}]
[]
[]
[]
[]
[]
[]
[]
[]
[]
[null,null,null,"Nøgletal (mellemregninger):"]
[]
[null,null,null,"Varmeanlæg",null,null,null,null,null,null,null,null,null,null,null,null,null,null,null,null,null,null,null,null,"Beregning hvis man ikke har et energimærke"]
[null,null,null,"Varmetab pr. m2",{"$f":"H13","v":0},"W/m2",null,"Fra energimærket/Energy 10",null,null,null,null,27.7,null,null,null,null,null,"W/m2","Transmissions- og ventilationstab fra energimærket",null,null,null,null,"Pmaks =",{"$f":"(H25+H29)/2000","v":0},"kW",{"$f":"Z73/E74","v":{"$error":"#DIV/0!"}},{"$f":"1/AB73","v":{"$error":"#DIV/0!"}}]
[null,null,null,"Varmetab",{"$f":"(E73*F7)/1000","v":0},"kW",null,"Fra energimærket"]
[null,null,null,"Radiatoreffekt",1000,"W/stk.",null,"Erfaringsværdi"]
[null,null,null,"Antal radiatorsystemer (blandekredse u. udekomp.)",{"$f":"Anlæg!AT9","v":0},"stk.",null,"Antallet af blandekredse der forsyner radiatorsystemer"]
[null,null,null,"Antal radiatorsystemer (blandekredse m. udekomp.)",{"$f":"Anlæg!AT58-Anlæg!AT60","v":0},"stk."]
[null,null,null,"Antal cirkulationspumper",{"$f":"Anlæg!AT9","v":0},"stk.",null,"Antallet af blandekredse der forsyner radiatorsystemer",null,null,null,null,"Priser fra V&S"]
[null,null,null,"Antal radiatorer",{"$f":"(E74*1000)/E75","v":0},"stk.",null,"Giver antallet af ventiler"]
[null,null,null,"Antal lokaler",{"$f":"F11","v":0},"stk.",null,"Giver antallet af temperaturfølere og PIR-følere"]
[null,null,null,"Antal fjernvarmeunits",null,"stk.",null,"Fra energimærket",null,null,null,null,"Priser fra V&S"]
[null,null,null,"Antal kedler",1,"stk.",null,"Fra energimærket",null,null,null,null,"Priser fra V&S"]
[null,null,null,"Areal pr. PIR-sensor",78,"m2",null,"Erfaringsværdi"]
[]
[]
[null,null,null,"Varmt brugsvand"]
[null,null,null,"Antal teknikrum med varmt brugsvand",3,"stk."]
[]
[]
[null,null,null,"Køling"]
[null,null,null,"Ventileret (kølet) areal",11030,"m2",null,"Fra energimærket"]
[null,null,null,"Antal kølsystemer (blandekredse)",4,"stk.",null,"Antallet af blandekredse der forsyner kølesystemer"]
[null,null,null,"Antal cirkulationspumper",4,"stk.",null,"Antallet af blandekredse der forsyner kølesystemer"]
[]
[]
[null,null,null,"Ventilation"]
[null,null,null,"Ventileret areal",11030,"m2",null,"Fra energimærket","Måske skal der angives hvert anlæg med tilhørende areal?"]
[null,null,null,"Rumhøjde",2.4,"m",null,"Fra energimærket","Se til højre"]
[null,null,null,"Antal ventilationsaggregater m. luftkond. (AHU)",{"$f":"Anlæg!AT58","v":0},"stk.",null,"Fra energimærket"]
[null,null,null,"Areal pr. PIR-sensor",100,"m2",null,"Erfaringsværdi"]
[]
[]
[null,null,null,"Belysning"]
[null,null,null,"Bygningsareal",11030,"m2",null,"Fra energimærket","Måske skal der angives hvert belysningsanlæg/-type med tilhørende areal?"]
[null,null,null,"Installeret effekt pr. m2",5,"W/m2",null,"Fra energimærket","Se til højre"]
[null,null,null,"Antal lokaler",{"$f":"F11","v":0},"stk.",null,"Optalt"]
[null,null,null,"Areal pr. PIR-sensor",100,"m2",null,"Erfaringsværdi"]
[null,null,null,"Areal pr. lyssensor",100,"m2",null,"Erfaringsværdi (10-20 m2)"]
[]
[]
[null,null,null,"Solafskærming"]
[null,null,null,"Areal af vinduer",2344,"m2",null,"Fra energimærket"]
[]
[]
[null,null,null,"CTS-anlæg"]
[]
[]
[]
[null,null,null,null,null,null,null,"Overvågning og analysering af energiforbruget. Hvordan skal det præcis ske?"]

{"sheet":"Anlæg","index":4,"n_rows":250,"n_cols":46,"rows_kept":250,"cut":false,"hidden":false,"merged":[]}
[]
[]
[null,null,4,"Anlægsdata"]
[]
[null,null,null,"Varmeanlæg",null,null,null,null,null,"Retur til inddata"]
[null,null,null,null,null,null,null,null,null,null,null,null,null,null,null,null,null,null,null,null,null,null,null,null,null,null,null,null,null,null,null,null,null,null,null,null,null,null,"Varme"]
[null,null,null,"Varmeanlæg","Anlæg 1","Anlæg 2","Anlæg 3","Anlæg 4","Anlæg 5","I alt",null,null,null,null,null,null,null,null,null,null,null,null,null,null,null,null,null,null,null,null,null,null,null,"Uden udekomp.","Uden udekomp.","Uden udekomp.","Uden udekomp.","Uden udekomp."]
[null,null,null,"Opvarmet areal [m2]",null,null,null,null,null,{"$f":"SUM(E8:I8)","v":0},"m2",null,null,null,null,null,null,null,null,null,null,null,null,null,null,null,null,null,null,null,null,null,null,"Med udekomp.","Med udekomp.","Med udekomp.","Med udekomp.","Med udekomp."]
[null,null,null,"Rumhøjde [m]",null,null,null,null,null,"-","m",null,null,null,null,null,null,null,null,null,null,null,null,null,null,null,null,null,null,null,null,null,null,{"$f":"IF(E11=AH7,1,IF(E11=AH8,2,0))","v":0},{"$f":"IF(F11=AI7,1,IF(F11=AI8,2,0))","v":0},{"$f":"IF(G11=AJ7,1,IF(G11=AJ8,2,0))","v":0},{"$f":"IF(H11=AK7,1,IF(H11=AK8,2,0))","v":0},{"$f":"IF(I11=AL7,1,IF(I11=AL8,2,0))","v":0},{"$f":"IF(OR(AH21=2,AI21=2,AJ21=2,AK21=2,AL21=2),AT9,0)","v":0},null,{"$f":"IF(AND(AH9=1,AH21=2),1,0)","v":0},{"$f":"IF(AND(AI9=1,AI21=2),1,0)","v":0},{"$f":"IF(AND(AJ9=1,AJ21=2),1,0)","v":0},{"$f":"IF(AND(AK9=1,AK21=2),1,0)","v":0},{"$f":"IF(AND(AL9=1,AL21=2),1,0)","v":0},{"$f":"SUM(AO9:AS9)","v":0}]
[null,null,null,"Antal lokaler",null,null,null,null,null,{"$f":"SUM(E10:I10)","v":0},"stk.",null,null,null,null,null,null,null,null,null,null,null,null,null,null,null,"Hvis arealet er større end 110 eller 120 m2, "]
[null,null,null,"Udekompensering?  ",null,null,null,null,null,"-",null,null,null,null,null,null,null,null,null,null,null,null,null,null,null,null,"så skal der anvendes to sensorer",null,null,null,null,null,null,"Nej","Nej","Nej","Nej","Nej"]
[null,null,null,"Motorventiler på radiatorer?   (Ja/Nej)",null,null,null,null,null,"-",null,null,null,null,null,null,null,null,null,null,null,null,null,null,null,null,null,null,null,null,null,null,null,"Ja","Ja","Ja","Ja","Ja"]
[null,null,null,"Tilstedeværelsessensorer i lokaler?   (Ja/Nej)",null,null,null,null,null,"-",null,null,null,null,null,null,null,null,null,null,null,null,null,null,null,null,{"$f":"E8/E10","v":{"$error":"#DIV/0!"}},{"$f":"F8/F10","v":{"$error":"#DIV/0!"}},{"$f":"G8/G10","v":{"$error":"#DIV/0!"}},{"$f":"H8/H10","v":{"$error":"#DIV/0!"}},{"$f":"I8/I10","v":{"$error":"#DIV/0!"}},null,null,{"$f":"IF(E12=AH11,1,IF(E12=AH12,2,0))","v":0},{"$f":"IF(F12=AI11,1,IF(F12=AI12,2,0))","v":0},{"$f":"IF(G12=AJ11,1,IF(G12=AJ12,2,0))","v":0},{"$f":"IF(H12=AK11,1,IF(H12=AK12,2,0))","v":0},{"$f":"IF(I12=AL11,1,IF(I12=AL12,2,0))","v":0},{"$f":"IF(OR(AH21=2,AI21=2,AJ21=2,AK21=2,AL21=2),AT13,0)","v":0},null,{"$f":"IF(AND(AH13=1,AH21=2),E14,0)","v":0},{"$f":"IF(AND(AI13=1,AI21=2),F14,0)","v":0},{"$f":"IF(AND(AJ13=1,AJ21=2),G14,0)","v":0},{"$f":"IF(AND(AK13=1,AK21=2),H14,0)","v":0},{"$f":"IF(AND(AL13=1,AL21=2),I14,0)","v":0},{"$f":"SUM(AO13:AS13)","v":0}]
[null,null,null,"Antal PIR-sensorer",{"$f":"IF(OR(E13=\"\",E13=\"Ja\"),0,AA16)","v":0},{"$f":"IF(OR(F13=\"\",F13=\"Ja\"),0,AB16)","v":0},{"$f":"IF(OR(G13=\"\",G13=\"Ja\"),0,AC16)","v":0},{"$f":"IF(OR(H13=\"\",H13=\"Ja\"),0,AD16)","v":0},{"$f":"IF(OR(I13=\"\",I13=\"Ja\"),0,AE16)","v":0},{"$f":"SUM(E14:I14)","v":0},"stk.",null,null,null,null,null,null,null,null,null,null,null,null,null,null,null,{"$f":"E8/E10","v":{"$error":"#DIV/0!"}},{"$f":"F8/F10","v":{"$error":"#DIV/0!"}},{"$f":"G8/G10","v":{"$error":"#DIV/0!"}},{"$f":"H8/H10","v":{"$error":"#DIV/0!"}},{"$f":"I8/I10","v":{"$error":"#DIV/0!"}}]
[null,null,null,"Antal temperatursensorer",{"$f":"IF(OR(E12=\"\",E12=\"Ja\"),0,AA16)","v":0},{"$f":"IF(OR(F12=\"\",F12=\"Ja\"),0,AB16)","v":0},{"$f":"IF(OR(G12=\"\",G12=\"Ja\"),0,AC16)","v":0},{"$f":"IF(OR(H12=\"\",H12=\"Ja\"),0,AD16)","v":0},{"$f":"IF(OR(I12=\"\",I12=\"Ja\"),0,AE16)","v":0},{"$f":"SUM(E15:I15)","v":0},"stk.",null,null,null,null,null,null,null,null,null,null,null,null,null,null,null,null,null,null,null,null,null,null,"Nej","Nej","Nej","Nej","Nej"]
[null,null,null,"Kan der etableres styring af anlæggene?    (Ja/Nej)",null,null,null,null,null,"-",null,null,null,null,null,null,null,null,null,null,null,null,null,null,null,null,{"$f":"IF(AA13<120,E10,2*E10)","v":{"$error":"#DIV/0!"}},{"$f":"IF(AB13<120,F10,2*F10)","v":{"$error":"#DIV/0!"}},{"$f":"IF(AC13<120,G10,2*G10)","v":{"$error":"#DIV/0!"}},{"$f":"IF(AD13<120,H10,2*H10)","v":{"$error":"#DIV/0!"}},{"$f":"IF(AE13<120,I10,2*I10)","v":{"$error":"#DIV/0!"}},null,null,"Ja","Ja","Ja","Ja","Ja"]
[null,null,null,null,null,null,null,null,null,null,null,null,null,null,null,null,null,null,null,null,null,null,null,null,null,null,null,null,null,null,null,null,null,{"$f":"IF(E13=AH15,1,IF(E13=AH16,2,0))","v":0},{"$f":"IF(F13=AI15,1,IF(F13=AI16,2,0))","v":0},{"$f":"IF(G13=AJ15,1,IF(G13=AJ16,2,0))","v":0},{"$f":"IF(H13=AK15,1,IF(H13=AK16,2,0))","v":0},{"$f":"IF(I13=AL15,1,IF(I13=AL16,2,0))","v":0},{"$f":"IF(OR(AH21=2,AI21=2,AJ21=2,AK21=2,AL21=2),AT17,0)","v":0},{"$f":"AM9+AM13+AM17","v":0},{"$f":"IF(AND(AH17=1,AH21=2),E15,0)","v":0},{"$f":"IF(AND(AI17=1,AI21=2),F15,0)","v":0},{"$f":"IF(AND(AJ17=1,AJ21=2),G15,0)","v":0},{"$f":"IF(AND(AK17=1,AK21=2),H15,0)","v":0},{"$f":"IF(AND(AL17=1,AL21=2),I15,0)","v":0},{"$f":"SUM(AO17:AS17)","v":0}]
[]
[null,null,null,"Anlæg til varmt brugsvand",null,null,null,null,null,"Retur til inddata",null,null,null,null,null,null,null,null,null,null,null,null,null,null,null,null,null,null,null,null,null,null,null,"Nej","Nej","Nej","Nej","Nej"]
[null,null,null,null,null,null,null,null,null,null,null,null,null,null,null,null,null,null,null,null,null,null,null,null,null,null,null,null,null,null,null,null,null,"Ja","Ja","Ja","Ja","Ja"]
[null,null,null,"Anlæg til varmt brugsvand","Anlæg 1","Anlæg 2","Anlæg 3","Anlæg 4","Anlæg 5","I alt",null,null,null,null,null,null,null,null,null,null,null,null,null,null,null,null,null,null,null,null,null,null,null,{"$f":"IF(E16=AH19,1,IF(E16=AH20,2,0))","v":0},{"$f":"IF(F17=AI19,1,IF(F17=AI20,2,0))","v":0},{"$f":"IF(G17=AJ19,1,IF(G17=AJ20,2,0))","v":0},{"$f":"IF(H17=AK19,1,IF(H17=AK20,2,0))","v":0},{"$f":"IF(I17=AL19,1,IF(I17=AL20,2,0))","v":0}]
[null,null,null,"Beholderstørrelse [L]",null,null,null,null,null,{"$f":"SUM(E22:I22)","v":0},"L",null,null,null,null,null,null,null,null,null,null,null,null,null,null,null,null,null,null,null,null,null,null,{"$f":"IF(AH21=2,E8,0)","v":0},{"$f":"IF(AI21=2,F8,0)","v":0},{"$f":"IF(AJ21=2,G8,0)","v":0},{"$f":"IF(AK21=2,H8,0)","v":0},{"$f":"IF(AL21=2,I8,0)","v":0},{"$f":"SUM(AH22:AL22)","v":0},{"$f":"AM22/Inddata!F7","v":{"$error":"#DIV/0!"}},"Forhold"]
[null,null,null,"Multisensorer (flere temperaturtensorer i beholderen)",null,null,null,null,null,"-"]
[null,null,null,"Kan der etableres styring af anlæggene?   (Ja/Nej)",null,null,null,null,null,"-",null,null,null,null,null,null,null,null,null,null,null,null,null,null,null,null,null,null,null,null,null,null,null,null,null,null,null,null,"VVB"]
[null,null,null,null,null,null,null,null,null,null,null,null,null,null,null,null,null,null,null,null,null,null,null,null,null,null,null,null,null,null,null,null,null,"Uden multisensorer","Uden multisensorer","Uden multisensorer","Uden multisensorer","Uden multisensorer"]
[null,null,null,null,null,null,null,null,null,null,null,null,null,null,null,null,null,null,null,null,null,null,null,null,null,null,null,null,null,null,null,null,null,"Med multisensorer","Med multisensorer","Med multisensorer","Med multisensorer","Med multisensorer"]
[null,null,null,"Køleanlæg",null,null,null,null,null,"Retur til inddata",null,null,null,null,null,null,null,null,null,null,null,null,null,null,null,null,null,null,null,null,null,null,null,{"$f":"IF(E23=AH25,1,2)","v":2},{"$f":"IF(F23=AI25,1,2)","v":2},{"$f":"IF(G23=AJ25,1,2)","v":2},{"$f":"IF(H23=AK25,1,2)","v":2},{"$f":"IF(I23=AL25,1,2)","v":2},{"$f":"IF(OR(AH31=2,AI31=2,AJ31=2,AK31=2,AL31=2),AT27,0)","v":0},{"$f":"AM27","v":0},{"$f":"IF(AND(AH27=1,AH31=2),E25,0)","v":0},{"$f":"IF(AND(AI27=1,AI31=2),F25,0)","v":0},{"$f":"IF(AND(AJ27=1,AJ31=2),G25,0)","v":0},{"$f":"IF(AND(AK27=1,AK31=2),H25,0)","v":0},{"$f":"IF(AND(AL27=1,AL31=2),I25,0)","v":0},{"$f":"SUM(AO27:AS27)","v":0}]
[]
[null,null,null,"Køleanlæg","Anlæg 1","Anlæg 2","Anlæg 3","Anlæg 4","Anlæg 5","I alt",null,null,null,null,null,null,null,null,null,null,null,null,null,null,null,null,null,null,null,null,null,null,null,"Nej","Nej","Nej","Nej","Nej",null,null,null,null,null,null,null,{"$f":"AT27/5","v":0}]
[null,null,null,"Kølet areal [m2]",null,null,null,null,null,{"$f":"SUM(E30:I30)","v":0},"m2",null,null,null,null,null,null,null,null,null,null,null,null,null,null,null,null,null,null,null,null,null,null,"Ja","Ja","Ja","Ja","Ja"]
[null,null,null,"Rumhøjde [m]",null,null,null,null,null,"-","m",null,null,null,null,null,null,null,null,null,null,null,null,null,null,null,null,null,null,null,null,null,null,{"$f":"IF(E24=AH29,1,IF(E24=AH30,2,0))","v":0},{"$f":"IF(F24=AI29,1,IF(F24=AI30,2,0))","v":0},{"$f":"IF(G24=AJ29,1,IF(G24=AJ30,2,0))","v":0},{"$f":"IF(H24=AK29,1,IF(H24=AK30,2,0))","v":0},{"$f":"IF(I24=AL29,1,IF(I24=AL30,2,0))","v":0}]
[null,null,null,"Antal lokaler",null,null,null,null,null,{"$f":"SUM(E32:I32)","v":0},"stk."]
[null,null,null,"Udekompensering",null,null,null,null,null,"-"]
[null,null,null,"Motorventiler på køleunits (fan coils eller kølelofter)?",null,null,null,null,null,"-"]
[null,null,null,"Tilstedeværelsessensorer i lokaler?",null,null,null,null,null,"-",null,null,null,null,null,null,null,null,null,null,null,null,null,null,null,null,{"$f":"E30/E32","v":{"$error":"#DIV/0!"}},{"$f":"F30/F32","v":{"$error":"#DIV/0!"}},{"$f":"G30/G32","v":{"$error":"#DIV/0!"}},{"$f":"H30/H32","v":{"$error":"#DIV/0!"}},{"$f":"I30/I32","v":{"$error":"#DIV/0!"}}]
[null,null,null,"Antal PIR-sensorer",{"$f":"IF(OR(E35=\"\",E35=\"Ja\"),0,AA38)","v":0},{"$f":"IF(OR(F35=\"\",F35=\"Ja\"),0,AB38)","v":0},{"$f":"IF(OR(G35=\"\",G35=\"Ja\"),0,AC38)","v":0},{"$f":"IF(OR(H35=\"\",H35=\"Ja\"),0,AD38)","v":0},{"$f":"IF(OR(I35=\"\",I35=\"Ja\"),0,AE38)","v":0},{"$f":"SUM(E36:I36)","v":0},"stk.",null,null,null,null,null,null,null,null,null,null,null,null,null,null,null,{"$f":"E30/E32","v":{"$error":"#DIV/0!"}},{"$f":"F30/F32","v":{"$error":"#DIV/0!"}},{"$f":"G30/G32","v":{"$error":"#DIV/0!"}},{"$f":"H30/H32","v":{"$error":"#DIV/0!"}},{"$f":"I30/I32","v":{"$error":"#DIV/0!"}},null,null,null,null,null,null,null,"Køling"]
[null,null,null,"Antal temperatursensorer",{"$f":"IF(OR(E34=\"\",E34=\"Ja\"),0,AA38)","v":0},{"$f":"IF(OR(F34=\"\",F34=\"Ja\"),0,AB38)","v":0},{"$f":"IF(OR(G34=\"\",G34=\"Ja\"),0,AC38)","v":0},{"$f":"IF(OR(H34=\"\",H34=\"Ja\"),0,AD38)","v":0},{"$f":"IF(OR(I34=\"\",I34=\"Ja\"),0,AE38)","v":0},{"$f":"SUM(E37:I37)","v":0},"stk.",null,null,null,null,null,null,null,null,null,null,null,null,null,null,null,null,null,null,null,null,null,null,"Uden udekomp.","Uden udekomp.","Uden udekomp.","Uden udekomp.","Uden udekomp."]
[null,null,null,"Kan der etableres styring af anlæggene","Nej",null,null,null,null,"-",null,null,null,null,null,null,null,null,null,null,null,null,null,null,null,null,{"$f":"IF(AA35<120,E32,2*E32)","v":{"$error":"#DIV/0!"}},{"$f":"IF(AB35<120,F32,2*F32)","v":{"$error":"#DIV/0!"}},{"$f":"IF(AC35<120,G32,2*G32)","v":{"$error":"#DIV/0!"}},{"$f":"IF(AD35<120,H32,2*H32)","v":{"$error":"#DIV/0!"}},{"$f":"IF(AE35<120,I32,2*I32)","v":{"$error":"#DIV/0!"}},null,null,"Med udekomp.","Med udekomp.","Med udekomp.","Med udekomp.","Med udekomp."]
[null,null,null,null,null,null,null,null,null,null,null,null,null,null,null,null,null,null,null,null,null,null,null,null,null,null,null,null,null,null,null,null,null,{"$f":"IF(E33=AH37,1,IF(E33=AH38,2,0))","v":0},{"$f":"IF(F33=AI37,1,IF(F33=AI38,2,0))","v":0},{"$f":"IF(G33=AJ37,1,IF(G33=AJ38,2,0))","v":0},{"$f":"IF(H33=AK37,1,IF(H33=AK38,2,0))","v":0},{"$f":"IF(I33=AL37,1,IF(I33=AL38,2,0))","v":0},{"$f":"IF(OR(AH51=2,AI51=2,AJ51=2,AK51=2,AL51=2),AT39,0)","v":0},null,{"$f":"IF(AND(AH39=1,AH51=2),1,0)","v":0},{"$f":"IF(AND(AI39=1,AI51=2),1,0)","v":0},{"$f":"IF(AND(AJ39=1,AJ51=2),1,0)","v":0},{"$f":"IF(AND(AK39=1,AK51=2),1,0)","v":0},{"$f":"IF(AND(AL39=1,AL51=2),1,0)","v":0},{"$f":"SUM(AO39:AS39)","v":0}]
[]
[null,null,null,"Ventilationsanlæg",null,null,null,null,null,"Retur til inddata",null,null,null,null,null,null,null,null,null,null,null,null,null,null,null,null,null,null,null,null,null,null,null,"Nej","Nej","Nej","Nej","Nej"]
[null,null,null,null,null,null,null,null,null,null,null,null,null,null,null,null,null,null,null,null,null,null,null,null,null,null,null,null,null,null,null,null,null,"Ja","Ja","Ja","Ja","Ja"]
[null,null,null,"Ventilationsanlæg","Anlæg 1","Anlæg 2","Anlæg 3","Anlæg 4","Anlæg 5","I alt",null,null,null,null,null,null,null,null,null,null,null,null,null,null,null,null,null,null,null,null,null,null,null,{"$f":"IF(E34=AH41,1,IF(E34=AH42,2,0))","v":0},{"$f":"IF(F34=AI41,1,IF(F34=AI42,2,0))","v":0},{"$f":"IF(G34=AJ41,1,IF(G34=AJ42,2,0))","v":0},{"$f":"IF(H34=AK41,1,IF(H34=AK42,2,0))","v":0},{"$f":"IF(I34=AL41,1,IF(I34=AL42,2,0))","v":0},{"$f":"IF(OR(AH51=2,AI51=2,AJ51=2,AK51=2,AL51=2),AT43,0)","v":0},null,{"$f":"IF(AND(AH43=1,AH51=2),E28,0)","v":0},{"$f":"IF(AND(AI43=1,AI51=2),F28,0)","v":0},{"$f":"IF(AND(AJ43=1,AJ51=2),G28,0)","v":0},{"$f":"IF(AND(AK43=1,AK51=2),H28,0)","v":0},{"$f":"IF(AND(AL43=1,AL51=2),I28,0)","v":0},{"$f":"SUM(AO43:AS43)","v":0}]
[null,null,null,"Ventileret areal [m2]",null,null,null,null,null,{"$f":"SUM(E44:I44)","v":0},"m2"]
[null,null,null,"Rumhøjde [m]",null,null,null,null,null,"-","m",null,null,null,null,null,null,null,null,null,null,null,null,null,null,null,null,null,null,null,null,null,null,"Nej","Nej","Nej","Nej","Nej"]
[null,null,null,"Antal lokaler",null,null,null,null,null,{"$f":"SUM(E46:I46)","v":0},"stk.",null,null,null,null,null,null,null,null,null,null,null,null,null,null,null,null,null,null,null,null,null,null,"Ja","Ja","Ja","Ja","Ja"]
[null,null,null,"Styring (CAV/VAV)?",null,null,null,null,null,"-",null,null,null,null,null,null,null,null,null,null,null,null,null,null,null,null,null,null,null,null,null,null,null,{"$f":"IF(E35=AH45,1,IF(E35=AH46,2,0))","v":0},{"$f":"IF(F35=AI45,1,IF(F35=AI46,2,0))","v":0},{"$f":"IF(G35=AJ45,1,IF(G35=AJ46,2,0))","v":0},{"$f":"IF(H35=AK45,1,IF(H35=AK46,2,0))","v":0},{"$f":"IF(I35=AL45,1,IF(I35=AL46,2,0))","v":0},{"$f":"IF(OR(AH51=2,AI51=2,AJ51=2,AK51=2,AL51=2),AT47,0)","v":0},{"$f":"AM39+AM43+AM47","v":0},{"$f":"IF(AND(AH47=1,AH51=2),E32,0)","v":0},{"$f":"IF(AND(AI47=1,AI51=2),F32,0)","v":0},{"$f":"IF(AND(AJ47=1,AJ51=2),G32,0)","v":0},{"$f":"IF(AND(AK47=1,AK51=2),H32,0)","v":0},{"$f":"IF(AND(AL47=1,AL51=2),I32,0)","v":0},{"$f":"SUM(AO47:AS47)","v":0}]
[null,null,null,"Tilstedeværelsessensorer i lokaler?",null,null,null,null,null,"-"]
[null,null,null,"Temperatursensorer i lokaler?",null,null,null,null,null,"-",null,null,null,null,null,null,null,null,null,null,null,null,null,null,null,null,null,null,null,null,null,null,null,"Nej","Nej","Nej","Nej","Nej"]
[null,null,null,"CO2-sensorer i lokaler?",null,null,null,null,null,"-",null,null,null,null,null,null,null,null,null,null,null,null,null,null,null,null,{"$f":"E44/E46","v":{"$error":"#DIV/0!"}},{"$f":"F44/F46","v":{"$error":"#DIV/0!"}},{"$f":"G44/G46","v":{"$error":"#DIV/0!"}},{"$f":"H44/H46","v":{"$error":"#DIV/0!"}},{"$f":"I44/I46","v":{"$error":"#DIV/0!"}},null,null,"Ja","Ja","Ja","Ja","Ja"]
[null,null,null,"Antal PIR-sensorer",{"$f":"IF(OR(E48=\"\",E48=\"Ja\"),0,AA54)","v":0},{"$f":"IF(OR(F48=\"\",F48=\"Ja\"),0,AB54)","v":0},{"$f":"IF(OR(G48=\"\",G48=\"Ja\"),0,AC54)","v":0},{"$f":"IF(OR(H48=\"\",H48=\"Ja\"),0,AD54)","v":0},{"$f":"IF(OR(I48=\"\",I48=\"Ja\"),0,AE54)","v":0},{"$f":"SUM(E51:I51)","v":0},"stk.",null,null,null,null,null,null,null,null,null,null,null,null,null,null,null,{"$f":"E44/E46","v":{"$error":"#DIV/0!"}},{"$f":"F44/F46","v":{"$error":"#DIV/0!"}},{"$f":"G44/G46","v":{"$error":"#DIV/0!"}},{"$f":"H44/H46","v":{"$error":"#DIV/0!"}},{"$f":"I44/I46","v":{"$error":"#DIV/0!"}},null,null,{"$f":"IF(E38=AH49,1,IF(E38=AH50,2,0))","v":1},{"$f":"IF(F38=AI49,1,IF(F38=AI50,2,0))","v":0},{"$f":"IF(G38=AJ49,1,IF(G38=AJ50,2,0))","v":0},{"$f":"IF(H38=AK49,1,IF(H38=AK50,2,0))","v":0},{"$f":"IF(I38=AL49,1,IF(I38=AL50,2,0))","v":0}]
[null,null,null,"Antal temperatursensorer",{"$f":"IF(OR(E49=\"\",E49=\"Ja\"),0,AA54)","v":0},{"$f":"IF(OR(F49=\"\",F49=\"Ja\"),0,AB54)","v":0},{"$f":"IF(OR(G49=\"\",G49=\"Ja\"),0,AC54)","v":0},{"$f":"IF(OR(H49=\"\",H49=\"Ja\"),0,AD54)","v":0},{"$f":"IF(OR(I49=\"\",I49=\"Ja\"),0,AE54)","v":0},{"$f":"SUM(E52:I52)","v":0},"stk.",null,null,null,null,null,null,null,null,null,null,null,null,null,null,null,{"$f":"E44/E46","v":{"$error":"#DIV/0!"}},{"$f":"F44/F46","v":{"$error":"#DIV/0!"}},{"$f":"G44/G46","v":{"$error":"#DIV/0!"}},{"$f":"H44/H46","v":{"$error":"#DIV/0!"}},{"$f":"I44/I46","v":{"$error":"#DIV/0!"}},null,null,{"$f":"IF(AH51=2,E30,0)","v":0},{"$f":"IF(AI51=2,F30,0)","v":0},{"$f":"IF(AJ51=2,G30,0)","v":0},{"$f":"IF(AK51=2,H30,0)","v":0},{"$f":"IF(AL51=2,I30,0)","v":0},{"$f":"SUM(AH52:AL52)","v":0},{"$f":"AM52/Inddata!F7","v":{"$error":"#DIV/0!"}},"Forhold"]
[null,null,null,"Antal CO2-sensorer",{"$f":"IF(OR(E50=\"\",E50=\"Ja\"),0,AA54)","v":0},{"$f":"IF(OR(F50=\"\",F50=\"Ja\"),0,AB54)","v":0},{"$f":"IF(OR(G50=\"\",G50=\"Ja\"),0,AC54)","v":0},{"$f":"IF(OR(H50=\"\",H50=\"Ja\"),0,AD54)","v":0},{"$f":"IF(OR(I50=\"\",I50=\"Ja\"),0,AE54)","v":0},{"$f":"SUM(E53:I53)","v":0},"stk."]
[null,null,null,"Kan der etableres styring af anlæggene",null,null,null,null,null,"-",null,null,null,null,null,null,null,null,null,null,null,null,null,null,null,null,{"$f":"IF(AA50<120,E46,2*E46)","v":{"$error":"#DIV/0!"}},{"$f":"IF(AB50<120,F46,2*F46)","v":{"$error":"#DIV/0!"}},{"$f":"IF(AC50<120,G46,2*G46)","v":{"$error":"#DIV/0!"}},{"$f":"IF(AD50<120,H46,2*H46)","v":{"$error":"#DIV/0!"}},{"$f":"IF(AE50<120,I46,2*I46)","v":{"$error":"#DIV/0!"}}]
[null,null,null,null,null,null,null,null,null,null,null,null,null,null,null,null,null,null,null,null,null,null,null,null,null,null,null,null,null,null,null,null,null,null,null,null,null,null,"Vent"]
[null,null,null,null,null,null,null,null,null,null,null,null,null,null,null,null,null,null,null,null,null,null,null,null,null,null,null,null,null,null,null,null,null,"CAV","CAV","CAV","CAV","CAV"]
[null,null,null,"Belysningsanlæg",null,null,null,null,null,"Retur til inddata",null,null,null,null,null,null,null,null,null,null,null,null,null,null,null,null,null,null,null,null,null,null,null,"VAV","VAV","VAV","VAV","VAV"]
[null,null,null,null,null,null,null,null,null,null,null,null,null,null,null,null,null,null,null,null,null,null,null,null,null,null,null,null,null,null,null,null,null,{"$f":"IF(E47=AH56,1,IF(E47=AH57,2,0))","v":0},{"$f":"IF(F47=AI56,1,IF(F47=AI57,2,0))","v":0},{"$f":"IF(G47=AJ56,1,IF(G47=AJ57,2,0))","v":0},{"$f":"IF(H47=AK56,1,IF(H47=AK57,2,0))","v":0},{"$f":"IF(I47=AL56,1,IF(I47=AL57,2,0))","v":0},{"$f":"IF(OR(AH74=2,AI74=2,AJ74=2,AK74=2,AL74=2),AT58,0)","v":0},null,{"$f":"IF(OR(AH58=1,AH58=2),1,0)","v":0},{"$f":"IF(OR(AI58=1,AI58=2),1,0)","v":0},{"$f":"IF(OR(AJ58=1,AJ58=2),1,0)","v":0},{"$f":"IF(OR(AK58=1,AK58=2),1,0)","v":0},{"$f":"IF(OR(AL58=1,AL58=2),1,0)","v":0},{"$f":"SUM(AO58:AS58)","v":0}]
[null,null,null,"Belysningsanlæg","Anlæg 1","Anlæg 2","Anlæg 3","Anlæg 4","Anlæg 5","I alt"]
[null,null,null,"Bygningsareal [m2]",null,null,null,null,null,{"$f":"SUM(E60:I60)","v":0},"m2",null,null,null,null,null,null,null,null,null,null,null,null,null,null,null,null,null,null,null,null,null,null,"Nej","Nej","Nej","Nej","Nej",null,null,{"$f":"IF(AH58=1,1,0)","v":0},{"$f":"IF(AI58=1,1,0)","v":0},{"$f":"IF(AJ58=1,1,0)","v":0},{"$f":"IF(AK58=1,1,0)","v":0},{"$f":"IF(AL58=1,1,0)","v":0},{"$f":"SUM(AO60:AS60)","v":0}]
[null,null,null,"Installeret effekt pr. m2",null,null,null,null,null,"-","W/m2",null,null,null,null,null,null,null,null,null,null,null,null,null,null,null,null,null,null,null,null,null,null,"Ja","Ja","Ja","Ja","Ja"]
[null,null,null,"Antal lokaler",null,null,null,null,null,{"$f":"SUM(E62:I62)","v":0},"stk.",null,null,null,null,null,null,null,null,null,null,null,null,null,null,null,null,null,null,null,null,null,null,{"$f":"IF(E48=AH60,1,IF(E48=AH61,2,0))","v":0},{"$f":"IF(F48=AI60,1,IF(F48=AI61,2,0))","v":0},{"$f":"IF(G48=AJ60,1,IF(G48=AJ61,2,0))","v":0},{"$f":"IF(H48=AK60,1,IF(H48=AK61,2,0))","v":0},{"$f":"IF(I48=AL60,1,IF(I48=AL61,2,0))","v":0},{"$f":"IF(OR(AH74=2,AI74=2,AJ74=2,AK74=2,AL74=2),AT62,0)","v":0},null,{"$f":"IF(AND(AH62=1,AH74=2),E51,0)","v":0},{"$f":"IF(AND(AI62=1,AI74=2),F51,0)","v":0},{"$f":"IF(AND(AJ62=1,AJ74=2),G51,0)","v":0},{"$f":"IF(AND(AK62=1,AK74=2),H51,0)","v":0},{"$f":"IF(AND(AL62=1,AL74=2),I51,0)","v":0},{"$f":"SUM(AO62:AS62)","v":0}]
[null,null,null,"Styring (Tilstedeværelse - PIR )",null,null,null,null,null,"-"]
[null,null,null,"Styring (Dagslysstyring)",null,null,null,null,null,"-",null,null,null,null,null,null,null,null,null,null,null,null,null,null,null,null,{"$f":"E60/E62","v":{"$error":"#DIV/0!"}},{"$f":"F60/F62","v":{"$error":"#DIV/0!"}},{"$f":"G60/G62","v":{"$error":"#DIV/0!"}},{"$f":"H60/H62","v":{"$error":"#DIV/0!"}},{"$f":"I60/I62","v":{"$error":"#DIV/0!"}},null,null,"Nej","Nej","Nej","Nej","Nej"]
[null,null,null,"Antal PIR-sensorer",{"$f":"IF(OR(E63=\"\",E63=\"Ja\"),0,AA67)","v":0},{"$f":"IF(OR(F63=\"\",F63=\"Ja\"),0,AB67)","v":0},{"$f":"IF(OR(G63=\"\",G63=\"Ja\"),0,AC67)","v":0},{"$f":"IF(OR(H63=\"\",H63=\"Ja\"),0,AD67)","v":0},{"$f":"IF(OR(I63=\"\",I63=\"Ja\"),0,AE67)","v":0},{"$f":"SUM(E65:I65)","v":0},"stk.",null,null,null,null,null,null,null,null,null,null,null,null,null,null,null,{"$f":"E60/E62","v":{"$error":"#DIV/0!"}},{"$f":"F60/F62","v":{"$error":"#DIV/0!"}},{"$f":"G60/G62","v":{"$error":"#DIV/0!"}},{"$f":"H60/H62","v":{"$error":"#DIV/0!"}},{"$f":"I60/I62","v":{"$error":"#DIV/0!"}},null,null,"Ja","Ja","Ja","Ja","Ja"]
[null,null,null,"Antal lyssensorer",{"$f":"IF(OR(E64=\"\",E64=\"Ja\"),0,AA67)","v":0},{"$f":"IF(OR(F64=\"\",F64=\"Ja\"),0,AB67)","v":0},{"$f":"IF(OR(G64=\"\",G64=\"Ja\"),0,AC67)","v":0},{"$f":"IF(OR(H64=\"\",H64=\"Ja\"),0,AD67)","v":0},{"$f":"IF(OR(I64=\"\",I64=\"Ja\"),0,AE67)","v":0},{"$f":"SUM(E66:I66)","v":0},"stk.",null,null,null,null,null,null,null,null,null,null,null,null,null,null,null,null,null,null,null,null,null,null,{"$f":"IF(E49=AH64,1,IF(E49=AH65,2,0))","v":0},{"$f":"IF(F49=AI64,1,IF(F49=AI65,2,0))","v":0},{"$f":"IF(G49=AJ64,1,IF(G49=AJ65,2,0))","v":0},{"$f":"IF(H49=AK64,1,IF(H49=AK65,2,0))","v":0},{"$f":"IF(I49=AL64,1,IF(I49=AL65,2,0))","v":0},{"$f":"IF(OR(AH74=2,AI74=2,AJ74=2,AK74=2,AL74=2),AT66,0)","v":0},null,{"$f":"IF(AND(AH66=1,AH74=2),E52,0)","v":0},{"$f":"IF(AND(AI66=1,AI74=2),F52,0)","v":0},{"$f":"IF(AND(AJ66=1,AJ74=2),G52,0)","v":0},{"$f":"IF(AND(AK66=1,AK74=2),H52,0)","v":0},{"$f":"IF(AND(AL66=1,AL74=2),I52,0)","v":0},{"$f":"SUM(AO66:AS66)","v":0}]
[null,null,null,"Kan der etableres styring af anlæggene","Nej","Nej","Nej",null,null,"-",null,null,null,null,null,null,null,null,null,null,null,null,null,null,null,null,{"$f":"IF(AA64<120,E62,2*E62)","v":{"$error":"#DIV/0!"}},{"$f":"IF(AB64<120,F62,2*F62)","v":{"$error":"#DIV/0!"}},{"$f":"IF(AC64<120,G62,2*G62)","v":{"$error":"#DIV/0!"}},{"$f":"IF(AD64<120,H62,2*H62)","v":{"$error":"#DIV/0!"}},{"$f":"IF(AE64<120,I62,2*I62)","v":{"$error":"#DIV/0!"}}]
[null,null,null,null,null,null,null,null,null,null,null,null,null,null,null,null,null,null,null,null,null,null,null,null,null,null,null,null,null,null,null,null,null,"Nej","Nej","Nej","Nej","Nej"]
[null,null,null,"Effekt I alt [W]",{"$f":"E60*E61","v":0},{"$f":"F60*F61","v":0},{"$f":"G60*G61","v":0},{"$f":"H60*H61","v":0},{"$f":"I60*I61","v":0},{"$f":"SUM(E69:I69)","v":0},null,null,null,null,null,null,null,null,null,null,null,null,null,null,null,null,null,null,null,null,null,null,null,"Ja","Ja","Ja","Ja","Ja"]
[null,null,null,"Effekt pr. LED-armatur [W/stk.]",60,60,60,null,null,null,null,null,null,null,null,null,null,null,null,null,null,null,null,null,null,null,null,null,null,null,null,null,null,{"$f":"IF(E50=AH68,1,IF(E50=AH69,2,0))","v":0},{"$f":"IF(F50=AI68,1,IF(F50=AI69,2,0))","v":0},{"$f":"IF(G50=AJ68,1,IF(G50=AJ69,2,0))","v":0},{"$f":"IF(H50=AK68,1,IF(H50=AK69,2,0))","v":0},{"$f":"IF(I50=AL68,1,IF(I50=AL69,2,0))","v":0},{"$f":"IF(OR(AH74=2,AI74=2,AJ74=2,AK74=2,AL74=2),AT70,0)","v":0},{"$f":"AM58+AM62+AM66+AM70","v":0},{"$f":"IF(AND(AH70=1,AH74=2),E53,0)","v":0},{"$f":"IF(AND(AI70=1,AI74=2),F53,0)","v":0},{"$f":"IF(AND(AJ70=1,AJ74=2),G53,0)","v":0},{"$f":"IF(AND(AK70=1,AK74=2),H53,0)","v":0},{"$f":"IF(AND(AL70=1,AL74=2),I53,0)","v":0},{"$f":"SUM(AO70:AS70)","v":0}]
[null,null,null,"Antal armaturer [stk.]",{"$f":"E69/E70","v":0},{"$f":"F69/F70","v":0},{"$f":"G69/G70","v":0},{"$f":"IF(H69=0,0,H69/H70)","v":0},{"$f":"IF(I69=0,0,I69/I70)","v":0},{"$f":"SUM(E71:I71)","v":0}]
[null,null,null,null,null,null,null,null,null,null,null,null,null,null,null,null,null,null,null,null,null,null,null,null,null,null,null,null,null,null,null,null,null,"Nej","Nej","Nej","Nej","Nej"]
[null,null,null,null,null,null,null,null,null,null,null,null,null,null,null,null,null,null,null,null,null,null,null,null,null,null,null,null,null,null,null,null,null,"Ja","Ja","Ja","Ja","Ja"]
[null,null,null,"Solafskærmning",null,null,null,null,null,"Retur til inddata",null,null,null,null,null,null,null,null,null,null,null,null,null,null,null,null,null,null,null,null,null,null,null,{"$f":"IF(E54=AH72,1,IF(E54=AH73,2,0))","v":0},{"$f":"IF(F54=AI72,1,IF(F54=AI73,2,0))","v":0},{"$f":"IF(G54=AJ72,1,IF(G54=AJ73,2,0))","v":0},{"$f":"IF(H54=AK72,1,IF(H54=AK73,2,0))","v":0},{"$f":"IF(I54=AL72,1,IF(I54=AL73,2,0))","v":0}]
[null,null,null,null,null,null,null,null,null,null,null,null,null,null,null,null,null,null,null,null,null,null,null,null,null,null,null,null,null,null,null,null,null,{"$f":"IF(AH74=2,E44,0)","v":0},{"$f":"IF(AI74=2,F44,0)","v":0},{"$f":"IF(AJ74=2,G44,0)","v":0},{"$f":"IF(AK74=2,H44,0)","v":0},{"$f":"IF(AL74=2,I44,0)","v":0},{"$f":"SUM(AH75:AL75)","v":0},{"$f":"AM75/Inddata!F7","v":{"$error":"#DIV/0!"}},"Forhold"]
[null,null,null,"Solafskærmning","Anlæg 1 (Nord)","Anlæg 2 (Øst)","Anlæg 3 (Syd)","Anlæg 4 (Vest)","Anlæg 5","I alt"]
[null,null,null,"Vinduesareal [m2]",null,null,null,null,null,{"$f":"SUM(E77:I77)","v":0},"m2",null,null,null,null,null,null,null,null,null,null,null,null,null,null,null,null,null,null,null,null,null,null,null,null,null,null,null,"Belys"]
[null,null,null,"Solafskærmning",null,null,null,null,null,"-",null,null,null,null,null,null,null,null,null,null,null,null,null,null,null,null,null,null,null,null,null,null,null,"Nej","Nej","Nej","Nej","Nej"]
[null,null,null,"Solafskærmning - vinduer",{"$f":"IF(OR(E78=\"\",E78=\"Ja\"),0,E77)","v":0},{"$f":"IF(OR(F78=\"\",F78=\"Ja\"),0,F77)","v":0},0,0,0,{"$f":"SUM(E79:I79)","v":0},"m2",null,null,null,null,null,null,null,null,null,null,null,null,null,null,null,null,null,null,null,null,null,null,"Ja","Ja","Ja","Ja","Ja"]
[null,null,null,"Kan der etableres styring af anlæggene",null,null,null,null,null,"-",null,null,null,null,null,null,null,null,null,null,null,null,null,null,null,null,null,null,null,null,null,null,null,{"$f":"IF(E63=AH78,1,IF(E63=AH79,2,0))","v":0},{"$f":"IF(F63=AI78,1,IF(F63=AI79,2,0))","v":0},{"$f":"IF(G63=AJ78,1,IF(G63=AJ79,2,0))","v":0},{"$f":"IF(H63=AK78,1,IF(H63=AK79,2,0))","v":0},{"$f":"IF(I63=AL78,1,IF(I63=AL79,2,0))","v":0},{"$f":"IF(OR(AH88=2,AI88=2,AJ88=2,AK88=2,AL88=2),AT80,0)","v":0},null,{"$f":"IF(AND(AH80=1,AH88=2),E65,0)","v":0},{"$f":"IF(AND(AI80=1,AI88=2),F65,0)","v":0},{"$f":"IF(AND(AJ80=1,AJ88=2),G65,0)","v":0},{"$f":"IF(AND(AK80=1,AK88=2),H65,0)","v":0},{"$f":"IF(AND(AL80=1,AL88=2),I65,0)","v":0},{"$f":"SUM(AO80:AS80)","v":0}]
[]
[null,null,null,null,null,null,null,null,null,null,null,null,null,null,null,null,null,null,null,null,null,null,null,null,null,null,null,null,null,null,null,null,null,"Nej","Nej","Nej","Nej","Nej"]
[null,null,null,"CTS-anlæg",null,null,null,null,null,null,null,null,null,null,null,null,null,null,null,null,null,null,null,null,null,null,null,null,null,null,null,null,null,"Ja","Ja","Ja","Ja","Ja"]
[null,null,null,null,null,null,null,null,null,null,null,null,null,null,null,null,null,null,null,null,null,null,null,null,null,null,null,null,null,null,null,null,null,{"$f":"IF(E64=AH82,1,IF(E64=AH83,2,0))","v":0},{"$f":"IF(F64=AI82,1,IF(F64=AI83,2,0))","v":0},{"$f":"IF(G64=AJ82,1,IF(G64=AJ83,2,0))","v":0},{"$f":"IF(H64=AK82,1,IF(H64=AK83,2,0))","v":0},{"$f":"IF(I64=AL82,1,IF(I64=AL83,2,0))","v":0},{"$f":"IF(OR(AH88=2,AI88=2,AJ88=2,AK88=2,AL88=2),AT84,0)","v":0},{"$f":"AM80+AM84","v":0},{"$f":"IF(AND(AH84=1,AH88=2),E66,0)","v":0},{"$f":"IF(AND(AI84=1,AI88=2),F66,0)","v":0},{"$f":"IF(AND(AJ84=1,AJ88=2),G66,0)","v":0},{"$f":"IF(AND(AK84=1,AK88=2),H66,0)","v":0},{"$f":"IF(AND(AL84=1,AL88=2),I66,0)","v":0},{"$f":"SUM(AO84:AS84)","v":0}]
[null,null,null,"CTS-anlæg","Varmeanlæg"]
[null,null,null,null,"Anlæg 1","Anlæg 2","Anlæg 3","Anlæg 4","Anlæg 5","I alt",null,null,null,null,null,null,null,null,null,null,null,null,null,null,null,null,null,null,null,null,null,null,null,"Nej","Nej","Nej","Nej","Nej"]
[null,null,null,"Areal [m2]",{"$f":"E8","v":0},{"$f":"F8","v":0},{"$f":"G8","v":0},{"$f":"H8","v":0},{"$f":"I8","v":0},{"$f":"SUM(E87:I87)","v":0},"m2",null,null,null,null,null,null,null,null,null,null,null,null,null,null,null,null,null,null,null,null,null,null,"Ja","Ja","Ja","Ja","Ja"]
[null,null,null,"Sætpunktstyring",null,null,null,null,null,"-",null,null,null,null,null,null,null,null,null,null,null,null,null,null,null,null,null,null,null,null,null,null,null,{"$f":"IF(E67=AH86,1,IF(E67=AH87,2,0))","v":1},{"$f":"IF(F67=AI86,1,IF(F67=AI87,2,0))","v":1},{"$f":"IF(G67=AJ86,1,IF(G67=AJ87,2,0))","v":1},{"$f":"IF(H67=AK86,1,IF(H67=AK87,2,0))","v":0},{"$f":"IF(I67=AL86,1,IF(I67=AL87,2,0))","v":0},null,null,{"$f":"IF(AH88=2,E62,0)","v":0},{"$f":"IF(AI88=2,F62,0)","v":0},{"$f":"IF(AJ88=2,G62,0)","v":0},{"$f":"IF(AK88=2,H62,0)","v":0},{"$f":"IF(AL88=2,I62,0)","v":0},{"$f":"SUM(AO88:AS88)","v":0}]
[null,null,null,"Driftstidsstyring",null,null,null,null,null,"-",null,null,null,null,null,null,null,null,null,null,null,null,null,null,null,null,null,null,null,null,null,null,null,{"$f":"IF(AH88=2,E60,0)","v":0},{"$f":"IF(AI88=2,F60,0)","v":0},{"$f":"IF(AJ88=2,G60,0)","v":0},{"$f":"IF(AK88=2,H60,0)","v":0},{"$f":"IF(AL88=2,I60,0)","v":0},{"$f":"SUM(AH89:AL89)","v":0},{"$f":"AM89/Inddata!F7","v":{"$error":"#DIV/0!"}},"Forhold"]
[null,null,null,"Fejlregistrering og diagnosticering af tekniske bygningsstyringssystemer",null,null,null,null,null,"-"]
[null,null,null,"Rapportering af information om energiforbrug og indeklima",null,null,null,null,null,"-"]
[null,null,null,"Kan der etableres styring af anlæggene",null,null,null,null,null,"-"]
[]
[null,null,null,"CTS-anlæg","Varmt brugsvand"]
[null,null,null,null,"Anlæg 1","Anlæg 2","Anlæg 3","Anlæg 4","Anlæg 5","I alt"]
[null,null,null,"Beholderstørrelse [L]",{"$f":"E22","v":0},{"$f":"F22","v":0},0,0,0,{"$f":"SUM(E96:I96)","v":0},"L",null,null,null,null,null,null,null,null,null,null,null,null,null,null,null,null,null,null,null,null,null,null,null,null,null,null,null,"Sol"]
[null,null,null,"Sætpunktstyring",null,null,null,null,null,"-",null,null,null,null,null,null,null,null,null,null,null,null,null,null,null,null,null,null,null,null,null,null,null,"Nej","Nej","Nej","Nej","Nej"]
[null,null,null,"Driftstidsstyring",null,null,null,null,null,"-",null,null,null,null,null,null,null,null,null,null,null,null,null,null,null,null,null,null,null,null,null,null,null,"Ja","Ja","Ja","Ja","Ja"]
[null,null,null,"Fejlregistrering og diagnosticering af tekniske bygningsstyringssystemer",null,null,null,null,null,"-",null,null,null,null,null,null,null,null,null,null,null,null,null,null,null,null,null,null,null,null,null,null,null,{"$f":"IF(E78=AH97,1,IF(E78=AH98,2,0))","v":0},{"$f":"IF(F78=AI97,1,IF(F78=AI98,2,0))","v":0},{"$f":"IF(G78=AJ97,1,IF(G78=AJ98,2,0))","v":0},{"$f":"IF(H78=AK97,1,IF(H78=AK98,2,0))","v":0},{"$f":"IF(I78=AL97,1,IF(I78=AL98,2,0))","v":0},{"$f":"IF(OR(AH103=1,AI103=1,AJ103=1,AK103=1,AL103=1),0)","v":false},{"$f":"AM99","v":false},{"$f":"IF(AND(AH99=1,AH103=2),E79,0)","v":0},{"$f":"IF(AND(AI99=1,AI103=2),F79,0)","v":0},{"$f":"IF(AND(AJ99=1,AJ103=2),G79,0)","v":0},{"$f":"IF(AND(AK99=1,AK103=2),H79,0)","v":0},{"$f":"IF(AND(AL99=1,AL103=2),I79,0)","v":0},{"$f":"SUM(AO99:AS99)","v":0}]
[null,null,null,"Rapportering af information om energiforbrug og indeklima",null,null,null,null,null,"-"]
[null,null,null,"Kan der etableres styring af anlæggene",null,null,null,null,null,"-",null,null,null,null,null,null,null,null,null,null,null,null,null,null,null,null,null,null,null,null,null,null,null,"Nej","Nej","Nej","Nej","Nej"]
[null,null,null,null,null,null,null,null,null,null,null,null,null,null,null,null,null,null,null,null,null,null,null,null,null,null,null,null,null,null,null,null,null,"Ja","Ja","Ja","Ja","Ja"]
[null,null,null,"CTS-anlæg","Køleanlæg",null,null,null,null,null,null,null,null,null,null,null,null,null,null,null,null,null,null,null,null,null,null,null,null,null,null,null,null,{"$f":"IF(E80=AH101,1,IF(E80=AH102,2,0))","v":0},{"$f":"IF(F80=AI101,1,IF(F80=AI102,2,0))","v":0},{"$f":"IF(G80=AJ101,1,IF(G80=AJ102,2,0))","v":0},{"$f":"IF(H80=AK101,1,IF(H80=AK102,2,0))","v":0},{"$f":"IF(I80=AL101,1,IF(I80=AL102,2,0))","v":0}]
[null,null,null,null,"Anlæg 1","Anlæg 2","Anlæg 3","Anlæg 4","Anlæg 5","I alt",null,null,null,null,null,null,null,null,null,null,null,null,null,null,null,null,null,null,null,null,null,null,null,{"$f":"IF(AH103=2,E77,0)","v":0},{"$f":"IF(AI103=2,F77,0)","v":0},{"$f":"IF(AJ103=2,G77,0)","v":0},{"$f":"IF(AK103=2,H77,0)","v":0},{"$f":"IF(AL103=2,I77,0)","v":0},{"$f":"SUM(AH104:AL104)","v":0},{"$f":"AM104/Inddata!F7","v":{"$error":"#DIV/0!"}},"Forhold"]
[null,null,null,"Areal [m2]",{"$f":"E30","v":0},{"$f":"F30","v":0},0,0,0,{"$f":"SUM(E105:I105)","v":0},"m2"]
[null,null,null,"Sætpunktstyring",null,null,null,null,null,"-"]
[null,null,null,"Driftstidsstyring",null,null,null,null,null,"-"]
[null,null,null,"Fejlregistrering og diagnosticering af tekniske bygningsstyringssystemer",null,null,null,null,null,"-"]
[null,null,null,"Rapportering af information om energiforbrug og indeklima",null,null,null,null,null,"-",null,null,null,null,null,null,null,null,null,null,null,null,null,null,null,null,null,null,null,null,null,null,null,null,null,null,null,null,"Varme"]
[null,null,null,"Kan der etableres styring af anlæggene",null,null,null,null,null,"-",null,null,null,null,null,null,null,null,null,null,null,null,null,null,null,null,null,null,null,null,null,null,null,"Nej","Nej","Nej","Nej","Nej"]
[null,null,null,null,null,null,null,null,null,null,null,null,null,null,null,null,null,null,null,null,null,null,null,null,null,null,null,null,null,null,null,null,null,"Ja","Ja","Ja","Ja","Ja"]
[null,null,null,"CTS-anlæg","Ventilationsanlæg",null,null,null,null,null,null,null,null,null,null,null,null,null,null,null,null,null,null,null,null,null,null,null,null,null,null,null,null,{"$f":"IF(E88=AH110,1,IF(E88=AH111,2,0))","v":0},{"$f":"IF(F88=AI110,1,IF(F88=AI111,2,0))","v":0},{"$f":"IF(G88=AJ110,1,IF(G88=AJ111,2,0))","v":0},{"$f":"IF(H88=AK110,1,IF(H88=AK111,2,0))","v":0},{"$f":"IF(I88=AL110,1,IF(I88=AL111,2,0))","v":0}]
[null,null,null,null,"Anlæg 1","Anlæg 2","Anlæg 3","Anlæg 4","Anlæg 5","I alt"]
[null,null,null,"Areal [m2]",{"$f":"E44","v":0},{"$f":"F44","v":0},0,0,0,{"$f":"SUM(E114:I114)","v":0},"m2",null,null,null,null,null,null,null,null,null,null,null,null,null,null,null,null,null,null,null,null,null,null,"Nej","Nej","Nej","Nej","Nej"]
[null,null,null,"Sætpunktstyring",null,null,null,null,null,"-",null,null,null,null,null,null,null,null,null,null,null,null,null,null,null,null,null,null,null,null,null,null,null,"Ja","Ja","Ja","Ja","Ja"]
[null,null,null,"Driftstidsstyring",null,null,null,null,null,"-",null,null,null,null,null,null,null,null,null,null,null,null,null,null,null,null,null,null,null,null,null,null,null,{"$f":"IF(E89=AH114,1,IF(E89=AH115,2,0))","v":0},{"$f":"IF(F89=AI114,1,IF(F89=AI115,2,0))","v":0},{"$f":"IF(G89=AJ114,1,IF(G89=AJ115,2,0))","v":0},{"$f":"IF(H89=AK114,1,IF(H89=AK115,2,0))","v":0},{"$f":"IF(I89=AL114,1,IF(I89=AL115,2,0))","v":0}]
[null,null,null,"Fejlregistrering og diagnosticering af tekniske bygningsstyringssystemer",null,null,null,null,null,"-"]
[null,null,null,"Rapportering af information om energiforbrug og indeklima",null,null,null,null,null,"-",null,null,null,null,null,null,null,null,null,null,null,null,null,null,null,null,null,null,null,null,null,null,null,"Nej","Nej","Nej","Nej","Nej"]
[null,null,null,"Kan der etableres styring af anlæggene",null,null,null,null,null,"-",null,null,null,null,null,null,null,null,null,null,null,null,null,null,null,null,null,null,null,null,null,null,null,"Ja","Ja","Ja","Ja","Ja"]
[null,null,null,null,null,null,null,null,null,null,null,null,null,null,null,null,null,null,null,null,null,null,null,null,null,null,null,null,null,null,null,null,null,{"$f":"IF(E90=AH118,1,IF(E90=AH119,2,0))","v":0},{"$f":"IF(F90=AI118,1,IF(F90=AI119,2,0))","v":0},{"$f":"IF(G90=AJ118,1,IF(G90=AJ119,2,0))","v":0},{"$f":"IF(H90=AK118,1,IF(H90=AK119,2,0))","v":0},{"$f":"IF(I90=AL118,1,IF(I90=AL119,2,0))","v":0}]
[null,null,null,"CTS-anlæg","Belysningsanlæg"]
[null,null,null,null,"Anlæg 1","Anlæg 2","Anlæg 3","Anlæg 4","Anlæg 5","I alt",null,null,null,null,null,null,null,null,null,null,null,null,null,null,null,null,null,null,null,null,null,null,null,"Nej","Nej","Nej","Nej","Nej"]
[null,null,null,"Areal [m2]",{"$f":"E60","v":0},{"$f":"F60","v":0},0,0,0,{"$f":"SUM(E123:I123)","v":0},"m2",null,null,null,null,null,null,null,null,null,null,null,null,null,null,null,null,null,null,null,null,null,null,"Ja","Ja","Ja","Ja","Ja"]
[null,null,null,"Sætpunktstyring",null,null,null,null,null,"-",null,null,null,null,null,null,null,null,null,null,null,null,null,null,null,null,null,null,null,null,null,null,null,{"$f":"IF(E91=AH122,1,IF(E91=AH123,2,0))","v":0},{"$f":"IF(F91=AI122,1,IF(F91=AI123,2,0))","v":0},{"$f":"IF(G91=AJ122,1,IF(G91=AJ123,2,0))","v":0},{"$f":"IF(H91=AK122,1,IF(H91=AK123,2,0))","v":0},{"$f":"IF(I91=AL122,1,IF(I91=AL123,2,0))","v":0}]
[null,null,null,"Driftstidsstyring",null,null,null,null,null,"-"]
[null,null,null,"Fejlregistrering og diagnosticering af tekniske bygningsstyringssystemer",null,null,null,null,null,"-",null,null,null,null,null,null,null,null,null,null,null,null,null,null,null,null,null,null,null,null,null,null,null,"Nej","Nej","Nej","Nej","Nej"]
[null,null,null,"Rapportering af information om energiforbrug og indeklima",null,null,null,null,null,"-",null,null,null,null,null,null,null,null,null,null,null,null,null,null,null,null,null,null,null,null,null,null,null,"Ja","Ja","Ja","Ja","Ja"]
[null,null,null,"Kan der etableres styring af anlæggene",null,null,null,null,null,"-",null,null,null,null,null,null,null,null,null,null,null,null,null,null,null,null,null,null,null,null,null,null,null,{"$f":"IF(E92=AH126,1,IF(E92=AH127,2,0))","v":0},{"$f":"IF(F92=AI126,1,IF(F92=AI127,2,0))","v":0},{"$f":"IF(G92=AJ126,1,IF(G92=AJ127,2,0))","v":0},{"$f":"IF(H92=AK126,1,IF(H92=AK127,2,0))","v":0},{"$f":"IF(I92=AL126,1,IF(I92=AL127,2,0))","v":0}]
[null,null,null,null,null,null,null,null,null,null,null,null,null,null,null,null,null,null,null,null,null,null,null,null,null,null,null,null,null,null,null,null,null,{"$f":"IF(OR(AH128=0,AH128=1),0,1)","v":0},{"$f":"IF(OR(AI128=0,AI128=1),0,1)","v":0},0,0,0,{"$f":"IF(OR(AH129=1,AI129=1,AJ129=1,AK129=1,AL129=1),1,0)","v":0}]
[null,null,null,"CTS-anlæg","Solafskærmning",null,null,null,null,null,null,null,null,null,null,null,null,null,null,null,null,null,null,null,null,null,null,null,null,null,null,null,null,{"$f":"IF(AH128=2,E87,0)","v":0},{"$f":"IF(AI128=2,F87,0)","v":0},{"$f":"IF(AJ128=2,G87,0)","v":0},{"$f":"IF(AK128=2,H87,0)","v":0},{"$f":"IF(AL128=2,I87,0)","v":0},{"$f":"SUM(AH130:AL130)","v":0},{"$f":"IF(J87=0,0,AM130/Inddata!F7)","v":0},"Forhold"]
[null,null,null,null,"Anlæg 1 (Nord)","Anlæg 2 (Øst)","Anlæg 3 (Syd)","Anlæg 4 (Vest)","Anlæg 5","I alt"]
[null,null,null,"Vinduesareal [m2]",{"$f":"E77","v":0},{"$f":"F77","v":0},0,0,0,{"$f":"SUM(E132:I132)","v":0},"m2"]
[null,null,null,"Sætpunktstyring",null,null,null,null,null,"-"]
[null,null,null,"Driftstidsstyring",null,null,null,null,null,"-"]
[null,null,null,"Fejlregistrering og diagnosticering af tekniske bygningsstyringssystemer",null,null,null,null,null,"-",null,null,null,null,null,null,null,null,null,null,null,null,null,null,null,null,null,null,null,null,null,null,null,null,null,null,null,null,"VVB"]
[null,null,null,"Rapportering af information om energiforbrug og indeklima",null,null,null,null,null,"-",null,null,null,null,null,null,null,null,null,null,null,null,null,null,null,null,null,null,null,null,null,null,null,"Nej","Nej","Nej","Nej","Nej"]
[null,null,null,"Kan der etableres styring af anlæggene",null,null,null,null,null,"-",null,null,null,null,null,null,null,null,null,null,null,null,null,null,null,null,null,null,null,null,null,null,null,"Ja","Ja","Ja","Ja","Ja"]
[null,null,null,null,null,null,null,null,null,null,null,null,null,null,null,null,null,null,null,null,null,null,null,null,null,null,null,null,null,null,null,null,null,{"$f":"IF(E97=AH136,1,IF(E97=AH137,2,0))","v":0},{"$f":"IF(F97=AI136,1,IF(F97=AI137,2,0))","v":0},{"$f":"IF(G97=AJ136,1,IF(G97=AJ137,2,0))","v":0},{"$f":"IF(H97=AK136,1,IF(H97=AK137,2,0))","v":0},{"$f":"IF(I97=AL136,1,IF(I97=AL137,2,0))","v":0}]
[]
[null,null,null,null,null,null,null,null,null,null,null,null,null,null,null,null,null,null,null,null,null,null,null,null,null,null,null,null,null,null,null,null,null,"Nej","Nej","Nej","Nej","Nej"]
[null,null,null,null,null,null,null,null,null,null,null,null,null,null,null,null,null,null,null,null,null,null,null,null,null,null,null,null,null,null,null,null,null,"Ja","Ja","Ja","Ja","Ja"]
[null,null,null,null,null,null,null,null,null,null,null,null,null,null,null,null,null,null,null,null,null,null,null,null,null,null,null,null,null,null,null,null,null,{"$f":"IF(E98=AH140,1,IF(E98=AH141,2,0))","v":0},{"$f":"IF(F98=AI140,1,IF(F98=AI141,2,0))","v":0},{"$f":"IF(G98=AJ140,1,IF(G98=AJ141,2,0))","v":0},{"$f":"IF(H98=AK140,1,IF(H98=AK141,2,0))","v":0},{"$f":"IF(I98=AL140,1,IF(I98=AL141,2,0))","v":0}]
[]
[null,null,null,null,null,null,null,null,null,null,null,null,null,null,null,null,null,null,null,null,null,null,null,null,null,null,null,null,null,null,null,null,null,"Nej","Nej","Nej","Nej","Nej"]
[null,null,null,null,null,null,null,null,null,null,null,null,null,null,null,null,null,null,null,null,null,null,null,null,null,null,null,null,null,null,null,null,null,"Ja","Ja","Ja","Ja","Ja"]
[null,null,null,null,null,null,null,null,null,null,null,null,null,null,null,null,null,null,null,null,null,null,null,null,null,null,null,null,null,null,null,null,null,{"$f":"IF(E99=AH144,1,IF(E99=AH145,2,0))","v":0},{"$f":"IF(F99=AI144,1,IF(F99=AI145,2,0))","v":0},{"$f":"IF(G99=AJ144,1,IF(G99=AJ145,2,0))","v":0},{"$f":"IF(H99=AK144,1,IF(H99=AK145,2,0))","v":0},{"$f":"IF(I99=AL144,1,IF(I99=AL145,2,0))","v":0}]
[]
[null,null,null,null,null,null,null,null,null,null,null,null,null,null,null,null,null,null,null,null,null,null,null,null,null,null,null,null,null,null,null,null,null,"Nej","Nej","Nej","Nej","Nej"]
[null,null,null,null,null,null,null,null,null,null,null,null,null,null,null,null,null,null,null,null,null,null,null,null,null,null,null,null,null,null,null,null,null,"Ja","Ja","Ja","Ja","Ja"]
[null,null,null,null,null,null,null,null,null,null,null,null,null,null,null,null,null,null,null,null,null,null,null,null,null,null,null,null,null,null,null,null,null,{"$f":"IF(E100=AH148,1,IF(E100=AH149,2,0))","v":0},{"$f":"IF(F100=AI148,1,IF(F100=AI149,2,0))","v":0},{"$f":"IF(G100=AJ148,1,IF(G100=AJ149,2,0))","v":0},{"$f":"IF(H100=AK148,1,IF(H100=AK149,2,0))","v":0},{"$f":"IF(I100=AL148,1,IF(I100=AL149,2,0))","v":0}]
[]
[null,null,null,null,null,null,null,null,null,null,null,null,null,null,null,null,null,null,null,null,null,null,null,null,null,null,null,null,null,null,null,null,null,"Nej","Nej","Nej","Nej","Nej"]
[null,null,null,null,null,null,null,null,null,null,null,null,null,null,null,null,null,null,null,null,null,null,null,null,null,null,null,null,null,null,null,null,null,"Ja","Ja","Ja","Ja","Ja"]
[null,null,null,null,null,null,null,null,null,null,null,null,null,null,null,null,null,null,null,null,null,null,null,null,null,null,null,null,null,null,null,null,null,{"$f":"IF(E101=AH152,1,IF(E101=AH153,2,0))","v":0},{"$f":"IF(F101=AI152,1,IF(F101=AI153,2,0))","v":0},{"$f":"IF(G101=AJ152,1,IF(G101=AJ153,2,0))","v":0},{"$f":"IF(H101=AK152,1,IF(H101=AK153,2,0))","v":0},{"$f":"IF(I101=AL152,1,IF(I101=AL153,2,0))","v":0}]
[null,null,null,null,null,null,null,null,null,null,null,null,null,null,null,null,null,null,null,null,null,null,null,null,null,null,null,null,null,null,null,null,null,{"$f":"IF(OR(AH154=0,AH154=1),0,1)","v":0},{"$f":"IF(OR(AI154=0,AI154=1),0,1)","v":0},0,0,0,{"$f":"IF(OR(AH155=1,AI155=1,AJ155=1,AK155=1,AL155=1),1,0)","v":0}]
[null,null,null,null,null,null,null,null,null,null,null,null,null,null,null,null,null,null,null,null,null,null,null,null,null,null,null,null,null,null,null,null,null,{"$f":"IF(AH154=2,E96,0)","v":0},{"$f":"IF(AI154=2,F96,0)","v":0},{"$f":"IF(AJ154=2,G96,0)","v":0},{"$f":"IF(AK154=2,H96,0)","v":0},{"$f":"IF(AL154=2,I96,0)","v":0},{"$f":"SUM(AH156:AL156)","v":0},{"$f":"IF(J96=0,0,AM156/Inddata!F7)","v":0},"Forhold"]
[]
[null,null,null,null,null,null,null,null,null,null,null,null,null,null,null,null,null,null,null,null,null,null,null,null,null,null,null,null,null,null,null,null,null,null,null,null,null,null,"Køl"]
[null,null,null,null,null,null,null,null,null,null,null,null,null,null,null,null,null,null,null,null,null,null,null,null,null,null,null,null,null,null,null,null,null,"Nej","Nej","Nej","Nej","Nej"]
[null,null,null,null,null,null,null,null,null,null,null,null,null,null,null,null,null,null,null,null,null,null,null,null,null,null,null,null,null,null,null,null,null,"Ja","Ja","Ja","Ja","Ja"]
[null,null,null,null,null,null,null,null,null,null,null,null,null,null,null,null,null,null,null,null,null,null,null,null,null,null,null,null,null,null,null,null,null,{"$f":"IF(E106=AH159,1,IF(E106=AH160,2,0))","v":0},{"$f":"IF(F106=AI159,1,IF(F106=AI160,2,0))","v":0},{"$f":"IF(G106=AJ159,1,IF(G106=AJ160,2,0))","v":0},{"$f":"IF(H106=AK159,1,IF(H1027=AK160,2,0))","v":0},{"$f":"IF(I106=AL159,1,IF(I106=AL160,2,0))","v":0}]
[]
[null,null,null,null,null,null,null,null,null,null,null,null,null,null,null,null,null,null,null,null,null,null,null,null,null,null,null,null,null,null,null,null,null,"Nej","Nej","Nej","Nej","Nej"]
[null,null,null,null,null,null,null,null,null,null,null,null,null,null,null,null,null,null,null,null,null,null,null,null,null,null,null,null,null,null,null,null,null,"Ja","Ja","Ja","Ja","Ja"]
[null,null,null,null,null,null,null,null,null,null,null,null,null,null,null,null,null,null,null,null,null,null,null,null,null,null,null,null,null,null,null,null,null,{"$f":"IF(E107=AH163,1,IF(E107=AH164,2,0))","v":0},{"$f":"IF(F107=AI163,1,IF(F107=AI164,2,0))","v":0},{"$f":"IF(G107=AJ163,1,IF(G107=AJ164,2,0))","v":0},{"$f":"IF(H107=AK163,1,IF(H107=AK164,2,0))","v":0},{"$f":"IF(I107=AL163,1,IF(I107=AL164,2,0))","v":0}]
[]
[null,null,null,null,null,null,null,null,null,null,null,null,null,null,null,null,null,null,null,null,null,null,null,null,null,null,null,null,null,null,null,null,null,"Nej","Nej","Nej","Nej","Nej"]
[null,null,null,null,null,null,null,null,null,null,null,null,null,null,null,null,null,null,null,null,null,null,null,null,null,null,null,null,null,null,null,null,null,"Ja","Ja","Ja","Ja","Ja"]
[null,null,null,null,null,null,null,null,null,null,null,null,null,null,null,null,null,null,null,null,null,null,null,null,null,null,null,null,null,null,null,null,null,{"$f":"IF(E108=AH167,1,IF(E108=AH168,2,0))","v":0},{"$f":"IF(F108=AI167,1,IF(F108=AI168,2,0))","v":0},{"$f":"IF(G108=AJ167,1,IF(G108=AJ168,2,0))","v":0},{"$f":"IF(H108=AK167,1,IF(H108=AK168,2,0))","v":0},{"$f":"IF(I108=AL167,1,IF(I108=AL168,2,0))","v":0}]
[]
[null,null,null,null,null,null,null,null,null,null,null,null,null,null,null,null,null,null,null,null,null,null,null,null,null,null,null,null,null,null,null,null,null,"Nej","Nej","Nej","Nej","Nej"]
[null,null,null,null,null,null,null,null,null,null,null,null,null,null,null,null,null,null,null,null,null,null,null,null,null,null,null,null,null,null,null,null,null,"Ja","Ja","Ja","Ja","Ja"]
[null,null,null,null,null,null,null,null,null,null,null,null,null,null,null,null,null,null,null,null,null,null,null,null,null,null,null,null,null,null,null,null,null,{"$f":"IF(E109=AH171,1,IF(E109=AH172,2,0))","v":0},{"$f":"IF(F109=AI171,1,IF(F109=AI172,2,0))","v":0},{"$f":"IF(G109=AJ171,1,IF(G109=AJ172,2,0))","v":0},{"$f":"IF(H109=AK171,1,IF(H109=AK172,2,0))","v":0},{"$f":"IF(I109=AL171,1,IF(I109=AL172,2,0))","v":0}]
[]
[null,null,null,null,null,null,null,null,null,null,null,null,null,null,null,null,null,null,null,null,null,null,null,null,null,null,null,null,null,null,null,null,null,"Nej","Nej","Nej","Nej","Nej"]
[null,null,null,null,null,null,null,null,null,null,null,null,null,null,null,null,null,null,null,null,null,null,null,null,null,null,null,null,null,null,null,null,null,"Ja","Ja","Ja","Ja","Ja"]
[null,null,null,null,null,null,null,null,null,null,null,null,null,null,null,null,null,null,null,null,null,null,null,null,null,null,null,null,null,null,null,null,null,{"$f":"IF(E110=AH175,1,IF(E110=AH176,2,0))","v":0},{"$f":"IF(F110=AI175,1,IF(F110=AI176,2,0))","v":0},{"$f":"IF(G110=AJ175,1,IF(G110=AJ176,2,0))","v":0},{"$f":"IF(H110=AK175,1,IF(H110=AK176,2,0))","v":0},{"$f":"IF(I110=AL175,1,IF(I110=AL176,2,0))","v":0}]
[null,null,null,null,null,null,null,null,null,null,null,null,null,null,null,null,null,null,null,null,null,null,null,null,null,null,null,null,null,null,null,null,null,{"$f":"IF(OR(AH177=0,AH177=1),0,1)","v":0},{"$f":"IF(OR(AI177=0,AI177=1),0,1)","v":0},0,0,0,{"$f":"IF(OR(AH178=1,AI178=1,AJ178=1,AK178=1,AL178=1),1,0)","v":0}]
[null,null,null,null,null,null,null,null,null,null,null,null,null,null,null,null,null,null,null,null,null,null,null,null,null,null,null,null,null,null,null,null,null,{"$f":"IF(AH177=2,E105,0)","v":0},{"$f":"IF(AI177=2,F105,0)","v":0},{"$f":"IF(AJ177=2,G105,0)","v":0},{"$f":"IF(AK177=2,H105,0)","v":0},{"$f":"IF(AL177=2,I105,0)","v":0},{"$f":"SUM(AH179:AL179)","v":0},{"$f":"IF(J105=0,0,AM179/Inddata!F7)","v":0},"Forhold"]
[]
[null,null,null,null,null,null,null,null,null,null,null,null,null,null,null,null,null,null,null,null,null,null,null,null,null,null,null,null,null,null,null,null,null,null,null,null,null,null,"Vent"]
[null,null,null,null,null,null,null,null,null,null,null,null,null,null,null,null,null,null,null,null,null,null,null,null,null,null,null,null,null,null,null,null,null,"Nej","Nej","Nej","Nej","Nej"]
[null,null,null,null,null,null,null,null,null,null,null,null,null,null,null,null,null,null,null,null,null,null,null,null,null,null,null,null,null,null,null,null,null,"Ja","Ja","Ja","Ja","Ja"]
[null,null,null,null,null,null,null,null,null,null,null,null,null,null,null,null,null,null,null,null,null,null,null,null,null,null,null,null,null,null,null,null,null,{"$f":"IF(E115=AH182,1,IF(E115=AH183,2,0))","v":0},{"$f":"IF(F115=AI182,1,IF(F115=AI183,2,0))","v":0},{"$f":"IF(G115=AJ182,1,IF(G115=AJ183,2,0))","v":0},{"$f":"IF(H115=AK182,1,IF(H115=AK183,2,0))","v":0},{"$f":"IF(I115=AL182,1,IF(I115=AL183,2,0))","v":0}]
[]
[null,null,null,null,null,null,null,null,null,null,null,null,null,null,null,null,null,null,null,null,null,null,null,null,null,null,null,null,null,null,null,null,null,"Nej","Nej","Nej","Nej","Nej"]
[null,null,null,null,null,null,null,null,null,null,null,null,null,null,null,null,null,null,null,null,null,null,null,null,null,null,null,null,null,null,null,null,null,"Ja","Ja","Ja","Ja","Ja"]
[null,null,null,null,null,null,null,null,null,null,null,null,null,null,null,null,null,null,null,null,null,null,null,null,null,null,null,null,null,null,null,null,null,{"$f":"IF(E116=AH186,1,IF(E116=AH187,2,0))","v":0},{"$f":"IF(F116=AI186,1,IF(F116=AI187,2,0))","v":0},{"$f":"IF(G116=AJ186,1,IF(G116=AJ187,2,0))","v":0},{"$f":"IF(H116=AK186,1,IF(H116=AK187,2,0))","v":0},{"$f":"IF(I116=AL186,1,IF(I116=AL187,2,0))","v":0}]
[]
[null,null,null,null,null,null,null,null,null,null,null,null,null,null,null,null,null,null,null,null,null,null,null,null,null,null,null,null,null,null,null,null,null,"Nej","Nej","Nej","Nej","Nej"]
[null,null,null,null,null,null,null,null,null,null,null,null,null,null,null,null,null,null,null,null,null,null,null,null,null,null,null,null,null,null,null,null,null,"Ja","Ja","Ja","Ja","Ja"]
[null,null,null,null,null,null,null,null,null,null,null,null,null,null,null,null,null,null,null,null,null,null,null,null,null,null,null,null,null,null,null,null,null,{"$f":"IF(E117=AH190,1,IF(E117=AH191,2,0))","v":0},{"$f":"IF(F117=AI190,1,IF(F117=AI191,2,0))","v":0},{"$f":"IF(G117=AJ190,1,IF(G117=AJ191,2,0))","v":0},{"$f":"IF(H117=AK190,1,IF(H117=AK191,2,0))","v":0},{"$f":"IF(I117=AL190,1,IF(I117=AL191,2,0))","v":0}]
[]
[null,null,null,null,null,null,null,null,null,null,null,null,null,null,null,null,null,null,null,null,null,null,null,null,null,null,null,null,null,null,null,null,null,"Nej","Nej","Nej","Nej","Nej"]
[null,null,null,null,null,null,null,null,null,null,null,null,null,null,null,null,null,null,null,null,null,null,null,null,null,null,null,null,null,null,null,null,null,"Ja","Ja","Ja","Ja","Ja"]
[null,null,null,null,null,null,null,null,null,null,null,null,null,null,null,null,null,null,null,null,null,null,null,null,null,null,null,null,null,null,null,null,null,{"$f":"IF(E118=AH194,1,IF(E118=AH195,2,0))","v":0},{"$f":"IF(F118=AI194,1,IF(F118=AI195,2,0))","v":0},{"$f":"IF(G118=AJ194,1,IF(G118=AJ195,2,0))","v":0},{"$f":"IF(H118=AK194,1,IF(H118=AK195,2,0))","v":0},{"$f":"IF(I118=AL194,1,IF(I118=AL195,2,0))","v":0}]
[]
[null,null,null,null,null,null,null,null,null,null,null,null,null,null,null,null,null,null,null,null,null,null,null,null,null,null,null,null,null,null,null,null,null,"Nej","Nej","Nej","Nej","Nej"]
[null,null,null,null,null,null,null,null,null,null,null,null,null,null,null,null,null,null,null,null,null,null,null,null,null,null,null,null,null,null,null,null,null,"Ja","Ja","Ja","Ja","Ja"]
[null,null,null,null,null,null,null,null,null,null,null,null,null,null,null,null,null,null,null,null,null,null,null,null,null,null,null,null,null,null,null,null,null,{"$f":"IF(E119=AH198,1,IF(E119=AH199,2,0))","v":0},{"$f":"IF(F119=AI198,1,IF(F119=AI199,2,0))","v":0},{"$f":"IF(G119=AJ198,1,IF(G119=AJ199,2,0))","v":0},{"$f":"IF(H119=AK198,1,IF(H119=AK199,2,0))","v":0},{"$f":"IF(I119=AL198,1,IF(I119=AL199,2,0))","v":0}]
[null,null,null,null,null,null,null,null,null,null,null,null,null,null,null,null,null,null,null,null,null,null,null,null,null,null,null,null,null,null,null,null,null,{"$f":"IF(OR(AH200=0,AH200=1),0,1)","v":0},{"$f":"IF(OR(AI200=0,AI200=1),0,1)","v":0},0,0,0,{"$f":"IF(OR(AH201=1,AI201=1,AJ201=1,AK201=1,AL201=1),1,0)","v":0}]
[null,null,null,null,null,null,null,null,null,null,null,null,null,null,null,null,null,null,null,null,null,null,null,null,null,null,null,null,null,null,null,null,null,{"$f":"IF(AH200=2,E114,0)","v":0},{"$f":"IF(AI200=2,F114,0)","v":0},{"$f":"IF(AJ200=2,G114,0)","v":0},{"$f":"IF(AK200=2,H114,0)","v":0},{"$f":"IF(AL200=2,I114,0)","v":0},{"$f":"SUM(AH202:AL202)","v":0},{"$f":"IF(J114=0,0,AM202/Inddata!F7)","v":0},"Forhold"]
[]
[null,null,null,null,null,null,null,null,null,null,null,null,null,null,null,null,null,null,null,null,null,null,null,null,null,null,null,null,null,null,null,null,null,null,null,null,null,null,"Belys"]
[null,null,null,null,null,null,null,null,null,null,null,null,null,null,null,null,null,null,null,null,null,null,null,null,null,null,null,null,null,null,null,null,null,"Nej","Nej","Nej","Nej","Nej"]
[null,null,null,null,null,null,null,null,null,null,null,null,null,null,null,null,null,null,null,null,null,null,null,null,null,null,null,null,null,null,null,null,null,"Ja","Ja","Ja","Ja","Ja"]
[null,null,null,null,null,null,null,null,null,null,null,null,null,null,null,null,null,null,null,null,null,null,null,null,null,null,null,null,null,null,null,null,null,{"$f":"IF(E124=AH205,1,IF(E124=AH206,2,0))","v":0},{"$f":"IF(F124=AI205,1,IF(F124=AI206,2,0))","v":0},{"$f":"IF(G124=AJ205,1,IF(G124=AJ206,2,0))","v":0},{"$f":"IF(H124=AK205,1,IF(H124=AK206,2,0))","v":0},{"$f":"IF(I124=AL205,1,IF(I124=AL206,2,0))","v":0}]
[]
[null,null,null,null,null,null,null,null,null,null,null,null,null,null,null,null,null,null,null,null,null,null,null,null,null,null,null,null,null,null,null,null,null,"Nej","Nej","Nej","Nej","Nej"]
[null,null,null,null,null,null,null,null,null,null,null,null,null,null,null,null,null,null,null,null,null,null,null,null,null,null,null,null,null,null,null,null,null,"Ja","Ja","Ja","Ja","Ja"]
[null,null,null,null,null,null,null,null,null,null,null,null,null,null,null,null,null,null,null,null,null,null,null,null,null,null,null,null,null,null,null,null,null,{"$f":"IF(E125=AH209,1,IF(E125=AH210,2,0))","v":0},{"$f":"IF(F125=AI209,1,IF(F125=AI210,2,0))","v":0},{"$f":"IF(G125=AJ209,1,IF(G125=AJ210,2,0))","v":0},{"$f":"IF(H125=AK209,1,IF(H125=AK210,2,0))","v":0},{"$f":"IF(I125=AL209,1,IF(I125=AL210,2,0))","v":0}]
[]
[null,null,null,null,null,null,null,null,null,null,null,null,null,null,null,null,null,null,null,null,null,null,null,null,null,null,null,null,null,null,null,null,null,"Nej","Nej","Nej","Nej","Nej"]
[null,null,null,null,null,null,null,null,null,null,null,null,null,null,null,null,null,null,null,null,null,null,null,null,null,null,null,null,null,null,null,null,null,"Ja","Ja","Ja","Ja","Ja"]
[null,null,null,null,null,null,null,null,null,null,null,null,null,null,null,null,null,null,null,null,null,null,null,null,null,null,null,null,null,null,null,null,null,{"$f":"IF(E126=AH213,1,IF(E126=AH214,2,0))","v":0},{"$f":"IF(F126=AI213,1,IF(F126=AI214,2,0))","v":0},{"$f":"IF(G126=AJ213,1,IF(G126=AJ214,2,0))","v":0},{"$f":"IF(H126=AK213,1,IF(H126=AK214,2,0))","v":0},{"$f":"IF(I126=AL213,1,IF(I126=AL214,2,0))","v":0}]
[]
[null,null,null,null,null,null,null,null,null,null,null,null,null,null,null,null,null,null,null,null,null,null,null,null,null,null,null,null,null,null,null,null,null,"Nej","Nej","Nej","Nej","Nej"]
[null,null,null,null,null,null,null,null,null,null,null,null,null,null,null,null,null,null,null,null,null,null,null,null,null,null,null,null,null,null,null,null,null,"Ja","Ja","Ja","Ja","Ja"]
[null,null,null,null,null,null,null,null,null,null,null,null,null,null,null,null,null,null,null,null,null,null,null,null,null,null,null,null,null,null,null,null,null,{"$f":"IF(E127=AH217,1,IF(E127=AH218,2,0))","v":0},{"$f":"IF(F127=AI217,1,IF(F127=AI218,2,0))","v":0},{"$f":"IF(G127=AJ217,1,IF(G127=AJ218,2,0))","v":0},{"$f":"IF(H127=AK217,1,IF(H127=AK218,2,0))","v":0},{"$f":"IF(I127=AL217,1,IF(I127=AL218,2,0))","v":0}]
[]
[null,null,null,null,null,null,null,null,null,null,null,null,null,null,null,null,null,null,null,null,null,null,null,null,null,null,null,null,null,null,null,null,null,"Nej","Nej","Nej","Nej","Nej"]
[null,null,null,null,null,null,null,null,null,null,null,null,null,null,null,null,null,null,null,null,null,null,null,null,null,null,null,null,null,null,null,null,null,"Ja","Ja","Ja","Ja","Ja"]
[null,null,null,null,null,null,null,null,null,null,null,null,null,null,null,null,null,null,null,null,null,null,null,null,null,null,null,null,null,null,null,null,null,{"$f":"IF(E128=AH221,1,IF(E128=AH222,2,0))","v":0},{"$f":"IF(F128=AI221,1,IF(F128=AI222,2,0))","v":0},{"$f":"IF(G128=AJ221,1,IF(G128=AJ222,2,0))","v":0},{"$f":"IF(H128=AK221,1,IF(H128=AK222,2,0))","v":0},{"$f":"IF(I128=AL221,1,IF(I128=AL222,2,0))","v":0}]
[null,null,null,null,null,null,null,null,null,null,null,null,null,null,null,null,null,null,null,null,null,null,null,null,null,null,null,null,null,null,null,null,null,{"$f":"IF(OR(AH223=0,AH223=1),0,1)","v":0},{"$f":"IF(OR(AI223=0,AI223=1),0,1)","v":0},0,0,0,{"$f":"IF(OR(AH224=1,AI224=1,AJ224=1,AK224=1,AL224=1),1,0)","v":0}]
[null,null,null,null,null,null,null,null,null,null,null,null,null,null,null,null,null,null,null,null,null,null,null,null,null,null,null,null,null,null,null,null,null,{"$f":"IF(AH223=2,E123,0)","v":0},{"$f":"IF(AI223=2,F123,0)","v":0},{"$f":"IF(AJ223=2,G123,0)","v":0},{"$f":"IF(AK223=2,H123,0)","v":0},{"$f":"IF(AL223=2,I123,0)","v":0},{"$f":"SUM(AH225:AL225)","v":0},{"$f":"IF(J123=0,0,AM225/Inddata!F7)","v":0},"Forhold"]
[]
[null,null,null,null,null,null,null,null,null,null,null,null,null,null,null,null,null,null,null,null,null,null,null,null,null,null,null,null,null,null,null,null,null,null,null,null,null,null,"Sol"]
[null,null,null,null,null,null,null,null,null,null,null,null,null,null,null,null,null,null,null,null,null,null,null,null,null,null,null,null,null,null,null,null,null,"Nej","Nej","Nej","Nej","Nej"]
[null,null,null,null,null,null,null,null,null,null,null,null,null,null,null,null,null,null,null,null,null,null,null,null,null,null,null,null,null,null,null,null,null,"Ja","Ja","Ja","Ja","Ja"]
[null,null,null,null,null,null,null,null,null,null,null,null,null,null,null,null,null,null,null,null,null,null,null,null,null,null,null,null,null,null,null,null,null,{"$f":"IF(E133=AH228,1,IF(E133=AH229,2,0))","v":0},{"$f":"IF(F133=AI228,1,IF(F133=AI229,2,0))","v":0},{"$f":"IF(G133=AJ228,1,IF(G133=AJ229,2,0))","v":0},{"$f":"IF(H133=AK228,1,IF(H133=AK229,2,0))","v":0},{"$f":"IF(I133=AL228,1,IF(I133=AL229,2,0))","v":0}]
[]
[null,null,null,null,null,null,null,null,null,null,null,null,null,null,null,null,null,null,null,null,null,null,null,null,null,null,null,null,null,null,null,null,null,"Nej","Nej","Nej","Nej","Nej"]
[null,null,null,null,null,null,null,null,null,null,null,null,null,null,null,null,null,null,null,null,null,null,null,null,null,null,null,null,null,null,null,null,null,"Ja","Ja","Ja","Ja","Ja"]
[null,null,null,null,null,null,null,null,null,null,null,null,null,null,null,null,null,null,null,null,null,null,null,null,null,null,null,null,null,null,null,null,null,{"$f":"IF(E134=AH232,1,IF(E134=AH233,2,0))","v":0},{"$f":"IF(F134=AI232,1,IF(F134=AI233,2,0))","v":0},{"$f":"IF(G134=AJ232,1,IF(G134=AJ233,2,0))","v":0},{"$f":"IF(H134=AK232,1,IF(H134=AK233,2,0))","v":0},{"$f":"IF(I134=AL232,1,IF(I134=AL233,2,0))","v":0}]
[]
[null,null,null,null,null,null,null,null,null,null,null,null,null,null,null,null,null,null,null,null,null,null,null,null,null,null,null,null,null,null,null,null,null,"Nej","Nej","Nej","Nej","Nej"]
[null,null,null,null,null,null,null,null,null,null,null,null,null,null,null,null,null,null,null,null,null,null,null,null,null,null,null,null,null,null,null,null,null,"Ja","Ja","Ja","Ja","Ja"]
[null,null,null,null,null,null,null,null,null,null,null,null,null,null,null,null,null,null,null,null,null,null,null,null,null,null,null,null,null,null,null,null,null,{"$f":"IF(E135=AH236,1,IF(E135=AH237,2,0))","v":0},{"$f":"IF(F135=AI236,1,IF(F135=AI237,2,0))","v":0},{"$f":"IF(G135=AJ236,1,IF(G135=AJ237,2,0))","v":0},{"$f":"IF(H135=AK236,1,IF(H135=AK237,2,0))","v":0},{"$f":"IF(I135=AL236,1,IF(I135=AL237,2,0))","v":0}]
[]
[null,null,null,null,null,null,null,null,null,null,null,null,null,null,null,null,null,null,null,null,null,null,null,null,null,null,null,null,null,null,null,null,null,"Nej","Nej","Nej","Nej","Nej"]
[null,null,null,null,null,null,null,null,null,null,null,null,null,null,null,null,null,null,null,null,null,null,null,null,null,null,null,null,null,null,null,null,null,"Ja","Ja","Ja","Ja","Ja"]
[null,null,null,null,null,null,null,null,null,null,null,null,null,null,null,null,null,null,null,null,null,null,null,null,null,null,null,null,null,null,null,null,null,{"$f":"IF(E136=AH240,1,IF(E136=AH241,2,0))","v":0},{"$f":"IF(F136=AI240,1,IF(F136=AI241,2,0))","v":0},{"$f":"IF(G136=AJ240,1,IF(G136=AJ241,2,0))","v":0},{"$f":"IF(H136=AK240,1,IF(H136=AK241,2,0))","v":0},{"$f":"IF(I136=AL240,1,IF(I136=AL241,2,0))","v":0}]
[]
[null,null,null,null,null,null,null,null,null,null,null,null,null,null,null,null,null,null,null,null,null,null,null,null,null,null,null,null,null,null,null,null,null,"Nej","Nej","Nej","Nej","Nej"]
[null,null,null,null,null,null,null,null,null,null,null,null,null,null,null,null,null,null,null,null,null,null,null,null,null,null,null,null,null,null,null,null,null,"Ja","Ja","Ja","Ja","Ja"]
[null,null,null,null,null,null,null,null,null,null,null,null,null,null,null,null,null,null,null,null,null,null,null,null,null,null,null,null,null,null,null,null,null,{"$f":"IF(E137=AH244,1,IF(E137=AH245,2,0))","v":0},{"$f":"IF(F137=AI244,1,IF(F137=AI245,2,0))","v":0},{"$f":"IF(G137=AJ244,1,IF(G137=AJ245,2,0))","v":0},{"$f":"IF(H137=AK244,1,IF(H137=AK245,2,0))","v":0},{"$f":"IF(I137=AL244,1,IF(I137=AL245,2,0))","v":0}]
[null,null,null,null,null,null,null,null,null,null,null,null,null,null,null,null,null,null,null,null,null,null,null,null,null,null,null,null,null,null,null,null,null,{"$f":"IF(OR(AH246=0,AH246=1),0,1)","v":0},{"$f":"IF(OR(AI246=0,AI246=1),0,1)","v":0},0,0,0,{"$f":"IF(OR(AH247=1,AI247=1,AJ247=1,AK247=1,AL247=1),1,0)","v":0}]
[null,null,null,null,null,null,null,null,null,null,null,null,null,null,null,null,null,null,null,null,null,null,null,null,null,null,null,null,null,null,null,null,null,{"$f":"IF(AH246=2,E132,0)","v":0},{"$f":"IF(AI246=2,F132,0)","v":0},{"$f":"IF(AJ246=2,G132,0)","v":0},{"$f":"IF(AK246=2,H132,0)","v":0},{"$f":"IF(AL246=2,I132,0)","v":0},{"$f":"SUM(AH248:AL248)","v":0},{"$f":"IF(J132=0,0,AM248/J132)","v":0},"Forhold"]
[]
[null,null,null,null,null,null,null,null,null,null,null,null,null,null,null,null,null,null,null,null,null,null,null,null,null,null,null,null,null,null,null,null,null,null,null,null,null,null,{"$f":"SUM(AM129+AM155+AM178+AM201+AM224+AM247)","v":0}]

{"sheet":"Bygningsautomatik_før","index":5,"n_rows":423,"n_cols":34,"rows_kept":423,"cut":false,"hidden":false,"merged":[[194,3,195,4],[4,8,4,10],[18,4,19,4],[133,4,134,4],[162,4,163,4],[173,4,174,4],[372,3,372,4],[213,3,214,4],[280,4,281,4],[285,4,286,4],[296,4,297,4],[299,4,300,4],[310,4,311,4],[313,4,314,4],[326,4,327,4],[329,4,331,4],[333,4,335,4],[349,4,350,4]]}
[]
[]
[null,null,5,"Bygningsautomatik og tekniske bygningsstyringsfunktioner, der har en indvirkning på bygningers energieffektivitet",null,null,null,null,null,null,null,null,null,null,null,null,null,null,null,null,null,null,null,"Minimum og maksimum af de lilla felter angives. Ligger man mellem minimum og maksimum, overholder man BR18."]
[]
[null,null,null,"Automatisk styring"]
[]
[null,null,null,"Nr.","Funktion",null,null,null,null,null,null,null,null,null,null,null,null,null,null,null,null,null,null,"Måske skal man se det for hvert teknologiområde?"]
[]
[null,null,1,"Varmeregulering",null,null,null,null,null,null,null,null,null,null,null,"Nummer","Aktuel","Minimum","Minimum_2","Maksimum","Vægtning",null,null,"Teknologi","Aktuel","Min.","Maks.","Vægt",null,"Teknologi","Aktuel","Min.","Maks.","Vægt"]
[null,null,null,null,null,null,null,null,null,null,null,null,null,null,null,null,{"$f":"SUM(Q12:Q18)","v":7},{"$f":"SUM(R12:R18)","v":0},{"$f":"SUM(S12:S18)","v":7},{"$f":"SUM(T12:T18)","v":11},{"$f":"SUM(U12:U19)","v":100},null,null,null,{"$f":"Y19","v":26},{"$f":"D15+D28+D40+D56+D68+D82+D94+D106+D118+D130+D143+D155+D187+D172+D185+D202+D217+D229+D239+D253+D269+D279+D295+D309+D325+D344+D361+D379+D393+D405+D417","v":4},{"$f":"D19+D32+D48+D60+D72+D86+D98+D110+D120+D134+D147+D163+D177+D189+D208+D221+D231+D245+D261+D286+D300+D334+D350+D367+D385+D397+D409+D421","v":70},null,null,null,{"$f":"AE19","v":7.25},{"$f":"AF19","v":9.8000000000000007},{"$f":"AG19","v":17.7}]
[null,null,null,"1.1","Regulering af varmeafgivere"]
[null,null,null,null,null,null,null,null,null,null,null,null,null,null,null,1,{"$f":"D22","v":2},0,2,3,35,null,null,"Varme",{"$f":"Q10","v":7},{"$f":"D15+D28+D40+D56+D68","v":1},{"$f":"D19+D32+D48+D60+D72","v":13},null,null,"Varme",{"$f":"Q19","v":1.55},{"$f":"R19","v":1.55},{"$f":"S19","v":2.5499999999999998}]
[null,null,null,"Styringsfunktionen anvendes på varmeafgivere (radiatorer, gulvvarme, fancoils, indendørsenheder) på rumniveau. For type 1 kan én funktion styre flere rum.",null,null,null,null,null,null,null,null,null,null,null,2,{"$f":"D34","v":1},0,1,2,35,null,null,"VVB",{"$f":"Q77","v":0},{"$f":"D82+D94+D106+D118","v":0},{"$f":"D86+D98+D110+D120","v":7},null,null,"VVB",{"$f":"Q85","v":0},{"$f":"R85","v":0.85},{"$f":"S85","v":1.85}]
[null,null,null,null,null,null,null,null,null,null,null,null,null,null,null,3,{"$f":"D50","v":3},0,3,4,10,null,null,"Køling",{"$f":"Q111","v":1},{"$f":"D130+D143+D155+D187+D172+D185","v":2},{"$f":"D134+D147+D163+D177+D189","v":13},null,null,"Køling",{"$f":"Q120","v":0.35},{"$f":"R120","v":1.55},{"$f":"S120","v":2.5499999999999998}]
[null,null,null,1,"Individuel rumstyring: Ved hjælp af termostatiske ventiler eller elektroniske regulatorer.",null,null,null,null,null,null,null,null,null,null,4,{"$f":"IF(Inddata!Y28=0,\"\",IF(Inddata!Y28=1,D62,IF(Inddata!Y28=2,D62,IF(Inddata!Y28=3,D62,IF(Inddata!Y28=4,D74,IF(Inddata!Y28=5,D74))))))","v":1},0,1,2,20,null,null,"Ventilation",{"$f":"Q185","v":9},{"$f":"D202+D217+D229+D239+D253+D269+D279+D295+D309","v":1},{"$f":"D208+D221+D231+D245+D261+D286+D300","v":19},null,null,"Ventilation",{"$f":"Q198","v":1.35},{"$f":"R198","v":1.85},{"$f":"S198","v":2.5499999999999998}]
[null,null,null,null,null,null,null,null,null,null,null,null,null,null,null,null,null,null,null,null,null,null,null,"Belysning",{"$f":"Q320","v":4},{"$f":"D325+D344","v":0},{"$f":"D334+D350","v":6},null,null,"Belysning",{"$f":"Q326","v":2},{"$f":"R326","v":2},{"$f":"S326","v":3}]
[null,null,null,2,"Individuel modulerende rumstyring med kommunikation: Kommunikerer mellem regulatorer og BMS-system (f.eks. tidsskemaer eller rumtemperatursætpunkt).",null,null,null,null,null,null,null,null,null,null,null,null,null,null,null,null,null,null,"Solafskærm.",{"$f":"Q356","v":2},{"$f":"D361","v":0},{"$f":"D367","v":3},null,null,"Solafskærm.",{"$f":"Q361","v":2},{"$f":"R361","v":2},{"$f":"S361","v":3}]
[null,null,null,null,null,null,null,null,null,null,null,null,null,null,null,null,null,null,null,null,null,null,null,"CTS",{"$f":"Q372","v":3},{"$f":"D379+D393+D405+D417","v":0},{"$f":"D385+D397+D409+D421","v":9},null,null,"CTS",{"$f":"Q380","v":0},{"$f":"R380","v":0},{"$f":"S382","v":2.2000000000000002}]
[null,null,null,3,"Individuel modulerende rumstyring med kommunikation og registrering af tilstedværelse: Mellem regulatorer og BMS-system. Behovsstyring/registrering af tilstedeværelse. Denne funktion anvendes normalt ikke på langsomt reagerende varmeafgiver med termiske masse som for eksempel gulvvarmesystemer eller vægvarme.",null,null,null,null,null,null,null,null,null,null,null,{"$f":"SUMPRODUCT(Q12:Q16,U12:U16)/SUM(U12:U16)","v":1.55},{"$f":"SUMPRODUCT(S12:S16,U12:U16)/SUM(U12:U16)","v":1.55},{"$f":"SUMPRODUCT(T12:T16,U12:U16)/SUM(U12:U16)","v":2.5499999999999998},null,null,null,null,"I alt",{"$f":"SUM(Y12:Y18)","v":26},{"$f":"SUM(Z12:Z18)","v":4},{"$f":"SUM(AA12:AA18)","v":70},null,null,"I alt",{"$f":"SUM(AE12:AE18)","v":7.25},{"$f":"SUM(AF12:AF18)","v":9.8000000000000007},{"$f":"SUM(AG12:AG18)","v":17.7}]
[null,null,null,null,null,null,null,null,null,null,null,null,null,null,null,null,null,null,null,null,null,null,null,null,null,null,null,null,null,"Overholder BR18?",{"$f":"IF(AND(AE19>=AF19,AE19<=AG19),\"Ja\",\"Nej\")","v":"Nej"}]
[null,null,null,null,null,null,null,null,null,null,null,null,null,null,null,null,"D",null,0,null,null,null,null,"Der skal måske noget vægtning på!"]
[null,null,null,2,null,null,null,null,null,null,null,null,null,null,null,null,"C",null,{"$f":"S23-((S24-S21)/3)","v":0.84999999999999976},null,null,null,null,null,null,null,null,null,null,"Dette er nok den rigtige måde at gøre det på!"]
[null,null,null,null,null,null,null,null,null,null,null,null,null,null,null,null,"B",null,{"$f":"S24-((S24-S21)/3)","v":1.6999999999999997}]
[null,null,null,"1.2","Regulering af distributionsnet - centralvarmevandets temperatur (fremløb eller retur)",null,null,null,null,null,null,null,null,null,null,null,"A",null,{"$f":"S19","v":2.5499999999999998},null,null,null,null,null,null,null,null,null,null,"Hvis \"Aktuel\" ligger mellem \"Min\" og \"Maks,\" så overholder man BR18."]
[]
[null,null,null,"En lignende funktion kan bruges til styring af elektriske opvarmningsnet.",null,null,null,null,null,null,null,null,null,null,null,null,null,null,{"$f":"IF(AND(Q19>=S21,Q19<S22),\"D\",IF(AND(Q19>=S22,Q19<S23),\"C\",IF(AND(Q19>=S23,Q19<S24),\"B\",IF(Q19>=S24,\"A\"))))","v":"C"}]
[]
[null,null,null,0,"Ingen automatisk styring."]
[]
[null,null,null,1,"Udetemperaturkompenseret styring: Reducerer generelt middelfremløbstemperaturen."]
[]
[null,null,null,2,"Efterspørgselsbaseret styring: Baseret på en indendørs temperaturkontrolvariabel. Reducerer generelt middelfremløbstemperaturen."]
[]
[null,null,null,1]
[]
[null,null,null,"1.3","Styring af cirkulationspumper i distributionsnet"]
[]
[null,null,null,"Reducerer pumpernes hjælpeenergibehov."]
[]
[null,null,null,0,"Ingen automatisk styring."]
[]
[null,null,null,1,"Tænd/sluk-styring: Pumper kører ved maksimal hastighed uden regulering."]
[]
[null,null,null,2,"Flertrinsstyring: Pumpens hastighed styres via flertrinskontrol."]
[]
[null,null,null,3,"Variabel hastighedspumpestyring: Konstant eller variabelt tryk baseret på interne estimeringer."]
[]
[null,null,null,4,"Variabel hastighedspumpestyring: Variabelt tryk, baseret på eksternt behovssignal."]
[]
[null,null,null,3]
[]
[null,null,null,"1.4","Regulering af varmeproducerende enhed (brændsler og fjernvarme)"]
[]
[null,null,null,"Reducerer den varmeproducerende enheds driftstemperatur."]
[]
[null,null,null,0,"Konstant temperaturstyring."]
[]
[null,null,null,1,"Variabel temperaturstyring afhængig af udetemperaturen."]
[]
[null,null,null,2,"Variabel temperaturstyring afhængig af belastningen: eksempelvis afhængig af forsyningsvandets temperatur setpunkt."]
[]
[null,null,null,1]
[]
[null,null,null,"1.5","Regulering af varmeproducerende enhed (varmepumpe)"]
[]
[null,null,null,"Maksimerer varmeproducerende enheds effektivitet."]
[]
[null,null,null,0,"Konstant temperaturstyring."]
[]
[null,null,null,1,"Variabel temperaturstyring afhængig af udetemperaturen."]
[]
[null,null,null,2,"Variabel temperaturstyring afhængig af belastningen: f.eks. afhængig af forsyningsvandets temperatur setpunkt"]
[]
[null,null,null,0]
[]
[null,null,2,"Regulering af system til varmt brugsvand",null,null,null,null,null,null,null,null,null,null,null,"Nummer","Aktuel","Minimum","Minimum_2","Maksimum","Vægtning"]
[null,null,null,null,null,null,null,null,null,null,null,null,null,null,null,null,{"$f":"SUM(Q79:Q82)","v":0},{"$f":"SUM(R79:R82)","v":0},{"$f":"SUM(S79:S82)","v":1},{"$f":"SUM(T79:T82)","v":3},{"$f":"SUM(U79:U82)","v":100}]
[null,null,null,"2.1","Regulering af varmt brugsvands beholderopladning med direkte elektrisk opvarmning eller integreret elektrisk varmepumpe"]
[null,null,null,null,null,null,null,null,null,null,null,null,null,null,null,1,{"$f":"IF(Inddata!Y28=0,\"\",IF(Inddata!Y28=1,D100,IF(Inddata!Y28=2,D100,IF(Inddata!Y28=3,D100,IF(Inddata!Y28=4,D88,IF(Inddata!Y28=5,D88))))))","v":0},0,1,2,85]
[null,null,null,"Regulering af varmt brugsvands beholderopladning med direkte elektrisk opvarmning eller integreret elektrisk varmepumpe",null,null,null,null,null,null,null,null,null,null,null,2]
[null,null,null,null,null,null,null,null,null,null,null,null,null,null,null,3]
[null,null,null,0,"Automatisk tænd/sluk-styring.",null,null,null,null,null,null,null,null,null,null,4,{"$f":"D122","v":0},0,0,1,15]
[]
[null,null,null,1,"Automatisk tænd/sluk-styring og tidsplanlagt opladning aktiveret."]
[null,null,null,null,null,null,null,null,null,null,null,null,null,null,null,null,{"$f":"SUMPRODUCT(Q79:Q82,U79:U82)/SUM(U79:U82)","v":0},{"$f":"SUMPRODUCT(S79:S82,U79:U82)/SUM(U79:U82)","v":0.85},{"$f":"SUMPRODUCT(T79:T82,U79:U82)/SUM(U79:U82)","v":1.85}]
[null,null,null,2,"Automatisk tænd/sluk-styring, tidsplanlagt opladning aktiveret og multi-sensor lagerstyring."]
[null,null,null,null,null,null,null,null,null,null,null,null,null,null,null,null,"D",null,0]
[null,null,null,0,null,null,null,null,null,null,null,null,null,null,null,null,"C",null,{"$f":"S89-((S90-S87)/3)","v":0.6166666666666667}]
[null,null,null,null,null,null,null,null,null,null,null,null,null,null,null,null,"B",null,{"$f":"S90-((S90-S87)/3)","v":1.2333333333333334}]
[null,null,null,"2.2","Regulering af varmt brugsvands beholderopladning ved brug af varmtvandsproduktion",null,null,null,null,null,null,null,null,null,null,null,"A",null,{"$f":"S85","v":1.85}]
[]
[null,null,null,"Regulering af varmt brugsvands beholderopladning ved brug af varmtvandsproduktion",null,null,null,null,null,null,null,null,null,null,null,null,null,null,{"$f":"IF(AND(Q85>=S87,Q85<S88),\"D\",IF(AND(Q85>=S88,Q85<S89),\"C\",IF(AND(Q85>=S89,Q85<S90),\"B\",IF(Q85>=S90,\"A\"))))","v":"D"}]
[]
[null,null,null,0,"Automatisk tænd/sluk-styring."]
[]
[null,null,null,1,"Automatisk tænd/sluk-styring og tidsplanlagt opladning aktiveret."]
[]
[null,null,null,2,"Automatisk tænd/sluk-styring, tidsplanlagt opladning aktiveret og efterspørgselsbaseret forsyningstemperaturkontrol eller multi-sensor lagerstyring."]
[]
[null,null,null,0]
[]
[null,null,null,"2.3","Regulering af varmt brugsvands beholderopladning med solfanger og supplerende varmeproduktion"]
[]
[null,null,null,"Regulering af varmt brugsvands beholderopladning med solfanger og supplerende varmeproduktion"]
[]
[null,null,null,0,"Manuel styring."]
[]
[null,null,null,1,"Automatisk styring af solfangeropladning (prioritet 1) og supplerende opladning (prioritet 2)."]
[]
[null,null,null,2,"Automatisk styring af solfangeropladning (prioritet 1) og supplerende opladning (prioritet 2) samt efterspørgselsbaseret forsyningstemperaturkontrol eller multi-sensor lagerstyring.",null,null,null,null,null,null,null,null,null,null,"Nummer","Aktuel","Minimum","Minimum_2","Maksimum","Vægtning"]
[null,null,null,null,null,null,null,null,null,null,null,null,null,null,null,null,{"$f":"SUM(Q113:Q119)","v":1},{"$f":"SUM(R113:R119)","v":0},{"$f":"SUM(S113:S119)","v":8},{"$f":"SUM(T113:T119)","v":13},{"$f":"SUM(U113:U119)","v":100}]
[null,null,null,0]
[null,null,null,null,null,null,null,null,null,null,null,null,null,null,null,1,{"$f":"D137","v":1},0,2,3,35]
[null,null,null,"2.4","Styring af cirkulationspumpe til varmt brugsvand",null,null,null,null,null,null,null,null,null,null,2,{"$f":"D149","v":0},0,1,2,35]
[null,null,null,null,null,null,null,null,null,null,null,null,null,null,null,3,{"$f":"D166","v":0},0,3,4,10]
[null,null,null,"Styring af cirkulationspumpe til varmt brugsvand",null,null,null,null,null,null,null,null,null,null,null,4,{"$f":"D179","v":0},0,1,2,10]
[null,null,null,null,null,null,null,null,null,null,null,null,null,null,null,5,{"$f":"D191","v":0},0,1,2,10]
[null,null,null,0,"Ingen styring, kontinuerlig drift."]
[]
[null,null,null,1,"Med tidsprogram.",null,null,null,null,null,null,null,null,null,null,null,{"$f":"SUMPRODUCT(Q113:Q118,U113:U118)/SUM(U113:U118)","v":0.35},{"$f":"SUMPRODUCT(S113:S118,U113:U118)/SUM(U113:U118)","v":1.55},{"$f":"SUMPRODUCT(T113:T118,U113:U118)/SUM(U113:U118)","v":2.5499999999999998}]
[]
[null,null,null,0,null,null,null,null,null,null,null,null,null,null,null,null,"D",null,0]
[null,null,null,null,null,null,null,null,null,null,null,null,null,null,null,null,"C",null,{"$f":"S124-((S125-S122)/3)","v":0.84999999999999976}]
[null,null,3,"Regulering af køleanlæg",null,null,null,null,null,null,null,null,null,null,null,null,"B",null,{"$f":"S125-((S125-S122)/3)","v":1.6999999999999997}]
[null,null,null,null,null,null,null,null,null,null,null,null,null,null,null,null,"A",null,{"$f":"S120","v":2.5499999999999998}]
[null,null,null,"3.1","Regulering af kuldeafgivere"]
[null,null,null,null,null,null,null,null,null,null,null,null,null,null,null,null,null,null,{"$f":"IF(AND(Q120>=S122,Q120<S123),\"D\",IF(AND(Q120>=S123,Q120<S124),\"C\",IF(AND(Q120>=S124,Q120<S125),\"B\",IF(Q120>=S125,\"A\"))))","v":"D"}]
[null,null,null,"Styringsfunktionen anvendes på køleafgiveren (kølepanel, fancoilr eller indendørsenhed) på rumniveau."]
[]
[null,null,null,1,"Individuel rumstyring: Ved hjælp af termostatiske ventiler eller elektroniske regulatorer."]
[]
[null,null,null,2,"Individuel modulerende rumstyring med kommunikation: Kommunikerer mellem regulatorer og BMS-system (f.eks. tidsplanlægger, rumtemperatur-sætpunkt)."]
[]
[null,null,null,3,"Individuel modulerende rumstyring med kommunikation og tilstedeværelsesdetektion: Mellem controllere og BMS-system; behovsstyring/tilstedeværelsesdetektion (dette funktionsniveau anvendes normalt ikke på langsomt reagerende køleudsendelsessystemer med betydelig termisk masse, f.eks. gulvkøling)."]
[]
[]
[null,null,null,1]
[]
[null,null,null,"3.2","Styring af distributionsnettets kølevandstemperatur (forsyning eller retur)"]
[]
[null,null,null,"En lignende funktion kan bruges til styring af direkte elektrisk køling (f.eks. kompakte køleenheder og split-enheder)."]
[]
[null,null,null,0,"Konstant temperaturstyring."]
[]
[null,null,null,1,"Udetemperaturkompenseret styring: Øger generelt middelstrømtemperaturen."]
[]
[null,null,null,2,"Efterspørgselsbaseret styring: Handlinger øger generelt middelstrømtemperaturen."]
[]
[null,null,null,0]
[]
[null,null,null,"3.3","Styring af cirkulationspumper i hydrauliske distributionsnet"]
[]
[null,null,null,"Reducerer hjælpeenergibehovet for pumperne."]
[]
[null,null,null,0,"Ingen automatisk styring."]
[]
[null,null,null,1,"Tænd/sluk-styring: for at reducere den nødvendige hjælpeenergi til pumperne"]
[]
[null,null,null,2,"Flertrinsstyring: for at reducere den nødvendige hjælpeenergi til pumperne"]
[]
[null,null,null,3,"Variabel hastighedsregulering af pumpen: Konstant eller variabelt trykfald (Δp) baseret på pumpens interne estimater for at reducere den nødvendige hjælpeenergi til pumperne"]
[]
[null,null,null,4,"Variabel hastighedsregulering af pumpen: Variabelt trykfald (Δp) baseret på et eksternt efterspørgselssignal, f.eks. hydrauliske krav, temperaturforskel (ΔT) eller energibesparelsesoptimering, for at reducere den nødvendige hjælpeenergi til pumperne"]
[]
[]
[null,null,null,0]
[]
[null,null,null,"3.4","Indbyrdes afhængighed mellem opvarmnings- og kølingsregulering for kuldeafgivere og/eller distribution"]
[]
[null,null,null,"For at undgå samtidig opvarmning og køling i samme rum afhængigt af systemprincippet (f.eks. kølepanel/varmeafgiver, TABS/ventilation, flere indendørsenheder)."]
[]
[null,null,null,0,"Ingen afhængighed: De to systemer styres uafhængigt og kan levere samtidig opvarmning og køling."]
[]
[null,null,null,1,"Delvis afhængighed (afhængigt af HVAC-systemet): Styringsfunktionen er opsat for at minimere muligheden for samtidig opvarmning og køling. Dette opnås generelt ved at definere et glidende setpunkt for forsyningstemperaturen i det centralt styrede system."]
[]
[]
[null,null,null,2,"Fuld afhængighed: Ingen samtidig opvarmning og køling sikres."]
[]
[null,null,null,0]
[]
[null,null,null,"3.5","Regulering af den kuldeproducerende enhed"]
[]
[null,null,null,"Formålet er generelt at maksimere kølevandstemperaturen."]
[null,null,null,null,null,null,null,null,null,null,null,null,null,null,null,"Nummer","Aktuel","Minimum","Minimum_2","Maksimum","Vægtning"]
[null,null,null,0,"Konstant temperaturstyring.",null,null,null,null,null,null,null,null,null,null,null,{"$f":"SUM(Q187:Q195)","v":9},{"$f":"SUM(R187:R195)","v":0},{"$f":"SUM(S187:S195)","v":16},{"$f":"SUM(T187:T195)","v":24},{"$f":"SUM(U187:U195)","v":100}]
[]
[null,null,null,1,"Variabel temperaturstyring afhængig af udetemperaturen.",null,null,null,null,null,null,null,null,null,null,1,{"$f":"D210","v":3},0,2,3,20]
[null,null,null,null,null,null,null,null,null,null,null,null,null,null,null,2,{"$f":"D223","v":1},0,2,2,20]
[null,null,null,2,"Variabel temperaturstyring afhængig af belastningen: Dette inkluderer styring baseret på rumtemperaturen.",null,null,null,null,null,null,null,null,null,null,3,{"$f":"D233","v":1},0,1,1,15]
[null,null,null,null,null,null,null,null,null,null,null,null,null,null,null,4,{"$f":"D247","v":0},0,2,3,5]
[null,null,null,0,null,null,null,null,null,null,null,null,null,null,null,5,{"$f":"D263","v":3},0,3,4,10]
[null,null,null,null,null,null,null,null,null,null,null,null,null,null,null,6,{"$f":"D273","v":0},0,2,3,5]
[null,null,4,"Regulering af ventilations- og klimaanlæg",null,null,null,null,null,null,null,null,null,null,null,7,{"$f":"D289","v":0},0,2,3,10]
[null,null,null,null,null,null,null,null,null,null,null,null,null,null,null,8,{"$f":"D303","v":1},0,2,3,10]
[null,null,null,"Dette afsnit gælder for bygningsenergisystemer, der bringer luft ind i bygningen: både ventilations- og klimaanlægssystemer. Opvarmning og køling af luft kræver yderligere opvarmnings- og køleenheder. Styringsfunktioner relateret til opvarmnings-/kølesystemer er defineret i afsnit 1 og 3 i denne tabel.",null,null,null,null,null,null,null,null,null,null,null,9,{"$f":"D317","v":0},0,0,2,5]
[]
[]
[null,null,null,"4.1","Regulering af forsyningsluftflow på rumniveau (f.eks. ventilator tænd/sluk)",null,null,null,null,null,null,null,null,null,null,null,{"$f":"SUMPRODUCT(Q187:Q195,U187:U195)/SUM(U187:U195)","v":1.35},{"$f":"SUMPRODUCT(S187:S195,U187:U195)/SUM(U187:U195)","v":1.85},{"$f":"SUMPRODUCT(T187:T195,U187:U195)/SUM(U187:U195)","v":2.5499999999999998}]
[]
[null,null,null,"Styring af forsyningsluftflow relateret til tilstedeværelse (tilgængelighed af luftflow, dvs. ventilator tænd/sluk-styring).",null,null,null,null,null,null,null,null,null,null,null,null,"D",null,0]
[null,null,null,null,null,null,null,null,null,null,null,null,null,null,null,null,"C",null,{"$f":"S202-((S203-S200)/3)","v":0.84999999999999976}]
[null,null,null,0,"Ingen automatisk styring: Systemet kører konstant (f.eks. manuel styret kontakt).",null,null,null,null,null,null,null,null,null,null,null,"B",null,{"$f":"S203-((S203-S200)/3)","v":1.6999999999999997}]
[null,null,null,null,null,null,null,null,null,null,null,null,null,null,null,null,"A",null,{"$f":"S198","v":2.5499999999999998}]
[null,null,null,1,"Tidsstyring: Systemet kører i henhold til en fast tidsplan."]
[null,null,null,null,null,null,null,null,null,null,null,null,null,null,null,null,null,null,{"$f":"IF(AND(Q198>=S200,Q198<S201),\"D\",IF(AND(Q198>=S201,Q198<S202),\"C\",IF(AND(Q198>=S202,Q198<S203),\"B\",IF(Q198>=S203,\"A\"))))","v":"C"}]
[null,null,null,2,"Tilstedeværelsesbaseret styring: Systemet kører afhængigt af besættelse (tilstedeværelse, lyskontakt, infrarøde sensorer osv.)."]
[]
[null,null,null,3,"Tilstedværelselsbaseret styring: Systemet kører afhængigt af luftkvalitetsbehov (måling af CO2, VOC osv.)."]
[]
[null,null,null,3]
[]
[null,null,null,"4.2","Rumlufttemperaturregulering via ventilationssystemet (alle luftsystemer; kombination med statiske systemer som køleloft, radiatorer osv.)"]
[]
[null,null,null,"Rumtemperaturen afhænger af luftflow (4.1, 4.5) samt forsyningslufttemperaturen (4.9). Denne styringsfunktion er relateret til en lukket sløjfe-controller for rummets lufttemperatur, der virker på luftflowet eller forsyningslufttemperaturen."]
[]
[]
[null,null,null,0,"Tænd/sluk-styring: Fast luftflow og fast forsyningslufttemperatur på rumniveau, rummets temperatursætpunkt indstilles individuelt."]
[]
[null,null,null,1,"Kontinuerlig styring: Enten luftflow eller forsyningslufttemperatur på rumniveau kan varieres kontinuerligt; rummets temperatursætpunkt indstilles individuelt."]
[]
[null,null,null,2,"Optimeret styring: Minimal energibehov ved optimeret styring. Både luftflow og forsyningslufttemperatur på rumniveau styres afhængigt af opvarmnings-/kølebelastningen."]
[]
[null,null,null,1]
[]
[null,null,null,"4.3","Koordinering af rumlufttemperaturregulering via ventilation og statiske systemer"]
[]
[null,null,null,"Samspillet mellem de forskellige systemer skal koordineres."]
[]
[null,null,null,0,"Ingen koordinering: De enkelte systemer styrer rummets temperatur uafhængigt."]
[]
[null,null,null,1,"Koordineret styring: Kun ét system er ansvarligt for at styre rummets temperatur gennem en lukket sløjfe, mens det andet system kun supplerer og tilpasser sig varmegevinster."]
[]
[null,null,null,1]
[]
[null,null,null,"4.4","Udeluft flowregulering (anlæg med recirkulering)"]
[]
[null,null,null,"Denne styringsfunktion anvendes på ventilationssystemer, der muliggør variation af OA-forholdet (udelufttilførsel i forhold til det opvarmede etageareal) eller -flow."]
[]
[null,null,null,0,"Fast OA-forhold eller OA-flow: Systemet kører i henhold til et givet OA-forhold, f.eks. justeret manuelt."]
[]
[null,null,null,1,"Trinstyret (lav/høj) OA-forhold eller OA-flow: Afhængig af en fast tidsplan."]
[]
[null,null,null,2,"Trinstyret (lav/høj) OA-forhold eller OA-flow: Afhængig af besættelse, f.eks. lyskontakt, infrarøde sensorer osv."]
[]
[null,null,null,3,"Variabel kontrol: Systemet styres af sensorer, der registrerer antallet af personer eller indendørs luftparametre såsom CO2 eller VOC."]
[]
[null,null,null,0]
[]
[null,null,null,"4.5","Luftflow- eller trykstyring på ventilationsaggregatniveau (AHU)"]
[]
[null,null,null,"Styrer luftflow eller tryk på AHU-niveau for optimal energibesparelse."]
[]
[null,null,null,0,"Ingen automatisk styring: Kontinuerligt forsyningsluftflow til maksimal belastning for alle rum."]
[]
[null,null,null,1,"Tænd/sluk-tidsstyring: Kontinuerligt forsyningsluftflow til maksimal belastning i den nominelle besættelsestid."]
[]
[null,null,null,2,"Flertrinsstyring: Reducerer ventilatorens hjælpeenergibehov."]
[]
[null,null,null,3,"Automatisk flow- eller trykstyring uden trykreset: Belastningsafhængigt luftflow tilpasset alle tilsluttede rum."]
[]
[null,null,null,4,"Automatisk flow- eller trykstyring med trykreset: Variabelt luftflow tilpasset efter behov og lufttryk."]
[]
[null,null,null,3]
[]
[null,null,null,"4.6","Regulering af varmegenvinding: Frostbeskyttelse"]
[]
[null,null,null,"Denne styringsfunktion forhindrer frost i varmeveksleren."]
[]
[null,null,null,0,"Ingen specifik frostbeskyttelse."]
[]
[null,null,null,1,"Frostbeskyttelse: En styringssløjfe sikrer, at afkastlufttemperaturen ikke bliver for lav."]
[]
[null,null,null,0]
[]
[null,null,null,"4.7","Fri mekanisk køling"]
[]
[null,null,null,"Tillader køling ved brug af udeluft for at minimere behovet for mekanisk køling."]
[]
[null,null,null,0,"Ingen automatisk styring."]
[]
[null,null,null,1,"Natkøling: Mængden af udeluft sættes til sit maksimum under den ubenyttede periode, forudsat at rumtemperaturen er over setpunktet for komfortperioden, og forskellen mellem rumtemperaturen og udetemperaturen overstiger en given grænse. Hvis fri natkøling realiseres ved automatisk åbning af vinduer, er der ingen luftstrømsstyring."]
[]
[]
[null,null,null,2,"Fri køling: Mængden af udeluft og recirkulationsluft moduleres under hele perioden for at minimere behovet for mekanisk køling. Beregningen udføres på baggrund af temperaturer."]
[]
[null,null,null,3,"Entalpi-baseret styring: Mængden af udeluft og recirkulationsluft moduleres under hele perioden for at minimere behovet for mekanisk køling. Beregningen udføres på baggrund af både temperaturer og luftfugtighed (entalpi)."]
[]
[]
[null,null,null,0]
[]
[null,null,null,"4.8","Forsyningslufttemperaturstyring på luftbehandlingsenhedsniveau (AHU)"]
[]
[null,null,null,"Regulerer forsyningslufttemperaturen ved AHU-udløbet eller genopvarmningszonen."]
[]
[null,null,null,1,"Konstant setpunkt: En blandesløjfe gør det muligt at styre forsyningslufttemperaturen, men setpunktet er konstant og kan kun ændres manuelt."]
[]
[null,null,null,2,"Variabelt setpunkt med udetemperaturkompensation: En blandelsløjfe gør det muligt at styre forsyningslufttemperaturen. Setpunktet er en simpel funktion af udetemperaturen (f.eks. en lineær funktion)."]
[]
[]
[null,null,null,3,"Variabelt setpunkt med belastningsafhængig kompensation: En kontrolsløjfe gør det muligt at styre forsyningslufttemperaturen. Setpunktet defineres som en funktion af belastningen i rummet. Dette kan normalt kun opnås med et integreret styringssystem, der gør det muligt at indsamle temperaturer eller aktuatorpositioner i de forskellige rum."]
[]
[]
[null,null,null,1]
[]
[null,null,null,"4.9","Fugtighedsstyring"]
[]
[null,null,null,"Styrer luftens fugtighedsniveau (befugtning/affugtning)."]
[]
[null,null,null,0,"Ingen automatisk styring af fugtighed."]
[]
[null,null,null,1,"Dugpunktstyring: Luftfugtigheden i forsyningsluften eller rummet udtrykkes med dugpunktstemperaturen, og forsyningsluften genopvarmes for at bringe den relative luftfugtighed til setpunktet."]
[]
[]
[null,null,null,2,"Direkte luftfugtighedsstyring: En kontrolsløjfe gør det muligt at styre luftfugtigheden i forsyningsluften eller rummet ved et givet setpunkt. Setpunktet kan enten være fast og foruddefineret af brugeren eller et variabelt, optimalt niveau, der minimerer energiforbruget, men stadig ligger inden for de fastsatte minimums- og maksimumgrænser for rumforholdene."]
[]
[]
[null,null,null,0]
[]
[null,null,5,"Regulering af belysningsanlæg",null,null,null,null,null,null,null,null,null,null,null,"Nummer","Aktuel","Minimum","Minimum_2","Maksimum","Vægtning"]
[null,null,null,null,null,null,null,null,null,null,null,null,null,null,null,null,{"$f":"SUM(Q322:Q323)","v":4},{"$f":"SUM(R322:R323)","v":0},{"$f":"SUM(S322:S323)","v":4},{"$f":"SUM(T322:T323)","v":6},{"$f":"SUM(U322:U323)","v":100}]
[null,null,null,"5.1","Tilstedeværelsesstyring"]
[null,null,null,null,null,null,null,null,null,null,null,null,null,null,null,1,{"$f":"D338","v":2},0,2,3,40]
[null,null,null,"Styrer belysningen afhængigt af besættelse i rummet.",null,null,null,null,null,null,null,null,null,null,null,2,{"$f":"D353","v":2},0,2,3,60]
[]
[null,null,null,0,"Manuel tænd/sluk-kontakt: Lyskilder tændes og slukkes manuelt i rummet."]
[null,null,null,null,null,null,null,null,null,null,null,null,null,null,null,null,{"$f":"SUMPRODUCT(Q322:Q323,U322:U323)/SUM(U322:U323)","v":2},{"$f":"SUMPRODUCT(S322:S323,U322:U323)/SUM(U322:U323)","v":2},{"$f":"SUMPRODUCT(T322:T323,U322:U323)/SUM(U322:U323)","v":3}]
[null,null,null,1,"Manuel tænd/sluk-knap plus yderligere automatisk slukkesignal: Armaturet tændes og slukkes manuelt via en kontakt i rummet. Derudover sender et automatisk signal mindst én gang dagligt, typisk om aftenen, for at undgå unødig drift i nattetimerne."]
[null,null,null,null,null,null,null,null,null,null,null,null,null,null,null,null,"D",null,0]
[null,null,null,null,null,null,null,null,null,null,null,null,null,null,null,null,"C",null,{"$f":"S330-((S331-S328)/3)","v":1}]
[null,null,null,2,"Automatisk detektion - automatisk tænd/dæmpet sluk: Styringssystemet tænder automatisk armaturet, når det belyste område er i brug, og skifter automatisk til en dæmpet tilstand efter sidste registrerede tilstedeværelse i området. Automatisk tænd/automatisk sluk: Styringssystemet tænder automatisk armaturet, når det belyste område er i brug, og slukker det automatisk helt, når der ikke længere registreres tilstedeværelse.",null,null,null,null,null,null,null,null,null,null,null,"B",null,{"$f":"S331-((S331-S328)/3)","v":2}]
[null,null,null,null,null,null,null,null,null,null,null,null,null,null,null,null,"A",null,{"$f":"S326","v":3}]
[]
[null,null,null,null,null,null,null,null,null,null,null,null,null,null,null,null,null,null,{"$f":"IF(AND(Q326>=S328,Q326<S329),\"D\",IF(AND(Q326>=S329,Q326<S330),\"C\",IF(AND(Q326>=S330,Q326<S331),\"B\",IF(Q326>=S331,\"A\"))))","v":"B"}]
[null,null,null,3,"Automatisk detektion - manuel tænd/delvis automatisk tænd/dæmpet sluk: Armaturet kan kun tændes manuelt via en kontakt eller automatisk via en tilstedeværelsessensor placeret i (eller tæt på) det belyste område. Hvis det ikke slukkes manuelt, skifter det automatisk til en dæmpet tilstand efter sidste registrerede tilstedeværelse i området. Manuel tænd/delvis automatisk tænd/automatisk sluk: Armaturet kan kun tændes manuelt via en kontakt eller automatisk via en tilstedeværelsessensor og slukkes automatisk helt, hvis det ikke slukkes manuelt."]
[]
[]
[]
[null,null,null,2]
[]
[null,null,null,"5.2","Belysningsstyrke-/dagslyskontrol (dagslysudnyttelse)"]
[]
[null,null,null,"Styrer belysning i forhold til dagslysniveau og energibesparelse."]
[]
[null,null,null,0,"Manuel central kontrol: Lyskilder styres centralt uden mulighed for manuel kontrol i rummet."]
[]
[null,null,null,1,"Manuel kontrol: Lyskilder kan tændes/slukkes manuelt i rummet."]
[]
[null,null,null,2,"Automatisk tænd/slukning: Lyskilder slukkes automatisk, hvis dagslyset opfylder minimumskrav til belysningen, og tændes igen, når der ikke er nok dagslys."]
[]
[null,null,null,3,"Automatisk dæmpning: Armaturerne dæmpes gradvist og slukkes helt, hvis der er tilstrækkeligt dagslys eller ved scenebaseret lysstyring. Armaturerne tændes og dæmpes op igen, hvis mængden af dagslys falder, eller hvis scenebaseret lysstyring aktiveres."]
[]
[]
[null,null,null,2]
[]
[null,null,6,"Regulering af solafskærmning",null,null,null,null,null,null,null,null,null,null,null,"Nummer","Aktuel","Minimum","Minimum_2","Maksimum","Vægtning"]
[null,null,null,null,null,null,null,null,null,null,null,null,null,null,null,null,{"$f":"SUM(Q358:Q358)","v":2},{"$f":"SUM(R358:R358)","v":0},{"$f":"SUM(S358:S358)","v":2},{"$f":"SUM(T358:T358)","v":3},{"$f":"SUM(U358:U358)","v":100}]
[null,null,null,"6.1","Regulering af solafskærmning"]
[null,null,null,null,null,null,null,null,null,null,null,null,null,null,null,1,{"$f":"D369","v":2},0,2,3,100]
[null,null,null,"Der er to hovedformål med regulering af solafskærmning: Afskærmning for at undgå overophedning og reduktion af blænding."]
[]
[null,null,null,0,"Manuel betjening: Solafskærmning styres manuelt, og energibesparelser afhænger af brugerens adfærd.",null,null,null,null,null,null,null,null,null,null,null,{"$f":"SUMPRODUCT(Q358:Q358,U358:U358)/SUM(U358:U358)","v":2},{"$f":"SUMPRODUCT(S358:S358,U358:U358)/SUM(U358:U358)","v":2},{"$f":"SUMPRODUCT(T358:T358,U358:U358)/SUM(U358:U358)","v":3}]
[]
[null,null,null,1,"Motoriseret betjening med manuel styring: Gør det lettere for brugeren at styre solafskærmning ved hjælp af motoriseret funktion.",null,null,null,null,null,null,null,null,null,null,null,"D",null,0]
[null,null,null,null,null,null,null,null,null,null,null,null,null,null,null,null,"C",null,{"$f":"S365-((S366-S363)/3)","v":1}]
[null,null,null,2,"Motoriseret betjening med automatisk styring: Solafskærmning styres automatisk for at reducere køleenergibehovet.",null,null,null,null,null,null,null,null,null,null,null,"B",null,{"$f":"S366-((S366-S363)/3)","v":2}]
[null,null,null,null,null,null,null,null,null,null,null,null,null,null,null,null,"A",null,{"$f":"S361","v":3}]
[null,null,null,3,"Kombineret lys-/solafskærmning-/HVAC-styring: Energiforbruget optimeres ved at integrere styring af HVAC, solafskærmning og belysning."]
[null,null,null,null,null,null,null,null,null,null,null,null,null,null,null,null,null,null,{"$f":"IF(AND(Q361>=S363,Q361<S364),\"D\",IF(AND(Q361>=S364,Q361<S365),\"C\",IF(AND(Q361>=S365,Q361<S366),\"B\",IF(Q361>=S366,\"A\"))))","v":"B"}]
[null,null,null,2]
[]
[null,null,7,"CTS-anlæg",null,null,null,null,null,null,null,null,null,null,null,"Nummer","Aktuel","Minimum","Minimum_2","Maksimum","Vægtning"]
[null,null,null,null,null,null,null,null,null,null,null,null,null,null,null,null,{"$f":"SUM(Q374:Q379)","v":3},{"$f":"SUM(R374:R379)","v":0},{"$f":"SUM(S374:S379)","v":9},{"$f":"SUM(T374:T379)","v":9},{"$f":"SUM(U374:U379)","v":100}]
[null,null,null,"CTS-anlæg gør det muligt at tilpasse driften til brugerens behov.\nDet skal sikres, at driftsplanerne for opvarmning, køling, ventilation og belysning regelmæssigt tilpasses de faktiske anvendelsesmønstre, og at setpunkterne også tilpasses behovene.\nOpmærksomhed skal rettes mod justeringen af alle controllere, herunder setpunkter samt kontrolparametre som PI-kontrolkoefficienter.\nRumkontrollernes opvarmnings- og kølingssetpunkter skal kontrolleres regelmæssigt. Brugere ændrer ofte disse setpunkter. Et centraliseret system gør det muligt at opdage og korrigere ekstreme værdier af setpunkter forårsaget af misforståelser fra brugerne.\nHvis sammenkobling mellem opvarmnings- og kølingsstyring kun er delvis, skal setpunktet regelmæssigt ændres for at minimere samtidig brug af opvarmning og køling.\nAlarm- og overvågningsfunktioner vil støtte tilpasningen af driften til brugerens behov og optimering af justeringen af de forskellige controllere. Dette opnås ved at levere brugervenlige værktøjer til at opdage unormal drift (alarmfunktioner) og ved at give nem adgang til at logge og visualisere data (overvågningsfunktioner)."]
[null,null,null,null,null,null,null,null,null,null,null,null,null,null,null,1,{"$f":"D387","v":1},0,3,3,20]
[null,null,null,"7.1","Sætpunktstyring",null,null,null,null,null,null,null,null,null,null,2,{"$f":"D399","v":1},0,2,2,20]
[null,null,null,null,null,null,null,null,null,null,null,null,null,null,null,3,{"$f":"D411","v":1},0,2,2,30]
[null,null,null,"Styring, tilpasning og tilbageførsel af BAC-(styrings- og reguleringssystem) sætpunkt afhængigt af rum-/zonedriftstilstande.",null,null,null,null,null,null,null,null,null,null,null,4,{"$f":"D423","v":0},0,2,2,30]
[]
[null,null,null,0,"Manuel indstilling rum for rum individuelt."]
[]
[null,null,null,1,"Tilpasning fra distribuerede/decentraliserede anlægsrum."]
[null,null,null,null,null,null,null,null,null,null,null,null,null,null,null,null,{"$f":"SUMPRODUCT(Q374:Q379,U374:U379)/SUM(U374:U379)","v":0.7},{"$f":"SUMPRODUCT(S374:S379,U374:U379)/SUM(U374:U379)","v":2.2000000000000002},{"$f":"SUMPRODUCT(T374:T379,U374:U379)/SUM(U374:U379)","v":2.2000000000000002}]
[null,null,null,2,"Tilpasning fra et centralt rum (f.eks. arbejdsstation, webdrift; rumdriftsenheder undtaget)."]
[null,null,null,null,null,null,null,null,null,null,null,null,null,null,null,null,"D",null,0]
[null,null,null,3,"Tilpasning fra et centralt rum med hyppig tilbageførsel af brugerinput.",null,null,null,null,null,null,null,null,null,null,null,"C",null,{"$f":"S386-((S387-S384)/3)","v":0.73333333333333339}]
[null,null,null,null,null,null,null,null,null,null,null,null,null,null,null,null,"B",null,{"$f":"S387-((S387-S384)/3)","v":1.4666666666666668}]
[null,null,null,1,null,null,null,null,null,null,null,null,null,null,null,null,"A",null,{"$f":"S382","v":2.2000000000000002}]
[]
[null,null,null,"7.2","Driftstidsstyring",null,null,null,null,null,null,null,null,null,null,null,null,null,{"$f":"IF(AND(Q382>=S384,Q382<S385),\"D\",IF(AND(Q382>=S385,Q382<S386),\"C\",IF(AND(Q382>=S386,Q382<S387),\"B\",IF(Q382>=S387,\"A\"))))","v":"D"}]
[]
[null,null,null,"Tilpasning af system-/anlægs driftstider i henhold til et fast tidsskema og/eller kalender."]
[]
[null,null,null,0,"Manuel indstilling (aktivering af anlæg)."]
[]
[null,null,null,1,"Individuel indstilling i henhold til en foruddefineret tidsplan, inklusive faste forberedelsesfaser."]
[]
[null,null,null,2,"Individuel indstilling i henhold til en foruddefineret tidsplan med tilpasning fra et centralt styringsrum, inklusive variable forberedelsesfaser."]
[]
[null,null,null,1]
[]
[null,null,null,"7.3","Fejlregistrering og diagnosticering af tekniske bygningsstyringssystemer"]
[]
[null,null,null,"Overvågning og diagnosticering af fejl i tekniske bygningsstyringssystemer."]
[]
[null,null,null,0,"Ingen central indikation af registrerede fejl og alarmer (decentrale styringsenheder)."]
[]
[null,null,null,1,"Central indikation af registrerede fejl og alarmer."]
[]
[null,null,null,2,"Central indikation af registrerede fejl og alarmer, inklusive diagnosticeringsfunktioner."]
[]
[null,null,null,1]
[]
[null,null,null,"7.4","Rapportering af information om energiforbrug og indeklima"]
[]
[null,null,null,"Registrering og analyse af energiforbrug og indeklima."]
[]
[null,null,null,0,"Indikering af aktuelle værdier (f.eks. temperaturer, måleraflæsninger). Decentrale styringsenheder."]
[]
[null,null,null,1,"Trendanalyse og forbrugsbestemmelse."]
[]
[null,null,null,2,"Analyse, performanceevaluering og benchmarking af indeklima og energiforbrug."]
[]
[null,null,null,0]

{"sheet":"Bygningsautomatik_efter","index":6,"n_rows":423,"n_cols":33,"rows_kept":423,"cut":false,"hidden":false,"merged":[[313,4,314,4],[18,4,19,4],[133,4,134,4],[162,4,163,4],[173,4,174,4],[194,3,195,4],[213,3,214,4],[280,4,281,4],[285,4,286,4],[296,4,297,4],[299,4,300,4],[310,4,311,4],[326,4,327,4],[329,4,331,4],[333,4,335,4],[349,4,350,4],[372,3,372,4]]}
[]
[]
[null,null,6,"Bygningsautomatik og tekniske bygningsstyringsfunktioner, der har en indvirkning på bygningers energieffektivitet"]
[null,null,null,null,null,null,null,null,null,null,null,null,null,null,null,null,null,null,null,null,null,null,"Minimum og maksimum af de lilla felter angives. Ligger man mellem minimum og maksimum, overholder man BR18."]
[null,null,null,"Automatisk styring"]
[]
[null,null,null,"Nr.","Funktion",null,null,null,null,null,null,null,null,null,null,null,null,null,null,null,null,null,"Måske skal man se det for hvert teknologiområde?"]
[]
[null,null,1,"Varmeregulering",null,null,null,null,null,null,null,null,null,null,"Nummer","Aktuel","Minimum","Minimum_2","Maksimum","Vægtning",null,null,"Teknologi","Aktuel","Min.","Maks.","Vægt",null,"Teknologi","Aktuel","Min.","Maks.","Vægt"]
[null,null,null,null,null,null,null,null,null,null,null,null,null,null,null,{"$f":"SUM(P12:P18)","v":6},{"$f":"SUM(Q12:Q18)","v":0},{"$f":"SUM(R12:R18)","v":7},{"$f":"SUM(S12:S18)","v":11},{"$f":"SUM(T12:T19)","v":100},null,null,null,{"$f":"X19","v":31},{"$f":"D17+D30+D48+D60+D72+D86+D98+D110+D120+D132+D145+D161+D174+D187+D206+D221+D231+D243+D259+D284+D297+D330+D348+D365+D385+D397+D409+D421","v":55},{"$f":"D19+D32+D48+D60+D72+D86+D98+D110+D120+D134+D147+D163+D177+D189+D208+D221+D231+D245+D261+D286+D300+D334+D350+D367+D385+D397+D409+D421","v":70},null,null,null,{"$f":"AD19","v":9.1000000000000014},{"$f":"AE19","v":12},{"$f":"AF19","v":17.7}]
[null,null,null,"1.1","Regulering af varmeafgivere"]
[null,null,null,null,null,null,null,null,null,null,null,null,null,null,1,{"$f":"D22","v":2},0,2,3,35,null,null,"Varme",{"$f":"P10","v":6},{"$f":"D17+D30+D48+D60+D72","v":11},{"$f":"D19+D32+D48+D60+D72","v":13},null,null,"Varme",{"$f":"P19","v":1.2},{"$f":"Q19","v":1.55},{"$f":"R19","v":2.5499999999999998}]
[null,null,null,"Styringsfunktionen anvendes på varmeafgivere (radiatorer, gulvvarme, fancoils, indendørsenheder) på rumniveau. For type 1 kan én funktion styre flere rum.",null,null,null,null,null,null,null,null,null,null,2,{"$f":"D34","v":0},0,1,2,35,null,null,"VVB",{"$f":"P77","v":0},{"$f":"D86+D98+D110+D120","v":7},{"$f":"D86+D98+D110+D120","v":7},null,null,"VVB",{"$f":"P85","v":0},{"$f":"Q85","v":0.85},{"$f":"R85","v":1.85}]
[null,null,null,null,null,null,null,null,null,null,null,null,null,null,3,{"$f":"D50","v":3},0,3,4,10,null,null,"Køling",{"$f":"P125","v":1},{"$f":"D132+D145+D161+D174+D187","v":8},{"$f":"D134+D147+D163+D177+D189","v":13},null,null,"Køling",{"$f":"P134","v":0.35},{"$f":"Q134","v":1.55},{"$f":"R134","v":2.5499999999999998}]
[null,null,null,1,"Individuel rumstyring: Ved hjælp af termostatiske ventiler eller elektroniske regulatorer.",null,null,null,null,null,null,null,null,null,4,{"$f":"IF(Inddata!Y28=0,\"\",IF(Inddata!Y28=1,D62,IF(Inddata!Y28=2,D62,IF(Inddata!Y28=3,D62,IF(Inddata!Y28=4,D74,IF(Inddata!Y28=5,D74))))))","v":1},0,1,2,20,null,null,"Ventilation",{"$f":"P194","v":9},{"$f":"D206+D221+D231+D243+D259+D284+D297","v":14},{"$f":"D208+D221+D231+D245+D261+D286+D300","v":19},null,null,"Ventilation",{"$f":"P207","v":1.35},{"$f":"Q207","v":1.85},{"$f":"R207","v":2.5499999999999998}]
[null,null,null,null,null,null,null,null,null,null,null,null,null,null,null,null,null,null,null,null,null,null,"Belysning",{"$f":"P320","v":4},{"$f":"D330+D348","v":4},{"$f":"D334+D350","v":6},null,null,"Belysning",{"$f":"P326","v":2},{"$f":"Q326","v":2},{"$f":"R326","v":3}]
[null,null,null,2,"Individuel modulerende rumstyring med kommunikation: Kommunikerer mellem regulatorer og BMS-system (f.eks. tidsskemaer eller rumtemperatursætpunkt).",null,null,null,null,null,null,null,null,null,null,null,null,null,null,null,null,null,"Solafskærm.",{"$f":"P356","v":2},{"$f":"D365","v":2},{"$f":"D367","v":3},null,null,"Solafskærm.",{"$f":"P361","v":2},{"$f":"Q361","v":2},{"$f":"R361","v":3}]
[null,null,null,null,null,null,null,null,null,null,null,null,null,null,null,null,null,null,null,null,null,null,"CTS",{"$f":"P372","v":9},{"$f":"D385+D397+D409+D43","v":7},{"$f":"D385+D397+D409+D421","v":9},null,null,"CTS",{"$f":"P380","v":2.2000000000000002},{"$f":"Q380","v":2.2000000000000002},{"$f":"R380","v":2.2000000000000002}]
[null,null,null,3,"Individuel modulerende rumstyring med kommunikation og registrering af tilstedværelse: Mellem regulatorer og BMS-system. Behovsstyring/registrering af tilstedeværelse. Denne funktion anvendes normalt ikke på langsomt reagerende varmeafgiver med termiske masse som for eksempel gulvvarmesystemer eller vægvarme.",null,null,null,null,null,null,null,null,null,null,{"$f":"SUMPRODUCT(P12:P16,T12:T16)/SUM(T12:T16)","v":1.2},{"$f":"SUMPRODUCT(R12:R16,T12:T16)/SUM(T12:T16)","v":1.55},{"$f":"SUMPRODUCT(S12:S16,T12:T16)/SUM(T12:T16)","v":2.5499999999999998},null,null,null,null,"I alt",{"$f":"SUM(X12:X18)","v":31},{"$f":"SUM(Y12:Y18)","v":53},{"$f":"SUM(Z12:Z18)","v":70},null,null,"I alt",{"$f":"SUM(AD12:AD18)","v":9.1000000000000014},{"$f":"SUM(AE12:AE18)","v":12},{"$f":"SUM(AF12:AF18)","v":17.7}]
[null,null,null,null,null,null,null,null,null,null,null,null,null,null,null,null,null,null,null,null,null,null,null,null,null,null,null,null,"Overholder BR18?",{"$f":"IF(AND(AD19>=AE19,AD19<=AF19),\"Ja\",\"Nej\")","v":"Nej"}]
[null,null,null,null,null,null,null,null,null,null,null,null,null,null,null,"D",null,0,null,null,null,null,"Der skal måske noget vægtning på! Se skema til venstre."]
[null,null,null,2,null,null,null,null,null,null,null,null,null,null,null,"C",null,{"$f":"R23-((R24-R21)/3)","v":0.84999999999999976},null,null,null,null,null,null,null,null,null,null,"Dette er nok den rigtige måde at gøre det på!"]
[null,null,null,null,null,null,null,null,null,null,null,null,null,null,null,"B",null,{"$f":"R24-((R24-R21)/3)","v":1.6999999999999997}]
[null,null,null,"1.2","Regulering af distributionsnet - centralvarmevandets temperatur (fremløb eller retur)",null,null,null,null,null,null,null,null,null,null,"A",null,{"$f":"R19","v":2.5499999999999998},null,null,null,null,null,null,null,null,null,null,"Hvis \"Aktuel\" ligger mellem \"Min\" og \"Maks,\" så overholder man BR18."]
[]
[null,null,null,"En lignende funktion kan bruges til styring af elektriske opvarmningsnet.",null,null,null,null,null,null,null,null,null,null,null,null,null,{"$f":"IF(AND(P19>=R21,P19<R22),\"D\",IF(AND(P19>=R22,P19<R23),\"C\",IF(AND(P19>=R23,P19<R24),\"B\",IF(P19>=R24,\"A\"))))","v":"C"}]
[]
[null,null,null,0,"Ingen automatisk styring."]
[]
[null,null,null,1,"Udetemperaturkompenseret styring: Reducerer generelt middelfremløbstemperaturen."]
[]
[null,null,null,2,"Efterspørgselsbaseret styring: Baseret på en indendørs temperaturkontrolvariabel. Reducerer generelt middelfremløbstemperaturen."]
[]
[null,null,null,0]
[]
[null,null,null,"1.3","Styring af cirkulationspumper i distributionsnet"]
[]
[null,null,null,"Reducerer pumpernes hjælpeenergibehov."]
[]
[null,null,null,0,"Ingen automatisk styring."]
[]
[null,null,null,1,"Tænd/sluk-styring: Pumper kører ved maksimal hastighed uden regulering."]
[]
[null,null,null,2,"Flertrinsstyring: Pumpens hastighed styres via flertrinskontrol."]
[]
[null,null,null,3,"Variabel hastighedspumpestyring: Konstant eller variabelt tryk baseret på interne estimeringer."]
[]
[null,null,null,4,"Variabel hastighedspumpestyring: Variabelt tryk, baseret på eksternt behovssignal."]
[]
[null,null,null,3]
[]
[null,null,null,"1.4","Regulering af varmeproducerende enhed (brændsler og fjernvarme)"]
[]
[null,null,null,"Reducerer den varmeproducerende enheds driftstemperatur."]
[]
[null,null,null,0,"Konstant temperaturstyring."]
[]
[null,null,null,1,"Variabel temperaturstyring afhængig af udetemperaturen."]
[]
[null,null,null,2,"Variabel temperaturstyring afhængig af belastningen: eksempelvis afhængig af forsyningsvandets temperatur setpunkt"]
[]
[null,null,null,1]
[]
[null,null,null,"1.5","Regulering af varmeproducerende enhed (varmepumpe)"]
[]
[null,null,null,"Maksimerer varmeproducerende enheds effektivitet."]
[]
[null,null,null,0,"Konstant temperaturstyring."]
[]
[null,null,null,1,"Variabel temperaturstyring afhængig af udetemperaturen."]
[]
[null,null,null,2,"Variabel temperaturstyring afhængig af belastningen: f.eks. afhængig af forsyningsvandets temperatur setpunkt"]
[]
[null,null,null,0]
[]
[null,null,2,"Regulering af system til varmt brugsvand",null,null,null,null,null,null,null,null,null,null,"Nummer","Aktuel","Minimum","Minimum_2","Maksimum","Vægtning"]
[null,null,null,null,null,null,null,null,null,null,null,null,null,null,null,{"$f":"SUM(P79:P82)","v":0},{"$f":"SUM(Q79:Q82)","v":0},{"$f":"SUM(R79:R82)","v":1},{"$f":"SUM(S79:S82)","v":3},{"$f":"SUM(T79:T82)","v":100}]
[null,null,null,"2.1","Regulering af varmt brugsvands beholderopladning med direkte elektrisk opvarmning eller integreret elektrisk varmepumpe"]
[null,null,null,null,null,null,null,null,null,null,null,null,null,null,1,{"$f":"IF(Inddata!Y28=0,\"\",IF(Inddata!Y28=1,D100,IF(Inddata!Y28=2,D100,IF(Inddata!Y28=3,D100,IF(Inddata!Y28=4,D88,IF(Inddata!Y28=5,D88))))))","v":0},0,1,2,85]
[null,null,null,"Regulering af varmt brugsvands beholderopladning med direkte elektrisk opvarmning eller integreret elektrisk varmepumpe"]
[]
[null,null,null,0,"Automatisk tænd/sluk-styring.",null,null,null,null,null,null,null,null,null,4,{"$f":"D122","v":0},0,0,1,15]
[]
[null,null,null,1,"Automatisk tænd/sluk-styring og tidsplanlagt opladning aktiveret."]
[null,null,null,null,null,null,null,null,null,null,null,null,null,null,null,{"$f":"SUMPRODUCT(P79:P82,T79:T82)/SUM(T79:T82)","v":0},{"$f":"SUMPRODUCT(R79:R82,T79:T82)/SUM(T79:T82)","v":0.85},{"$f":"SUMPRODUCT(S79:S82,T79:T82)/SUM(T79:T82)","v":1.85}]
[null,null,null,2,"Automatisk tænd/sluk-styring, tidsplanlagt opladning aktiveret og multi-sensor lagerstyring."]
[null,null,null,null,null,null,null,null,null,null,null,null,null,null,null,"D",null,0]
[null,null,null,0,null,null,null,null,null,null,null,null,null,null,null,"C",null,{"$f":"R89-((R90-R87)/3)","v":0.6166666666666667}]
[null,null,null,null,null,null,null,null,null,null,null,null,null,null,null,"B",null,{"$f":"R90-((R90-R87)/3)","v":1.2333333333333334}]
[null,null,null,"2.2","Regulering af varmt brugsvands beholderopladning ved brug af varmtvandsproduktion",null,null,null,null,null,null,null,null,null,null,"A",null,{"$f":"R85","v":1.85}]
[]
[null,null,null,"Regulering af varmt brugsvands beholderopladning ved brug af varmtvandsproduktion",null,null,null,null,null,null,null,null,null,null,null,null,null,{"$f":"IF(AND(P85>=R87,P85<R88),\"D\",IF(AND(P85>=R88,P85<R89),\"C\",IF(AND(P85>=R89,P85<R90),\"B\",IF(P85>=R90,\"A\"))))","v":"D"}]
[]
[null,null,null,0,"Automatisk tænd/sluk-styring."]
[]
[null,null,null,1,"Automatisk tænd/sluk-styring og tidsplanlagt opladning aktiveret."]
[]
[null,null,null,2,"Automatisk tænd/sluk-styring, tidsplanlagt opladning aktiveret og efterspørgselsbaseret forsyningstemperaturkontrol eller multi-sensor lagerstyring."]
[]
[null,null,null,0]
[]
[null,null,null,"2.3","Regulering af varmt brugsvands beholderopladning med solfanger og supplerende varmeproduktion"]
[]
[null,null,null,"Regulering af varmt brugsvands beholderopladning med solfanger og supplerende varmeproduktion"]
[]
[null,null,null,0,"Manuel styring."]
[]
[null,null,null,1,"Automatisk styring af solfangeropladning (prioritet 1) og supplerende opladning (prioritet 2)."]
[]
[null,null,null,2,"Automatisk styring af solfangeropladning (prioritet 1) og supplerende opladning (prioritet 2) samt efterspørgselsbaseret forsyningstemperaturkontrol eller multi-sensor lagerstyring."]
[]
[null,null,null,0]
[]
[null,null,null,"2.4","Styring af cirkulationspumpe til varmt brugsvand"]
[]
[null,null,null,"Styring af cirkulationspumpe til varmt brugsvand"]
[]
[null,null,null,0,"Ingen styring, kontinuerlig drift."]
[]
[null,null,null,1,"Med tidsprogram."]
[]
[null,null,null,0]
[]
[null,null,3,"Regulering af køleanlæg",null,null,null,null,null,null,null,null,null,null,"Nummer","Aktuel","Minimum","Minimum_2","Maksimum","Vægtning"]
[null,null,null,null,null,null,null,null,null,null,null,null,null,null,null,{"$f":"SUM(P127:P133)","v":1},{"$f":"SUM(Q127:Q133)","v":0},{"$f":"SUM(R127:R133)","v":8},{"$f":"SUM(S127:S133)","v":13},{"$f":"SUM(T127:T133)","v":100}]
[null,null,null,"3.1","Regulering af kuldeafgivere"]
[null,null,null,null,null,null,null,null,null,null,null,null,null,null,1,{"$f":"D137","v":1},0,2,3,35]
[null,null,null,"Styringsfunktionen anvendes på køleafgiveren (kølepanel, fancoilr eller indendørsenhed) på rumniveau.",null,null,null,null,null,null,null,null,null,null,2,{"$f":"D149","v":0},0,1,2,35]
[null,null,null,null,null,null,null,null,null,null,null,null,null,null,3,{"$f":"D166","v":0},0,3,4,10]
[null,null,null,1,"Individuel rumstyring: Ved hjælp af termostatiske ventiler eller elektroniske regulatorer.",null,null,null,null,null,null,null,null,null,4,{"$f":"D179","v":0},0,1,2,10]
[null,null,null,null,null,null,null,null,null,null,null,null,null,null,5,{"$f":"D191","v":0},0,1,2,10]
[null,null,null,2,"Individuel modulerende rumstyring med kommunikation: Kommunikerer mellem regulatorer og BMS-system (f.eks. tidsplanlægger, rumtemperatur-sætpunkt)."]
[]
[null,null,null,3,"Individuel modulerende rumstyring med kommunikation og tilstedeværelsesdetektion: Mellem controllere og BMS-system; behovsstyring/tilstedeværelsesdetektion (dette funktionsniveau anvendes normalt ikke på langsomt reagerende køleudsendelsessystemer med betydelig termisk masse, f.eks. gulvkøling).",null,null,null,null,null,null,null,null,null,null,{"$f":"SUMPRODUCT(P127:P131,T127:T131)/SUM(T127:T131)","v":0.35},{"$f":"SUMPRODUCT(R127:R131,T127:T131)/SUM(T127:T131)","v":1.55},{"$f":"SUMPRODUCT(S127:S131,T127:T131)/SUM(T127:T131)","v":2.5499999999999998}]
[]
[null,null,null,null,null,null,null,null,null,null,null,null,null,null,null,"D",null,0]
[null,null,null,1,null,null,null,null,null,null,null,null,null,null,null,"C",null,{"$f":"R138-((R139-R136)/3)","v":0.84999999999999976}]
[null,null,null,null,null,null,null,null,null,null,null,null,null,null,null,"B",null,{"$f":"R139-((R139-R136)/3)","v":1.6999999999999997}]
[null,null,null,"3.2","Styring af distributionsnettets kølevandstemperatur (forsyning eller retur)",null,null,null,null,null,null,null,null,null,null,"A",null,{"$f":"R134","v":2.5499999999999998}]
[]
[null,null,null,"En lignende funktion kan bruges til styring af direkte elektrisk køling (f.eks. kompakte køleenheder og split-enheder).",null,null,null,null,null,null,null,null,null,null,null,null,null,{"$f":"IF(AND(P134>=R136,P134<R137),\"D\",IF(AND(P134>=R137,P134<R138),\"C\",IF(AND(P134>=R138,P134<R139),\"B\",IF(P134>=R139,\"A\"))))","v":"D"}]
[]
[null,null,null,0,"Konstant temperaturstyring."]
[]
[null,null,null,1,"Udetemperaturkompenseret styring: Øger generelt middelfremløbstemperaturen."]
[]
[null,null,null,2,"Efterspørgselsbaseret styring: Handlinger øger generelt middelstrømtemperaturen."]
[]
[null,null,null,0]
[]
[null,null,null,"3.3","Styring af cirkulationspumper i hydrauliske distributionsnet"]
[]
[null,null,null,"Reducerer hjælpeenergibehovet for pumperne."]
[]
[null,null,null,0,"Ingen automatisk styring."]
[]
[null,null,null,1,"Tænd/sluk-styring: for at reducere den nødvendige hjælpeenergi til pumperne"]
[]
[null,null,null,2,"Flertrinsstyring: for at reducere den nødvendige hjælpeenergi til pumperne"]
[]
[null,null,null,3,"Variabel hastighedsregulering af pumpen: Konstant eller variabelt trykfald (Δp) baseret på pumpens interne estimater for at reducere den nødvendige hjælpeenergi til pumperne"]
[]
[null,null,null,4,"Variabel hastighedsregulering af pumpen: Variabelt trykfald (Δp) baseret på et eksternt efterspørgselssignal, f.eks. hydrauliske krav, temperaturforskel (ΔT) eller energibesparelsesoptimering, for at reducere den nødvendige hjælpeenergi til pumperne"]
[]
[]
[null,null,null,0]
[]
[null,null,null,"3.4","Indbyrdes afhængighed mellem opvarmnings- og kølingsregulering for kuldeafgivere og/eller distribution"]
[]
[null,null,null,"For at undgå samtidig opvarmning og køling i samme rum afhængigt af systemprincippet (f.eks. kølepanel/varmeafgiver, TABS/ventilation, flere indendørsenheder)."]
[]
[null,null,null,0,"Ingen afhængighed: De to systemer styres uafhængigt og kan levere samtidig opvarmning og køling."]
[]
[null,null,null,1,"Delvis afhængighed (afhængigt af HVAC-systemet): Styringsfunktionen er opsat for at minimere muligheden for samtidig opvarmning og køling. Dette opnås generelt ved at definere et glidende setpunkt for forsyningstemperaturen i det centralt styrede system."]
[]
[]
[null,null,null,2,"Fuld afhængighed: Ingen samtidig opvarmning og køling sikres."]
[]
[null,null,null,0]
[]
[null,null,null,"3.5","Regulering af den kuldeproducerende enhed"]
[]
[null,null,null,"Formålet er generelt at maksimere kølevandstemperaturen."]
[]
[null,null,null,0,"Konstant temperaturstyring."]
[]
[null,null,null,1,"Variabel temperaturstyring afhængig af udetemperaturen."]
[]
[null,null,null,2,"Variabel temperaturstyring afhængig af belastningen: Dette inkluderer styring baseret på rumtemperaturen."]
[]
[null,null,null,0]
[]
[null,null,4,"Regulering af ventilations- og klimaanlæg",null,null,null,null,null,null,null,null,null,null,"Nummer","Aktuel","Minimum","Minimum_2","Maksimum","Vægtning"]
[null,null,null,null,null,null,null,null,null,null,null,null,null,null,null,{"$f":"SUM(P196:P204)","v":9},{"$f":"SUM(Q196:Q204)","v":0},{"$f":"SUM(R196:R204)","v":16},{"$f":"SUM(S196:S204)","v":24},{"$f":"SUM(T196:T204)","v":100}]
[null,null,null,"Dette afsnit gælder for bygningsenergisystemer, der bringer luft ind i bygningen: både ventilations- og klimaanlægssystemer. Opvarmning og køling af luft kræver yderligere opvarmnings- og køleenheder. Styringsfunktioner relateret til opvarmnings-/kølesystemer er defineret i afsnit 1 og 3 i denne tabel."]
[null,null,null,null,null,null,null,null,null,null,null,null,null,null,1,{"$f":"D210","v":3},0,2,3,20]
[null,null,null,null,null,null,null,null,null,null,null,null,null,null,2,{"$f":"D223","v":1},0,2,2,20]
[null,null,null,"4.1","Regulering af forsyningsluftflow på rumniveau (f.eks. ventilator tænd/sluk)",null,null,null,null,null,null,null,null,null,3,{"$f":"D233","v":1},0,1,1,15]
[null,null,null,null,null,null,null,null,null,null,null,null,null,null,4,{"$f":"D247","v":0},0,2,3,5]
[null,null,null,"Styring af forsyningsluftflow relateret til tilstedeværelse (tilgængelighed af luftflow, dvs. ventilator tænd/sluk-styring).",null,null,null,null,null,null,null,null,null,null,5,{"$f":"D263","v":3},0,3,4,10]
[null,null,null,null,null,null,null,null,null,null,null,null,null,null,6,{"$f":"D273","v":0},0,2,3,5]
[null,null,null,0,"Ingen automatisk styring: Systemet kører konstant (f.eks. manuel styret kontakt).",null,null,null,null,null,null,null,null,null,7,{"$f":"D289","v":0},0,2,3,10]
[null,null,null,null,null,null,null,null,null,null,null,null,null,null,8,{"$f":"D303","v":1},0,2,3,10]
[null,null,null,1,"Tidsstyring: Systemet kører i henhold til en fast tidsplan.",null,null,null,null,null,null,null,null,null,9,{"$f":"D317","v":0},0,0,2,5]
[]
[null,null,null,2,"Tilstedeværelsesbaseret styring: Systemet kører afhængigt af besættelse (tilstedeværelse, lyskontakt, infrarøde sensorer osv.)."]
[null,null,null,null,null,null,null,null,null,null,null,null,null,null,null,{"$f":"SUMPRODUCT(P196:P204,T196:T204)/SUM(T196:T204)","v":1.35},{"$f":"SUMPRODUCT(R196:R204,T196:T204)/SUM(T196:T204)","v":1.85},{"$f":"SUMPRODUCT(S196:S204,T196:T204)/SUM(T196:T204)","v":2.5499999999999998}]
[null,null,null,3,"Tilstedværelsesbaseret styring: Systemet kører afhængigt af luftkvalitetsbehov (måling af CO2, VOC osv.)."]
[null,null,null,null,null,null,null,null,null,null,null,null,null,null,null,"D",null,0]
[null,null,null,3,null,null,null,null,null,null,null,null,null,null,null,"C",null,{"$f":"R211-((R212-R209)/3)","v":0.84999999999999976}]
[null,null,null,null,null,null,null,null,null,null,null,null,null,null,null,"B",null,{"$f":"R212-((R212-R209)/3)","v":1.6999999999999997}]
[null,null,null,"4.2","Rumlufttemperaturregulering via ventilationssystemet (alle luftsystemer; kombination med statiske systemer som køleloft, radiatorer osv.)",null,null,null,null,null,null,null,null,null,null,"A",null,{"$f":"R207","v":2.5499999999999998}]
[]
[null,null,null,"Rumtemperaturen afhænger af luftflow (4.1, 4.5) samt forsyningslufttemperaturen (4.9). Denne styringsfunktion er relateret til en lukket sløjfe-controller for rummets lufttemperatur, der virker på luftflowet eller forsyningslufttemperaturen.",null,null,null,null,null,null,null,null,null,null,null,null,null,{"$f":"IF(AND(P207>=R209,P207<R210),\"D\",IF(AND(P207>=R210,P207<R211),\"C\",IF(AND(P207>=R211,P207<R212),\"B\",IF(P207>=R212,\"A\"))))","v":"C"}]
[]
[]
[null,null,null,0,"Tænd/sluk-styring: Fast luftflow og fast forsyningslufttemperatur på rumniveau, rummets temperatursætpunkt indstilles individuelt."]
[]
[null,null,null,1,"Kontinuerlig styring: Enten luftflow eller forsyningslufttemperatur på rumniveau kan varieres kontinuerligt; rummets temperatursætpunkt indstilles individuelt."]
[]
[null,null,null,2,"Optimeret styring: Minimal energibehov ved optimeret styring. Både luftflow og forsyningslufttemperatur på rumniveau styres afhængigt af opvarmnings-/kølebelastningen."]
[]
[null,null,null,1]
[]
[null,null,null,"4.3","Koordinering af rumlufttemperaturregulering via ventilation og statiske systemer"]
[]
[null,null,null,"Samspillet mellem de forskellige systemer skal koordineres."]
[]
[null,null,null,0,"Ingen koordinering: De enkelte systemer styrer rummets temperatur uafhængigt."]
[]
[null,null,null,1,"Koordineret styring: Kun ét system er ansvarligt for at styre rummets temperatur gennem en lukket sløjfe, mens det andet system kun supplerer og tilpasser sig varmegevinster."]
[]
[null,null,null,1]
[]
[null,null,null,"4.4","Udeluft flowregulering (anlæg med recirkulering)"]
[]
[null,null,null,"Denne styringsfunktion anvendes på ventilationssystemer, der muliggør variation af OA-forholdet (udelufttilførsel i forhold til det opvarmede etageareal) eller -flow."]
[]
[null,null,null,0,"Fast OA-forhold eller OA-flow: Systemet kører i henhold til et givet OA-forhold, f.eks. justeret manuelt."]
[]
[null,null,null,1,"Trinstyret (lav/høj) OA-forhold eller OA-flow: Afhængig af en fast tidsplan."]
[]
[null,null,null,2,"Trinstyret (lav/høj) OA-forhold eller OA-flow: Afhængig af besættelse, f.eks. lyskontakt, infrarøde sensorer osv."]
[]
[null,null,null,3,"Variabel kontrol: Systemet styres af sensorer, der registrerer antallet af personer eller indendørs luftparametre såsom CO2 eller VOC."]
[]
[null,null,null,0]
[]
[null,null,null,"4.5","Luftflow- eller trykstyring på ventilationsaggregatniveau (AHU)"]
[]
[null,null,null,"Styrer luftflow eller tryk på AHU-niveau for optimal energibesparelse."]
[]
[null,null,null,0,"Ingen automatisk styring: Kontinuerligt forsyningsluftflow til maksimal belastning for alle rum."]
[]
[null,null,null,1,"Tænd/sluk-tidsstyring: Kontinuerligt forsyningsluftflow til maksimal belastning i den nominelle besættelsestid."]
[]
[null,null,null,2,"Flertrinsstyring: Reducerer ventilatorens hjælpeenergibehov."]
[]
[null,null,null,3,"Automatisk flow- eller trykstyring uden trykreset: Belastningsafhængigt luftflow tilpasset alle tilsluttede rum."]
[]
[null,null,null,4,"Automatisk flow- eller trykstyring med trykreset: Variabelt luftflow tilpasset efter behov og lufttryk."]
[]
[null,null,null,3]
[]
[null,null,null,"4.6","Regulering af varmegenvinding: Frostbeskyttelse"]
[]
[null,null,null,"Denne styringsfunktion forhindrer frost i varmeveksleren."]
[]
[null,null,null,0,"Ingen specifik frostbeskyttelse."]
[]
[null,null,null,1,"Frostbeskyttelse: En styringssløjfe sikrer, at afkastlufttemperaturen ikke bliver for lav."]
[]
[null,null,null,0]
[]
[null,null,null,"4.7","Fri mekanisk køling"]
[]
[null,null,null,"Tillader køling ved brug af udeluft for at minimere behovet for mekanisk køling."]
[]
[null,null,null,0,"Ingen automatisk styring."]
[]
[null,null,null,1,"Natkøling: Mængden af udeluft sættes til sit maksimum under den ubenyttede periode, forudsat at rumtemperaturen er over setpunktet for komfortperioden, og forskellen mellem rumtemperaturen og udetemperaturen overstiger en given grænse. Hvis fri natkøling realiseres ved automatisk åbning af vinduer, er der ingen luftstrømsstyring."]
[]
[]
[null,null,null,2,"Fri køling: Mængden af udeluft og recirkulationsluft moduleres under hele perioden for at minimere behovet for mekanisk køling. Beregningen udføres på baggrund af temperaturer."]
[]
[null,null,null,3,"Entalpi-baseret styring: Mængden af udeluft og recirkulationsluft moduleres under hele perioden for at minimere behovet for mekanisk køling. Beregningen udføres på baggrund af både temperaturer og luftfugtighed (entalpi)."]
[]
[]
[null,null,null,0]
[]
[null,null,null,"4.8","Forsyningslufttemperaturstyring på luftbehandlingsenhedsniveau (AHU)"]
[]
[null,null,null,"Regulerer forsyningslufttemperaturen ved AHU-udløbet eller genopvarmningszonen."]
[]
[null,null,null,1,"Konstant setpunkt: En blandesløjfe gør det muligt at styre forsyningslufttemperaturen, men setpunktet er konstant og kan kun ændres manuelt."]
[]
[null,null,null,2,"Variabelt setpunkt med udetemperaturkompensation: En blandelsløjfe gør det muligt at styre forsyningslufttemperaturen. Setpunktet er en simpel funktion af udetemperaturen (f.eks. en lineær funktion)."]
[]
[]
[null,null,null,3,"Variabelt setpunkt med belastningsafhængig kompensation: En kontrolsløjfe gør det muligt at styre forsyningslufttemperaturen. Setpunktet defineres som en funktion af belastningen i rummet. Dette kan normalt kun opnås med et integreret styringssystem, der gør det muligt at indsamle temperaturer eller aktuatorpositioner i de forskellige rum."]
[]
[]
[null,null,null,1]
[]
[null,null,null,"4.9","Fugtighedsstyring"]
[]
[null,null,null,"Styrer luftens fugtighedsniveau (befugtning/affugtning)."]
[]
[null,null,null,0,"Ingen automatisk styring af fugtighed."]
[]
[null,null,null,1,"Dugpunktstyring: Luftfugtigheden i forsyningsluften eller rummet udtrykkes med dugpunktstemperaturen, og forsyningsluften genopvarmes for at bringe den relative luftfugtighed til setpunktet."]
[]
[]
[null,null,null,2,"Direkte luftfugtighedsstyring: En kontrolsløjfe gør det muligt at styre luftfugtigheden i forsyningsluften eller rummet ved et givet setpunkt. Setpunktet kan enten være fast og foruddefineret af brugeren eller et variabelt, optimalt niveau, der minimerer energiforbruget, men stadig ligger inden for de fastsatte minimums- og maksimumgrænser for rumforholdene."]
[]
[]
[null,null,null,0]
[]
[null,null,5,"Regulering af belysningsanlæg",null,null,null,null,null,null,null,null,null,null,"Nummer","Aktuel","Minimum","Minimum_2","Maksimum","Vægtning"]
[null,null,null,null,null,null,null,null,null,null,null,null,null,null,null,{"$f":"SUM(P322:P323)","v":4},{"$f":"SUM(Q322:Q323)","v":0},{"$f":"SUM(R322:R323)","v":4},{"$f":"SUM(S322:S323)","v":6},{"$f":"SUM(T322:T323)","v":100}]
[null,null,null,"5.1","Tilstedeværelsesstyring"]
[null,null,null,null,null,null,null,null,null,null,null,null,null,null,1,{"$f":"D338","v":2},0,2,3,40]
[null,null,null,"Styrer belysningen afhængigt af besættelse i rummet.",null,null,null,null,null,null,null,null,null,null,2,{"$f":"D353","v":2},0,2,3,60]
[]
[null,null,null,0,"Manuel tænd/sluk-kontakt: Lyskilder tændes og slukkes manuelt i rummet."]
[null,null,null,null,null,null,null,null,null,null,null,null,null,null,null,{"$f":"SUMPRODUCT(P322:P323,T322:T323)/SUM(T322:T323)","v":2},{"$f":"SUMPRODUCT(R322:R323,T322:T323)/SUM(T322:T323)","v":2},{"$f":"SUMPRODUCT(S322:S323,T322:T323)/SUM(T322:T323)","v":3}]
[null,null,null,1,"Manuel tænd/sluk-knap plus yderligere automatisk slukkesignal: Armaturet tændes og slukkes manuelt via en kontakt i rummet. Derudover sender et automatisk signal mindst én gang dagligt, typisk om aftenen, for at undgå unødig drift i nattetimerne."]
[null,null,null,null,null,null,null,null,null,null,null,null,null,null,null,"D",null,0]
[null,null,null,null,null,null,null,null,null,null,null,null,null,null,null,"C",null,{"$f":"R330-((R331-R328)/3)","v":1}]
[null,null,null,2,"Automatisk detektion - automatisk tænd/dæmpet sluk: Styringssystemet tænder automatisk armaturet, når det belyste område er i brug, og skifter automatisk til en dæmpet tilstand efter sidste registrerede tilstedeværelse i området. Automatisk tænd/automatisk sluk: Styringssystemet tænder automatisk armaturet, når det belyste område er i brug, og slukker det automatisk helt, når der ikke længere registreres tilstedeværelse.",null,null,null,null,null,null,null,null,null,null,"B",null,{"$f":"R331-((R331-R328)/3)","v":2}]
[null,null,null,null,null,null,null,null,null,null,null,null,null,null,null,"A",null,{"$f":"R326","v":3}]
[]
[null,null,null,null,null,null,null,null,null,null,null,null,null,null,null,null,null,{"$f":"IF(AND(P326>=R328,P326<R329),\"D\",IF(AND(P326>=R329,P326<R330),\"C\",IF(AND(P326>=R330,P326<R331),\"B\",IF(P326>=R331,\"A\"))))","v":"B"}]
[null,null,null,3,"Automatisk detektion - manuel tænd/delvis automatisk tænd/dæmpet sluk: Armaturet kan kun tændes manuelt via en kontakt eller automatisk via en tilstedeværelsessensor placeret i (eller tæt på) det belyste område. Hvis det ikke slukkes manuelt, skifter det automatisk til en dæmpet tilstand efter sidste registrerede tilstedeværelse i området. Manuel tænd/delvis automatisk tænd/automatisk sluk: Armaturet kan kun tændes manuelt via en kontakt eller automatisk via en tilstedeværelsessensor og slukkes automatisk helt, hvis det ikke slukkes manuelt."]
[]
[]
[]
[null,null,null,2]
[]
[null,null,null,"5.2","Belysningsstyrke-/dagslyskontrol (dagslysudnyttelse)"]
[]
[null,null,null,"Styrer belysning i forhold til dagslysniveau og energibesparelse."]
[]
[null,null,null,0,"Manuel central kontrol: Lyskilder styres centralt uden mulighed for manuel kontrol i rummet."]
[]
[null,null,null,1,"Manuel kontrol: Lyskilder kan tændes/slukkes manuelt i rummet."]
[]
[null,null,null,2,"Automatisk tænd/slukning: Lyskilder slukkes automatisk, hvis dagslyset opfylder minimumskrav til belysningen, og tændes igen, når der ikke er nok dagslys."]
[]
[null,null,null,3,"Automatisk dæmpning: Armaturerne dæmpes gradvist og slukkes helt, hvis der er tilstrækkeligt dagslys eller ved scenebaseret lysstyring. Armaturerne tændes og dæmpes op igen, hvis mængden af dagslys falder, eller hvis scenebaseret lysstyring aktiveres."]
[]
[]
[null,null,null,2]
[]
[null,null,6,"Regulering af solafskærmning",null,null,null,null,null,null,null,null,null,null,"Nummer","Aktuel","Minimum","Minimum_2","Maksimum","Vægtning"]
[null,null,null,null,null,null,null,null,null,null,null,null,null,null,null,{"$f":"SUM(P358:P358)","v":2},{"$f":"SUM(Q358:Q358)","v":0},{"$f":"SUM(R358:R358)","v":2},{"$f":"SUM(S358:S358)","v":3},{"$f":"SUM(T358:T358)","v":100}]
[null,null,null,"6.1","Regulering af solafskærmning"]
[null,null,null,null,null,null,null,null,null,null,null,null,null,null,1,{"$f":"D369","v":2},0,2,3,100]
[null,null,null,"Der er to hovedformål med regulering af solafskærmning: Afskærmning for at undgå overophedning og reduktion af blænding."]
[]
[null,null,null,0,"Manuel betjening: Solafskærmning styres manuelt, og energibesparelser afhænger af brugerens adfærd.",null,null,null,null,null,null,null,null,null,null,{"$f":"SUMPRODUCT(P358:P358,T358:T358)/SUM(T358:T358)","v":2},{"$f":"SUMPRODUCT(R358:R358,T358:T358)/SUM(T358:T358)","v":2},{"$f":"SUMPRODUCT(S358:S358,T358:T358)/SUM(T358:T358)","v":3}]
[]
[null,null,null,1,"Motoriseret betjening med manuel styring: Gør det lettere for brugeren at styre solafskærmning ved hjælp af motoriseret funktion.",null,null,null,null,null,null,null,null,null,null,"D",null,0]
[null,null,null,null,null,null,null,null,null,null,null,null,null,null,null,"C",null,{"$f":"R365-((R366-R363)/3)","v":1}]
[null,null,null,2,"Motoriseret betjening med automatisk styring: Solafskærmning styres automatisk for at reducere køleenergibehovet.",null,null,null,null,null,null,null,null,null,null,"B",null,{"$f":"R366-((R366-R363)/3)","v":2}]
[null,null,null,null,null,null,null,null,null,null,null,null,null,null,null,"A",null,{"$f":"R361","v":3}]
[null,null,null,3,"Kombineret lys-/solafskærmning-/HVAC-styring: Energiforbruget optimeres ved at integrere styring af HVAC, solafskærmning og belysning."]
[null,null,null,null,null,null,null,null,null,null,null,null,null,null,null,null,null,{"$f":"IF(AND(P361>=R363,P361<R364),\"D\",IF(AND(P361>=R364,P361<R365),\"C\",IF(AND(P361>=R365,P361<R366),\"B\",IF(P361>=R366,\"A\"))))","v":"B"}]
[null,null,null,2]
[]
[null,null,7,"CTS-anlæg",null,null,null,null,null,null,null,null,null,null,"Nummer","Aktuel","Minimum","Minimum_2","Maksimum","Vægtning"]
[null,null,null,null,null,null,null,null,null,null,null,null,null,null,null,{"$f":"SUM(P374:P379)","v":9},{"$f":"SUM(Q374:Q379)","v":0},{"$f":"SUM(R374:R379)","v":9},{"$f":"SUM(S374:S379)","v":9},{"$f":"SUM(T374:T379)","v":100}]
[null,null,null,"CTS-anlæg gør det muligt at tilpasse driften til brugerens behov.\nDet skal sikres, at driftsplanerne for opvarmning, køling, ventilation og belysning regelmæssigt tilpasses de faktiske anvendelsesmønstre, og at setpunkterne også tilpasses behovene.\nOpmærksomhed skal rettes mod justeringen af alle controllere, herunder setpunkter samt kontrolparametre som PI-kontrolkoefficienter.\nRumkontrollernes opvarmnings- og kølingssetpunkter skal kontrolleres regelmæssigt. Brugere ændrer ofte disse setpunkter. Et centraliseret system gør det muligt at opdage og korrigere ekstreme værdier af setpunkter forårsaget af misforståelser fra brugerne.\nHvis sammenkobling mellem opvarmnings- og kølingsstyring kun er delvis, skal setpunktet regelmæssigt ændres for at minimere samtidig brug af opvarmning og køling.\nAlarm- og overvågningsfunktioner vil støtte tilpasningen af driften til brugerens behov og optimering af justeringen af de forskellige controllere. Dette opnås ved at levere brugervenlige værktøjer til at opdage unormal drift (alarmfunktioner) og ved at give nem adgang til at logge og visualisere data (overvågningsfunktioner)."]
[null,null,null,null,null,null,null,null,null,null,null,null,null,null,1,{"$f":"D387","v":3},0,3,3,20]
[null,null,null,"7.1","Sætpunktstyring",null,null,null,null,null,null,null,null,null,2,{"$f":"D399","v":2},0,2,2,20]
[null,null,null,null,null,null,null,null,null,null,null,null,null,null,3,{"$f":"D411","v":2},0,2,2,30]
[null,null,null,"Styring, tilpasning og tilbageførsel af BAC-(styrings- og reguleringssystem) sætpunkt afhængigt af rum-/zonedriftstilstande.",null,null,null,null,null,null,null,null,null,null,4,{"$f":"D423","v":2},0,2,2,30]
[]
[null,null,null,0,"Manuel indstilling rum for rum individuelt."]
[null,null,null,null,null,null,null,null,null,null,null,null,null,null,null,{"$f":"SUMPRODUCT(P374:P377,T374:T377)/SUM(T374:T377)","v":2.2000000000000002},{"$f":"SUMPRODUCT(R374:R377,T374:T377)/SUM(T374:T377)","v":2.2000000000000002},{"$f":"SUMPRODUCT(S374:S377,T374:T377)/SUM(T374:T377)","v":2.2000000000000002}]
[null,null,null,1,"Tilpasning fra distribuerede/decentraliserede anlægsrum."]
[null,null,null,null,null,null,null,null,null,null,null,null,null,null,null,"D",null,0]
[null,null,null,2,"Tilpasning fra et centralt rum (f.eks. arbejdsstation, webdrift; rumdriftsenheder undtaget).",null,null,null,null,null,null,null,null,null,null,"C",null,{"$f":"R384-((R385-R382)/3)","v":0.73333333333333339}]
[null,null,null,null,null,null,null,null,null,null,null,null,null,null,null,"B",null,{"$f":"R385-((R385-R382)/3)","v":1.4666666666666668}]
[null,null,null,3,"Tilpasning fra et centralt rum med hyppig tilbageførsel af brugerinput.",null,null,null,null,null,null,null,null,null,null,"A",null,{"$f":"R380","v":2.2000000000000002}]
[]
[null,null,null,3,null,null,null,null,null,null,null,null,null,null,null,null,null,{"$f":"IF(AND(P380>=R382,P380<R383),\"D\",IF(AND(P380>=R383,P380<R384),\"C\",IF(AND(P380>=R384,P380<R385),\"B\",IF(P380>=R385,\"A\"))))","v":"A"}]
[]
[null,null,null,"7.2","Driftstidsstyring"]
[]
[null,null,null,"Tilpasning af system-/anlægs driftstider i henhold til et fast tidsskema og/eller kalender."]
[]
[null,null,null,0,"Manuel indstilling (aktivering af anlæg)."]
[]
[null,null,null,1,"Individuel indstilling i henhold til en foruddefineret tidsplan, inklusive faste forberedelsesfaser."]
[]
[null,null,null,2,"Individuel indstilling i henhold til en foruddefineret tidsplan med tilpasning fra et centralt styringsrum, inklusive variable forberedelsesfaser."]
[]
[null,null,null,2]
[]
[null,null,null,"7.3","Fejlregistrering og diagnosticering af tekniske bygningsstyringssystemer"]
[]
[null,null,null,"Overvågning og diagnosticering af fejl i tekniske bygningsstyringssystemer."]
[]
[null,null,null,0,"Ingen central indikation af registrerede fejl og alarmer (decentrale styringsenheder)."]
[]
[null,null,null,1,"Central indikation af registrerede fejl og alarmer."]
[]
[null,null,null,2,"Central indikation af registrerede fejl og alarmer, inklusive diagnosticeringsfunktioner."]
[]
[null,null,null,2]
[]
[null,null,null,"7.4","Rapportering af information om energiforbrug og indeklima"]
[]
[null,null,null,"Registrering og analyse af energiforbrug og indeklima."]
[]
[null,null,null,0,"Indikering af aktuelle værdier (f.eks. temperaturer, måleraflæsninger). Decentrale styringsenheder."]
[]
[null,null,null,1,"Trendanalyse og forbrugsbestemmelse."]
[]
[null,null,null,2,"Analyse, performanceevaluering og benchmarking af indeklima og energiforbrug."]
[]
[null,null,null,2,{"$f":"HYPERLINK(\"#'Opsummering'!A1\",\"Gå til Opsummering\")","v":"Gå til Opsummering"}]

{"sheet":"Varmeanlæg","index":7,"n_rows":53,"n_cols":11,"rows_kept":53,"cut":false,"hidden":true,"merged":[[24,1,26,10]]}
[]
[null,"Varmeanlæg",null,null,null,null,null,null,null,null,"Retur til bygningsautomatik"]
[]
[null,"Nuværende varmeautomatik og nødvendige tiltag for at leve op til BR18"]
[]
[]
[null,"Redegørelse for nuværende tilstand"]
[]
[null,"Karakter jf. EN ISO 52120-1_2022:",null,null,null,{"$f":"Bygningsautomatik_før!Q19","v":1.55}]
[]
[null,"Mærke jf. EN ISO 52120-1_2022:",null,null,null,{"$f":"Bygningsautomatik_før!S26","v":"C"}]
[]
[]
[null,"Hvad skal der til for at opfylde BR18"]
[]
[null,"Karakter jf. EN ISO 52120-1_2022:",null,null,null,{"$f":"Bygningsautomatik_efter!P19","v":1.2}]
[]
[null,"Mærke jf. EN ISO 52120-1_2022:",null,null,null,{"$f":"Bygningsautomatik_efter!R26","v":"C"}]
[]
[]
[null,"Varmeregulering"]
[]
[null,"Regulering af varmeafgivere"]
[]
[null,{"$f":"IF(Bygningsautomatik_efter!D22=2,Bygningsautomatik_efter!E17,IF(Bygningsautomatik_efter!D22=3,Bygningsautomatik_efter!E19,\"\"))","v":"Individuel modulerende rumstyring med kommunikation: Kommunikerer mellem regulatorer og BMS-system (f.eks. tidsskemaer eller rumtemperatursætpunkt)."}]
[]
[]
[]
[null,"Regulering af distributionsnet - centralvarmevandets temperatur (fremløb eller retur)"]
[]
[null,{"$f":"IF(Bygningsautomatik_efter!D34=1,Bygningsautomatik_efter!E30,IF(Bygningsautomatik_efter!D34=2,Bygningsautomatik_efter!E32,\"\"))","v":""}]
[]
[null,"Styring af cirkulationspumper i distributionsnet"]
[]
[null,{"$f":"IF(Bygningsautomatik_efter!D50=3,Bygningsautomatik_efter!E46,IF(Bygningsautomatik_efter!D50=4,Bygningsautomatik_efter!E48,\"\"))","v":"Variabel hastighedspumpestyring: Konstant eller variabelt tryk baseret på interne estimeringer."}]
[]
[null,"Regulering af varmeproducerende enhed (brændsler og fjernvarme)"]
[]
[null,{"$f":"IF(Bygningsautomatik_efter!D62=1,Bygningsautomatik_efter!E58,IF(Bygningsautomatik_efter!D62=2,Bygningsautomatik_efter!E60,\"\"))","v":"Variabel temperaturstyring afhængig af udetemperaturen."}]
[]
[null,"Regulering af varmeproducerende enhed (varmepumpe)"]
[]
[null,{"$f":"IF(Bygningsautomatik_efter!D74=1,Bygningsautomatik_efter!E70,IF(Bygningsautomatik_efter!D74=2,Bygningsautomatik_efter!E72,\"\"))","v":""}]
[]
[null,"Energibesparelse, investering og rentabilitet"]
[]
[null,"Energibesparelse:",null,null,null,{"$f":"(('BAC efficiency'!N71*Inddata!F56)+('BAC efficiency'!N94*Inddata!F58))","v":0},"kr."]
[]
[null,"Investering",null,null,null,{"$f":"Priser!AR65","v":0},"Kr."]
[]
[null,"Levetid",null,null,null,15,"år"]
[]
[null,"Rentabilitet",null,null,null,{"$f":"IF(F49=0,\"\",F47*F51/F49)","v":""}]

{"sheet":"Varmt brugsvand","index":8,"n_rows":49,"n_cols":16,"rows_kept":49,"cut":false,"hidden":true,"merged":[[28,1,29,10],[33,1,34,10]]}
[]
[null,"Varmt brugsvand",null,null,null,null,null,null,null,null,"Retur til bygningsautomatik"]
[]
[null,"Nuværende automatik til varmt brugsvand og nødvendige tiltag for at leve op til BR18"]
[]
[]
[null,"Redegørelse for nuværende tilstand"]
[]
[null,"Karakter jf. EN ISO 52120-1_2022:",null,null,null,{"$f":"Bygningsautomatik_før!Q85","v":0}]
[]
[null,"Mærke jf. EN ISO 52120-1_2022:",null,null,null,{"$f":"Bygningsautomatik_før!S92","v":"D"}]
[]
[]
[null,"Hvad skal der til for at opfylde BR18"]
[]
[null,"Karakter jf. EN ISO 52120-1_2022:",null,null,null,{"$f":"Bygningsautomatik_efter!P85","v":0}]
[]
[null,"Mærke jf. EN ISO 52120-1_2022:",null,null,null,{"$f":"Bygningsautomatik_efter!R92","v":"D"}]
[]
[]
[null,"Regulering af system til varmt brugsvand"]
[]
[null,"Regulering af varmt brugsvands beholderopladning med direkte elektrisk opvarmning eller integreret elektrisk varmepumpe"]
[]
[null,{"$f":"IF(Bygningsautomatik_efter!D88=1,Bygningsautomatik_efter!E84,IF(Bygningsautomatik_efter!D88=2,Bygningsautomatik_efter!E86,\"\"))","v":""}]
[]
[null,"Regulering af varmt brugsvands beholderopladning ved brug af varmtvandsproduktion"]
[]
[null,{"$f":"IF(Bygningsautomatik_efter!D100=1,Bygningsautomatik_efter!E96,IF(Bygningsautomatik_efter!D100=2,Bygningsautomatik_efter!E98,\"\"))","v":""}]
[]
[]
[null,"Regulering af varmt brugsvands beholderopladning med solfanger og supplerende varmeproduktion"]
[]
[null,{"$f":"IF(Bygningsautomatik_efter!D112=1,Bygningsautomatik_efter!E108,IF(Bygningsautomatik_efter!D112=2,Bygningsautomatik_efter!E110,\"\"))","v":""}]
[]
[]
[null,"Styring af cirkulationspumpe til varmt brugsvand"]
[]
[null,{"$f":"IF(Bygningsautomatik_efter!D122=1,Bygningsautomatik_efter!E120,\"\")","v":""}]
[]
[null,"Energibesparelse, investering og rentabilitet"]
[]
[null,"Energibesparelse:",null,null,null,{"$f":"('BAC efficiency'!N73*Inddata!F56)","v":0},"kr.",null,null,null,null,null,null,null,null,"Husk cirkulationspumpe"]
[]
[null,"Investering",null,null,null,{"$f":"IF(Anlæg!AT27=0,0,Priser!AP86+Priser!AP104)","v":0},"Kr."]
[]
[null,"Levetid",null,null,null,15,"år"]
[]
[null,"Rentabilitet",null,null,null,{"$f":"IF(F45=0,\"\",F43*F47/F45)","v":""}]

{"sheet":"Køleanlæg","index":9,"n_rows":55,"n_cols":11,"rows_kept":55,"cut":false,"hidden":true,"merged":[[24,1,26,10],[34,1,35,10],[39,1,40,10]]}
[]
[null,"Køleanlæg",null,null,null,null,null,null,null,null,"Retur til bygningsautomatik"]
[]
[null,"Nuværende automatik til køleanlæg og nødvendige tiltag for at leve op til BR18"]
[]
[]
[null,"Redegørelse for nuværende tilstand"]
[]
[null,"Karakter jf. EN ISO 52120-1_2022:",null,null,null,{"$f":"Bygningsautomatik_før!Q120","v":0.35}]
[]
[null,"Mærke jf. EN ISO 52120-1_2022:",null,null,null,{"$f":"Bygningsautomatik_før!S127","v":"D"}]
[]
[]
[null,"Hvad skal der til for at opfylde BR18"]
[]
[null,"Karakter jf. EN ISO 52120-1_2022:",null,null,null,{"$f":"Bygningsautomatik_efter!P134","v":0.35}]
[]
[null,"Mærke jf. EN ISO 52120-1_2022:",null,null,null,{"$f":"Bygningsautomatik_efter!R141","v":"D"}]
[]
[]
[null,"Regulering af køleanlæg"]
[]
[null,"Regulering af kuldeafgivere"]
[]
[null,{"$f":"IF(Bygningsautomatik_efter!D137=2,Bygningsautomatik_efter!E132,IF(Bygningsautomatik_efter!D137=3,Bygningsautomatik_efter!E134,\"\"))","v":""}]
[]
[]
[]
[null,"Styring af distributionsnettets kølevandstemperatur (forsyning eller retur)"]
[]
[null,{"$f":"IF(Bygningsautomatik_efter!D149=1,Bygningsautomatik_efter!E145,IF(Bygningsautomatik_efter!D149=2,Bygningsautomatik_efter!E147,\"\"))","v":""}]
[]
[null,"Styring af cirkulationspumper i hydrauliske distributionsnet"]
[]
[null,{"$f":"IF(Bygningsautomatik_efter!D166=3,Bygningsautomatik_efter!E161,IF(Bygningsautomatik_efter!D166=4,Bygningsautomatik_efter!E163,\"\"))","v":""}]
[]
[]
[null,"Indbyrdes afhængighed mellem opvarmnings- og kølingsregulering for kuldeafgivere og/eller distribution"]
[]
[null,{"$f":"IF(Bygningsautomatik_efter!D179=1,Bygningsautomatik_efter!E174,IF(Bygningsautomatik_efter!D179=2,Bygningsautomatik_efter!E177,\"\"))","v":""}]
[]
[]
[null,"Regulering af den kuldeproducerende enhed"]
[]
[null,{"$f":"IF(Bygningsautomatik_efter!D191=1,Bygningsautomatik_efter!E187,IF(Bygningsautomatik_efter!D191=2,Bygningsautomatik_efter!E189,\"\"))","v":""}]
[]
[null,"Energibesparelse, investering og rentabilitet"]
[]
[null,"Energibesparelse:",null,null,null,{"$f":"('BAC efficiency'!N88*Inddata!F58)","v":0},"kr."]
[]
[null,"Investering",null,null,null,{"$f":"Priser!AR166","v":0},"Kr."]
[]
[null,"Levetid",null,null,null,15,"år"]
[]
[null,"Rentabilitet",null,null,null,{"$f":"IF(F51=0,\"\",F49*F53/F51)","v":""}]

{"sheet":"Ventilationsanlæg","index":10,"n_rows":71,"n_cols":11,"rows_kept":71,"cut":false,"hidden":true,"merged":[[26,1,27,10],[29,1,30,10],[34,1,35,10],[55,1,56,10]]}
[]
[null,"Ventilationsanlæg",null,null,null,null,null,null,null,null,"Retur til bygningsautomatik"]
[]
[null,"Nuværende automatik til ventilationsanlæg og nødvendige tiltag for at leve op til BR18"]
[]
[]
[null,"Redegørelse for nuværende tilstand"]
[]
[null,"Karakter jf. EN ISO 52120-1_2022:",null,null,null,{"$f":"Bygningsautomatik_før!Q198","v":1.35}]
[]
[null,"Mærke jf. EN ISO 52120-1_2022:",null,null,null,{"$f":"Bygningsautomatik_før!S205","v":"C"}]
[]
[]
[null,"Hvad skal der til for at opfylde BR18"]
[]
[null,"Karakter jf. EN ISO 52120-1_2022:",null,null,null,{"$f":"Bygningsautomatik_efter!P207","v":1.35}]
[]
[null,"Mærke jf. EN ISO 52120-1_2022:",null,null,null,{"$f":"Bygningsautomatik_efter!R214","v":"C"}]
[]
[]
[null,"Regulering af ventilations- og klimaanlæg"]
[]
[null,"Regulering af forsyningsluftflow på rumniveau (f.eks. ventilator tænd/sluk)"]
[]
[null,{"$f":"IF(Bygningsautomatik_efter!D210=2,Bygningsautomatik_efter!E206,IF(Bygningsautomatik_efter!D210=3,Bygningsautomatik_efter!E208,\"\"))","v":"Tilstedværelsesbaseret styring: Systemet kører afhængigt af luftkvalitetsbehov (måling af CO2, VOC osv.)."}]
[]
[null,"Rumlufttemperaturregulering via ventilationssystemet (alle luftsystemer; kombination med statiske systemer som køleloft, radiatorer osv.)"]
[]
[]
[null,{"$f":"IF(Bygningsautomatik_efter!D223=2,Bygningsautomatik_efter!E221,\"\")","v":""}]
[]
[]
[null,"Koordinering af rumlufttemperaturregulering via ventilation og statiske systemer"]
[]
[null,{"$f":"IF(Bygningsautomatik_efter!D233=1,Bygningsautomatik_efter!E231,\"\")","v":"Koordineret styring: Kun ét system er ansvarligt for at styre rummets temperatur gennem en lukket sløjfe, mens det andet system kun supplerer og tilpasser sig varmegevinster."}]
[]
[]
[null,"Udeluft flowregulering (anlæg med recirkulering)"]
[]
[null,{"$f":"IF(Bygningsautomatik_efter!D247=2,Bygningsautomatik_efter!E243,IF(Bygningsautomatik_efter!D247=3,Bygningsautomatik_efter!E245,\"\"))","v":""}]
[]
[null,"Luftflow- eller trykstyring på ventilationsaggregatniveau (AHU)"]
[]
[null,{"$f":"IF(Bygningsautomatik_efter!D263=3,Bygningsautomatik_efter!E259,IF(Bygningsautomatik_efter!D263=4,Bygningsautomatik_efter!E261,\"\"))","v":"Automatisk flow- eller trykstyring uden trykreset: Belastningsafhængigt luftflow tilpasset alle tilsluttede rum."}]
[]
[null,"Regulering af varmegenvinding: Frostbeskyttelse"]
[]
[null,{"$f":"IF(Bygningsautomatik_efter!D263=3,Bygningsautomatik_efter!E259,IF(Bygningsautomatik_efter!D263=4,Bygningsautomatik_efter!E261,\"\"))","v":"Automatisk flow- eller trykstyring uden trykreset: Belastningsafhængigt luftflow tilpasset alle tilsluttede rum."}]
[]
[null,"Fri mekanisk køling"]
[]
[null,{"$f":"IF(Bygningsautomatik_efter!D273=1,Bygningsautomatik_efter!E271,\"\")","v":""}]
[]
[null,"Forsyningslufttemperaturstyring på luftbehandlingsenhedsniveau (AHU)"]
[]
[null,{"$f":"IF(Bygningsautomatik_efter!D289=2,Bygningsautomatik_efter!E284,IF(Bygningsautomatik_efter!D289=3,Bygningsautomatik_efter!E286,\"\"))","v":""}]
[]
[]
[null,"Fugtighedsstyring"]
[]
[null,{"$f":"IF(Bygningsautomatik_efter!D317=1,Bygningsautomatik_efter!E311,IF(Bygningsautomatik_efter!D317=2,Bygningsautomatik_efter!E314,\"\"))","v":""}]
[]
[null,"Energibesparelse, investering og rentabilitet"]
[]
[null,"Energibesparelse:",null,null,null,{"$f":"(('BAC efficiency'!N75*Inddata!F56)+('BAC efficiency'!N90*Inddata!F58))","v":0},"kr."]
[]
[null,"Investering",null,null,null,{"$f":"Priser!AR274","v":0},"Kr."]
[]
[null,"Levetid",null,null,null,15,"år"]
[]
[null,"Rentabilitet",null,null,null,{"$f":"IF(F67=0,\"\",F65*F69/F67)","v":""}]

{"sheet":"Belysningsanlæg","index":11,"n_rows":44,"n_cols":11,"rows_kept":44,"cut":false,"hidden":true,"merged":[[24,1,28,10],[32,1,33,10]]}
[]
[null,"Belysningsanlæg",null,null,null,null,null,null,null,null,"Retur til bygningsautomatik"]
[]
[null,"Nuværende automatik til belysningsanlæg og nødvendige tiltag for at leve op til BR18"]
[]
[]
[null,"Redegørelse for nuværende tilstand"]
[]
[null,"Karakter jf. EN ISO 52120-1_2022:",null,null,null,{"$f":"Bygningsautomatik_før!Q326","v":2}]
[]
[null,"Mærke jf. EN ISO 52120-1_2022:",null,null,null,{"$f":"Bygningsautomatik_før!S333","v":"B"}]
[]
[]
[null,"Hvad skal der til for at opfylde BR18"]
[]
[null,"Karakter jf. EN ISO 52120-1_2022:",null,null,null,{"$f":"Bygningsautomatik_efter!P326","v":2}]
[]
[null,"Mærke jf. EN ISO 52120-1_2022:",null,null,null,{"$f":"Bygningsautomatik_efter!R333","v":"B"}]
[]
[]
[null,"Regulering af belysningsanlæg"]
[]
[null,"Tilstedeværelsesstyring"]
[]
[null,{"$f":"IF(Bygningsautomatik_efter!D338=2,Bygningsautomatik_efter!E330,IF(Bygningsautomatik_efter!D338=3,Bygningsautomatik_efter!E334,\"\"))","v":"Automatisk detektion - automatisk tænd/dæmpet sluk: Styringssystemet tænder automatisk armaturet, når det belyste område er i brug, og skifter automatisk til en dæmpet tilstand efter sidste registrerede tilstedeværelse i området. Automatisk tænd/automatisk sluk: Styringssystemet tænder automatisk armaturet, når det belyste område er i brug, og slukker det automatisk helt, når der ikke længere registreres tilstedeværelse."}]
[]
[]
[]
[]
[]
[null,"Belysningsstyrke-/dagslyskontrol (dagslysudnyttelse)"]
[]
[null,{"$f":"IF(Bygningsautomatik_efter!D353=2,Bygningsautomatik_efter!E348,IF(Bygningsautomatik_efter!D353=3,Bygningsautomatik_efter!E350,\"\"))","v":"Automatisk tænd/slukning: Lyskilder slukkes automatisk, hvis dagslyset opfylder minimumskrav til belysningen, og tændes igen, når der ikke er nok dagslys."}]
[]
[]
[null,"Energibesparelse, investering og rentabilitet"]
[]
[null,"Energibesparelse:",null,null,null,{"$f":"('BAC efficiency'!N92*Inddata!F58)","v":0},"kr."]
[]
[null,"Investering",null,null,null,{"$f":"Priser!AP304-Priser!AP286","v":0},"Kr."]
[]
[null,"Levetid",null,null,null,15,"år"]
[]
[null,"Rentabilitet",null,null,null,{"$f":"IF(F40=0,\"\",F38*F42/F40)","v":""}]

{"sheet":"Solafskærmning","index":12,"n_rows":35,"n_cols":16,"rows_kept":35,"cut":false,"hidden":true,"merged":[]}
[]
[null,"Solafskærming",null,null,null,null,null,null,null,null,"Retur til bygningsautomatik"]
[]
[null,"Nuværende automatik til solafskærming og nødvendige tiltag for at leve op til BR18"]
[]
[]
[null,"Redegørelse for nuværende tilstand"]
[]
[null,"Karakter jf. EN ISO 52120-1_2022:",null,null,null,{"$f":"Bygningsautomatik_før!Q361","v":2}]
[]
[null,"Mærke jf. EN ISO 52120-1_2022:",null,null,null,{"$f":"Bygningsautomatik_før!S368","v":"B"}]
[]
[]
[null,"Hvad skal der til for at opfylde BR18"]
[]
[null,"Karakter jf. EN ISO 52120-1_2022:",null,null,null,{"$f":"Bygningsautomatik_efter!P361","v":2}]
[]
[null,"Mærke jf. EN ISO 52120-1_2022:",null,null,null,{"$f":"Bygningsautomatik_efter!S358","v":3}]
[]
[]
[null,"Regulering af solafskærmning"]
[]
[null,"Regulering af solafskærmning"]
[]
[null,{"$f":"IF(Bygningsautomatik_efter!D369=1,Bygningsautomatik_efter!E365,IF(Bygningsautomatik_efter!D369=2,Bygningsautomatik_efter!E367,\"\"))","v":"Kombineret lys-/solafskærmning-/HVAC-styring: Energiforbruget optimeres ved at integrere styring af HVAC, solafskærmning og belysning."}]
[]
[null,"Energibesparelse, investering og rentabilitet"]
[]
[null,"Energibesparelse:",null,null,null,{"$f":"IF(Anlæg!AT99=0,0,(('BAC efficiency'!N77*Inddata!F56)+('BAC efficiency'!N96*1*Inddata!F58)))","v":0},"kr.",null,null,null,null,null,null,null,null,"Skal rettes"]
[]
[null,"Investering",null,null,null,{"$f":"Priser!AR318","v":3516000},"Kr."]
[]
[null,"Levetid",null,null,null,15,"år"]
[]
[null,"Rentabilitet",null,null,null,{"$f":"IF(F31=0,\"\",F29*F33/F31)","v":0}]

{"sheet":"CTS_anlæg","index":13,"n_rows":48,"n_cols":16,"rows_kept":48,"cut":false,"hidden":true,"merged":[]}
[]
[null,"CTS-anlæg",null,null,null,null,null,null,null,null,"Retur til bygningsautomatik"]
[]
[null,"Nuværende automatik til CTS-anlæg og nødvendige tiltag for at leve op til BR18"]
[]
[]
[null,"Redegørelse for nuværende tilstand"]
[]
[null,"Karakter jf. EN ISO 52120-1_2022:",null,null,null,{"$f":"Bygningsautomatik_før!Q382","v":0.7}]
[]
[null,"Mærke jf. EN ISO 52120-1_2022:",null,null,null,{"$f":"Bygningsautomatik_før!S389","v":"D"}]
[]
[]
[null,"Hvad skal der til for at opfylde BR18"]
[]
[null,"Karakter jf. EN ISO 52120-1_2022:",null,null,null,{"$f":"Bygningsautomatik_efter!P380","v":2.2000000000000002}]
[]
[null,"Mærke jf. EN ISO 52120-1_2022:",null,null,null,{"$f":"Bygningsautomatik_efter!R387","v":"A"}]
[]
[]
[null,"CTS-anlæg"]
[]
[null,"Sætpunktstyring"]
[]
[null,{"$f":"IF(Bygningsautomatik_efter!D387=3,Bygningsautomatik_efter!E385,\"\")","v":"Tilpasning fra et centralt rum med hyppig tilbageførsel af brugerinput."}]
[]
[null,"Driftstidsstyring"]
[]
[null,{"$f":"IF(Bygningsautomatik_efter!D399=2,Bygningsautomatik_efter!E397,\"\")","v":"Individuel indstilling i henhold til en foruddefineret tidsplan med tilpasning fra et centralt styringsrum, inklusive variable forberedelsesfaser."}]
[]
[null,"Fejlregistrering og diagnosticering af tekniske bygningsstyringssystemer"]
[]
[null,{"$f":"IF(Bygningsautomatik_efter!D411=2,Bygningsautomatik_efter!E409,\"\")","v":"Central indikation af registrerede fejl og alarmer, inklusive diagnosticeringsfunktioner."},null,null,null,null,null,null,null,null,null,null,null,null,null,"Krav i BR18. Detektere fejl i anlæggene og underrette driftspersonalet om fejlene."]
[]
[null,"Rapportering af information om energiforbrug og indeklima"]
[]
[null,{"$f":"IF(Bygningsautomatik_efter!D423=2,Bygningsautomatik_efter!E421,\"\")","v":"Analyse, performanceevaluering og benchmarking af indeklima og energiforbrug."},null,null,null,null,null,null,null,null,null,null,null,null,null,"Krav i BR18. Løbende at overvåge og analysere energiforbruget. At kunne udtrykke den energimæssige effektivitet af bygningen og dens tekniske anlæg."]
[]
[]
[null,"Energibesparelse, investering og rentabilitet"]
[]
[null,"Energibesparelse:",null,null,null,{"$f":"(('BAC efficiency'!N79*Inddata!F56)+('BAC efficiency'!N98*Inddata!F58))","v":0},"kr."]
[]
[null,"Investering",null,null,null,{"$f":"Priser!AR369","v":726385},"Kr."]
[]
[null,"Levetid",null,null,null,15,"år"]
[]
[null,"Rentabilitet",null,null,null,{"$f":"IF(F44=0,\"\",F42*F46/F44)","v":0}]

{"sheet":"Vejledning","index":14,"n_rows":465,"n_cols":4,"rows_kept":465,"cut":false,"hidden":false,"merged":[]}
[]
[]
[null,null,"Bygningsautomatik – vejledning til beregningsværktøj"]
[]
[null,null,"I beregningsarket er der følgende faneblade:"]
[]
[null,null,"·       BR18"]
[null,null,"·       Opsummering"]
[null,null,"·       Inddata"]
[null,null,"·       Anlæg"]
[null,null,"·       Bygningsautomatik, før"]
[null,null,"·       Bygningsautomatik, efter"]
[]
[null,null,"Der kan indtastes i gule felter, mens der foretages beregninger i grønne felter."]
[]
[null,null,"Nedenfor ses en nærmere beskrivelse af de enkelte faneblade."]
[]
[null,null,"1.    BR18"]
[null,null,"Det første faneblad kaldet ”BR18” indeholder tekst fra vejledningen i Bygningsreglementet."]
[]
[]
[]
[]
[]
[]
[]
[]
[]
[]
[]
[]
[]
[]
[]
[]
[]
[]
[]
[]
[]
[null,null,"Figur 1.1. Faneblad ”BR18” som indeholder tekst fra vejledningen i Bygningsreglementet"]
[]
[]
[]
[]
[]
[]
[]
[]
[null,null,"2.    Opsummering"]
[null,null,"Det andet faneblad kaldet ”Opsummering” indeholder energibesparelser i kroner, "]
[null,null,"investeringer og rentabiliteter for de enkelte teknologiområder. Rentabiliteterne er "]
[null,null,"baseret på en levetid på 15 år."]
[null,null,"I dette faneblad skal der ikke foretages indtastninger."]
[]
[]
[]
[]
[]
[]
[]
[]
[]
[]
[]
[]
[]
[]
[]
[null,null,"Figur 2.1. Opsummering oversigt"]
[]
[]
[null,null,"3.    Inddata"]
[null,null,"Det tredje faneblad kaldet ”Inddata” indeholder data vedr. bygningstype, bygningsareal, "]
[null,null,"energiforbrug og energipriser m.m. Der skal endvidere indtastes et dimensionerende "]
[null,null,"varmetab fra klimaskærmen. Dette varmetab kan hentes i Energy10 eller det kan "]
[null,null,"beregnes."]
[]
[null,null,"Der indtastes et totalt varmeforbrug og andele til rumvarme, varmt brugsvand og "]
[null,null,"ventilation."]
[]
[null,null,"Der indtastes et totalt elforbrug og andele til køling, ventilation, belysning, pumpning og "]
[null,null,"andet."]
[]
[]
[]
[]
[]
[]
[]
[]
[]
[]
[]
[]
[]
[]
[]
[]
[]
[]
[]
[]
[]
[]
[]
[]
[]
[]
[]
[]
[]
[]
[]
[]
[]
[]
[]
[]
[]
[]
[]
[]
[]
[]
[]
[]
[]
[null,null,"Figur 3.1. Faneblad ”Inddata” som indeholder data vedr. bygningstype, bygningsareal, energiforbrug og energipriser"]
[null,null,"m.m."]
[]
[null,null,"Nøgletal for varme- og elforbrug beregnes automatisk. Nøgletallene indikerer, hvor "]
[null,null,"energieffektiv en bygning er og hvor effektiv en bygning må forventes at være "]
[null,null,"automatiseringsmæssigt. Hvis feltet er mørkegrønt, er nøgletallet lavt og bygningen må "]
[null,null,"forventes at være automatiseringsmæssigt. Hvis feltet er mørkerødt, er det modsatte "]
[null,null,"tilfældet. "]
[]
[]
[]
[]
[]
[]
[]
[]
[null,null,"4.    Anlæg"]
[null,null,"Det fjerde faneblad kaldet ”Anlæg” indeholder data vedr. de enkelte anlæg."]
[]
[null,null,"Det er følgende anlæg:"]
[]
[null,null,"·       Varmeanlæg"]
[null,null,"·       Anlæg til varmt brugsvand"]
[null,null,"·       Køleanlæg"]
[null,null,"·       Ventilationsanlæg"]
[null,null,"·       Belysningsanlæg"]
[null,null,"·       Solafskærmning"]
[null,null,"·       CTS-anlæg"]
[]
[null,null,"4.1  Varmeanlæg"]
[null,null,"For varmeanlæg indtastes og vælges for 1 til 5 anlæg følgende:"]
[]
[null,null,"·       Opvarmet areal"]
[null,null,"·       Rumhøjde"]
[null,null,"·       Antal lokaler"]
[null,null,"·       Om der er udekompensering"]
[null,null,"·       Om der er motorventiler (og eksterne temperaturfølere) på radiatorer"]
[null,null,"·       Om der er tilstedeværelsessensorer i lokaler"]
[null,null,"·       Om der kan etableres styring af anlæggene. Hvis der skal foretages beregninger af "]
[null,null,null,"energibesparelse, investering og rentabilitet, skal der svares ”Ja” her."]
[]
[]
[]
[]
[]
[]
[]
[null,null,"Figur 4.1. Varmeanlæg"]
[]
[null,null,"4.2  Anlæg til varmt brugsvand"]
[null,null,"For anlæg til varmt brugsvand indtastes og vælges for 1 til 5 anlæg følgende:"]
[]
[null,null,"·       Beholderstørrelse"]
[null,null,"·       Om der er multisensorer i beholderne (flere temperatursensorer i beholderne)"]
[null,null,"·       Om der kan etableres styring af anlæggene"]
[]
[]
[]
[]
[null,null,"Figur 4.2. Anlæg til varmt brugsvand"]
[]
[]
[]
[]
[null,null,"4.3  Køleanlæg"]
[null,null,"For køleanlæg indtastes og vælges for 1 til 5 anlæg følgende:"]
[]
[null,null,"·       Kølet areal"]
[null,null,"·       Rumhøjde"]
[null,null,"·       Antal lokaler"]
[null,null,"·       Om der er udekompensering"]
[null,null,"·       Om der er motorventiler (og eksterne temperaturfølere) på køleenheder"]
[null,null,"·       Om der er tilstedeværelsessensorer i lokaler"]
[null,null,"·       Om der kan etableres styring af anlæggene"]
[]
[]
[]
[]
[]
[]
[]
[]
[null,null,"Figur 4.3. Køleanlæg"]
[]
[null,null,"4.4  Ventilationsanlæg"]
[null,null,"For ventilationsanlæg indtastes og vælges for 1 til 5 anlæg følgende:"]
[]
[null,null,"·       Ventileret areal"]
[null,null,"·       Rumhøjde"]
[null,null,"·       Antal lokaler"]
[null,null,"·       Om der er styring (CAV/VAV)"]
[null,null,"·       Om der er tilstedeværelsessensorer i lokaler"]
[null,null,"·       Om der er temperatursensorer i lokaler"]
[null,null,"·       Om der er CO2-sensorer i lokaler"]
[null,null,"·       Om der kan etableres styring af anlæggene"]
[]
[]
[]
[]
[]
[]
[]
[]
[]
[null,null,"Figur 4.4. Ventilationsanlæg"]
[]
[]
[]
[]
[]
[]
[]
[null,null,"4.5  Belysningsanlæg"]
[null,null,"For belysningsanlæg indtastes og vælges for 1 til 5 anlæg følgende:"]
[]
[null,null,"·       Bygningsareal"]
[null,null,"·       Installeret effekt pr. m2"]
[null,null,"·       Antal lokaler"]
[null,null,"·       Om der er tilstedeværelsessensorer i lokaler"]
[null,null,"·       Om der er dagslyssensorer i lokaler"]
[null,null,"·       Om der kan etableres styring af anlæggene"]
[]
[]
[]
[]
[]
[]
[]
[]
[]
[null,null,"Figur 4.5. Belysningsanlæg"]
[]
[null,null,"4.6  Solafskærmning"]
[null,null,"For solafskærmning indtastes og vælges for 1 til 5 anlæg følgende:"]
[]
[null,null,"·       Vinduesareal"]
[null,null,"·       Om der er solafskærmning"]
[null,null,"·       Om der kan etableres styring af anlæggene"]
[]
[]
[]
[]
[]
[null,null,"Figur 4.6. Solafskærmning"]
[]
[]
[]
[]
[]
[]
[]
[]
[]
[]
[]
[]
[]
[]
[]
[]
[null,null,"4.7  CTS-anlæg"]
[null,null,"For CTS-anlæg indtastes og vælges for 1 til 5 anlæg følgende:"]
[]
[null,null,"·       Om der er sætpunktsstyring"]
[null,null,"·       Om der er driftstidsstyring"]
[null,null,"·       Om der er fejlregistrering og diagnosticering af tekniske bygningssystemer"]
[null,null,"·       Om der er rapportering af information om energiforbrug og indeklima"]
[null,null,"·       Om der kan etableres styring af anlæggene"]
[]
[]
[]
[]
[]
[]
[]
[]
[]
[]
[]
[]
[]
[]
[]
[]
[]
[]
[]
[]
[]
[]
[]
[]
[]
[]
[]
[]
[null,null,"Figur 4.7. CTS-anlæg"]
[]
[]
[]
[]
[]
[]
[]
[]
[]
[]
[]
[null,null,"5.    Bygningsautomatik før"]
[null,null,"Det femte faneblad kaldet ”Bygningsautomatik_før” indeholder data vedr. automatikken"]
[null,null,"for de enkelte anlæg."]
[]
[null,null,"I figur 5.1 ses eksempler for varmeanlæg (varmeregulering) på to reguleringsformer, der "]
[null,null,"skal tages stilling til."]
[]
[]
[]
[]
[]
[]
[]
[]
[]
[]
[]
[]
[]
[]
[]
[]
[]
[]
[null,null,"Figur 5.1. Bygningsautomatik før"]
[]
[null,null,"Den første er regulering af varmeafgivere. Her skal der tages stilling til om der er enten:"]
[]
[null,null,"1. ","Individuel rumstyring: Ved hjælp af termostatiske ventiler eller elektroniske regulatorer."]
[]
[null,null,"2.","Individuel modulerende rumstyring med kommunikation: Kommunikerer mellem "]
[null,null,null,"regulatorer og BMS-system (f.eks. tidsskemaer eller rumtemperatur-sætpunkt)."]
[]
[null,null,"3.","Individuel modulerende rumstyring med kommunikation og registrering af "]
[null,null,null,"tilstedeværelse: Mellem regulatorer og BMS-system. Behovsstyring/registrering af "]
[null,null,null,"tilstedeværelse. Denne funktion anvendes normalt ikke på langsomt reagerende "]
[null,null,null,"varmeafgiver med termiske masse som for eksempel gulvvarmesystemer eller "]
[null,null,null,"vægvarme."]
[]
[null,null,"Der klikkes på den reguleringsform, der benyttes. Når der i dette tilfælde klikkes på en "]
[null,null,"reguleringsform mellem 1 og 3, markeres reguleringsformen med grøn. Når den tredje "]
[null,null,"reguleringsform vælges, vælges også den mest energieffektive."]
[]
[]
[]
[]
[]
[]
[null,null,"Den næste er regulering af distributionsnettet. Det vil sige rørnettet frem til "]
[null,null,"varmeafgiverne. Her skal der tage stilling til om der er enten:"]
[]
[null,null,"1. ","Ingen automatisk styring."]
[]
[null,null,"2.","Udekompensering."]
[]
[null,null,"3.","Efterspørgselsbaseret styring."]
[]
[null,null,"Der klikkes igen på den reguleringsform, der benyttes."]
[]
[]
[null,null,"6.    Bygningsautomatik efter"]
[null,null,"Det sjette faneblad kaldet ”Bygningsautomatik_efter” indeholder data vedr. "]
[null,null,"automatikken for de enkelte anlæg ved en eventuel forbedring."]
[]
[null,null,"I figur 6.1 ses eksempler for varmeanlæg (varmeregulering) på to reguleringsformer, der "]
[null,null,"skal tages stilling til i eftersituationen."]
[]
[]
[]
[]
[]
[]
[]
[]
[]
[]
[]
[]
[]
[]
[]
[]
[]
[]
[null,null,"Figur 6.1. Bygningsautomatik efter"]
[]
[null,null,"Den første er regulering af varmeafgivere. Her skal der igen tages stilling til om der er "]
[null,null,"enten:"]
[]
[null,null,"1. ","Individuel rumstyring: Ved hjælp af termostatiske ventiler eller elektroniske "]
[null,null,null,"regulatorer."]
[]
[null,null,"2.","Individuel modulerende rumstyring med kommunikation: Kommunikerer mellem "]
[null,null,null,"regulatorer og BMS-system (f.eks. tidsskemaer eller rumtemperatur-sætpunkt)."]
[]
[]
[null,null,"3.","Individuel modulerende rumstyring med kommunikation og registrering af "]
[null,null,null,"tilstedeværelse: Mellem regulatorer og BMS-system. Behovsstyring/registrering af "]
[null,null,null,"tilstedeværelse. Denne funktion anvendes normalt ikke på langsomt reagerende "]
[null,null,null,"varmeafgiver med termiske masse som for eksempel gulvvarmesystemer eller "]
[null,null,null,"vægvarme."]
[]
[null,null,"Hvis kravene i BR18 skal opfyldes, skal der klikkes på enten reguleringsform nummer 2 "]
[null,null,"eller 3 (markeret med lilla)."]
[null,null,"Hvis der ikke skal foretages nogle ændringer, vælges den samme reguleringsform som i "]
[null,null,"før-situationen."]
[]
[null,null,"Den næste er regulering af distributionsnettet. Her er fremgangsmåden den samme som "]
[null,null,"beskrevet i foregående afsnit."]
[]
[null,null,"Det er vigtigt, at der vælges den samme reguleringsform i før- og efter-situationen, hvis "]
[null,null,"der ikke skal foretages nogle ændringer. Ellers vil der blive foretaget beregninger af "]
[null,null,"energibesparelser, investeringer og rentabiliteter."]
[null,null,"I sjældne tilfælde kan det forekomme, at en reguleringsform i før- og efter-situationen, "]
[null,null,"ikke findes i bygningen. Værktøjet dækker dog stort set alle mulige reguleringsformer, "]
[null,null,"men der kan selvfølgelig være specielle reguleringsformer, som ikke findes i værktøjet."]
[]
[null,null,"I regnearket findes en række skjulte faneblade, som ikke kan ses og som der derfor ikke "]
[null,null,"skal tastes data ind i. Det er følgende faneblade, som ikke beskrives nærmere:"]
[]
[null,null,"·       ”Varmeanlæg”"]
[null,null,"·       ”Anlæg til varmt brugsvand”"]
[null,null,"·       ”Køleanlæg”"]
[null,null,"·       ”Ventilationsanlæg”"]
[null,null,"·       ”Belysningsanlæg”"]
[null,null,"·       ”Solafskærmning”"]
[null,null,"·       ”CTS-anlæg”"]
[null,null,"·       ”BAC-efficiency”"]
[null,null,"·       ”Priser”"]

{"sheet":"BAC efficiency","index":15,"n_rows":163,"n_cols":30,"rows_kept":163,"cut":false,"hidden":false,"merged":[]}
[]
[null,"Tabel A.1 - Overordnede BAC-effektivitetsfaktorer "]
[null,"  - Ikke-boligbygninger"]
[null,"Bygningstyper (ikke-bolig)","Overordnede BAC-effektivitetsfaktorer f BAC,th"]
[null,null,"D","C Reference","B","A"]
[null,null,"Ikke energieffektiv","Standard","Avanceret","Høj energieffektivitet"]
[null,"Kontorer",1.51,1,0.8,0.7]
[null,"Auditorier",1.24,1,0.75,0.5]
[null,"Uddannelsesbygninger (skoler)",1.2,1,0.88,0.8]
[null,"Hospitaler",1.31,1,0.91,0.86]
[null,"Hoteller",1.31,1,0.85,0.68]
[null,"Restauranter",1.23,1,0.77,0.68]
[null,"Engros- og detailhandel",1.56,1,0.73,0.6]
[null,"Andre typer: - Sportsfaciliteter, - Lager, - Industribygninger osv.",null,1]
[null,"a Disse værdier afhænger i høj grad af varme-/kølebehovet til ventilation."]
[]
[]
[null,"Tabel A.2 - Overordnede BAC-effektivitetsfaktorer "]
[null,"  - Boligbygninger"]
[null,"Bygningstyper (bolig)","Overordnede BAC-effektivitetsfaktorer f BAC,th"]
[null,null,"D","C Reference","B","A"]
[null,null,"Ikke energieffektiv","Standard","Avanceret","Høj energieffektivitet"]
[null,"Enfamiliehuse",1.1000000000000001,1,0.88,0.81]
[null,"Etageejendomme",1.1000000000000001,1,0.88,0.81]
[null,"Andre boligbygninger eller lignende boligbygninger",1.1000000000000001,1,0.88,0.81]
[]
[]
[null,"Tabel A.3 - Overordnede BAC-effektivitetsfaktorer "]
[null,"  - Ikke-boligbygninger"]
[null,"Bygningstyper (ikke-bolig)","Overordnede BAC-effektivitetsfaktorer f BAC,el"]
[null,null,"D","C Reference","B","A"]
[null,null,"Ikke energieffektiv","Standard","Avanceret","Høj energieffektivitet"]
[null,"Kontorer",1.1000000000000001,1,0.93,0.87]
[null,"Auditorier",1.06,1,0.94,0.89]
[null,"Uddannelsesbygninger (skoler)",1.07,1,0.93,0.86]
[null,"Hospitaler",1.05,1,0.98,0.96]
[null,"Hoteller",1.07,1,0.95,0.9]
[null,"Restauranter",1.04,1,0.96,0.92]
[null,"Engros- og detailhandel",1.08,1,0.95,0.91]
[null,"Andre typer: - Sportsfaciliteter, - Lager, - Industribygninger, - mv.",null,1]
[]
[]
[null,"Tabel A.4 - Overordnede BAC-effektivitetsfaktorer "]
[null,"  - Boligbygninger"]
[null,"Bygningstyper (bolig)","Overordnede BAC-effektivitetsfaktorer f BAC,el"]
[null,null,"D","C Reference","B","A"]
[null,null,"Ikke energieffektiv","Standard","Avanceret","Høj energieffektivitet"]
[null,"Enfamiliehuse",1.08,1,0.93,0.92]
[null,"Flerfamiliehuse",1.08,1,0.93,0.92]
[null,"Andre boligbygninger eller lignende boligbygninger",1.08,1,0.93,0.92]
[]
[]
[null,"Tabel A.5 - Detaljerede BAC-effektivitetsfaktorer "]
[null,"  - Ikke-boligbygninger",null,null,null,null,null,null,null,null,null,"Før","Husk pumper",null,null,null,null,null,null,null,"Efter","Husk pumper"]
[null,"Bygningstyper (ikke-bolig)","Detaljerede BAC-effektivitetsfaktorer f BAC,H og f BAC,C"]
[null,null,"D Ikke energieffektiv",null,"C Reference Standard",null,"B Avanceret",null,"A Høj energieffektivitet",null,null,"Varme","VVB","Køling","Ventilation","Belysning","Solafskærmning","CTS, varme","CTS, el",null,"Varme","VVB","Køling","Ventilation","Belysning","Solafskærmning","CTS, varme","CTS, el",null,"CTS - der skal ske en vægtning mellem varme- og el"]
[null,null,"f BAC,H","f BAC,C","f BAC,H","f BAC,C","f BAC,H","f BAC,C","f BAC,H","f BAC,C"]
[null,"Kontorer",1.44,1.57,1,1,0.79,0.8,0.7,0.56999999999999995,null,{"$f":"IF(AND(Inddata!Y17=1,Bygningsautomatik_før!S26=\"D\"),C58,IF(AND(Inddata!Y17=1,Bygningsautomatik_før!S26=\"C\"),E58,IF(AND(Inddata!Y17=1,Bygningsautomatik_før!S26=\"B\"),G58,IF(AND(Inddata!Y17=1,Bygningsautomatik_før!S26=\"A\"),I58))))","v":false},{"$f":"IF(AND(Inddata!Y17=1,Bygningsautomatik_før!S92=\"D\"),C83,IF(AND(Inddata!Y17=1,Bygningsautomatik_før!S92=\"C\"),D83,IF(AND(Inddata!Y17=1,Bygningsautomatik_før!S92=\"B\"),E83,IF(AND(Inddata!Y17=1,Bygningsautomatik_før!S92=\"A\"),F83))))","v":false},{"$f":"IF(AND(Inddata!Y17=1,Bygningsautomatik_før!S127=\"D\"),D58,IF(AND(Inddata!Y17=1,Bygningsautomatik_før!S127=\"C\"),F58,IF(AND(Inddata!Y17=1,Bygningsautomatik_før!S127=\"B\"),H58,IF(AND(Inddata!Y17=1,Bygningsautomatik_før!S127=\"A\"),J58))))","v":false},{"$f":"IF(AND(Inddata!Y17=1,Bygningsautomatik_før!S205=\"D\"),D109,IF(AND(Inddata!Y17=1,Bygningsautomatik_før!S205=\"C\"),F109,IF(AND(Inddata!Y17=1,Bygningsautomatik_før!S205=\"B\"),H109,IF(AND(Inddata!Y17=1,Bygningsautomatik_før!S205=\"A\"),J109))))","v":false},{"$f":"IF(AND(Inddata!Y17=1,Bygningsautomatik_før!S333=\"D\"),C109,IF(AND(Inddata!Y17=1,Bygningsautomatik_før!S333=\"C\"),E109,IF(AND(Inddata!Y17=1,Bygningsautomatik_før!S333=\"B\"),G109,IF(AND(Inddata!Y17=1,Bygningsautomatik_før!S333=\"A\"),I109))))","v":false},{"$f":"IF(AND(Inddata!Y17=1,Bygningsautomatik_før!S368=\"D\"),C109,IF(AND(Inddata!Y17=1,Bygningsautomatik_før!S368=\"C\"),E109,IF(AND(Inddata!Y17=1,Bygningsautomatik_før!S368=\"B\"),G109,IF(AND(Inddata!Y17=1,Bygningsautomatik_før!S368=\"A\"),I109))))","v":false},{"$f":"IF(AND(Inddata!Y17=1,Bygningsautomatik_før!S389=\"D\"),C7,IF(AND(Inddata!Y17=1,Bygningsautomatik_før!S389=\"C\"),D7,IF(AND(Inddata!Y17=1,Bygningsautomatik_før!S389=\"B\"),E7,IF(AND(Inddata!Y17=1,Bygningsautomatik_før!S389=\"A\"),F7))))","v":false},{"$f":"IF(AND(Inddata!Y17=1,Bygningsautomatik_før!S389=\"D\"),C33,IF(AND(Inddata!Y17=1,Bygningsautomatik_før!S389=\"C\"),D33,IF(AND(Inddata!Y17=1,Bygningsautomatik_før!S389=\"B\"),E33,IF(AND(Inddata!Y17=1,Bygningsautomatik_før!S389=\"A\"),F33))))","v":false},null,{"$f":"IF(AND(Inddata!Y17=1,Bygningsautomatik_efter!R26=\"D\"),C58,IF(AND(Inddata!Y17=1,Bygningsautomatik_efter!R26=\"C\"),E58,IF(AND(Inddata!Y17=1,Bygningsautomatik_efter!R26=\"B\"),G58,IF(AND(Inddata!Y17=1,Bygningsautomatik_efter!R26=\"A\"),I58))))","v":false},{"$f":"IF(AND(Inddata!Y17=1,Bygningsautomatik_efter!R92=\"D\"),C83,IF(AND(Inddata!Y17=1,Bygningsautomatik_efter!R92=\"C\"),D83,IF(AND(Inddata!Y17=1,Bygningsautomatik_efter!R92=\"B\"),E83,IF(AND(Inddata!Y17=1,Bygningsautomatik_efter!R92=\"A\"),F83))))","v":false},{"$f":"IF(AND(Inddata!Y17=1,Bygningsautomatik_efter!R141=\"D\"),D58,IF(AND(Inddata!Y17=1,Bygningsautomatik_efter!R141=\"C\"),F58,IF(AND(Inddata!Y17=1,Bygningsautomatik_efter!R141=\"B\"),H58,IF(AND(Inddata!Y17=1,Bygningsautomatik_efter!R141=\"A\"),J58))))","v":false},{"$f":"IF(AND(Inddata!Y17=1,Bygningsautomatik_efter!R214=\"D\"),D109,IF(AND(Inddata!Y17=1,Bygningsautomatik_efter!R214=\"C\"),F109,IF(AND(Inddata!Y17=1,Bygningsautomatik_efter!R214=\"B\"),H109,IF(AND(Inddata!Y17=1,Bygningsautomatik_efter!R214=\"A\"),J109))))","v":false},{"$f":"IF(AND(Inddata!Y17=1,Bygningsautomatik_efter!R333=\"D\"),C109,IF(AND(Inddata!Y17=1,Bygningsautomatik_efter!R333=\"C\"),E109,IF(AND(Inddata!Y17=1,Bygningsautomatik_efter!R333=\"B\"),G109,IF(AND(Inddata!Y17=1,Bygningsautomatik_efter!R333=\"A\"),I109))))","v":false},{"$f":"IF(AND(Inddata!Y17=1,Bygningsautomatik_efter!R368=\"D\"),C109,IF(AND(Inddata!Y17=1,Bygningsautomatik_efter!R368=\"C\"),E109,IF(AND(Inddata!Y17=1,Bygningsautomatik_efter!R368=\"B\"),G109,IF(AND(Inddata!Y17=1,Bygningsautomatik_efter!R368=\"A\"),I109))))","v":false},{"$f":"IF(AND(Inddata!Y17=1,Bygningsautomatik_efter!R387=\"D\"),C7,IF(AND(Inddata!Y17=1,Bygningsautomatik_efter!R387=\"C\"),D7,IF(AND(Inddata!Y17=1,Bygningsautomatik_efter!R387=\"B\"),E7,IF(AND(Inddata!Y17=1,Bygningsautomatik_efter!R387=\"A\"),F7))))","v":false},{"$f":"IF(AND(Inddata!Y17=1,Bygningsautomatik_efter!R387=\"D\"),C33,IF(AND(Inddata!Y17=1,Bygningsautomatik_efter!R387=\"C\"),D33,IF(AND(Inddata!Y17=1,Bygningsautomatik_efter!R387=\"B\"),E33,IF(AND(Inddata!Y17=1,Bygningsautomatik_efter!R387=\"A\"),F33))))","v":false},null,"Det er nødvendigt at skønne hvor stor del af de samlede forbrug, der er omfattet. Hvordan skal det gøres?"]
[null,"Auditorier",1.22,1.32,1,1,0.73,0.94,0.3,0.64,null,{"$f":"IF(AND(Inddata!Y17=2,Bygningsautomatik_før!S26=\"D\"),C59,IF(AND(Inddata!Y17=2,Bygningsautomatik_før!S26=\"C\"),E59,IF(AND(Inddata!Y17=2,Bygningsautomatik_før!S26=\"B\"),G59,IF(AND(Inddata!Y17=2,Bygningsautomatik_før!S26=\"A\"),I59))))","v":false},{"$f":"IF(AND(Inddata!Y17=2,Bygningsautomatik_før!S92=\"D\"),C84,IF(AND(Inddata!Y17=2,Bygningsautomatik_før!S92=\"C\"),D84,IF(AND(Inddata!Y17=2,Bygningsautomatik_før!S92=\"B\"),E84,IF(AND(Inddata!Y17=2,Bygningsautomatik_før!S92=\"A\"),F84))))","v":false},{"$f":"IF(AND(Inddata!Y17=2,Bygningsautomatik_før!S127=\"D\"),D59,IF(AND(Inddata!Y17=2,Bygningsautomatik_før!S127=\"C\"),F59,IF(AND(Inddata!Y17=2,Bygningsautomatik_før!S127=\"B\"),H59,IF(AND(Inddata!Y17=2,Bygningsautomatik_før!S127=\"A\"),J59))))","v":false},{"$f":"IF(AND(Inddata!Y17=2,Bygningsautomatik_før!S205=\"D\"),D110,IF(AND(Inddata!Y17=2,Bygningsautomatik_før!S205=\"C\"),F110,IF(AND(Inddata!Y17=2,Bygningsautomatik_før!S205=\"B\"),H110,IF(AND(Inddata!Y17=2,Bygningsautomatik_før!S205=\"A\"),J110))))","v":false},{"$f":"IF(AND(Inddata!Y17=2,Bygningsautomatik_før!S333=\"D\"),C110,IF(AND(Inddata!Y17=2,Bygningsautomatik_før!S333=\"C\"),E110,IF(AND(Inddata!Y17=2,Bygningsautomatik_før!S333=\"B\"),G110,IF(AND(Inddata!Y17=2,Bygningsautomatik_før!S333=\"A\"),I110))))","v":false},{"$f":"IF(AND(Inddata!Y17=2,Bygningsautomatik_før!S368=\"D\"),C110,IF(AND(Inddata!Y17=2,Bygningsautomatik_før!S368=\"C\"),E110,IF(AND(Inddata!Y17=2,Bygningsautomatik_før!S368=\"B\"),G110,IF(AND(Inddata!Y17=2,Bygningsautomatik_før!S368=\"A\"),I110))))","v":false},{"$f":"IF(AND(Inddata!Y17=2,Bygningsautomatik_før!S389=\"D\"),C8,IF(AND(Inddata!Y17=2,Bygningsautomatik_før!S389=\"C\"),D8,IF(AND(Inddata!Y17=2,Bygningsautomatik_før!S389=\"B\"),E8,IF(AND(Inddata!Y17=2,Bygningsautomatik_før!S389=\"A\"),F8))))","v":false},{"$f":"IF(AND(Inddata!Y17=2,Bygningsautomatik_før!S389=\"D\"),C34,IF(AND(Inddata!Y17=2,Bygningsautomatik_før!S389=\"C\"),D34,IF(AND(Inddata!Y17=2,Bygningsautomatik_før!S389=\"B\"),E34,IF(AND(Inddata!Y17=2,Bygningsautomatik_før!S389=\"A\"),F34))))","v":false},null,{"$f":"IF(AND(Inddata!Y17=2,Bygningsautomatik_efter!R26=\"D\"),C59,IF(AND(Inddata!Y17=2,Bygningsautomatik_efter!R26=\"C\"),E59,IF(AND(Inddata!Y17=2,Bygningsautomatik_efter!R26=\"B\"),G59,IF(AND(Inddata!Y17=2,Bygningsautomatik_efter!R26=\"A\"),I59))))","v":false},{"$f":"IF(AND(Inddata!Y17=2,Bygningsautomatik_efter!R92=\"D\"),C84,IF(AND(Inddata!Y17=2,Bygningsautomatik_efter!R92=\"C\"),D84,IF(AND(Inddata!Y17=2,Bygningsautomatik_efter!R92=\"B\"),E84,IF(AND(Inddata!Y17=2,Bygningsautomatik_efter!R92=\"A\"),F84))))","v":false},{"$f":"IF(AND(Inddata!Y17=2,Bygningsautomatik_efter!R141=\"D\"),D59,IF(AND(Inddata!Y17=2,Bygningsautomatik_efter!R141=\"C\"),F59,IF(AND(Inddata!Y17=2,Bygningsautomatik_efter!R141=\"B\"),H59,IF(AND(Inddata!Y17=2,Bygningsautomatik_efter!R141=\"A\"),J59))))","v":false},{"$f":"IF(AND(Inddata!Y17=2,Bygningsautomatik_efter!R214=\"D\"),D110,IF(AND(Inddata!Y17=2,Bygningsautomatik_efter!R214=\"C\"),F110,IF(AND(Inddata!Y17=2,Bygningsautomatik_efter!R214=\"B\"),H110,IF(AND(Inddata!Y17=2,Bygningsautomatik_efter!R214=\"A\"),J110))))","v":false},{"$f":"IF(AND(Inddata!Y17=2,Bygningsautomatik_efter!R333=\"D\"),C110,IF(AND(Inddata!Y17=2,Bygningsautomatik_efter!R333=\"C\"),E110,IF(AND(Inddata!Y17=2,Bygningsautomatik_efter!R333=\"B\"),G110,IF(AND(Inddata!Y17=2,Bygningsautomatik_efter!R333=\"A\"),I110))))","v":false},{"$f":"IF(AND(Inddata!Y17=2,Bygningsautomatik_efter!R368=\"D\"),C110,IF(AND(Inddata!Y17=2,Bygningsautomatik_efter!R368=\"C\"),E110,IF(AND(Inddata!Y17=2,Bygningsautomatik_efter!R368=\"B\"),G110,IF(AND(Inddata!Y17=2,Bygningsautomatik_efter!R368=\"A\"),I110))))","v":false},{"$f":"IF(AND(Inddata!Y17=2,Bygningsautomatik_efter!R387=\"D\"),C8,IF(AND(Inddata!Y17=2,Bygningsautomatik_efter!R387=\"C\"),D8,IF(AND(Inddata!Y17=2,Bygningsautomatik_efter!R387=\"B\"),E8,IF(AND(Inddata!Y17=2,Bygningsautomatik_efter!R387=\"A\"),F8))))","v":false},{"$f":"IF(AND(Inddata!Y17=2,Bygningsautomatik_efter!R387=\"D\"),C34,IF(AND(Inddata!Y17=2,Bygningsautomatik_efter!R387=\"C\"),D34,IF(AND(Inddata!Y17=2,Bygningsautomatik_efter!R387=\"B\"),E34,IF(AND(Inddata!Y17=2,Bygningsautomatik_efter!R387=\"A\"),F34))))","v":false}]
[null,"Uddannelsesbygninger (skoler)",1.2,0,1,1,0.88,0,0.8,0,null,{"$f":"IF(AND(Inddata!Y17=3,Bygningsautomatik_før!S26=\"D\"),C60,IF(AND(Inddata!Y17=3,Bygningsautomatik_før!S26=\"C\"),E60,IF(AND(Inddata!Y17=3,Bygningsautomatik_før!S26=\"B\"),G60,IF(AND(Inddata!Y17=3,Bygningsautomatik_før!S26=\"A\"),I60))))","v":1},{"$f":"IF(AND(Inddata!Y17=3,Bygningsautomatik_før!S92=\"D\"),C85,IF(AND(Inddata!Y17=3,Bygningsautomatik_før!S92=\"C\"),D85,IF(AND(Inddata!Y17=3,Bygningsautomatik_før!S92=\"B\"),E85,IF(AND(Inddata!Y17=3,Bygningsautomatik_før!S92=\"A\"),F85))))","v":1.1100000000000001},{"$f":"IF(AND(Inddata!Y17=3,Bygningsautomatik_før!S127=\"D\"),D60,IF(AND(Inddata!Y17=3,Bygningsautomatik_før!S127=\"C\"),F60,IF(AND(Inddata!Y17=3,Bygningsautomatik_før!S127=\"B\"),H60,IF(AND(Inddata!Y17=3,Bygningsautomatik_før!S127=\"A\"),J60))))","v":0},{"$f":"IF(AND(Inddata!Y17=3,Bygningsautomatik_før!S205=\"D\"),D111,IF(AND(Inddata!Y17=3,Bygningsautomatik_før!S205=\"C\"),F111,IF(AND(Inddata!Y17=3,Bygningsautomatik_før!S205=\"B\"),H111,IF(AND(Inddata!Y17=3,Bygningsautomatik_før!S205=\"A\"),J111))))","v":1},{"$f":"IF(AND(Inddata!Y17=3,Bygningsautomatik_før!S333=\"D\"),C111,IF(AND(Inddata!Y17=3,Bygningsautomatik_før!S333=\"C\"),E111,IF(AND(Inddata!Y17=3,Bygningsautomatik_før!S333=\"B\"),G111,IF(AND(Inddata!Y17=3,Bygningsautomatik_før!S333=\"A\"),I111))))","v":0.88},{"$f":"IF(AND(Inddata!Y17=3,Bygningsautomatik_før!S368=\"D\"),C111,IF(AND(Inddata!Y17=3,Bygningsautomatik_før!S368=\"C\"),E111,IF(AND(Inddata!Y17=3,Bygningsautomatik_før!S368=\"B\"),G111,IF(AND(Inddata!Y17=3,Bygningsautomatik_før!S368=\"A\"),I111))))","v":0.88},{"$f":"IF(AND(Inddata!Y17=3,Bygningsautomatik_før!S389=\"D\"),C9,IF(AND(Inddata!Y17=3,Bygningsautomatik_før!S389=\"C\"),D9,IF(AND(Inddata!Y17=3,Bygningsautomatik_før!S389=\"B\"),E9,IF(AND(Inddata!Y17=3,Bygningsautomatik_før!S389=\"A\"),F9))))","v":1.2},{"$f":"IF(AND(Inddata!Y17=3,Bygningsautomatik_før!S389=\"D\"),C35,IF(AND(Inddata!Y17=3,Bygningsautomatik_før!S389=\"C\"),D35,IF(AND(Inddata!Y17=3,Bygningsautomatik_før!S389=\"B\"),E35,IF(AND(Inddata!Y17=3,Bygningsautomatik_før!S389=\"A\"),F35))))","v":1.07},null,{"$f":"IF(AND(Inddata!Y17=3,Bygningsautomatik_efter!R26=\"D\"),C60,IF(AND(Inddata!Y17=3,Bygningsautomatik_efter!R26=\"C\"),E60,IF(AND(Inddata!Y17=3,Bygningsautomatik_efter!R26=\"B\"),G60,IF(AND(Inddata!Y17=3,Bygningsautomatik_efter!R26=\"A\"),I60))))","v":1},{"$f":"IF(AND(Inddata!Y17=3,Bygningsautomatik_efter!R92=\"D\"),C85,IF(AND(Inddata!Y17=3,Bygningsautomatik_efter!R92=\"C\"),D85,IF(AND(Inddata!Y17=3,Bygningsautomatik_efter!R92=\"B\"),E85,IF(AND(Inddata!Y17=3,Bygningsautomatik_efter!R92=\"A\"),F85))))","v":1.1100000000000001},{"$f":"IF(AND(Inddata!Y17=3,Bygningsautomatik_efter!R141=\"D\"),D60,IF(AND(Inddata!Y17=3,Bygningsautomatik_efter!R141=\"C\"),F60,IF(AND(Inddata!Y17=3,Bygningsautomatik_efter!R141=\"B\"),H60,IF(AND(Inddata!Y17=3,Bygningsautomatik_efter!R141=\"A\"),J60))))","v":0},{"$f":"IF(AND(Inddata!Y17=3,Bygningsautomatik_efter!R214=\"D\"),D111,IF(AND(Inddata!Y17=3,Bygningsautomatik_efter!R214=\"C\"),F111,IF(AND(Inddata!Y17=3,Bygningsautomatik_efter!R214=\"B\"),H111,IF(AND(Inddata!Y17=3,Bygningsautomatik_efter!R214=\"A\"),J111))))","v":1},{"$f":"IF(AND(Inddata!Y17=3,Bygningsautomatik_efter!R333=\"D\"),C111,IF(AND(Inddata!Y17=3,Bygningsautomatik_efter!R333=\"C\"),E111,IF(AND(Inddata!Y17=3,Bygningsautomatik_efter!R333=\"B\"),G111,IF(AND(Inddata!Y17=3,Bygningsautomatik_efter!R333=\"A\"),I111))))","v":0.88},{"$f":"IF(AND(Inddata!Y17=3,Bygningsautomatik_efter!R368=\"D\"),C111,IF(AND(Inddata!Y17=3,Bygningsautomatik_efter!R368=\"C\"),E111,IF(AND(Inddata!Y17=3,Bygningsautomatik_efter!R368=\"B\"),G111,IF(AND(Inddata!Y17=3,Bygningsautomatik_efter!R368=\"A\"),I111))))","v":0.88},{"$f":"IF(AND(Inddata!Y17=3,Bygningsautomatik_efter!R387=\"D\"),C9,IF(AND(Inddata!Y17=3,Bygningsautomatik_efter!R387=\"C\"),D9,IF(AND(Inddata!Y17=3,Bygningsautomatik_efter!R387=\"B\"),E9,IF(AND(Inddata!Y17=3,Bygningsautomatik_efter!R387=\"A\"),F9))))","v":0.8},{"$f":"IF(AND(Inddata!Y17=3,Bygningsautomatik_efter!R387=\"D\"),C35,IF(AND(Inddata!Y17=3,Bygningsautomatik_efter!R387=\"C\"),D35,IF(AND(Inddata!Y17=3,Bygningsautomatik_efter!R387=\"B\"),E35,IF(AND(Inddata!Y17=3,Bygningsautomatik_efter!R387=\"A\"),F35))))","v":0.86}]
[null,"Hospitaler",1.31,0,1,1,0.91,0,0.86,0,null,{"$f":"IF(AND(Inddata!Y17=4,Bygningsautomatik_før!S26=\"D\"),C61,IF(AND(Inddata!Y17=4,Bygningsautomatik_før!S26=\"C\"),E61,IF(AND(Inddata!Y17=4,Bygningsautomatik_før!S26=\"B\"),G61,IF(AND(Inddata!Y17=4,Bygningsautomatik_før!S26=\"A\"),I61))))","v":false},{"$f":"IF(AND(Inddata!Y17=4,Bygningsautomatik_før!S92=\"D\"),C86,IF(AND(Inddata!Y17=4,Bygningsautomatik_før!S92=\"C\"),D86,IF(AND(Inddata!Y17=4,Bygningsautomatik_før!S92=\"B\"),E86,IF(AND(Inddata!Y17=4,Bygningsautomatik_før!S92=\"A\"),F86))))","v":false},{"$f":"IF(AND(Inddata!Y17=4,Bygningsautomatik_før!S127=\"D\"),D61,IF(AND(Inddata!Y17=4,Bygningsautomatik_før!S127=\"C\"),F61,IF(AND(Inddata!Y17=4,Bygningsautomatik_før!S127=\"B\"),H61,IF(AND(Inddata!Y17=4,Bygningsautomatik_før!S127=\"A\"),J61))))","v":false},{"$f":"IF(AND(Inddata!Y17=4,Bygningsautomatik_før!S205=\"D\"),D112,IF(AND(Inddata!Y17=4,Bygningsautomatik_før!S205=\"C\"),F112,IF(AND(Inddata!Y17=4,Bygningsautomatik_før!S205=\"B\"),H112,IF(AND(Inddata!Y17=4,Bygningsautomatik_før!S205=\"A\"),J112))))","v":false},{"$f":"IF(AND(Inddata!Y17=4,Bygningsautomatik_før!S333=\"D\"),C112,IF(AND(Inddata!Y17=4,Bygningsautomatik_før!S333=\"C\"),E112,IF(AND(Inddata!Y17=4,Bygningsautomatik_før!S333=\"B\"),G112,IF(AND(Inddata!Y17=4,Bygningsautomatik_før!S333=\"A\"),I112))))","v":false},{"$f":"IF(AND(Inddata!Y17=4,Bygningsautomatik_før!S368=\"D\"),C112,IF(AND(Inddata!Y17=4,Bygningsautomatik_før!S368=\"C\"),E112,IF(AND(Inddata!Y17=4,Bygningsautomatik_før!S368=\"B\"),G112,IF(AND(Inddata!Y17=4,Bygningsautomatik_før!S368=\"A\"),I112))))","v":false},{"$f":"IF(AND(Inddata!Y17=4,Bygningsautomatik_før!S389=\"D\"),C10,IF(AND(Inddata!Y17=4,Bygningsautomatik_før!S389=\"C\"),D10,IF(AND(Inddata!Y17=4,Bygningsautomatik_før!S389=\"B\"),E10,IF(AND(Inddata!Y17=4,Bygningsautomatik_før!S389=\"A\"),F10))))","v":false},{"$f":"IF(AND(Inddata!Y17=4,Bygningsautomatik_før!S389=\"D\"),C36,IF(AND(Inddata!Y17=4,Bygningsautomatik_før!S389=\"C\"),D36,IF(AND(Inddata!Y17=4,Bygningsautomatik_før!S389=\"B\"),E36,IF(AND(Inddata!Y17=4,Bygningsautomatik_før!S389=\"A\"),F36))))","v":false},null,{"$f":"IF(AND(Inddata!Y17=4,Bygningsautomatik_efter!R26=\"D\"),C61,IF(AND(Inddata!Y17=4,Bygningsautomatik_efter!R26=\"C\"),E61,IF(AND(Inddata!Y17=4,Bygningsautomatik_efter!R26=\"B\"),G61,IF(AND(Inddata!Y17=4,Bygningsautomatik_efter!R26=\"A\"),I61))))","v":false},{"$f":"IF(AND(Inddata!Y17=4,Bygningsautomatik_efter!R92=\"D\"),C86,IF(AND(Inddata!Y17=4,Bygningsautomatik_efter!R92=\"C\"),D86,IF(AND(Inddata!Y17=4,Bygningsautomatik_efter!R92=\"B\"),E86,IF(AND(Inddata!Y17=4,Bygningsautomatik_efter!R92=\"A\"),F86))))","v":false},{"$f":"IF(AND(Inddata!Y17=4,Bygningsautomatik_efter!R141=\"D\"),D61,IF(AND(Inddata!Y17=4,Bygningsautomatik_efter!R141=\"C\"),F61,IF(AND(Inddata!Y17=4,Bygningsautomatik_efter!R141=\"B\"),H61,IF(AND(Inddata!Y17=4,Bygningsautomatik_efter!R141=\"A\"),J61))))","v":false},{"$f":"IF(AND(Inddata!Y17=4,Bygningsautomatik_efter!R214=\"D\"),D112,IF(AND(Inddata!Y17=4,Bygningsautomatik_efter!R214=\"C\"),F112,IF(AND(Inddata!Y17=4,Bygningsautomatik_efter!R214=\"B\"),H112,IF(AND(Inddata!Y17=4,Bygningsautomatik_efter!R214=\"A\"),J112))))","v":false},{"$f":"IF(AND(Inddata!Y17=4,Bygningsautomatik_efter!R333=\"D\"),C112,IF(AND(Inddata!Y17=4,Bygningsautomatik_efter!R333=\"C\"),E112,IF(AND(Inddata!Y17=4,Bygningsautomatik_efter!R333=\"B\"),G112,IF(AND(Inddata!Y17=4,Bygningsautomatik_efter!R333=\"A\"),I112))))","v":false},{"$f":"IF(AND(Inddata!Y17=4,Bygningsautomatik_efter!R368=\"D\"),C112,IF(AND(Inddata!Y17=4,Bygningsautomatik_efter!R368=\"C\"),E112,IF(AND(Inddata!Y17=4,Bygningsautomatik_efter!R368=\"B\"),G112,IF(AND(Inddata!Y17=4,Bygningsautomatik_efter!R368=\"A\"),I112))))","v":false},{"$f":"IF(AND(Inddata!Y17=4,Bygningsautomatik_efter!R387=\"D\"),C10,IF(AND(Inddata!Y17=4,Bygningsautomatik_efter!R387=\"C\"),D10,IF(AND(Inddata!Y17=4,Bygningsautomatik_efter!R387=\"B\"),E10,IF(AND(Inddata!Y17=4,Bygningsautomatik_efter!R387=\"A\"),F10))))","v":false},{"$f":"IF(AND(Inddata!Y17=4,Bygningsautomatik_efter!R387=\"D\"),C36,IF(AND(Inddata!Y17=4,Bygningsautomatik_efter!R387=\"C\"),D36,IF(AND(Inddata!Y17=4,Bygningsautomatik_efter!R387=\"B\"),E36,IF(AND(Inddata!Y17=4,Bygningsautomatik_efter!R387=\"A\"),F36))))","v":false}]
[null,"Hoteller",1.17,1.76,1,1,0.85,0.79,0.61,0.76,null,{"$f":"IF(AND(Inddata!Y17=5,Bygningsautomatik_før!S26=\"D\"),C62,IF(AND(Inddata!Y17=5,Bygningsautomatik_før!S26=\"C\"),E62,IF(AND(Inddata!Y17=5,Bygningsautomatik_før!S26=\"B\"),G62,IF(AND(Inddata!Y17=5,Bygningsautomatik_før!S26=\"A\"),I62))))","v":false},{"$f":"IF(AND(Inddata!Y17=5,Bygningsautomatik_før!S92=\"D\"),C87,IF(AND(Inddata!Y17=5,Bygningsautomatik_før!S92=\"C\"),D87,IF(AND(Inddata!Y17=5,Bygningsautomatik_før!S92=\"B\"),E87,IF(AND(Inddata!Y17=5,Bygningsautomatik_før!S92=\"A\"),F87))))","v":false},{"$f":"IF(AND(Inddata!Y17=5,Bygningsautomatik_før!S127=\"D\"),D62,IF(AND(Inddata!Y17=5,Bygningsautomatik_før!S127=\"C\"),F62,IF(AND(Inddata!Y17=5,Bygningsautomatik_før!S127=\"B\"),H62,IF(AND(Inddata!Y17=5,Bygningsautomatik_før!S127=\"A\"),J62))))","v":false},{"$f":"IF(AND(Inddata!Y17=5,Bygningsautomatik_før!S205=\"D\"),D113,IF(AND(Inddata!Y17=5,Bygningsautomatik_før!S205=\"C\"),F113,IF(AND(Inddata!Y17=5,Bygningsautomatik_før!S205=\"B\"),H113,IF(AND(Inddata!Y17=5,Bygningsautomatik_før!S205=\"A\"),J113))))","v":false},{"$f":"IF(AND(Inddata!Y17=5,Bygningsautomatik_før!S333=\"D\"),C113,IF(AND(Inddata!Y17=5,Bygningsautomatik_før!S333=\"C\"),E113,IF(AND(Inddata!Y17=5,Bygningsautomatik_før!S333=\"B\"),G113,IF(AND(Inddata!Y17=5,Bygningsautomatik_før!S333=\"A\"),I113))))","v":false},{"$f":"IF(AND(Inddata!Y17=5,Bygningsautomatik_før!S368=\"D\"),C113,IF(AND(Inddata!Y17=5,Bygningsautomatik_før!S368=\"C\"),E113,IF(AND(Inddata!Y17=5,Bygningsautomatik_før!S368=\"B\"),G113,IF(AND(Inddata!Y17=5,Bygningsautomatik_før!S368=\"A\"),I113))))","v":false},{"$f":"IF(AND(Inddata!Y17=5,Bygningsautomatik_før!S389=\"D\"),C11,IF(AND(Inddata!Y17=5,Bygningsautomatik_før!S389=\"C\"),D11,IF(AND(Inddata!Y17=5,Bygningsautomatik_før!S389=\"B\"),E11,IF(AND(Inddata!Y17=5,Bygningsautomatik_før!S389=\"A\"),F11))))","v":false},{"$f":"IF(AND(Inddata!Y17=5,Bygningsautomatik_før!S389=\"D\"),C37,IF(AND(Inddata!Y17=5,Bygningsautomatik_før!S389=\"C\"),D37,IF(AND(Inddata!Y17=5,Bygningsautomatik_før!S389=\"B\"),E37,IF(AND(Inddata!Y17=5,Bygningsautomatik_før!S389=\"A\"),F37))))","v":false},null,{"$f":"IF(AND(Inddata!Y17=5,Bygningsautomatik_efter!R26=\"D\"),C62,IF(AND(Inddata!Y17=5,Bygningsautomatik_efter!R26=\"C\"),E62,IF(AND(Inddata!Y17=5,Bygningsautomatik_efter!R26=\"B\"),G62,IF(AND(Inddata!Y17=5,Bygningsautomatik_efter!R26=\"A\"),I62))))","v":false},{"$f":"IF(AND(Inddata!Y17=5,Bygningsautomatik_efter!R92=\"D\"),C87,IF(AND(Inddata!Y17=5,Bygningsautomatik_efter!R92=\"C\"),D87,IF(AND(Inddata!Y17=5,Bygningsautomatik_efter!R92=\"B\"),E87,IF(AND(Inddata!Y17=5,Bygningsautomatik_efter!R92=\"A\"),F87))))","v":false},{"$f":"IF(AND(Inddata!Y17=5,Bygningsautomatik_efter!R141=\"D\"),D62,IF(AND(Inddata!Y17=5,Bygningsautomatik_efter!R141=\"C\"),F62,IF(AND(Inddata!Y17=5,Bygningsautomatik_efter!R141=\"B\"),H62,IF(AND(Inddata!Y17=5,Bygningsautomatik_efter!R141=\"A\"),J62))))","v":false},{"$f":"IF(AND(Inddata!Y17=5,Bygningsautomatik_efter!R214=\"D\"),D113,IF(AND(Inddata!Y17=5,Bygningsautomatik_efter!R214=\"C\"),F113,IF(AND(Inddata!Y17=5,Bygningsautomatik_efter!R214=\"B\"),H113,IF(AND(Inddata!Y17=5,Bygningsautomatik_efter!R214=\"A\"),J113))))","v":false},{"$f":"IF(AND(Inddata!Y17=5,Bygningsautomatik_efter!R333=\"D\"),C113,IF(AND(Inddata!Y17=5,Bygningsautomatik_efter!R333=\"C\"),E113,IF(AND(Inddata!Y17=5,Bygningsautomatik_efter!R333=\"B\"),G113,IF(AND(Inddata!Y17=5,Bygningsautomatik_efter!R333=\"A\"),I113))))","v":false},{"$f":"IF(AND(Inddata!Y17=5,Bygningsautomatik_efter!R368=\"D\"),C113,IF(AND(Inddata!Y17=5,Bygningsautomatik_efter!R368=\"C\"),E113,IF(AND(Inddata!Y17=5,Bygningsautomatik_efter!R368=\"B\"),G113,IF(AND(Inddata!Y17=5,Bygningsautomatik_efter!R368=\"A\"),I113))))","v":false},{"$f":"IF(AND(Inddata!Y17=5,Bygningsautomatik_efter!R387=\"D\"),C11,IF(AND(Inddata!Y17=5,Bygningsautomatik_efter!R387=\"C\"),D11,IF(AND(Inddata!Y17=5,Bygningsautomatik_efter!R387=\"B\"),E11,IF(AND(Inddata!Y17=5,Bygningsautomatik_efter!R387=\"A\"),F11))))","v":false},{"$f":"IF(AND(Inddata!Y17=5,Bygningsautomatik_efter!R387=\"D\"),C37,IF(AND(Inddata!Y17=5,Bygningsautomatik_efter!R387=\"C\"),D37,IF(AND(Inddata!Y17=5,Bygningsautomatik_efter!R387=\"B\"),E37,IF(AND(Inddata!Y17=5,Bygningsautomatik_efter!R387=\"A\"),F37))))","v":false}]
[null,"Restauranter",1.21,1.39,1,1,0.76,0.94,0.69,0.6,null,{"$f":"IF(AND(Inddata!Y17=6,Bygningsautomatik_før!S26=\"D\"),C63,IF(AND(Inddata!Y17=6,Bygningsautomatik_før!S26=\"C\"),E63,IF(AND(Inddata!Y17=6,Bygningsautomatik_før!S26=\"B\"),G63,IF(AND(Inddata!Y17=6,Bygningsautomatik_før!S26=\"A\"),I63))))","v":false},{"$f":"IF(AND(Inddata!Y17=6,Bygningsautomatik_før!S92=\"D\"),C88,IF(AND(Inddata!Y17=6,Bygningsautomatik_før!S92=\"C\"),D88,IF(AND(Inddata!Y17=6,Bygningsautomatik_før!S92=\"B\"),E88,IF(AND(Inddata!Y17=6,Bygningsautomatik_før!S92=\"A\"),F88))))","v":false},{"$f":"IF(AND(Inddata!Y17=6,Bygningsautomatik_før!S127=\"D\"),D63,IF(AND(Inddata!Y17=6,Bygningsautomatik_før!S127=\"C\"),F63,IF(AND(Inddata!Y17=6,Bygningsautomatik_før!S127=\"B\"),H63,IF(AND(Inddata!Y17=6,Bygningsautomatik_før!S127=\"A\"),J63))))","v":false},{"$f":"IF(AND(Inddata!Y17=6,Bygningsautomatik_før!S205=\"D\"),D114,IF(AND(Inddata!Y17=6,Bygningsautomatik_før!S205=\"C\"),F114,IF(AND(Inddata!Y17=6,Bygningsautomatik_før!S205=\"B\"),H114,IF(AND(Inddata!Y17=6,Bygningsautomatik_før!S205=\"A\"),J114))))","v":false},{"$f":"IF(AND(Inddata!Y17=6,Bygningsautomatik_før!S333=\"D\"),C114,IF(AND(Inddata!Y17=6,Bygningsautomatik_før!S333=\"C\"),E114,IF(AND(Inddata!Y17=6,Bygningsautomatik_før!S333=\"B\"),G114,IF(AND(Inddata!Y17=6,Bygningsautomatik_før!S333=\"A\"),I114))))","v":false},{"$f":"IF(AND(Inddata!Y17=6,Bygningsautomatik_før!S368=\"D\"),C114,IF(AND(Inddata!Y17=6,Bygningsautomatik_før!S368=\"C\"),E114,IF(AND(Inddata!Y17=6,Bygningsautomatik_før!S368=\"B\"),G114,IF(AND(Inddata!Y17=6,Bygningsautomatik_før!S368=\"A\"),I114))))","v":false},{"$f":"IF(AND(Inddata!Y17=6,Bygningsautomatik_før!S389=\"D\"),C12,IF(AND(Inddata!Y17=6,Bygningsautomatik_før!S389=\"C\"),D12,IF(AND(Inddata!Y17=6,Bygningsautomatik_før!S389=\"B\"),E12,IF(AND(Inddata!Y17=6,Bygningsautomatik_før!S389=\"A\"),F12))))","v":false},{"$f":"IF(AND(Inddata!Y17=6,Bygningsautomatik_før!S389=\"D\"),C38,IF(AND(Inddata!Y17=6,Bygningsautomatik_før!S389=\"C\"),D38,IF(AND(Inddata!Y17=6,Bygningsautomatik_før!S389=\"B\"),E38,IF(AND(Inddata!Y17=6,Bygningsautomatik_før!S389=\"A\"),F38))))","v":false},null,{"$f":"IF(AND(Inddata!Y17=6,Bygningsautomatik_efter!R26=\"D\"),C63,IF(AND(Inddata!Y17=6,Bygningsautomatik_efter!R26=\"C\"),E63,IF(AND(Inddata!Y17=6,Bygningsautomatik_efter!R26=\"B\"),G63,IF(AND(Inddata!Y17=6,Bygningsautomatik_efter!R26=\"A\"),I63))))","v":false},{"$f":"IF(AND(Inddata!Y17=6,Bygningsautomatik_efter!R92=\"D\"),C88,IF(AND(Inddata!Y17=6,Bygningsautomatik_efter!R92=\"C\"),D88,IF(AND(Inddata!Y17=6,Bygningsautomatik_efter!R92=\"B\"),E88,IF(AND(Inddata!Y17=6,Bygningsautomatik_efter!R92=\"A\"),F88))))","v":false},{"$f":"IF(AND(Inddata!Y17=6,Bygningsautomatik_efter!R141=\"D\"),D63,IF(AND(Inddata!Y17=6,Bygningsautomatik_efter!R141=\"C\"),F63,IF(AND(Inddata!Y17=6,Bygningsautomatik_efter!R141=\"B\"),H63,IF(AND(Inddata!Y17=6,Bygningsautomatik_efter!R141=\"A\"),J63))))","v":false},{"$f":"IF(AND(Inddata!Y17=6,Bygningsautomatik_efter!R214=\"D\"),D114,IF(AND(Inddata!Y17=6,Bygningsautomatik_efter!R214=\"C\"),F114,IF(AND(Inddata!Y17=6,Bygningsautomatik_efter!R214=\"B\"),H114,IF(AND(Inddata!Y17=6,Bygningsautomatik_efter!R214=\"A\"),J114))))","v":false},{"$f":"IF(AND(Inddata!Y17=6,Bygningsautomatik_efter!R333=\"D\"),C114,IF(AND(Inddata!Y17=6,Bygningsautomatik_efter!R333=\"C\"),E114,IF(AND(Inddata!Y17=6,Bygningsautomatik_efter!R333=\"B\"),G114,IF(AND(Inddata!Y17=6,Bygningsautomatik_efter!R333=\"A\"),I114))))","v":false},{"$f":"IF(AND(Inddata!Y17=6,Bygningsautomatik_efter!R368=\"D\"),C114,IF(AND(Inddata!Y17=6,Bygningsautomatik_efter!R368=\"C\"),E114,IF(AND(Inddata!Y17=6,Bygningsautomatik_efter!R368=\"B\"),G114,IF(AND(Inddata!Y17=6,Bygningsautomatik_efter!R368=\"A\"),I114))))","v":false},{"$f":"IF(AND(Inddata!Y17=6,Bygningsautomatik_efter!R387=\"D\"),C12,IF(AND(Inddata!Y17=6,Bygningsautomatik_efter!R387=\"C\"),D12,IF(AND(Inddata!Y17=6,Bygningsautomatik_efter!R387=\"B\"),E12,IF(AND(Inddata!Y17=6,Bygningsautomatik_efter!R387=\"A\"),F12))))","v":false},{"$f":"IF(AND(Inddata!Y17=6,Bygningsautomatik_efter!R387=\"D\"),C38,IF(AND(Inddata!Y17=6,Bygningsautomatik_efter!R387=\"C\"),D38,IF(AND(Inddata!Y17=6,Bygningsautomatik_efter!R387=\"B\"),E38,IF(AND(Inddata!Y17=6,Bygningsautomatik_efter!R387=\"A\"),F38))))","v":false}]
[null,"Engros- og detailhandel",1.56,1.59,1,1,0.71,0.85,0.46,0.55000000000000004,null,{"$f":"IF(AND(Inddata!Y17=7,Bygningsautomatik_før!S26=\"D\"),C64,IF(AND(Inddata!Y17=7,Bygningsautomatik_før!S26=\"C\"),E64,IF(AND(Inddata!Y17=7,Bygningsautomatik_før!S26=\"B\"),G64,IF(AND(Inddata!Y17=7,Bygningsautomatik_før!S26=\"A\"),I64))))","v":false},{"$f":"IF(AND(Inddata!Y17=7,Bygningsautomatik_før!S92=\"D\"),C89,IF(AND(Inddata!Y17=7,Bygningsautomatik_før!S92=\"C\"),D89,IF(AND(Inddata!Y17=7,Bygningsautomatik_før!S92=\"B\"),E89,IF(AND(Inddata!Y17=7,Bygningsautomatik_før!S92=\"A\"),F89))))","v":false},{"$f":"IF(AND(Inddata!Y17=7,Bygningsautomatik_før!S127=\"D\"),D64,IF(AND(Inddata!Y17=7,Bygningsautomatik_før!S127=\"C\"),F64,IF(AND(Inddata!Y17=7,Bygningsautomatik_før!S127=\"B\"),H64,IF(AND(Inddata!Y17=7,Bygningsautomatik_før!S127=\"A\"),J64))))","v":false},{"$f":"IF(AND(Inddata!Y17=7,Bygningsautomatik_før!S205=\"D\"),D115,IF(AND(Inddata!Y17=7,Bygningsautomatik_før!S205=\"C\"),F115,IF(AND(Inddata!Y17=7,Bygningsautomatik_før!S205=\"B\"),H115,IF(AND(Inddata!Y17=7,Bygningsautomatik_før!S205=\"A\"),J115))))","v":false},{"$f":"IF(AND(Inddata!Y17=7,Bygningsautomatik_før!S333=\"D\"),C115,IF(AND(Inddata!Y17=7,Bygningsautomatik_før!S333=\"C\"),E115,IF(AND(Inddata!Y17=7,Bygningsautomatik_før!S333=\"B\"),G115,IF(AND(Inddata!Y17=7,Bygningsautomatik_før!S333=\"A\"),I115))))","v":false},{"$f":"IF(AND(Inddata!Y17=7,Bygningsautomatik_før!S368=\"D\"),C115,IF(AND(Inddata!Y17=7,Bygningsautomatik_før!S368=\"C\"),E115,IF(AND(Inddata!Y17=7,Bygningsautomatik_før!S368=\"B\"),G115,IF(AND(Inddata!Y17=7,Bygningsautomatik_før!S368=\"A\"),I115))))","v":false},{"$f":"IF(AND(Inddata!Y17=7,Bygningsautomatik_før!S389=\"D\"),C13,IF(AND(Inddata!Y17=7,Bygningsautomatik_før!S389=\"C\"),D13,IF(AND(Inddata!Y17=7,Bygningsautomatik_før!S389=\"B\"),E13,IF(AND(Inddata!Y17=7,Bygningsautomatik_før!S389=\"A\"),F13))))","v":false},{"$f":"IF(AND(Inddata!Y17=7,Bygningsautomatik_før!S389=\"D\"),C39,IF(AND(Inddata!Y17=7,Bygningsautomatik_før!S389=\"C\"),D39,IF(AND(Inddata!Y17=7,Bygningsautomatik_før!S389=\"B\"),E39,IF(AND(Inddata!Y17=7,Bygningsautomatik_før!S389=\"A\"),F39))))","v":false},null,{"$f":"IF(AND(Inddata!Y17=7,Bygningsautomatik_efter!R26=\"D\"),C64,IF(AND(Inddata!Y17=7,Bygningsautomatik_efter!R26=\"C\"),E64,IF(AND(Inddata!Y17=7,Bygningsautomatik_efter!R26=\"B\"),G64,IF(AND(Inddata!Y17=7,Bygningsautomatik_efter!R26=\"A\"),I64))))","v":false},{"$f":"IF(AND(Inddata!Y17=7,Bygningsautomatik_efter!R92=\"D\"),C89,IF(AND(Inddata!Y17=7,Bygningsautomatik_efter!R92=\"C\"),D89,IF(AND(Inddata!Y17=7,Bygningsautomatik_efter!R92=\"B\"),E89,IF(AND(Inddata!Y17=7,Bygningsautomatik_efter!R92=\"A\"),F89))))","v":false},{"$f":"IF(AND(Inddata!Y17=7,Bygningsautomatik_efter!R141=\"D\"),D64,IF(AND(Inddata!Y17=7,Bygningsautomatik_efter!R141=\"C\"),F64,IF(AND(Inddata!Y17=7,Bygningsautomatik_efter!R141=\"B\"),H64,IF(AND(Inddata!Y17=7,Bygningsautomatik_efter!R141=\"A\"),J64))))","v":false},{"$f":"IF(AND(Inddata!Y17=7,Bygningsautomatik_efter!R214=\"D\"),D115,IF(AND(Inddata!Y17=7,Bygningsautomatik_efter!R214=\"C\"),F115,IF(AND(Inddata!Y17=7,Bygningsautomatik_efter!R214=\"B\"),H115,IF(AND(Inddata!Y17=7,Bygningsautomatik_efter!R214=\"A\"),J115))))","v":false},{"$f":"IF(AND(Inddata!Y17=7,Bygningsautomatik_efter!R333=\"D\"),C115,IF(AND(Inddata!Y17=7,Bygningsautomatik_efter!R333=\"C\"),E115,IF(AND(Inddata!Y17=7,Bygningsautomatik_efter!R333=\"B\"),G115,IF(AND(Inddata!Y17=7,Bygningsautomatik_efter!R333=\"A\"),I115))))","v":false},{"$f":"IF(AND(Inddata!Y17=7,Bygningsautomatik_efter!R368=\"D\"),C115,IF(AND(Inddata!Y17=7,Bygningsautomatik_efter!R368=\"C\"),E115,IF(AND(Inddata!Y17=7,Bygningsautomatik_efter!R368=\"B\"),G115,IF(AND(Inddata!Y17=7,Bygningsautomatik_efter!R368=\"A\"),I115))))","v":false},{"$f":"IF(AND(Inddata!Y17=7,Bygningsautomatik_efter!R387=\"D\"),C13,IF(AND(Inddata!Y17=7,Bygningsautomatik_efter!R387=\"C\"),D13,IF(AND(Inddata!Y17=7,Bygningsautomatik_efter!R387=\"B\"),E13,IF(AND(Inddata!Y17=7,Bygningsautomatik_efter!R387=\"A\"),F13))))","v":false},{"$f":"IF(AND(Inddata!Y17=7,Bygningsautomatik_efter!R387=\"D\"),C39,IF(AND(Inddata!Y17=7,Bygningsautomatik_efter!R387=\"C\"),D39,IF(AND(Inddata!Y17=7,Bygningsautomatik_efter!R387=\"B\"),E39,IF(AND(Inddata!Y17=7,Bygningsautomatik_efter!R387=\"A\"),F39))))","v":false}]
[null,"Andre typer: - Sportsfaciliteter, - Lager, - Industribygninger, - mv.",null,null,1,1]
[null,null,null,null,null,null,null,null,null,null,null,{"$f":"IF(Inddata!$Y$17=1,L58,IF(Inddata!$Y$17=2,L59,IF(Inddata!$Y$17=3,L60,IF(Inddata!$Y$17=4,L61,IF(Inddata!$Y$17=5,L62,IF(Inddata!$Y$17=6,L63,IF(Inddata!$Y$17=7,L64)))))))","v":1},{"$f":"IF(Inddata!$Y$17=1,M58,IF(Inddata!$Y$17=2,M59,IF(Inddata!$Y$17=3,M60,IF(Inddata!$Y$17=4,M61,IF(Inddata!$Y$17=5,M62,IF(Inddata!$Y$17=6,M63,IF(Inddata!$Y$17=7,M64)))))))","v":1.1100000000000001},{"$f":"IF(Inddata!$Y$17=1,N58,IF(Inddata!$Y$17=2,N59,IF(Inddata!$Y$17=3,N60,IF(Inddata!$Y$17=4,N61,IF(Inddata!$Y$17=5,N62,IF(Inddata!$Y$17=6,N63,IF(Inddata!$Y$17=7,N64)))))))","v":0},{"$f":"IF(Inddata!$Y$17=1,O58,IF(Inddata!$Y$17=2,O59,IF(Inddata!$Y$17=3,O60,IF(Inddata!$Y$17=4,O61,IF(Inddata!$Y$17=5,O62,IF(Inddata!$Y$17=6,O63,IF(Inddata!$Y$17=7,O64)))))))","v":1},{"$f":"IF(Inddata!$Y$17=1,P58,IF(Inddata!$Y$17=2,P59,IF(Inddata!$Y$17=3,P60,IF(Inddata!$Y$17=4,P61,IF(Inddata!$Y$17=5,P62,IF(Inddata!$Y$17=6,P63,IF(Inddata!$Y$17=7,P64)))))))","v":0.88},{"$f":"IF(Inddata!$Y$17=1,Q58,IF(Inddata!$Y$17=2,Q59,IF(Inddata!$Y$17=3,Q60,IF(Inddata!$Y$17=4,Q61,IF(Inddata!$Y$17=5,Q62,IF(Inddata!$Y$17=6,Q63,IF(Inddata!$Y$17=7,Q64)))))))","v":0.88},{"$f":"IF(Inddata!$Y$17=1,R58,IF(Inddata!$Y$17=2,R59,IF(Inddata!$Y$17=3,R60,IF(Inddata!$Y$17=4,R61,IF(Inddata!$Y$17=5,R62,IF(Inddata!$Y$17=6,R63,IF(Inddata!$Y$17=7,R64)))))))","v":1.2},{"$f":"IF(Inddata!$Y$17=1,S58,IF(Inddata!$Y$17=2,S59,IF(Inddata!$Y$17=3,S60,IF(Inddata!$Y$17=4,S61,IF(Inddata!$Y$17=5,S62,IF(Inddata!$Y$17=6,S63,IF(Inddata!$Y$17=7,S64)))))))","v":1.07},null,{"$f":"IF(Inddata!$Y$17=1,U58,IF(Inddata!$Y$17=2,U59,IF(Inddata!$Y$17=3,U60,IF(Inddata!$Y$17=4,U61,IF(Inddata!$Y$17=5,U62,IF(Inddata!$Y$17=6,U63,IF(Inddata!$Y$17=7,U64)))))))","v":1},{"$f":"IF(Inddata!$Y$17=1,V58,IF(Inddata!$Y$17=2,V59,IF(Inddata!$Y$17=3,V60,IF(Inddata!$Y$17=4,V61,IF(Inddata!$Y$17=5,V62,IF(Inddata!$Y$17=6,V63,IF(Inddata!$Y$17=7,V64)))))))","v":1.1100000000000001},{"$f":"IF(Inddata!$Y$17=1,W58,IF(Inddata!$Y$17=2,W59,IF(Inddata!$Y$17=3,W60,IF(Inddata!$Y$17=4,W61,IF(Inddata!$Y$17=5,W62,IF(Inddata!$Y$17=6,W63,IF(Inddata!$Y$17=7,W64)))))))","v":0},{"$f":"IF(Inddata!$Y$17=1,X58,IF(Inddata!$Y$17=2,X59,IF(Inddata!$Y$17=3,X60,IF(Inddata!$Y$17=4,X61,IF(Inddata!$Y$17=5,X62,IF(Inddata!$Y$17=6,X63,IF(Inddata!$Y$17=7,X64)))))))","v":1},{"$f":"IF(Inddata!$Y$17=1,Y58,IF(Inddata!$Y$17=2,Y59,IF(Inddata!$Y$17=3,Y60,IF(Inddata!$Y$17=4,Y61,IF(Inddata!$Y$17=5,Y62,IF(Inddata!$Y$17=6,Y63,IF(Inddata!$Y$17=7,Y64)))))))","v":0.88},{"$f":"IF(Inddata!$Y$17=1,Z58,IF(Inddata!$Y$17=2,Z59,IF(Inddata!$Y$17=3,Z60,IF(Inddata!$Y$17=4,Z61,IF(Inddata!$Y$17=5,Z62,IF(Inddata!$Y$17=6,Z63,IF(Inddata!$Y$17=7,Z64)))))))","v":0.88},{"$f":"IF(Inddata!$Y$17=1,AA58,IF(Inddata!$Y$17=2,AA59,IF(Inddata!$Y$17=3,AA60,IF(Inddata!$Y$17=4,AA61,IF(Inddata!$Y$17=5,AA62,IF(Inddata!$Y$17=6,AA63,IF(Inddata!$Y$17=7,AA64)))))))","v":0.8},{"$f":"IF(Inddata!$Y$17=1,AB58,IF(Inddata!$Y$17=2,AB59,IF(Inddata!$Y$17=3,AB60,IF(Inddata!$Y$17=4,AB61,IF(Inddata!$Y$17=5,AB62,IF(Inddata!$Y$17=6,AB63,IF(Inddata!$Y$17=7,AB64)))))))","v":0.86}]
[]
[null,"Tabel A.6 - Detaljerede BAC-effektivitetsfaktorer "]
[null,"  - Boligbygninger",null,null,null,null,null,null,null,null,null,"Total varmebesparelse"]
[null,"Bygningstyper (bolig)","Detaljerede BAC-effektivitetsfaktorer f BAC,H og f BAC,C"]
[null,null,"D Ikke energieffektiv",null,"C Reference Standard",null,"B Avanceret",null,"A Høj energieffektivitet",null,null,"Rumvarme",null,{"$f":"IF(Anlæg!AM22=0,0,Anlæg!AN22*(Inddata!H25-((Y111/V111)*Inddata!H25)))","v":0},"kWh",null,{"$f":"(N71/Inddata!F23)*100","v":{"$error":"#DIV/0!"}},"%",null,null,{"$f":"IF(Anlæg!AM129=0,0,Anlæg!AN130*(0.75*Inddata!H25-((AC159/Z159)*0.75*Inddata!H25)))","v":0},null,"Rumvarme, VVB og ventilation lægges sammen"]
[null," ","f BAC,H","f BAC,C","f BAC,H","f BAC,C","f BAC,H","f BAC,C","f BAC,H","f BAC,C"]
[null,"Enfamiliehuse",1.0900000000000001,"-",1,"-",0.88,"-",0.81,null,null,"Varmt brugsvand",null,{"$f":"IF(Anlæg!AT27=0,0,Anlæg!AT29*(Inddata!H27-((Y119/V119)*Inddata!H27)))","v":0},"kWh",null,{"$f":"(N73/Inddata!F23)*100","v":{"$error":"#DIV/0!"}},"%",null,null,{"$f":"IF(Anlæg!AM155=0,0,Anlæg!AN156*(0.75*Inddata!H27-((AC159/Z159)*0.75*Inddata!H27)))","v":0},null,"Husk de rigtige forhold"]
[null,"Etagebyggeri","-","-","-","-","-","-","-"]
[null,"Andre boligbygninger eller lignende boligbygninger","-","-","-","-","-","-","-",null,null,"Ventilation",null,{"$f":"IF(Anlæg!AM75=0,0,Anlæg!AN75*(Inddata!H29-((Y135/V135)*Inddata!H29)))","v":0},"kWh",null,{"$f":"(N75/Inddata!F23)*100","v":{"$error":"#DIV/0!"}},"%",null,null,{"$f":"IF(Anlæg!AM201=0,0,Anlæg!AN202*(0.75*Inddata!H29-((AC159/Z159)*0.75*Inddata!H29)))","v":0}]
[]
[null,null,null,null,null,null,null,null,null,null,null,"Solafskærmning",null,{"$f":"IF(Anlæg!AT99=0,0,((Anlæg!AT99*4)))","v":0},"kWh",null,{"$f":"(N77/Inddata!H25)*100","v":{"$error":"#DIV/0!"}},"%",null,null,null,null,{"$f":"IF(Anlæg!AT99=0,0,((Anlæg!AT99*4)))","v":0}]
[null,"Tabel A.7 - Detaljerede BAC-effektivitetsfaktorer "]
[null,"  - Ikke-boligbygninger",null,null,null,null,null,null,null,null,null,"CTS",null,{"$f":"U79","v":0},"kWh",null,{"$f":"(N79/Inddata!F23)*100","v":{"$error":"#DIV/0!"}},"%",null,null,{"$f":"U71+U73+U75+U77","v":0}]
[null,"Bygningstyper (ikke-bolig)","Overordnede BAC-effektivitetsfaktorer f BAC,DHW"]
[null,null,"D","C Reference","B","A",null,null,null,null,null,"I alt",null,{"$f":"SUM(N71,N73,N75,N77,N79)","v":0},"kWh",{"$f":"N81*Inddata!F56","v":0},"kr."]
[null,null,"Ikke energieffektiv","Standard","Avanceret","Høj energieffektivitet"]
[null,"Kontorer",1.1100000000000001,1,0.9,0.8,null,null,null,null,null,null,null,{"$f":"(N81/Inddata!F23)*100","v":{"$error":"#DIV/0!"}},"%",null,null,null,null,null,{"$f":"(U79/Inddata!F23)*100","v":{"$error":"#DIV/0!"}}]
[null,"Auditorier",1.1100000000000001,1,0.9,0.8]
[null,"Uddannelsesbygninger (skoler)",1.1100000000000001,1,0.9,0.8]
[null,"Hospitaler",1.1100000000000001,1,0.9,0.8,null,null,null,null,null,"Total elbesparelse"]
[null,"Hoteller",1.1100000000000001,1,0.9,0.8]
[null,"Restauranter",1.1100000000000001,1,0.9,0.8,null,null,null,null,null,"Køling",null,{"$f":"IF(Anlæg!AM52=0,0,Anlæg!AN52*(Inddata!H36-((Y127/V127)*Inddata!H36)))","v":0},"kWh",null,{"$f":"(N88/Inddata!F34)*100","v":{"$error":"#DIV/0!"}},"%",null,null,{"$f":"IF(Anlæg!AM178=0,0,Anlæg!AN179*(Inddata!H36-((AC163/Z163)*Inddata!H36)))","v":0},null,"Køling, ventilation, belysning og pumpning lægges sammen"]
[null,"Engros- og detailhandel",1.1100000000000001,1,0.9,0.8]
[null,"Andre typer: - Sportsfaciliteter, - Lager, - Industribygninger, - mv.",null,1,null,null,null,null,null,null,null,"Ventilation",null,{"$f":"IF(Anlæg!AM75=0,0,Anlæg!AN75*(Inddata!H38-((Y135/V135)*Inddata!H38)))","v":0},"kWh",null,{"$f":"(N90/Inddata!F34)*100","v":{"$error":"#DIV/0!"}},"%",null,null,{"$f":"IF(Anlæg!AM201=0,0,Anlæg!AN202*(Inddata!H38-((AC163/Z163)*Inddata!H38)))","v":0}]
[]
[null,null,null,null,null,null,null,null,null,null,null,"Belysning",null,{"$f":"IF(Anlæg!AM89=0,0,Anlæg!AN89*(Inddata!H40-((Y143/V143)*Inddata!H40)))","v":0},"kWh",null,{"$f":"(N92/Inddata!F34)*100","v":{"$error":"#DIV/0!"}},"%",null,null,{"$f":"IF(Anlæg!AM224=0,0,Anlæg!AN225*(Inddata!H40-((AC163/Z163)*Inddata!H40)))","v":0}]
[null,"Tabel A.8 - Detaljerede BAC-effektivitetsfaktorer "]
[null,"  - Boligbygninger",null,null,null,null,null,null,null,null,null,"Pumpning",null,{"$f":"Inddata!H42-((Y135/V135)*Inddata!H42)","v":0},"kWh",null,{"$f":"(N94/Inddata!F34)*100","v":{"$error":"#DIV/0!"}},"%",null,null,{"$f":"IF(Anlæg!AM129=0,0,Inddata!H42-((AC163/Z163)*Inddata!H42))","v":0}]
[null,"Bygningstyper (bolig)","Overordnede BAC-effektivitetsfaktorer f BAC,DHW"]
[null,null,"D","C Reference","B","A",null,null,null,null,null,"Solafskærmning",null,{"$f":"IF(Anlæg!AT99=0,0,((Anlæg!AT99*1)))","v":0},"kWh",null,{"$f":"(N96/Inddata!H36)*100","v":{"$error":"#DIV/0!"}},"%",null,null,null,null,{"$f":"IF(Anlæg!AT99=0,0,((Anlæg!AT99*1)))","v":0}]
[null,null,"Ikke energieffektiv","Standard","Avanceret","Høj energieffektivitet"]
[null,"Enfamiliehuse",1.1100000000000001,1,0.9,0.8,null,null,null,null,null,"CTS",null,{"$f":"U98","v":0},"kWh",null,{"$f":"(N98/Inddata!F34)*100","v":{"$error":"#DIV/0!"}},"%",null,null,{"$f":"U88+U90+U92+U94+U96","v":0}]
[null,"Etageejendomme",1.1100000000000001,1,0.9,0.8]
[null,"Andre boligbygninger eller lignende boligbygninger",1.1100000000000001,1,0.9,0.8,null,null,null,null,null,"I alt",null,{"$f":"SUM(N88,N90,N92,N94,N96,N98)","v":0},"kWh",{"$f":"N100*Inddata!F58","v":0},"kr."]
[]
[null,null,null,null,null,null,null,null,null,null,null,null,null,{"$f":"(N100/Inddata!F34)*100","v":{"$error":"#DIV/0!"}},"%",null,null,null,null,null,{"$f":"(U98/Inddata!F34)*100","v":{"$error":"#DIV/0!"}}]
[null,"Tabel A.9 - Detaljerede BAC-effektivitetsfaktorer f BAC,el,L og f BAC,el,aux"]
[null,"  - Ikke-boligbygninger"]
[null,"Bygningstyper (ikke-bolig)","Overordnede BAC-effektivitetsfaktorer",null,null,null,null,null,null,null,null,"Total energibesparelse"]
[null,null,"D",null,"C Reference",null,"B",null,"A",null,null,"I alt",null,{"$f":"SUM(N81,N100)","v":0},"kWh",{"$f":"SUM(P81,P100)","v":0},"kr."]
[null,null,"Ikke energieffektiv",null,"Standard",null,"Avanceret",null,"Høj energieffektivitet"]
[null,null,"f BAC,el,L","f BAC,el,aux","f BAC,el,L","f BAC,el,aux","f BAC,el,L","f BAC,el,aux","f BAC,el,L","f BAC,el,aux"]
[null,"Kontorer",1.1000000000000001,1.1499999999999999,1,1,0.85,0.86,0.72,0.72]
[null,"Auditorier",1.1000000000000001,1.1100000000000001,1,1,0.88,0.88,0.76,0.78,null,"Varme",null,null,null,null,null,null,null,null,"Før",null,null,"Efter"]
[null,"Uddannelsesbygninger (skoler)",1.1000000000000001,1.1200000000000001,1,1,0.88,0.87,0.76,0.74,null,{"$f":"Bygningsautomatik_før!Q21","v":"D"},{"$f":"Bygningsautomatik_før!S21","v":0},{"$f":"M111^2","v":0},{"$f":"IF(Inddata!$Y$17=1,C58,C60)","v":1.2},null,{"$f":"LINEST(O111:O114,M111:N114,TRUE,TRUE)","v":4.1522491349480981E-2},-0.26117647058823529,1.198,null,{"$f":"Bygningsautomatik_før!Q19","v":1.55},{"$f":"(Q111*U111^2)+(R111*U111)+(S111)","v":0.89293425605536336},null,{"$f":"Bygningsautomatik_efter!P19","v":1.2},{"$f":"(Q111*X111^2)+(R111*X111)+(S111)","v":0.94438062283737023}]
[null,"Hospitaler",1.2,1.1000000000000001,1,1,1,0.98,1,0.96,null,{"$f":"Bygningsautomatik_før!Q22","v":"C"},{"$f":"Bygningsautomatik_før!S22","v":0.84999999999999976},{"$f":"M112^2","v":0.72249999999999959},{"$f":"IF(Inddata!$Y$17=1,E58,E60)","v":1},null,6.1898075501723637E-3,1.6470588235293949E-2,8.7177978870812706E-3]
[null,"Hoteller",1.1000000000000001,1.1200000000000001,1,1,0.88,0.89,0.76,0.78,null,{"$f":"Bygningsautomatik_før!Q23","v":"B"},{"$f":"Bygningsautomatik_før!S23","v":1.6999999999999997},2.8899999999999992,{"$f":"IF(Inddata!$Y$17=1,G58,G60)","v":0.88},null,0.99911894273127755,8.9442719099990728E-3,{"$error":"#N/A"}]
[null,"Restauranter",1.1000000000000001,1.0900000000000001,1,1,1,0.96,1,0.92,null,{"$f":"Bygningsautomatik_før!Q24","v":"A"},{"$f":"Bygningsautomatik_før!S24","v":2.5499999999999998},6.5024999999999995,{"$f":"IF(Inddata!$Y$17=1,I58,I60)","v":0.8},null,567.00000000001069,1,{"$error":"#N/A"}]
[null,"Engros- og detailhandel",1.1000000000000001,1.1299999999999999,1,1,1,0.95,1,0.91,null,null,null,null,null,null,9.0719999999999967E-2,7.9999999999998462E-5,{"$error":"#N/A"}]
[null,"Andre typer: - Sportsfaciliteter, - Lager, - Industribygninger, - mv.",null,null,1,1]
[]
[null,null,null,null,null,null,null,null,null,null,null,"Varmt brugsvand",null,null,null,null,null,null,null,null,"Før",null,null,"Efter"]
[null,null,null,null,null,null,null,null,null,null,null,{"$f":"Bygningsautomatik_før!Q87","v":"D"},{"$f":"Bygningsautomatik_før!S87","v":0},{"$f":"M119^2","v":0},{"$f":"IF(Inddata!$Y$17=1,C83,C85)","v":1.1100000000000001},null,{"$f":"LINEST(O119:O122,M119:N122,TRUE,TRUE)","v":6.5741417092769119E-3},-0.17918918918918933,1.1095000000000002,null,{"$f":"Bygningsautomatik_før!Q85","v":0},{"$f":"(Q119*U119^2)+(R119*U119)+(S119)","v":1.1095000000000002},null,{"$f":"Bygningsautomatik_efter!P85","v":0},{"$f":"(Q119*X119^2)+(R119*X119)+(S119)","v":1.1095000000000002}]
[null,null,null,null,null,null,null,null,null,null,null,{"$f":"Bygningsautomatik_før!Q88","v":"C"},{"$f":"Bygningsautomatik_før!S88","v":0.6166666666666667},{"$f":"M120^2","v":0.38027777777777783},{"$f":"IF(Inddata!$Y$17=1,D83,D85)","v":1},null,2.9400455511319661E-3,5.6756756756757322E-3,2.1794494717703602E-3]
[null,null,null,null,null,null,null,null,null,null,null,{"$f":"Bygningsautomatik_før!Q89","v":"B"},{"$f":"Bygningsautomatik_før!S89","v":1.2333333333333334},1.5211111111111113,{"$f":"IF(Inddata!$Y$17=1,E83,E85)","v":0.9},null,0.99990579368817711,2.2360679774998116E-3,{"$error":"#N/A"}]
[null,null,null,null,null,null,null,null,null,null,null,{"$f":"Bygningsautomatik_før!Q90","v":"A"},{"$f":"Bygningsautomatik_før!S90","v":1.85},3.4225000000000003,{"$f":"IF(Inddata!$Y$17=1,F83,F85)","v":0.8},null,5306.9999999998972,1,{"$error":"#N/A"}]
[null,null,null,null,null,null,null,null,null,null,null,null,null,null,null,null,5.3070000000000013E-2,5.0000000000000978E-6,{"$error":"#N/A"}]
[]
[]
[null,null,null,null,null,null,null,null,null,null,null,"Køling",null,null,null,null,null,null,null,null,"Før",null,null,"Efter"]
[null,null,null,null,null,null,null,null,null,null,null,{"$f":"Bygningsautomatik_før!Q122","v":"D"},{"$f":"Bygningsautomatik_før!S122","v":0},{"$f":"M127^2","v":0},{"$f":"IF(Inddata!$Y$17=1,D58,D60)","v":0},null,{"$f":"LINEST(O127:O130,M127:N130,TRUE,TRUE)","v":-0.34602076124567493},0.76470588235294168,0.1499999999999998,null,{"$f":"Bygningsautomatik_før!Q120","v":0.35},{"$f":"(Q127*U127^2)+(R127*U127)+(S127)","v":0.37525951557093418},null,{"$f":"Bygningsautomatik_efter!P134","v":0.35},{"$f":"(Q127*X127^2)+(R127*X127)+(S127)","v":0.37525951557093418}]
[null,null,null,null,null,null,null,null,null,null,null,{"$f":"Bygningsautomatik_før!Q123","v":"C"},{"$f":"Bygningsautomatik_før!S123","v":0.84999999999999976},{"$f":"M128^2","v":0.72249999999999959},{"$f":"IF(Inddata!$Y$17=1,F58,F60)","v":1},null,0.46423556626293161,1.2352941176470578,0.65383484153110105]
[null,null,null,null,null,null,null,null,null,null,null,{"$f":"Bygningsautomatik_før!Q124","v":"B"},{"$f":"Bygningsautomatik_før!S124","v":1.6999999999999997},2.8899999999999992,{"$f":"IF(Inddata!$Y$17=1,H58,H60)","v":0},null,0.40000000000000036,0.6708203932499367,{"$error":"#N/A"}]
[null,null,null,null,null,null,null,null,null,null,null,{"$f":"Bygningsautomatik_før!Q125","v":"A"},{"$f":"Bygningsautomatik_før!S125","v":2.5499999999999998},6.5024999999999995,{"$f":"IF(Inddata!$Y$17=1,J58,J60)","v":0},null,0.33333333333333381,1,{"$error":"#N/A"}]
[null,null,null,null,null,null,null,null,null,null,null,null,null,null,null,null,0.30000000000000027,0.44999999999999973,{"$error":"#N/A"}]
[]
[]
[null,null,null,null,null,null,null,null,null,null,null,"Ventilation",null,null,null,null,null,null,null,null,"Før",null,null,"Efter"]
[null,null,null,null,null,null,null,null,null,null,null,{"$f":"Bygningsautomatik_før!Q200","v":"D"},{"$f":"Bygningsautomatik_før!S200","v":0},{"$f":"M135^2","v":0},{"$f":"IF(Inddata!$Y$17=1,D109,D111)","v":1.1200000000000001},null,{"$f":"LINEST(O135:O138,M135:N138,TRUE,TRUE)","v":-3.4602076124567284E-3},-0.14058823529411776,1.1205000000000003,null,{"$f":"Bygningsautomatik_før!Q198","v":1.35},{"$f":"(Q135*U135^2)+(R135*U135)+(S135)","v":0.92439965397923884},null,{"$f":"Bygningsautomatik_efter!P207","v":1.35},{"$f":"(Q135*X135^2)+(R135*X135)+(S135)","v":0.92439965397923884}]
[null,null,null,null,null,null,null,null,null,null,null,{"$f":"Bygningsautomatik_før!Q201","v":"C"},{"$f":"Bygningsautomatik_før!S201","v":0.84999999999999976},{"$f":"M136^2","v":0.72249999999999959},{"$f":"IF(Inddata!$Y$17=1,F109,F111)","v":1},null,1.5474518875431161E-3,4.117647058823554E-3,2.1794494717703519E-3]
[null,null,null,null,null,null,null,null,null,null,null,{"$f":"Bygningsautomatik_før!Q202","v":"B"},{"$f":"Bygningsautomatik_før!S202","v":1.6999999999999997},2.8899999999999992,{"$f":"IF(Inddata!$Y$17=1,H109,H111)","v":0.87},null,0.99993802293151524,2.2360679774998046E-3,{"$error":"#N/A"}]
[null,null,null,null,null,null,null,null,null,null,null,{"$f":"Bygningsautomatik_før!Q203","v":"A"},{"$f":"Bygningsautomatik_før!S203","v":2.5499999999999998},6.5024999999999995,{"$f":"IF(Inddata!$Y$17=1,J109,J111)","v":0.74},null,8066.9999999998972,1,{"$error":"#N/A"}]
[null,null,null,null,null,null,null,null,null,null,null,null,null,null,null,null,8.0670000000000047E-2,5.0000000000000665E-6,{"$error":"#N/A"}]
[]
[]
[null,null,null,null,null,null,null,null,null,null,null,"Belysning",null,null,null,null,null,null,null,null,"Før",null,null,"Efter"]
[null,null,null,null,null,null,null,null,null,null,null,{"$f":"Bygningsautomatik_før!Q328","v":"D"},{"$f":"Bygningsautomatik_før!S328","v":0},{"$f":"M143^2","v":0},{"$f":"IF(Inddata!$Y$17=1,C109,C111)","v":1.1000000000000001},null,{"$f":"LINEST(O143:O146,M143:N146,TRUE,TRUE)","v":-4.9999999999999758E-3},-9.9000000000000088E-2,1.101,null,{"$f":"Bygningsautomatik_før!Q326","v":2},{"$f":"(Q143*U143^2)+(R143*U143)+(S143)","v":0.8829999999999999},null,{"$f":"Bygningsautomatik_efter!P326","v":2},{"$f":"(Q143*X143^2)+(R143*X143)+(S143)","v":0.8829999999999999}]
[null,null,null,null,null,null,null,null,null,null,null,{"$f":"Bygningsautomatik_før!Q329","v":"C"},{"$f":"Bygningsautomatik_før!S329","v":1},{"$f":"M144^2","v":1},{"$f":"IF(Inddata!$Y$17=1,E109,E111)","v":1},null,2.2360679774997868E-3,6.9999999999999923E-3,4.3588989435406674E-3]
[null,null,null,null,null,null,null,null,null,null,null,{"$f":"Bygningsautomatik_før!Q330","v":"B"},{"$f":"Bygningsautomatik_før!S330","v":2},4,{"$f":"IF(Inddata!$Y$17=1,G109,G111)","v":0.88},null,0.99969278033794151,4.4721359549995746E-3,{"$error":"#N/A"}]
[null,null,null,null,null,null,null,null,null,null,null,{"$f":"Bygningsautomatik_før!Q331","v":"A"},{"$f":"Bygningsautomatik_før!S331","v":3},9,{"$f":"IF(Inddata!$Y$17=1,I109,I111)","v":0.76},null,1627.0000000000041,1,{"$error":"#N/A"}]
[null,null,null,null,null,null,null,null,null,null,null,null,null,null,null,null,6.5080000000000027E-2,1.9999999999999958E-5,{"$error":"#N/A"}]
[]
[]
[null,null,null,null,null,null,null,null,null,null,null,"Solafskærmning",null,null,null,null,null,null,null,null,"Før",null,null,"Efter"]
[null,null,null,null,null,null,null,null,null,null,null,{"$f":"Bygningsautomatik_før!Q363","v":"D"},{"$f":"Bygningsautomatik_før!S363","v":0},{"$f":"M151^2","v":0},{"$f":"IF(Inddata!$Y$17=1,D109,D111)","v":1.1200000000000001},null,{"$f":"LINEST(O151:O154,M151:N154,TRUE,TRUE)","v":-2.4999999999999701E-3},-0.11950000000000012,1.1205000000000001,null,{"$f":"Bygningsautomatik_før!Q361","v":2},{"$f":"(Q151*U151^2)+(R151*U151)+(S151)","v":0.87149999999999994},null,{"$f":"Bygningsautomatik_efter!P361","v":2},{"$f":"(Q151*X151^2)+(R151*X151)+(S151)","v":0.87149999999999994}]
[null,null,null,null,null,null,null,null,null,null,null,{"$f":"Bygningsautomatik_før!Q364","v":"C"},{"$f":"Bygningsautomatik_før!S364","v":1},{"$f":"M152^2","v":1},{"$f":"IF(Inddata!$Y$17=1,F109,F111)","v":1},null,1.1180339887498778E-3,3.4999999999999476E-3,2.179449471770306E-3]
[null,null,null,null,null,null,null,null,null,null,null,{"$f":"Bygningsautomatik_før!Q365","v":"B"},{"$f":"Bygningsautomatik_før!S365","v":2},4,{"$f":"IF(Inddata!$Y$17=1,H109,H111)","v":0.87},null,0.99993802293151524,2.2360679774997561E-3,{"$error":"#N/A"}]
[null,null,null,null,null,null,null,null,null,null,null,{"$f":"Bygningsautomatik_før!Q366","v":"A"},{"$f":"Bygningsautomatik_før!S366","v":3},9,{"$f":"IF(Inddata!$Y$17=1,J109,J111)","v":0.74},null,8067.0000000002474,1,{"$error":"#N/A"}]
[null,null,null,null,null,null,null,null,null,null,null,null,null,null,null,null,8.0670000000000047E-2,4.9999999999998496E-6,{"$error":"#N/A"}]
[]
[null,null,null,null,null,null,null,null,null,null,null,null,null,null,null,null,null,null,null,null,null,null,null,null,"Varme"]
[null,null,null,null,null,null,null,null,null,null,null,"CTS",null,null,null,null,"Varme",null,null,null,"El",null,null,null,"Før",null,null,"Efter"]
[null,null,null,null,null,null,null,null,null,null,null,{"$f":"Bygningsautomatik_før!Q384","v":"D"},{"$f":"Bygningsautomatik_før!S384","v":0},{"$f":"M159^2","v":0},{"$f":"IF(Inddata!$Y$17=1,C7,C9)","v":1.2},{"$f":"IF(Inddata!$Y$17=1,C33,C35)","v":1.07},{"$f":"LINEST(O159:O162,M159:N162,TRUE,TRUE)","v":5.5785123966942116E-2},-0.30272727272727262,1.198,null,{"$f":"LINEST(P159:P162,M159:N162,TRUE,TRUE)","v":7.3730867928175977E-18},-9.5454545454545472E-2,1.07,null,{"$f":"Bygningsautomatik_før!Q382","v":0.7},{"$f":"(Q159*Y159^2)+(R159*Y159)+(S159)","v":1.0134256198347107},null,{"$f":"Bygningsautomatik_efter!P380","v":2.2000000000000002},{"$f":"(Q159*AB159^2)+(R159*AB159)+(S159)","v":0.80200000000000005}]
[null,null,null,null,null,null,null,null,null,null,null,{"$f":"Bygningsautomatik_før!Q385","v":"C"},{"$f":"Bygningsautomatik_før!S385","v":0.73333333333333339},{"$f":"M160^2","v":0.53777777777777791},{"$f":"IF(Inddata!$Y$17=1,D7,D9)","v":1},{"$f":"IF(Inddata!$Y$17=1,D33,D35)","v":1},8.3159552882223504E-3,1.9090909090909072E-2,8.7177978870813348E-3,null,5.483733302158089E-17,1.2588987112347678E-16,5.748717608255752E-17]
[null,null,null,null,null,null,null,null,null,null,null,{"$f":"Bygningsautomatik_før!Q386","v":"B"},{"$f":"Bygningsautomatik_før!S386","v":1.4666666666666668},2.1511111111111116,{"$f":"IF(Inddata!$Y$17=1,E7,E9)","v":0.88},{"$f":"IF(Inddata!$Y$17=1,E33,E35)","v":0.93},0.99911894273127755,8.9442719099991491E-3,{"$error":"#N/A"},null,1,5.8980598183211441E-17,{"$error":"#N/A"},null,"El"]
[null,null,null,null,null,null,null,null,null,null,null,{"$f":"Bygningsautomatik_før!Q387","v":"A"},{"$f":"Bygningsautomatik_før!S387","v":2.2000000000000002},4.8400000000000007,{"$f":"IF(Inddata!$Y$17=1,F7,F9)","v":0.8},{"$f":"IF(Inddata!$Y$17=1,F33,F35)","v":0.86},567.00000000000102,1,{"$error":"#N/A"},null,3.5214193227433451E+30,1,{"$error":"#N/A"},null,"Før",null,null,"Efter"]
[null,null,null,null,null,null,null,null,null,null,null,null,null,null,null,null,9.0719999999999967E-2,7.999999999999983E-5,{"$error":"#N/A"},null,2.4500000000000011E-2,3.4787109620494448E-33,{"$error":"#N/A"},null,{"$f":"Bygningsautomatik_før!Q382","v":0.7},{"$f":"(U159*Y163^2)+(V159*Y163)+(W159)","v":1.0031818181818182},null,{"$f":"Bygningsautomatik_efter!P380","v":2.2000000000000002},{"$f":"(U159*AB163^2)+(V159*AB163)+(W159)","v":0.8600000000000001}]

{"sheet":"Priser","index":16,"n_rows":369,"n_cols":48,"rows_kept":369,"cut":false,"hidden":false,"merged":[[65,1,66,1],[3,1,4,1],[5,1,6,1],[7,1,9,1],[17,39,18,39],[22,1,23,1],[101,1,102,1],[67,1,68,1],[72,1,73,1],[75,27,78,33],[77,1,78,1],[77,8,78,12],[79,1,80,1],[80,8,82,12],[83,1,84,1],[84,8,85,12],[89,1,90,1],[91,1,92,1],[96,1,97,1],[242,39,243,39],[103,1,104,1],[107,1,108,1],[109,1,111,1],[115,1,116,1],[116,39,117,39],[117,1,118,1],[122,1,124,1],[141,39,142,39],[150,39,151,39],[168,39,169,39],[185,39,186,39],[289,39,291,39],[303,39,304,39],[247,39,248,39],[256,39,257,39],[259,39,260,39],[270,39,271,39],[282,39,283,39],[285,39,287,39]]}
[]
[null,"(6.) EL- OG MEKANISKE ANLÆG (64) ELEKTRONIK OG SVAGSTRØM             ",null,null,null,null,null,null,null,null,null,null,null,null,null,null,null,null,null,null,null,null,null,null,null,null,null,null,null,null,null,null,null,null,null,null,null,null,"Bygningsautomatik og tekniske bygningsstyringsfunktioner, der har en indvirkning på bygningers energieffektivitet"]
[]
[null,"(64)52.05 Central Tilstandskontrol og Styringsanlæg (CTS-anlæg) at levere og installere                    ",null,null,null,null,null,null,null,null,null,null,null,null,null,null,null,null,null,null,null,null,null,null,null,null,null,null,null,null,null,null,null,null,null,null,null,null,"Automatisk styring - priser"]
[]
[null,"Inkl. Automatikkomponenter, automatikinstallation, elinstallation til pumper m.m., føringsveje i teknikrum og på anlæg.",null,null,null,null,null,null,null,null,null,null,null,null,null,null,null,null,null,null,null,null,null,null,null,null,null,null,null,null,null,null,null,null,null,null,null,null,"Nr.","Funktion"]
[]
[null,"Ekskl. Hovedledninger til kraft- og automatiktavler, føringsveje udenfor teknikrum, telefonledning for opkobling til hovedstation, serviceabonnement samt alle vand-, varme og ventilationsinstallationer.",null,null,null,null,null,null,null,null,null,null,null,null,null,null,null,null,null,null,null,null,null,null,null,null,null,null,null,null,null,null,null,null,null,null,null,null,1,"Varmeregulering"]
[null,null,null,null,null,null,null,null,null,null,null,null,null,null,null,null,null,null,null,null,null,null,null,null,"Anlæg"]
[null,null,null,null,null,null,null,null,null,null,null,null,null,null,null,null,null,null,null,null,null,null,null,null,null,null,null,null,null,null,null,null,null,null,null,null,null,null,"1.1","Regulering af varmeafgivere"]
[null,null,null,null,null,null,null,null,null,null,null,null,null,null,null,null,null,null,null,null,null,null,null,null,"CTS-punkter:","Antal","Centrale anlæg (aggregater)",null,"CTS-punkter"]
[null,"Type TAC - Xenta.",null,null,null,null,null,null,null,null,null,null,null,null,null,null,null,null,null,null,null,null,null,null,"Varme- og køleanlæg","10 - 15","Blandesløjfer",null,{"$f":"Z23+Z33","v":0},null,null,null,null,null,null,null,null,null,null,"Styringsfunktionen anvendes på varmeafgivere (radiatorer, gulvvarme, fancoils, indendørsenheder) på rumniveau. For type 1 kan én funktion styre flere rum."]
[null,"Hovedstation",null,null,null,null,null,null,null,null,null,null,null,null,null,null,null,null,null,null,null,null,null,null,"Brugsvand","10 - 15","Beholder eller veksler samt cirkulation"]
[null," ,01 Enkeltbrugeranlæg, type Vista      "," stk.  ",86700," -     ",173000,null,null,null,null,null,null,null,null,null,null,null,null,null,null,null,null,null,null,"Køling","10 - 15","Blandesløjfer",null,{"$f":"Z24","v":0},null,null,null,null,null,null,null,null,null,1,"Individuel rumstyring: Ved hjælp af termostatiske ventiler eller elektroniske regulatorer."]
[null," ,02 Flerbrugeranlæg, type Vista      "," stk.  ",192000," -     ",321000,null,null,null,null,null,null,null,null,null,null,null,null,null,null,null,null,null,null,"Ventilation","40 - 50","Med varme, køling og VAV (trykstyring)",null,{"$f":"Z44","v":200}]
[null,null,null,null,null,null,null,null,null,null,null,null,null,null,null,null,null,null,null,null,null,null,null,null,"Belysning","Pr. rum","PIR- og lysfølere kommer ud over dette",null,{"$f":"Z53","v":0},null,null,null,null,null,null,null,null,null,2,"Individuel modulerende rumstyring med kommunikation: Kommunikerer mellem regulatorer og BMS-system (f.eks. tidsskemaer eller rumtemperatursætpunkt).",null,{"$f":"K34+Z34","v":0},null,{"$f":"IF(Bygningsautomatik_efter!D22=1,0,IF(Bygningsautomatik_efter!D22=2,Priser!AP16,IF(Bygningsautomatik_efter!D22=3,Priser!AP16,Priser!AP18)))","v":0}]
[null,"Billeder til hovedstation",null,null,null,null,null,null,null,null,null,null,null,null,null,null,null,null,null,null,null,null,null,null,"Solafskærming","Pr. etage",null,null,{"$f":"Z60","v":0}]
[null,"Oversigtsbilleder (diagram til bygning)"," stk.  ",4060," -     ",6070,null,null,null,null,null,null,null,null,null,null,null,null,null,null,null,null,null,null,"CTS-anlæg","Pr. Anlæg",null,null,null,null,null,null,null,null,null,null,null,null,3,"Individuel modulerende rumstyring med kommunikation og registrering af tilstedværelse: Mellem regulatorer og BMS-system. Behovsstyring/registrering af tilstedeværelse. Denne funktion anvendes normalt ikke på langsomt reagerende varmeafgiver med termiske masse som for eksempel gulvvarmesystemer eller vægvarme.",null,{"$f":"L34+Z34","v":0}]
[null,"Anlægsbilleder (diagram af diverse anlæg)  "," stk.  ",3420," -     ",5030,null,null,null,null,null,null,null,null,null,null,null,null,null,null,null,null,null,null,"I alt",null,null,null,{"$f":"SUM(AC12:AC18)","v":200}]
[null,null,null,null,null,null,null,null,"Komponenter"]
[null,null,null,null,null,null,null,null,null,null,null,null,null,null,null,null,null,null,null,null,null,null,null,null,null,null,null,null,null,null,null,null,null,null,null,null,null,null,"1.2","Regulering af distributionsnet - centralvarmevandets temperatur (fremløb eller retur)"]
[null,"(64)52.10 CTS-anlægstyper at levere og installere                    ",null,null,null,null,null,"1 + 2 + 3","Varme & køling (& ventlation)","Antal [stk.]","Pris [kr.]","Pris [kr.] maks.","Pris [kr.] middel",null,null,null,null,null,null,null,null,null,null,null,"Varme & køling","CTS-punkter"]
[null,"Inkl. nødvendig elinstallation og automatik. Ekskl. hovedstationer  og hastighedsregulering af motorer.  ",null,null,null,null,null,null,"Blandesløjfe - varme",{"$f":"IF(Anlæg!AM9=0,0,Anlæg!AT9)","v":0},{"$f":"J23*D30","v":0},"-","-",null,"Det skal angives hvor mange der er brug for.",null,null,null,null,null,null,null,null,null,{"$f":"I23","v":"Blandesløjfe - varme"},{"$f":"J23*5","v":0},null,null,null,null,null,null,null,null,null,null,null,null,null,"En lignende funktion kan bruges til styring af elektriske opvarmningsnet."]
[null,null,null,null,null,null,null,null,"Blandesløjfe - køl",{"$f":"IF(Anlæg!AM39=0,0,Anlæg!AM39)","v":0},{"$f":"J24*D30","v":0},"-","-",null,null,null,null,null,null,null,null,null,null,null,"Blandesløjfe - køl",{"$f":"J24*5","v":0}]
[null,null,null,null,null,null,null,null,"I alt",null,{"$f":"SUM(K23:K24)","v":0},"-","-",null,null,null,null,null,null,null,null,null,null,null,{"$f":"I25","v":"I alt"},{"$f":"SUM(Z23:Z24)","v":0},null,null,null,null,null,null,null,null,null,null,null,null,0,"Ingen automatisk styring."]
[null,"Det er forudsat at anlægstyperne tilsluttes en hovedstation.         ",null,null,null,null,null,null,null,null,null,null,null,null,null,null,null,null,null,null,null,null,null,null,"Pris",{"$f":"Z25*3000","v":0}]
[null,null,null,null,null,null,null,null,null,null,null,null,null,null,null,null,null,null,null,null,null,null,null,null,null,null,null,null,null,null,null,null,null,null,null,null,null,null,1,"Udetemperaturkompenseret styring: Reducerer generelt middelfremløbstemperaturen.",null,{"$f":"K23+Z26","v":0},null,{"$f":"IF(Bygningsautomatik_efter!D34=0,0,IF(Bygningsautomatik_efter!D34=1,Priser!AP27,IF(Bygningsautomatik_efter!D34=2,Priser!AP27,Priser!AP29)))","v":0}]
[null,"Varme & køling",null,null,null,null,null,"1 + 2 + 3","Varme","Antal [stk.]","Pris [kr.]","Pris [kr.] maks.","Pris [kr.] middel"]
[null,"Blandesløjfe - varme & køling                 ","       ","         ","       ","         ","         ",null,"Radiatortermostatventiler",{"$f":"IF(Anlæg!AM13=0,0,Anlæg!J15)","v":0},{"$f":"J29*D33","v":0},"-","-",null,null,null,null,null,null,null,null,null,null,null,"Varme & køling","CTS-punkter",null,null,null,null,null,null,null,null,null,null,null,null,2,"Efterspørgselsbaseret styring: Baseret på en indendørs temperaturkontrolvariabel. Reducerer generelt middelfremløbstemperaturen.",null,{"$f":"1.3*K23+Z26","v":0}]
[null,"Tre termofølere, potentiometer på reg.ventil & pumpedrift inkl. el og opkobling","stk.  ",36000,null,null,null,null,"Rumfølere",{"$f":"IF(Anlæg!AM13=0,0,Anlæg!J15)","v":0},{"$f":"J30*D34","v":0},"-","-",null,null,null,null,null,null,null,null,null,null,null,{"$f":"I29","v":"Radiatortermostatventiler"},{"$f":"J29","v":0}]
[null,null,null,null,null,null,null,null,"PIR-følere",{"$f":"IF(Anlæg!AM17=0,0,Anlæg!J14)","v":0},{"$f":"J31*1000","v":0},"-","-",null,null,null,null,null,null,null,null,null,null,null,{"$f":"I30","v":"Rumfølere"},{"$f":"J30","v":0},null,null,null,null,null,null,null,null,null,null,null,null,"1.3","Styring af cirkulationspumper i distributionsnet"]
[null,"Temperaturstyring i rum",null,null,null,null,null,null,"I alt",null,{"$f":"SUM(K29:K31)","v":0},"-","-",null,"Alternativ 1","Uden montering",null,null,null,null,null,null,null,null,null,{"$f":"J31","v":0}]
[null,"Varme - motorstyring af radiator inkl. el og opkobling","stk.",2500,null,null,null,null,null,null,null,null,null,null,null,null,null,null,null,null,null,null,null,null,{"$f":"I32","v":"I alt"},{"$f":"Z30","v":0},null,null,null,null,null,null,null,null,null,null,null,null,null,"Reducerer pumpernes hjælpeenergibehov."]
[null,"Rumføler inkl. el og opkobling","stk.",6500,null,null,null,null,"Rumregulering af radiatoranlæg",{"$f":"IF(OR(Anlæg!AH21=1,Anlæg!AI21=1,Anlæg!AJ21=1,Anlæg!AK21=1,Anlæg!AL21=1),0,Inddata!F7/50)","v":0},{"$f":"J34*D35","v":0},{"$f":"J34*F35","v":0},{"$f":"AVERAGE(K34:L34)","v":0},null,"Alternativ 2","Passer meget godt med installation",null,null,null,null,null,null,null,null,"Pris",{"$f":"Z33*3000","v":0}]
[null,"Regulering af radiatoranlæg i rum på ca. 50 m²                     ","stk.  ",6410," -     ",9620,null,null,null,null,null,null,null,null,null,null,null,null,null,null,null,null,null,null,null,null,null,null,null,null,null,null,null,null,null,null,null,null,0,"Ingen automatisk styring."]
[]
[null,"Ventilation",null,null,null,null,null,4,"Ventilation","Antal [stk.]","Pris [kr.]","Pris [kr.] maks.","Pris [kr.] middel",null,null,null,null,null,null,null,null,null,null,null,"Ventilation","CTS-punkter",null,null,null,null,null,null,null,null,null,null,null,null,1,"Tænd/sluk-styring: Pumper kører ved maksimal hastighed uden regulering."]
[null,"Ventilationsanlæg, indblæsning og udsugning                        ",null,null,null,null,null,null,"VAV-spjæld",{"$f":"IF(OR(Anlæg!AH74=1,Anlæg!AI74=1,Anlæg!AJ74=1,Anlæg!AK74=1,Anlæg!AL74=1),0,Inddata!F11*2)","v":0},{"$f":"J38*3000","v":0},"-","-",null,"Der regnes med 1 armatur pr. 10 m2 (nøgletal). Et VAV-spjæld pr. zone på 50 m2 (nøgletal).",null,null,null,null,null,null,null,null,null,{"$f":"I38","v":"VAV-spjæld"},0]
[null,"Ekskl. VAV (variabel luftmængde) "," stk.  ",109000," -     ",139000,null,null,"Frekvensomformere",{"$f":"IF(OR(Anlæg!AH74=1,Anlæg!AI74=1,Anlæg!AJ74=1,Anlæg!AK74=1,Anlæg!AL74=1),0,Anlæg!AT60*2)","v":0},{"$f":"J39*10000","v":0},"-","-",null,"Skal regnes som pris pr. kW",null,null,null,null,null,null,null,null,null,"Frekvensomformere",0,null,null,null,null,null,null,null,null,null,null,null,null,2,"Flertrinsstyring: Pumpens hastighed styres via flertrinskontrol."]
[null,"Inkl. VAV (variabel luftmængde)  "," stk.  ",211000," -     ",252000,null,null,"PIR-følere",{"$f":"IF(Anlæg!AM62=0,0,Anlæg!J51)","v":0},{"$f":"J40*1000","v":0},"-","-",null,"Servodan PIR 360° sensor. 1.000,-",null,null,null,null,null,null,null,null,null,"PIR-følere",0]
[null,"Regulering af ventilation med VAV (variabel luftmængde) i rum på ca. 50 m² "," stk. ",6410," -     ",9620,null,null,"Antal temperatursensorer",{"$f":"IF(Anlæg!AM66=0,0,Anlæg!J52)","v":0},{"$f":"J41*D34/2","v":0},"-","-",null,"Kombineret sensor",null,"Der regnes med 1 sensor pr. 100 m2 (nøgletal).",null,null,null,null,null,null,null,"Antal temperatursensorer",0,null,null,null,null,null,null,null,null,null,null,null,null,3,"Variabel hastighedspumpestyring: Konstant eller variabelt tryk baseret på interne estimeringer.",null,{"$f":"AF140","v":341.64568796032836},null,{"$f":"IF(Bygningsautomatik_efter!G42=0,0,IF(Bygningsautomatik_efter!G42=1,0,IF(Bygningsautomatik_efter!G42=2,0,IF(Bygningsautomatik_efter!G42=3,Priser!AP41,IF(Bygningsautomatik_efter!G42=4,Priser!AP41,Priser!AP43)))))","v":0}]
[null,null,null,null,null,null,null,null,"Antal CO2-sensorer",{"$f":"IF(Anlæg!AM50=0,0,Anlæg!J53)","v":0},{"$f":"J42*D35/2","v":0},"-","-",null,"Kombineret sensor",null,"Der regnes med 1 sensor pr. 100 m2 (nøgletal).",null,null,null,null,null,null,null,"Antal CO2-sensorer",0]
[null,"Belysning",null,null,null,null,null,null,"I alt",null,{"$f":"SUM(K38:K42)","v":0},"-","-",null,"Alternativ 1",null,null,null,null,null,null,null,null,null,"Aggregat",{"$f":"IF(OR(Anlæg!AH74=1,Anlæg!AI74=1,Anlæg!AJ74=1,Anlæg!AK74=1,Anlæg!AL74=1),0,40*5)","v":200},null,null,null,null,null,null,null,null,null,null,null,null,4,"Variabel hastighedspumpestyring: Variabelt tryk, baseret på eksternt behovssignal.",null,{"$f":"1.2*AF140","v":409.97482555239401}]
[null,"Styring af belysningsanlæg inkl. overvågning & opkobling",null,null,null,null,null,null,null,null,null,null,null,null,null,null,null,null,null,null,null,null,null,null,{"$f":"I43","v":"I alt"},{"$f":"SUM(Z38,Z39,Z43)","v":200}]
[null,"Pris pr. lokale","stk.  ",7800," - ",13900,null,null,"Regulering af ventilationsanlæg med VAV",{"$f":"IF(OR(Anlæg!AH74=1,Anlæg!AI74=1,Anlæg!AJ74=1,Anlæg!AK74=1,Anlæg!AL74=1),0,Inddata!F7/50)","v":0},{"$f":"J45*D41","v":0},{"$f":"J45*F41","v":0},{"$f":"AVERAGE(K45:L45)","v":0},null,"Alternativ 2","Passer meget godt med installation",null,null,null,null,null,null,null,null,"Pris",{"$f":"Z44*3000","v":600000},null,null,null,null,null,null,null,null,null,null,null,null,"1.4","Regulering af fremløbstemperatur fra varmeproducerende enhed (brændsler og fjernvarme)"]
[]
[null,"Solafskærmning",null,null,null,null,null,null,null,null,null,null,null,null,null,null,null,null,null,null,null,null,null,null,null,null,null,null,null,null,null,null,null,null,null,null,null,null,null,"Reducerer den varmeproducerende enheds driftstemperatur."]
[null,"Overvågning af solafskærmning inkl. opkobling & skærmbillede, pris pr. ","stk.",19500,null,null,null,5,"Belysning","Antal [stk.]","Pris [kr.] min.","Pris [kr.] maks.","Pris [kr.] middel",null,null,null,null,null,null,null,null,null,null,null,"Belysning","CTS-punkter"]
[null,null,null,null,null,null,null,null,"LED-armaturer",{"$f":"IF(OR(Anlæg!AH88=1,Anlæg!AI88=1,Anlæg!AJ88=1,Anlæg!AK88=1,Anlæg!AL88=1),0,Anlæg!J71)","v":0},{"$f":"J49*1000","v":0},"-","-",null,"Hvordan håndterer vi det? Er det merudgiften til styring vi skal regne på?",null,null,null,null,null,null,null,null,null,{"$f":"I49","v":"LED-armaturer"},0,"Skal detektering af de enkelte armaturer med? Lux-level og %-tændt.",null,null,null,null,null,null,null,null,null,null,null,0,"Konstant temperaturstyring."]
[null,"Energimålere",null,null,null,null,null,null,"Forkoblinger/driver",{"$f":"IF(OR(Anlæg!AH88=1,Anlæg!AI88=1,Anlæg!AJ88=1,Anlæg!AK88=1,Anlæg!AL88=1),0,Anlæg!J71)","v":0},{"$f":"J50*300","v":0},"-","-",null,null,null,null,null,null,null,null,null,null,null,"Forkoblinger/driver",0,"Måske hører det under fejlregistrering og diagnosticering?"]
[null,"Energimåler, el inkl. opkobling","stk.",10500,null,null,null,null,"PIR-følere",{"$f":"IF(Anlæg!AM80=0,0,Anlæg!J65)","v":0},{"$f":"J51*1000","v":0},"-","-",null,"Servodan PIR 360° sensor. 1.000,-",null,null,null,null,null,null,null,null,null,"PIR-følere",0,null,null,null,null,null,null,null,null,null,null,null,null,1,"Variabel temperaturstyring afhængig af udetemperaturen.",null,{"$f":"IF(Anlæg!AM22=0,0,D30+2000)","v":0},null,{"$f":"IF(Bygningsautomatik_efter!D62=0,0,IF(Bygningsautomatik_efter!D62=1,Priser!AP51,IF(Bygningsautomatik_efter!D62=2,Priser!AP51,Priser!AP53)))","v":0},null,"ECL + programmering i CTS-anlægget - 2 timer"]
[null,"Energimåler, varme inkl. opkobling","stk.",19800,null,null,null,null,"Dagslyssensorer",{"$f":"IF(Anlæg!AM84=0,0,Anlæg!J66)","v":0},{"$f":"J52*1000","v":0},"-","-",null,"Servodan tilstedeværelsessensor 41-751, master, for påbygning. 2.000,-",null,null,null,null,null,null,null,null,null,"Dagslyssensorer",0]
[null,"Opkobling af energimåler","stk.",6500,null,null,null,null,"I alt",null,{"$f":"SUM(K49:K52)","v":0},"-","-",null,"Alternativ 1",null,null,null,null,null,null,null,null,null,"I alt",{"$f":"SUM(Z51,Z52)","v":0},null,null,null,null,null,null,null,null,null,null,null,null,2,"Variabel temperaturstyring afhængig af belastningen: Eksempelvis afhængig af forsyningsvandets temperatur setpunkt",null,{"$f":"IF(Anlæg!AM22=0,0,D30+2000+K31)","v":0},null,null,null,"ECL + programmering i CTS-anlægget - 2 timer + temp"]
[null,null,null,null,null,null,null,null,null,null,null,null,null,null,null,null,null,null,null,null,null,null,null,null,"Pris",{"$f":"Z53*3000","v":0}]
[null," Automatiktavle uden central                                       ",null,null,null,null,null,null,"Styring af belysningsanlæg",{"$f":"Anlæg!AT88","v":0},{"$f":"J55*D45","v":0},{"$f":"J55*F45","v":0},{"$f":"AVERAGE(K55:L55)","v":0},null,"Alternativ 2","Passer meget godt med installation",null,null,null,null,null,null,null,null,null,null,null,null,null,null,null,null,null,null,null,null,null,null,"1.5","Regulering af fremløbstemperatur fra varmeproducerende enhed (varmepumpe)"]
[null," ,11 Tavlen er forberedt for Xenta hovedstation ","stk. ",12200," - ",16100,null,null,null,null,null,null,null,null,null,null,null,null,null,null,null,null,null,null,"Pris (detektering af armaturer)",{"$f":"J51*3000","v":0},"Sker pr. rum - DALI"]
[null,null,null,null,null,null,null,null,null,null,null,null,null,null,null,null,null,null,null,null,null,null,null,null,null,null,null,null,null,null,null,null,null,null,null,null,null,null,null,"Maksimerer varmeproducerende enheds effektivitet."]
[null," Kraft- og fordelingstavle for et ventilationsanlæg                ",null,null,null,null,null,6,"Solafskærmning","Areal [m2]","Pris [kr.] min.","Pris [kr.] maks.","Pris [kr.] middel",null,"Solafskærmning ",null,"1.500 - 3.000 kr./m2",null,"https://www.willabgarden.dk/"]
[null," ,12 Pris pr.                  ","stk.  ",25700," -     ",29900,null,null,"Vinduer",{"$f":"IF(OR(Anlæg!AH103=1,Anlæg!AI103=1,Anlæg!AJ103=1,Anlæg!AK103=1,Anlæg!AL103=1),0,Inddata!E112)","v":2344},{"$f":"J59*1500","v":3516000},"-","-",null,null,null,null,null,"Søren Draborg",null,null,null,null,null,"Solafskærmning","CTS-punkter",null,null,null,null,null,null,null,null,null,null,null,null,0,"Konstant temperaturstyring."]
[null,null,null,null,null,null,null,null,null,null,null,null,null,null,null,null,null,null,null,null,null,null,null,null,"Syd, øst og vest x antal etager",{"$f":"IF(OR(Anlæg!AH103=1,Anlæg!AI103=1,Anlæg!AJ103=1,Anlæg!AK103=1,Anlæg!AL103=1),0,(Inddata!F9*3)+(Inddata!F9*3*2))","v":0}]
[null," Modem tilsluttet for opkald til hovedstation                     ",null,null,null,null,null,null,null,null,null,null,null,null,null,null,null,null,null,null,null,null,null,null,"I alt",{"$f":"IF(OR(Anlæg!AH103=1,Anlæg!AI103=1,Anlæg!AJ103=1,Anlæg!AK103=1,Anlæg!AL103=1),0,(Inddata!F9*3*3000)+(Inddata!F9*3*2*3000))","v":0},"Inkl. solintensitet og vind",null,null,null,null,null,null,null,null,null,null,null,1,"Variabel temperaturstyring afhængig af udetemperaturen.",null,{"$f":"IF(Anlæg!AM22=0,0,D30+2000)","v":0},null,{"$f":"IF(Bygningsautomatik_efter!D74=0,0,IF(Bygningsautomatik_efter!D74=1,Priser!AP61,IF(Bygningsautomatik_efter!D74=2,Priser!AP61,Priser!AP63)))","v":0},null,"ECL + programmering i CTS-anlægget - 2 timer"]
[null," ,13 Pris pr.                  ","stk.  ",8670," -     ",31100]
[null,null,null,null,null,null,null,7,"CTS-anlæg",null,null,null,null,null,null,null,null,null,null,null,null,null,null,null,null,null,null,null,null,null,null,null,null,null,null,null,null,null,2,"Variabel temperaturstyring afhængig af belastningen: F.eks. afhængig af forsyningsvandets temperatur setpunkt",null,{"$f":"IF(Anlæg!AM22=0,0,D30+2000+K31)","v":0},null,null,null,"ECL + programmering i CTS-anlægget - 2 timer + temp"]
[null,null,null,null,null,null,null,null,"Sætpunktsstyring",null,null,null,null,null,"Det ligger I CTS-anlægget",null,null,null,null,null,null,null,null,null,"Hvad koster det pr. CTS-punkt og hvor mange punkter pr. anlæg?",null,null,"Fra decentrale styringsenheder (stand-alone) til central styring."]
[null,"(64)52.15 CTS-installationer for skoler at levere og installere      ",null,null,null,null,null,null,"Driftstidsstyring",null,null,null,null,null,"Det ligger I CTS-anlægget. Her kan man indstille driftstider (uge-programmer).",null,null,null,null,null,null,null,null,null,"Hvad koster det pr. CTS-punkt og hvor mange punkter pr. anlæg?",null,null,"Fra decentrale styringsenheder (stand-alone) til central styring.",null,null,null,null,null,null,null,null,null,null,null,null,null,null,null,{"$f":"AR16+AR27+AR41+AR51+AR61","v":0}]
[null,"Inkl. automatikkomponenter, automatikinstallationer, stærkstrøminstallation samt føringsveje i teknikrum og på anlæg. ",null,null,null,null,null,null,"Fejlregistrering og diagnosticering",null,null,null,null,null,"Det er inkluderet I CTS-punktet",null,null,null,null,null,null,null,null,null,"Hvad koster det pr. CTS-punkt og hvor mange punkter pr. anlæg?",null,null,"Fra decentrale styringsenheder (stand-alone) til central styring. Fejl kan kun ses på denne styringsenhed.",null,null,null,null,null,null,null,null,null,null,2,"Regulering af system til varmt brugsvand"]
[null,null,null,null,null,null,null,null,"Rapportering og info om energi og indeklima",null,null,null,null,null,"BR18-beregning og energisignatur.",null,null,null,null,null,null,null,null,null,"BR18-beregning og energisignatur."]
[null,"Ekskl. hovedledninger til kraft- og automatiktavler, føringsveje udenfor teknikrum, serviceabonnement samt alle vand-, varme- og ventilationsinstallationer.                                          ",null,null,null,null,null,null,null,null,null,null,null,null,null,null,null,null,null,null,null,null,null,null,null,null,null,null,null,null,null,null,null,null,null,null,null,null,"2.1","Regulering af varmt brugsvands beholderopladning med direkte elektrisk opvarmning eller integreret elektrisk varmepumpe"]
[]
[null,null,null,null,null,null,null,null,"Varmemålere (antal)","Hvad er kravene i BR18?",null,null,null,null,null,null,null,null,null,null,null,null,null,null,"Eksempel på CTS-anlæg, hvor flere anlæg \"snakker sammen\"",null,null,null,null,null,null,null,null,null,null,null,null,null,null,"Regulering af varmt brugsvands beholderopladning med direkte elektrisk opvarmning eller integreret elektrisk varmepumpe"]
[null,"Skoler. Hovedstation enkeltbruger TAC Vista.",null,null,null,null,null,null,"Elmålere (antal)","Hvad er kravene i BR18?"]
[null,"Der er indregnet 9 automatiktavler og 5 kraft- og fordelingstavler i anlægget         ",null,null,null,null,null,null,"Udetemperatur","Ligger i CTS-anlægget",null,null,null,null,null,null,null,null,null,null,null,null,null,null,"Her er der data fra:",null,null,null,null,null,null,null,null,null,null,null,null,null,0,"Automatisk tænd/sluk-styring."]
[null,"Oversigts- og 10 anlægsbilleder, 4 blandesløjfer, 30 rumreguleringer af radiatorvarme, 5 rumreguleringer af ventilation, 2 pumpebrøndsalarmer og 10 styringer af belysning       ",null,null,null,null,null,null,"Vindhastighed","Ligger i CTS-anlægget",null,null,null,null,null,null,null,null,null,null,null,null,null,null,"Radiatorventil","% åben"]
[null,null,"stk.",1576000,"-",2079000,null,null,"Solindstråling","Ligger muiligvis i CTS-anlægget",null,null,null,null,null,null,null,null,null,null,null,null,null,null,"Køleventil","% åben",null,null,null,null,null,null,null,null,null,null,null,null,1,"Automatisk tænd/sluk-styring og tidsplanlagt opladning aktiveret.",null,2000,null,{"$f":"IF(Bygningsautomatik_efter!D88=0,0,IF(Bygningsautomatik_efter!D88=1,Priser!AP74,IF(Bygningsautomatik_efter!D88=2,Priser!AP74,Priser!AP76)))","v":0},null,"Ligger i CTS-anlægget - 2 timer"]
[null,null,null,null,null,null,null,null,null,null,null,null,null,null,null,null,null,null,null,null,null,null,null,null,"VAV-spjæld","% åben"]
[null,null,null,null,null,null,null,null,null,null,null,null,null,null,null,null,null,null,null,null,null,null,null,null,"Lysudsendelse","% et eller andet","Hvor meget energi det bruger.","I mange bygninger er det derfor ikke nok, at lysstyringsanlægget opfylder kravene til belysning iht. Bygningsreglementet BR18. Det kræves også, at lysstyringsanlægget kan integreres i bygningsautomatikken og levere data til BMS eller CTS-anlæg.",null,null,null,null,null,null,null,null,null,null,2,"Automatisk tænd/sluk-styring, tidsplanlagt opladning aktiveret og multi-sensor lagerstyring.",null,5000,null,null,null,"Tre temperaturfølere + styring"]
[null,"(64)52.20 CTS-installationer for institutioner at levere og installere",null,null,null,null,null,null,"Målere",null,null,null,null,null,null,null,null,null,null,null,null,null,null,null,"Temperatursensor","°C"]
[null,"Inkl. automatikkomponenter, automatikinstallationer, stærkstrøminstallation samt føringsveje i teknikrum og på anlæg.               ",null,null,null,null,null,null,"Ventilationsanlæg, hvor elforbruget til ventilatorer overstiger 3.000 kWh pr. år, skal forsynes med målere til måling af elforbruget. Bestemmelsen gælder ved nybyggeri og ved nyinstallation i eksisterende byggeri.",null,null,null,null,null,null,null,null,null,null,null,null,null,null,null,"CO2-sensor","ppm",null,null,null,null,null,null,null,null,null,null,null,null,"2.2","Regulering af varmt brugsvands beholderopladning ved brug af varmtvandsproduktion"]
[null,null,null,null,null,null,null,null,null,null,null,null,null,null,null,null,null,null,null,null,null,null,null,null,"Lyssensor","Lux"]
[null,"Ekskl. hovedledninger til kraft- og automatiktavler, føringsveje udenfor teknikrum, serviceabonnement samt alle vand-, varme- og ventilationsinstallationer.",null,null,null,null,null,null,null,null,null,null,null,null,null,null,null,null,null,null,null,null,null,null,null,null,null,null,null,null,null,null,null,null,null,null,null,null,null,"Regulering af varmt brugsvands beholderopladning ved brug af varmtvandsproduktion"]
[null,null,null,null,null,null,null,null,"I ventilationsanlæg, hvor varmeforbruget til varmeflader overstiger 10.000 kWh pr. år, skal varmeforbruget måles. Elforbruget i elvarmeflader, hvor det samlede forbrug overstiger 3.000 kWh pr. år, skal måles. Bestemmelserne gælder ved nybyggeri og ved nyinstallation i eksisterende byggeri.",null,null,null,null,null,null,null,null,null,null,null,null,null,null,null,"Rumtilstand","Komfort"]
[null,null,null,null,null,null,null,null,null,null,null,null,null,null,null,null,null,null,null,null,null,null,null,null,"Regulator","Varme",null,null,null,null,null,null,null,null,null,null,null,null,0,"Automatisk tænd/sluk-styring."]
[null,"Institutioner."]
[null,"Anlægget betjenes ved hjælp af en medleveret håndterminal. Der er indregnet 2 automatiktavler og 1 kraft- og fordelingstavle i anlægget.                             ",null,null,null,null,null,null,null,null,null,null,null,null,null,null,null,null,null,null,null,null,null,null,null,null,null,null,null,null,null,null,null,null,null,null,null,null,1,"Automatisk tænd/sluk-styring og tidsplanlagt opladning aktiveret.",null,2000,null,{"$f":"IF(Bygningsautomatik_efter!D100=0,0,IF(Bygningsautomatik_efter!D100=1,Priser!AP84,IF(Bygningsautomatik_efter!D100=2,Priser!AP84,Priser!AP86)))","v":0},null,"Ligger i CTS-anlægget - 2 timer"]
[null,null,null,null,null,null,null,null,"Elforbruget i varmepumper og køleanlæg, der har et årligt elforbrug på mere end 3.000 kWh, skal måles. Eventuel elpatron skal forsynes med timetæller eller elmåler. Bestemmelsen gælder for nybyggeri og ved nyinstallation i eksisterende byggeri."]
[null,",01 1 blandesløjfe, 1 regulering af ventilation, modem tilsluttet for opkald til hovedstation.","stk.",248000,"-",294000,null,null,null,null,null,null,null,null,null,null,null,null,null,null,null,null,null,null,null,null,null,null,null,null,null,null,null,null,null,null,null,null,2,"Automatisk tænd/sluk-styring, tidsplanlagt opladning aktiveret og efterspørgselsbaseret forsyningstemperaturkontrol eller multi-sensor lagerstyring.",null,5000,null,null,null,"Tre temperaturfølere + styring"]
[]
[null,null,null,null,null,null,null,null,null,null,null,null,null,null,null,null,null,null,null,null,null,null,null,null,null,null,null,null,null,null,null,null,null,null,null,null,null,null,"2.3","Regulering af varmt brugsvands beholderopladning med solfanger og supplerende varmeproduktion"]
[null,"(64)52.25 CTS-installationer for plejehjem at levere og installere   "]
[null,"Inkl. automatikkomponenter, automatikinstallationer, stærkstrøminstallation samt føringsveje i teknikrum og på anlæg.          ",null,null,null,null,null,null,null,null,null,null,null,null,null,null,null,null,null,null,null,null,null,null,null,null,null,null,null,null,null,null,null,null,null,null,null,null,null,"Regulering af varmt brugsvands beholderopladning med solfanger og supplerende varmeproduktion"]
[null,null,null,null,null,null,null,null,"Køling","Antal [stk.]","Pris [kr.]","Pris [kr.] maks.","Pris [kr.] middel"]
[null,"Ekskl. hovedledninger til kraft- og automatiktavler, føringsveje udenfor teknikrum, serviceabonnement samt alle vand-, varme- og ventilationsinstallationer.                                          ",null,null,null,null,null,null,"Radiatortermostatventiler",{"$f":"IF(Anlæg!AM43=0,0,Anlæg!J37)","v":0},{"$f":"J92*D33","v":0},"-","-",null,null,null,null,null,null,null,null,null,null,null,"Varme & køling","CTS-punkter",null,null,null,null,null,null,null,null,null,null,null,null,0,"Manuel styring."]
[null,null,null,null,null,null,null,null,"Rumfølere",{"$f":"IF(Anlæg!AM47=0,0,Anlæg!J37)","v":0},{"$f":"J93*D34","v":0},"-","-",null,null,null,null,null,null,null,null,null,null,null,{"$f":"I92","v":"Radiatortermostatventiler"},{"$f":"J92","v":0}]
[null,null,null,null,null,null,null,null,"PIR-følere",{"$f":"IF(Anlæg!AM80=0,0,Anlæg!J36)","v":0},{"$f":"J94*1000","v":0},"-","-",null,null,null,null,null,null,null,null,null,null,null,{"$f":"I93","v":"Rumfølere"},{"$f":"J93","v":0},null,null,null,null,null,null,null,null,null,null,null,null,1,"Automatisk styring af solfangeropladning (prioritet 1) og supplerende opladning (prioritet 2).",null,2000,null,{"$f":"IF(Bygningsautomatik_efter!D112=0,0,IF(Bygningsautomatik_efter!D112=1,Priser!AP94,IF(Bygningsautomatik_efter!D112=2,Priser!AP94,Priser!AP96)))","v":0},null,"Ligger i CTS-anlægget - 2 timer","Kræver en solvarmebeholder."]
[null,"Plejehjem. Hovedstation enkeltbruger TAC Vista. ",null,null,null,null,null,null,"I alt",null,{"$f":"SUM(K92:K94)","v":0},"-","-",null,"Alternativ 1","Uden montering",null,null,null,null,null,null,null,null,null,{"$f":"J94","v":0}]
[null,"Der er indregnet 4 automatiktavler og 2 kraft- og fordelingstavler i anlægget.",null,null,null,null,null,null,null,null,null,null,null,null,null,null,null,null,null,null,null,null,null,null,{"$f":"I95","v":"I alt"},{"$f":"Z93","v":0},null,null,null,null,null,null,null,null,null,null,null,null,2,"Automatisk styring af solfangeropladning (prioritet 1) og supplerende opladning (prioritet 2) samt efterspørgselsbaseret forsyningstemperaturkontrol eller multi-sensor lagerstyring.",null,5000,null,null,null,"Tre temperaturfølere + styring","Kræver en solvarmebeholder."]
[null,",01 1 oversigts- og 10 anlægsbilleder, 2 blandesløjfer, 2 reguleringer af ventilation og 10 styringer af belysning.           ",null,null,null,null,null,null,"Rumregulering af køleunits",{"$f":"IF(OR(Anlæg!AH51=1,Anlæg!AI51=1,Anlæg!AJ51=1,Anlæg!AK51=1,Anlæg!AL51=1),0,Inddata!F7/50)","v":0},{"$f":"J97*D35","v":0},{"$f":"J97*F35","v":0},{"$f":"AVERAGE(K97:L97)","v":0},null,"Alternativ 2","Passer meget godt med installation",null,null,null,null,null,null,null,null,"Pris",{"$f":"Z96*3000","v":0}]
[null,null,"stk.",673000,"-",952000,null,null,null,null,null,null,null,null,null,null,null,null,null,null,null,null,null,null,null,null,null,null,null,null,null,null,null,null,null,null,null,null,"2.4","Styring af cirkulationspumpe til varmt brugsvand"]
[]
[null,null,null,null,null,null,null,null,null,null,null,null,null,null,null,null,null,null,null,null,null,null,null,null,null,null,null,null,null,null,null,null,null,null,null,null,null,null,null,"Styring af cirkulationspumpe til varmt brugsvand"]
[null,"(64)52.30 CTS-installationer for laboratorier at levere og installere"]
[null,"Inkl. automatikkomponenter, automatikinstallationer, stærkstrøminstallation samt føringsveje i teknikrum og på anlæg.      ",null,null,null,null,null,null,null,null,null,null,null,null,null,null,null,null,null,null,null,null,null,null,null,null,null,null,null,null,null,null,null,null,null,null,null,null,0,"Ingen styring, kontinuerlig drift."]
[]
[null,"Ekskl. hovedledninger til kraft- og automatiktavler, føringsveje udenfor teknikrum, serviceabonnement samt alle vand-, varme- og ventilationsinstallationer.                                           ",null,null,null,null,null,null,null,null,null,null,null,null,null,null,null,null,null,null,null,null,null,null,null,null,null,null,null,null,null,null,null,null,null,null,null,null,1,"Med tidsprogram.",null,2000,null,{"$f":"IF(Bygningsautomatik_efter!D122=0,0,IF(Bygningsautomatik_efter!D122=1,Priser!AP104))","v":0},null,"Ligger i CTS-anlægget - 2 timer"]
[]
[null,null,null,null,null,null,null,null,null,null,null,null,null,null,null,null,null,null,null,null,null,null,null,null,null,null,null,null,null,null,null,null,null,null,null,null,null,null,null,null,null,null,null,{"$f":"AR74+AR84+AR94+AR104","v":0}]
[null,"Laboratorier. Hovedstation flerbruger TAC Vista. ",null,null,null,null,null,null,null,null,null,null,null,null,null,null,null,null,null,null,null,null,null,null,null,null,null,null,null,null,null,null,null,null,null,null,null,null,3,"Regulering af køleanlæg"]
[null,"Der er indregnet 6 automatiktavler og 2 kraft- og fordelingstavler i anlægget samt 6 styringer af stinkskabe"]
[null,null,null,null,null,null,null,null,null,null,null,null,null,null,null,null,null,null,null,null,null,null,null,null,null,null,null,null,null,null,null,null,null,null,null,null,null,null,"3.1","Regulering af kuldeafgivere"]
[null,",01 1 oversigts- og 10 anlægsbilleder, 4 blandesløjfer, 30 rumreguleringer af radiatorvarme, 2 reguleringer af ventilation inkl. VAV, 10 rumreguleringer af ventilation inkl. VAV og 10 styringer af belysning                                                      "]
[null,null,null,null,null,null,null,null,null,null,null,null,null,null,null,null,null,null,null,null,null,null,null,null,null,null,null,null,null,null,null,null,null,null,null,null,null,null,null,"Styringsfunktionen anvendes på køleafgiveren (kølepanel, fancoilr eller indendørsenhed) på rumniveau."]
[null,null,"stk.",1471000,"-",2600000]
[null,null,null,null,null,null,null,null,null,null,null,null,null,null,null,null,null,null,null,null,null,null,null,null,null,null,null,null,null,null,null,null,null,null,null,null,null,null,1,"Individuel rumstyring: Ved hjælp af termostatiske ventiler eller elektroniske regulatorer."]
[]
[null,"(64)52.35 CTS-installationer for kontorbygninger at levere og installere",null,null,null,null,null,null,null,null,null,null,null,null,null,null,null,null,null,null,null,null,null,null,null,null,null,null,null,null,null,null,null,null,null,null,null,null,2,"Individuel modulerende rumstyring med kommunikation: Kommunikerer mellem regulatorer og BMS-system (f.eks. tidsplanlægger, rumtemperatur-sætpunkt).",null,{"$f":"K97+Z97","v":0},null,{"$f":"IF(Bygningsautomatik_efter!D137=1,0,IF(Bygningsautomatik_efter!D137=2,Priser!AP115,IF(Bygningsautomatik_efter!D137=3,Priser!AP115,Priser!AP117)))","v":0}]
[null,"Inkl. automatikkomponenter, automatikinstallationer, stærkstrøminstallation samt føringsveje i teknikrum og på anlæg.              "]
[null,null,null,null,null,null,null,null,null,null,null,null,null,null,null,null,null,null,null,null,null,null,null,null,null,null,null,null,null,null,null,null,null,null,null,null,null,null,3,"Individuel modulerende rumstyring med kommunikation og tilstedeværelsesdetektion: Mellem controllere og BMS-system; behovsstyring/tilstedeværelsesdetektion (dette funktionsniveau anvendes normalt ikke på langsomt reagerende køleudsendelsessystemer med betydelig termisk masse, f.eks. gulvkøling).",null,{"$f":"L97+Z97","v":0}]
[null,"Ekskl. hovedledninger til kraft- og automatiktavler, føringsveje udenfor teknikrum, serviceabonnement samt alle vand-, varme- og ventilationsinstallationer.                                          "]
[]
[null,null,null,null,null,null,null,null,null,null,null,null,null,null,null,null,null,null,null,null,null,null,null,null,null,null,null,null,null,null,null,null,null,null,null,null,null,null,"3.2","Styring af distributionsnettets kølevandstemperatur (forsyning eller retur)"]
[null,"Kontorbygninger. Hovedstation flerbruger TAC Vista."]
[null,"Der er indregnet 6 automatik-tavler og 2 kraft- og fordelingstavler i anlægget        ",null,null,null,null,null,null,null,null,null,null,null,null,null,null,null,null,null,null,null,null,null,null,null,null,null,null,null,null,null,null,null,null,null,null,null,null,null,"En lignende funktion kan bruges til styring af direkte elektrisk køling (f.eks. kompakte køleenheder og split-enheder)."]
[null,",01 1 oversigts- og 10 anlægsbilleder, 4 blandesløjfer, 30 rumreguleringer af radiatorvarme, 2 reguleringer af ventilation inkl. VAV, 10 rumreguleringer af ventilation inkl. VAV og 10 styringer af belysning                                                   "]
[null,null,null,null,null,null,null,null,null,null,null,null,null,null,null,null,null,null,null,null,null,null,null,null,null,null,null,null,null,null,null,null,null,null,null,null,null,null,0,"Konstant temperaturstyring."]
[null,null,"stk.",1335000,"-",2079000]
[null,null,null,null,null,null,null,null,null,null,null,null,null,null,null,null,null,null,null,null,null,null,null,null,null,null,null,null,null,null,null,null,null,null,null,null,null,null,1,"Udetemperaturkompenseret styring: Øger generelt middelfremløbstemperaturen.",null,{"$f":"K24+Z26","v":0},null,{"$f":"IF(Bygningsautomatik_efter!D149=0,0,IF(Bygningsautomatik_efter!D149=1,Priser!AP126,IF(Bygningsautomatik_efter!D149=2,Priser!AP126,Priser!AP128)))","v":0},null,"Tjek prisen"]
[]
[null,"(56)14.10 Cirkulationspumper",null,null,null,null,null,null,null,null,null,null,null,null,null,null,null,null,null,null,null,null,null,null,null,null,null,null,null,null,null,null,null,null,null,null,null,null,2,"Efterspørgselsbaseret styring: Handlinger øger generelt middelstrømtemperaturen.",null,{"$f":"1.3*K24+Z26","v":0}]
[]
[null,"Smedegaard vådløbere",null,null,null,null,null,null,null,null,null,null,null,null,null,null,null,null,null,null,null,null,null,null,null,null,null,null,null,null,null,null,null,null,null,null,null,null,"3.3","Styring af cirkulationspumper i hydrauliske distributionsnet"]
[]
[null,"Variant","Enhed","1 stk.","5 stk.","10 stk.",null,null,null,null,null,null,null,null,null,null,null,null,null,null,null,null,null,null,null,null,null,null,null,null,null,null,null,null,null,null,null,null,null,"Reducerer hjælpeenergibehovet for pumperne."]
[null,"Regulerbare"]
[null,"EcoWatt, VVS-nr. 380310010","stk.",3810,3440,3310,null,null,null,null,null,null,null,null,null,null,null,null,null,null,null,null,null,null,null,null,null,null,null,null,null,null,null,null,null,null,null,null,0,"Ingen automatisk styring."]
[null,"EcoWatt U, VVS-nr. 380311010","stk.",3130,2820,2710]
[null,"Selvregulerende",null,null,null,null,null,null,null,null,null,null,null,null,null,null,null,null,null,null,null,null,null,null,null,null,null,null,null,null,null,null,null,null,null,null,null,null,1,"Tænd/sluk-styring: for at reducere den nødvendige hjælpeenergi til pumperne"]
[null,"SimFlex 25-40, VVS-nr. 380320241","stk.",3580,3220,3090]
[null,"SimFlex 25-60, VVS-nr. 380320261","stk.",3930,3550,3410,null,null,null,null,null,null,null,null,null,null,null,null,null,null,null,null,null,null,null,null,null,null,null,null,null,"Pris pumpe",null,null,null,null,null,null,2,"Flertrinsstyring: for at reducere den nødvendige hjælpeenergi til pumperne"]
[null,"Frekvens regulering"]
[null,"Alpha2 25-40, VVS-nr. 380471041","stk.",4880,4420,4250,null,"0 - 1,9 m3/h",null,"0 - 3 mVs",{"$f":"(1.9/3.6)*4.2*(60-40)","v":44.333333333333336},"kW",null,null,null,null,null,null,null,null,null,null,null,{"$f":"K147","v":77.7},{"$f":"K147^2","v":6037.2900000000009},{"$f":"D147","v":9080},null,{"$f":"LINEST(Z140:Z143,X140:Y143,TRUE,TRUE)","v":-0.11766304839151771},116.63376984910911,341.64568796032836,null,{"$f":"(AB140*Inddata!E74^2)+(AC140*Inddata!E74)+AD140","v":341.64568796032836},null,null,null,null,null,null,3,"Variabel hastighedsregulering af pumpen: Konstant eller variabelt trykfald (Δp) baseret på pumpens interne estimater for at reducere den nødvendige hjælpeenergi til pumperne",null,{"$f":"AF140","v":341.64568796032836},null,{"$f":"IF(Bygningsautomatik_efter!G157=0,0,IF(Bygningsautomatik_efter!G157=1,0,IF(Bygningsautomatik_efter!G157=2,0,IF(Bygningsautomatik_efter!G157=3,Priser!AP140,IF(Bygningsautomatik_efter!G157=4,Priser!AP140,Priser!AP142)))))","v":0}]
[null,"Alpha2 25-60, VVS-nr. 380471061","stk.",5470,4970,4780,null,"0 - 2,7 m3/h",null,"0 - 4,5 mVs",{"$f":"(2.7/3.6)*4.2*(60-40)","v":63.000000000000007},"kW",null,null,null,null,null,null,null,null,null,null,null,{"$f":"K148","v":280},{"$f":"K148^2","v":78400},{"$f":"D148","v":22200},null,4.1377451748766773E-2,27.901411271954128,3936.4522694609918]
[null,"Trinvis regulering",null,null,null,null,null,null,null,null,null,null,null,null,null,null,null,null,null,null,null,null,null,{"$f":"K149","v":420},{"$f":"K149^2","v":176400},{"$f":"D149","v":30300},null,0.97805027761454244,2430.0043006242795,{"$error":"#N/A"},null,null,null,null,null,null,null,null,4,"Variabel hastighedsregulering af pumpen: Variabelt trykfald (Δp) baseret på et eksternt efterspørgselssignal, f.eks. hydrauliske krav, temperaturforskel (ΔT) eller energibesparelsesoptimering, for at reducere den nødvendige hjælpeenergi til pumperne",null,{"$f":"1.2*AF140","v":409.97482555239401}]
[null,"Magna3 25-80, VVS-nr. 380790080","stk.",9230,8420,8110,null,"0 - 11 m3/h",null,"0 - 8 mVs",{"$f":"(11/3.6)*4.2*(60-40)","v":256.66666666666669},"kW",null,null,null,null,null,null,null,null,null,null,null,{"$f":"K150","v":583.33333333333337},{"$f":"K150^2","v":340277.77777777781},{"$f":"D150","v":27800},null,22.27933138376585,1,{"$error":"#N/A"}]
[null,"Magna3 25-100, VVS-nr. 380791060","stk.",16600,15200,14600,null,"0 - 12 m3/h",null,"0 - 10 mVs",{"$f":"(12/3.6)*4.2*(60-40)","v":280},"kW",null,null,null,null,null,null,null,null,null,null,null,null,null,null,null,263115379.0989475,5904920.9010524936,{"$error":"#N/A"}]
[null,"Magna3 32-60, VVS-nr. 380791060","stk.",10400,9470,9120,null,"0 - 10 m3/h",null,"0 - 6 mVs",{"$f":"(10/3.6)*4.2*(60-40)","v":233.33333333333331},"kW",null,null,null,null,null,null,null,null,null,null,null,null,null,null,null,null,null,null,null,null,null,null,null,null,null,null,"3.4","Indbyrdes afhængighed mellem opvarmnings- og kølingsregulering for kuldeafgivere og/eller distribution"]
[null,"Magna 3 pumpe 25-60, VVS-nr. 380790060","stk.",8490,7740,7460,null,"0 - 9 m3/h",null,"0 - 6 mVs",{"$f":"(9/3.6)*4.2*(60-40)","v":210},"kW"]
[null,"Cirkulationspumpe UPE 32-60, VVS-nr. 380682560","stk.",9080,8260,7950,null,"0 - 3,33 m3/h",null,"0 - 6 mVs",{"$f":"(3.33/3.6)*4.2*(60-40)","v":77.7},"kW",null,null,null,null,null,null,null,null,null,null,null,null,null,null,null,null,null,null,null,null,null,null,null,null,null,null,null,"For at undgå samtidig opvarmning og køling i samme rum afhængigt af systemprincippet (f.eks. kølepanel/varmeafgiver, TABS/ventilation, flere indendørsenheder)."]
[null,"Cirkulationspumpe UPE 40-100F, VVS-nr. 380683601","stk.",22200,20400,19700,null,"0 - 12 m3/h",null,"0 - 11 mVs",{"$f":"(12/3.6)*4.2*(60-40)","v":280},"kW"]
[null,"Cirkulationspumpe UPE 40-120F, VVS-nr. 380683621","stk.",30300,27800,26800,null,"0 - 18 m3/h",null,"0 - 13 mVs",{"$f":"(18/3.6)*4.2*(60-40)","v":420},"kW",null,null,null,null,null,null,null,null,null,null,null,null,null,null,null,null,null,null,null,null,null,null,null,null,null,null,0,"Ingen afhængighed: De to systemer styres uafhængigt og kan levere samtidig opvarmning og køling."]
[null,"Cirkulationspumpe UPE 50-60, VVS-nr. 380684661","stk.",27800,25500,24600,null,"0 - 25 m3/h",null,"0 - 6 mVs",{"$f":"(25/3.6)*4.2*(60-40)","v":583.33333333333337},"kW"]
[null,null,null,null,null,null,null,null,null,null,null,null,null,null,null,null,null,null,null,null,null,null,null,null,null,null,null,null,null,null,null,null,null,null,null,null,null,null,1,"Delvis afhængighed (afhængigt af HVAC-systemet): Styringsfunktionen er opsat for at minimere muligheden for samtidig opvarmning og køling. Dette opnås generelt ved at definere et glidende setpunkt for forsyningstemperaturen i det centralt styrede system.",null,10000,null,{"$f":"IF(Bygningsautomatik_efter!D179=0,0,IF(Bygningsautomatik_efter!D179=1,Priser!AP151,IF(Bygningsautomatik_efter!D179=2,Priser!AP151,Priser!AP153)))","v":0},null,"Ligger I CTS-anlægget - 10 timer"]
[]
[null,"Naturgaskedler (ekskl. Installation) - priser fra internettet"]
[null,null,null,null,null,null,null,null,null,null,null,null,null,null,null,null,null,null,null,null,null,null,null,null,null,null,null,null,null,null,null,null,null,null,null,null,null,null,2,"Fuld afhængighed: Ingen samtidig opvarmning og køling sikres.",null,{"$f":"K34+Z34","v":0},null,null,null,"Skift af ventiler. Se noter."]
[null,"Variant","Enhed","1 stk.",null,null,null,null,null,null,null,null,null,null,null,null,null,null,null,null,null,null,null,null,null,null,null,null,null,null,null,null,null,null,null,null,null,null,null,null,null,null,null,null,null,"Både varme og køling."]
[null,"Kondenserende",null,null,null,null,null,null,null,null,null,null,null,null,null,null,null,null,null,null,null,null,null,null,null,null,null,null,null,null,null,null,null,null,null,null,null,null,"3.5","Regulering af den kuldeproducerende enhed",null,null,null,null,null,"Køling mangler"]
[null,"Bosch Condens gaskedel 7000 WP væghængt 70 kW ","stk.",41000,{"$f":"D157/70","v":585.71428571428567}]
[null,"Bosch Condens gaskedel 7000 WP væghængt 100 kW","stk.",58500,{"$f":"D158/100","v":585},null,null,null,null,null,null,null,null,null,null,null,null,null,null,null,null,null,null,null,null,null,null,null,null,null,null,null,null,null,null,null,null,null,null,"Formålet er generelt at maksimere kølevandstemperaturen."]
[null,"Bosch Condens gaskedel 7000 WP væghængt 150 kW","stk.",78600,{"$f":"D159/150","v":524}]
[null,"Baxi ADI LT-200 gulvstående naturgasfyr 200 kW","stk.",107600,{"$f":"D160/200","v":538},null,null,null,null,null,null,null,null,null,null,null,null,null,null,null,null,null,null,null,null,null,null,null,null,null,null,null,null,null,null,null,null,null,0,"Konstant temperaturstyring."]
[null,"Middelværdi [kr./kW]",null,null,{"$f":"AVERAGE(E157:E160)","v":558.17857142857144}]
[null,null,null,null,null,null,null,null,null,null,null,null,null,null,null,null,null,null,null,null,null,null,null,null,null,null,null,null,null,null,null,null,null,null,null,null,null,null,1,"Variabel temperaturstyring afhængig af udetemperaturen.",null,2000,null,{"$f":"IF(Bygningsautomatik_efter!D191=0,0,IF(Bygningsautomatik_efter!D191=1,Priser!AP162,IF(Bygningsautomatik_efter!D191=2,Priser!AP162,Priser!AP164)))","v":0},null,"ECL + programmering i CTS-anlægget - 2 timer"]
[]
[null,"(63)57.17 Bevægelsessensor med separat lysstyring for indendørs belysning at montere",null,null,null,null,null,null,null,null,null,null,null,null,null,null,null,null,null,null,null,null,null,null,null,null,null,null,null,null,null,null,null,null,null,null,null,null,2,"Variabel temperaturstyring afhængig af belastningen: Dette inkluderer styring baseret på rumtemperaturen.",null,{"$f":"D30+2000+K31","v":38000},null,null,null,"ECL + programmering i CTS-anlægget - 2 timer + temp"]
[]
[null,"Variant","Enhed","1 stk.","5 stk.","10 stk.",null,null,null,null,null,null,null,null,null,null,null,null,null,null,null,null,null,null,null,null,null,null,null,null,null,null,null,null,null,null,null,null,null,null,null,null,null,{"$f":"AR115+AR126+AR140+AR151+AR162","v":0}]
[null,null,null,null,null,null,null,null,null,"Antal [stk.]","Pris [kr.]",null,null,null,null,null,null,null,null,null,null,null,null,null,null,null,null,null,null,null,null,null,null,null,null,null,null,null,4,"Regulering af ventilations- og klimaanlæg"]
[null,",01 Kontrolenhed Minilux 30 K LUX 230 V (8 stk. bevægelsessensor pr. kontrolenhed).","stk.",959,864,829,null,null,"Kontrolenhed",{"$f":"J169/8","v":0},{"$f":"J168*F168","v":0}]
[null,",02 Bevægelsessensor PIR 90, inkl. lyssensor IP20, type 41-262","stk.",723,642,613,null,null,"Bevægelsessensor",{"$f":"Inddata!F7/Inddata!E107","v":0},{"$f":"J169*F169","v":0},null,null,null,null,null,null,null,null,null,null,null,null,null,null,null,null,null,null,null,null,null,null,null,null,null,null,null,null,"Dette afsnit gælder for bygningsenergisystemer, der bringer luft ind i bygningen: både ventilations- og klimaanlægssystemer. Opvarmning og køling af luft kræver yderligere opvarmnings- og køleenheder. Styringsfunktioner relateret til opvarmnings-/kølesystemer er defineret i afsnit 1 og 3 i denne tabel."]
[null,",03 Lyssensor,  60K LUX 0-10 V IP20, type 43-197","stk.",540,475,452,null,null,"Lyssensor",{"$f":"Inddata!F7/Inddata!E107","v":0},{"$f":"J170*F170","v":0}]
[null,"Niko tilstedeværelsessensor, planforsænket, 360°, 12 meter","stk.",null,null,1800,null,null,"I alt",null,{"$f":"SUM(K168:K170)","v":0}]
[null,"Niko tilstedeværelsessensor og dagslyssensor, planforsænket, 360°, 12 meter","stk.",null,null,2200,null,null,null,null,null,null,null,null,null,null,null,null,null,null,null,null,null,null,null,null,null,null,null,null,null,null,null,null,null,null,null,null,"4.1","Regulering af forsyningsluftflow på rumniveau (f.eks. ventilator tænd/sluk)"]
[null,null,null,null,null,null,null,null,"Niko bevægelse",{"$f":"Inddata!F7/Inddata!E107","v":0},{"$f":"J173*F171","v":0}]
[null,null,null,null,null,null,null,null,"Niko bevægelse og dagslys",{"$f":"Inddata!F7/Inddata!E107","v":0},{"$f":"J174*F172","v":0},{"$f":"K174/K173","v":{"$error":"#DIV/0!"}},null,null,null,null,null,null,null,null,null,null,null,null,null,null,null,null,null,null,null,null,null,null,null,null,null,null,null,"Styring af forsyningsluftflow relateret til tilstedeværelse (tilgængelighed af luftflow, dvs. ventilator tænd/sluk-styring)."]
[]
[null,null,null,null,null,null,null,null,null,null,null,null,null,null,null,null,null,null,null,null,null,null,null,null,null,null,null,null,null,null,null,null,null,null,null,null,null,null,0,"Ingen automatisk styring: Systemet kører konstant (f.eks. manuel styret kontakt)."]
[]
[null,null,null,null,null,null,null,null,null,null,null,null,null,null,null,null,null,null,null,null,null,null,null,null,null,null,null,null,null,null,null,null,null,null,null,null,null,null,1,"Tidsstyring: Systemet kører i henhold til en fast tidsplan."]
[]
[null,null,null,null,null,null,null,null,null,null,null,null,null,null,null,null,null,null,null,null,null,null,null,null,null,null,null,null,null,null,null,null,null,null,null,null,null,null,2,"Tilstedeværelsesbaseret styring: Systemet kører afhængigt af besættelse (tilstedeværelse, lyskontakt, infrarøde sensorer osv.).",null,{"$f":"K38+K40","v":0},null,{"$f":"IF(Bygningsautomatik_efter!G202=0,0,IF(Bygningsautomatik_efter!G202=1,0,IF(Bygningsautomatik_efter!G202=2,Priser!AP180,IF(Bygningsautomatik_efter!G202=3,Priser!AP180,Priser!AP182))))","v":0},null,"VAV-spjæld + PIR-føler"]
[]
[null,null,null,null,null,null,null,null,null,null,null,null,null,null,null,null,null,null,null,null,null,null,null,null,null,null,null,null,null,null,null,null,null,null,null,null,null,null,3,"Tilstedværelsesbaseret styring: Systemet kører afhængigt af luftkvalitetsbehov (måling af CO2, VOC osv.).",null,{"$f":"K38+K40+K42","v":0},null,null,null,"VAV-spjæld + CO2-føler + fugtføler"]
[]
[null,null,null,null,null,null,null,null,null,null,null,null,null,null,null,null,null,null,null,null,null,null,null,null,null,null,null,null,null,null,null,null,null,null,null,null,null,null,"4.2","Rumlufttemperaturregulering via ventilationssystemet (alle luftsystemer; kombination med statiske systemer som køleloft, radiatorer osv.)"]
[]
[null,null,null,null,null,null,null,null,null,null,null,null,null,null,null,null,null,null,null,null,null,null,null,null,null,null,null,null,null,null,null,null,null,null,null,null,null,null,null,"Rumtemperaturen afhænger af luftflow (4.1, 4.5) samt forsyningslufttemperaturen (4.9). Denne styringsfunktion er relateret til en lukket sløjfe-controller for rummets lufttemperatur, der virker på luftflowet eller forsyningslufttemperaturen."]
[]
[]
[null,null,null,null,null,null,null,null,null,null,null,null,null,null,null,null,null,null,null,null,null,null,null,null,null,null,null,null,null,null,null,null,null,null,null,null,null,null,0,"Tænd/sluk-styring: Fast luftflow og fast forsyningslufttemperatur på rumniveau, rummets temperatursætpunkt indstilles individuelt."]
[]
[null,null,null,null,null,null,null,null,null,null,null,null,null,null,null,null,null,null,null,null,null,null,null,null,null,null,null,null,null,null,null,null,null,null,null,null,null,null,1,"Kontinuerlig styring: Enten luftflow eller forsyningslufttemperatur på rumniveau kan varieres kontinuerligt; rummets temperatursætpunkt indstilles individuelt."]
[]
[null,null,null,null,null,null,null,null,null,null,null,null,null,null,null,null,null,null,null,null,null,null,null,null,null,null,null,null,null,null,null,null,null,null,null,null,null,null,2,"Optimeret styring: Minimal energibehov ved optimeret styring. Både luftflow og forsyningslufttemperatur på rumniveau styres afhængigt af opvarmnings-/kølebelastningen.",null,{"$f":"K38+K41","v":0},null,{"$f":"IF(Bygningsautomatik_efter!G217=0,0,IF(Bygningsautomatik_efter!G217=1,0,IF(Bygningsautomatik_efter!G217=2,Priser!AP193)))","v":0},null,"VAV-spjæld + tempføler"]
[]
[null,null,null,null,null,null,null,null,null,null,null,null,null,null,null,null,null,null,null,null,null,null,null,null,null,null,null,null,null,null,null,null,null,null,null,null,null,null,"4.3","Koordinering af rumlufttemperaturregulering via ventilation og statiske systemer"]
[]
[null,null,null,null,null,null,null,null,null,null,null,null,null,null,null,null,null,null,null,null,null,null,null,null,null,null,null,null,null,null,null,null,null,null,null,null,null,null,null,"Samspillet mellem de forskellige systemer skal koordineres."]
[]
[null,null,null,null,null,null,null,null,null,null,null,null,null,null,null,null,null,null,null,null,null,null,null,null,null,null,null,null,null,null,null,null,null,null,null,null,null,null,0,"Ingen koordinering: De enkelte systemer styrer rummets temperatur uafhængigt."]
[]
[null,null,null,null,null,null,null,null,null,null,null,null,null,null,null,null,null,null,null,null,null,null,null,null,null,null,null,null,null,null,null,null,null,null,null,null,null,null,1,"Koordineret styring: Kun ét system er ansvarligt for at styre rummets temperatur gennem en lukket sløjfe, mens det andet system kun supplerer og tilpasser sig varmegevinster.",null,{"$f":"K38+K40+K41+K42","v":0},null,{"$f":"IF(Bygningsautomatik_efter!D233=0,0,IF(Bygningsautomatik_efter!D233=1,Priser!AP201))","v":0},null,"VAV-spjæld + tempføler + CO2-føler + fugtføler"]
[]
[null,null,null,null,null,null,null,null,null,null,null,null,null,null,null,null,null,null,null,null,null,null,null,null,null,null,null,null,null,null,null,null,null,null,null,null,null,null,"4.4","Udeluft flowregulering"]
[]
[null,null,null,null,null,null,null,null,null,null,null,null,null,null,null,null,null,null,null,null,null,null,null,null,null,null,null,null,null,null,null,null,null,null,null,null,null,null,null,"Denne styringsfunktion anvendes på ventilationssystemer, der muliggør variation af OA-forholdet (udelufttilførsel i forhold til det opvarmede etageareal) eller -flow."]
[]
[null,null,null,null,null,null,null,null,null,null,null,null,null,null,null,null,null,null,null,null,null,null,null,null,null,null,null,null,null,null,null,null,null,null,null,null,null,null,0,"Fast OA-forhold eller OA-flow: Systemet kører i henhold til et givet OA-forhold, f.eks. justeret manuelt."]
[]
[null,null,null,null,null,null,null,null,null,null,null,null,null,null,null,null,null,null,null,null,null,null,null,null,null,null,null,null,null,null,null,null,null,null,null,null,null,null,1,"Trinstyret (lav/høj) OA-forhold eller OA-flow: Afhængig af en fast tidsplan."]
[]
[null,null,null,null,null,null,null,null,null,null,null,null,null,null,null,null,null,null,null,null,null,null,null,null,null,null,null,null,null,null,null,null,null,null,null,null,null,null,2,"Trinstyret (lav/høj) OA-forhold eller OA-flow: Afhængig af besættelse, f.eks. lyskontakt, infrarøde sensorer osv.",null,{"$f":"K40","v":0},null,{"$f":"IF(Bygningsautomatik_efter!G239=0,0,IF(Bygningsautomatik_efter!G239=1,0,IF(Bygningsautomatik_efter!G239=2,Priser!AP211,IF(Bygningsautomatik_efter!G239=3,Priser!AP213))))","v":0},null,"PIR-følere"]
[]
[null,null,null,null,null,null,null,null,null,null,null,null,null,null,null,null,null,null,null,null,null,null,null,null,null,null,null,null,null,null,null,null,null,null,null,null,null,null,3,"Variabel kontrol: Systemet styres af sensorer, der registrerer antallet af personer eller indendørs luftparametre såsom CO2 eller VOC.",null,{"$f":"K40+K41+K42","v":0},null,null,null,"PIR-følere + tempføler + CO2-føler + fugtføler"]
[]
[null,null,null,null,null,null,null,null,null,null,null,null,null,null,null,null,null,null,null,null,null,null,null,null,null,null,null,null,null,null,null,null,null,null,null,null,null,null,"4.5","Luftflow- eller trykstyring på ventilationsaggregatniveau (AHU)"]
[]
[null,null,null,null,null,null,null,null,null,null,null,null,null,null,null,null,null,null,null,null,null,null,null,null,null,null,null,null,null,null,null,null,null,null,null,null,null,null,null,"Styrer luftflow eller tryk på AHU-niveau for optimal energibesparelse."]
[]
[null,null,null,null,null,null,null,null,null,null,null,null,null,null,null,null,null,null,null,null,null,null,null,null,null,null,null,null,null,null,null,null,null,null,null,null,null,null,0,"Ingen automatisk styring: Kontinuerligt forsyningsluftflow til maksimal belastning for alle rum."]
[]
[null,null,null,null,null,null,null,null,null,null,null,null,null,null,null,null,null,null,null,null,null,null,null,null,null,null,null,null,null,null,null,null,null,null,null,null,null,null,1,"Tænd/sluk-tidsstyring: Kontinuerligt forsyningsluftflow til maksimal belastning i den nominelle besættelsestid."]
[]
[null,null,null,null,null,null,null,null,null,null,null,null,null,null,null,null,null,null,null,null,null,null,null,null,null,null,null,null,null,null,null,null,null,null,null,null,null,null,2,"Flertrinsstyring: Reducerer ventilatorens hjælpeenergibehov."]
[]
[null,null,null,null,null,null,null,null,null,null,null,null,null,null,null,null,null,null,null,null,null,null,null,null,null,null,null,null,null,null,null,null,null,null,null,null,null,null,3,"Automatisk flow- eller trykstyring uden trykreset: Belastningsafhængigt luftflow tilpasset alle tilsluttede rum.",null,{"$f":"K39+(Z39*3000)","v":0},null,{"$f":"IF(Bygningsautomatik_efter!G255=0,0,IF(Bygningsautomatik_efter!G255=1,0,IF(Bygningsautomatik_efter!G255=2,0,IF(Bygningsautomatik_efter!G255=3,Priser!AP225,IF(Bygningsautomatik_efter!G255=4,Priser!AP227)))))","v":0},null,"Frekvensomformere + trykmålere"]
[]
[null,null,null,null,null,null,null,null,null,null,null,null,null,null,null,null,null,null,null,null,null,null,null,null,null,null,null,null,null,null,null,null,null,null,null,null,null,null,4,"Automatisk flow- eller trykstyring med trykreset: Variabelt luftflow tilpasset efter behov og lufttryk.",null,{"$f":"K39+(Z39*3000)","v":0},null,null,null,"Frekvensomformere + trykmålere"]
[]
[null,null,null,null,null,null,null,null,null,null,null,null,null,null,null,null,null,null,null,null,null,null,null,null,null,null,null,null,null,null,null,null,null,null,null,null,null,null,"4.6","Regulering af varmegenvinding: Frostbeskyttelse"]
[]
[null,null,null,null,null,null,null,null,null,null,null,null,null,null,null,null,null,null,null,null,null,null,null,null,null,null,null,null,null,null,null,null,null,null,null,null,null,null,null,"Denne styringsfunktion forhindrer frost i varmeveksleren."]
[]
[null,null,null,null,null,null,null,null,null,null,null,null,null,null,null,null,null,null,null,null,null,null,null,null,null,null,null,null,null,null,null,null,null,null,null,null,null,null,0,"Ingen specifik frostbeskyttelse."]
[]
[null,null,null,null,null,null,null,null,null,null,null,null,null,null,null,null,null,null,null,null,null,null,null,null,null,null,null,null,null,null,null,null,null,null,null,null,null,null,1,"Frostbeskyttelse: En styringssløjfe sikrer, at afkastlufttemperaturen ikke bliver for lav.",null,2000,null,{"$f":"IF(Bygningsautomatik_efter!D273=0,0,IF(Bygningsautomatik_efter!D273=1,Priser!AP235))","v":0},null,"Ligger i CTS-anlægget - 2 timer"]
[]
[null,null,null,null,null,null,null,null,null,null,null,null,null,null,null,null,null,null,null,null,null,null,null,null,null,null,null,null,null,null,null,null,null,null,null,null,null,null,"4.7","Fri mekanisk køling",null,null,null,null,null,"Pre-heater/by-pass. Ligger i styring."]
[null,null,null,null,null,null,null,null,null,null,null,null,null,null,null,null,null,null,null,null,null,null,null,null,null,null,null,null,null,null,null,null,null,null,null,null,null,null,null,null,null,null,null,null,null,"By-pass indstilles i CTS-anlægget"]
[null,null,null,null,null,null,null,null,null,null,null,null,null,null,null,null,null,null,null,null,null,null,null,null,null,null,null,null,null,null,null,null,null,null,null,null,null,null,null,"Tillader køling ved brug af udeluft for at minimere behovet for mekanisk køling."]
[]
[null,null,null,null,null,null,null,null,null,null,null,null,null,null,null,null,null,null,null,null,null,null,null,null,null,null,null,null,null,null,null,null,null,null,null,null,null,null,0,"Ingen automatisk styring."]
[]
[null,null,null,null,null,null,null,null,null,null,null,null,null,null,null,null,null,null,null,null,null,null,null,null,null,null,null,null,null,null,null,null,null,null,null,null,null,null,1,"Natkøling: Mængden af udeluft sættes til sit maksimum under den ubenyttede periode, forudsat at rumtemperaturen er over setpunktet for komfortperioden, og forskellen mellem rumtemperaturen og udetemperaturen overstiger en given grænse. Hvis fri natkøling realiseres ved automatisk åbning af vinduer, er der ingen luftstrømsstyring."]
[]
[]
[null,null,null,null,null,null,null,null,null,null,null,null,null,null,null,null,null,null,null,null,null,null,null,null,null,null,null,null,null,null,null,null,null,null,null,null,null,null,2,"Fri køling: Mængden af udeluft og recirkulationsluft moduleres under hele perioden for at minimere behovet for mekanisk køling. Beregningen udføres på baggrund af temperaturer.",null,10000,null,{"$f":"IF(Bygningsautomatik_efter!G280=0,0,IF(Bygningsautomatik_efter!G280=1,0,IF(Bygningsautomatik_efter!G280=2,Priser!AP246,IF(Bygningsautomatik_efter!G280=3,Priser!AP246,Priser!AP248))))","v":0},null,"Styring - software - 10 timer"]
[]
[null,null,null,null,null,null,null,null,null,null,null,null,null,null,null,null,null,null,null,null,null,null,null,null,null,null,null,null,null,null,null,null,null,null,null,null,null,null,3,"Entalpi-baseret styring: Mængden af udeluft og recirkulationsluft moduleres under hele perioden for at minimere behovet for mekanisk køling. Beregningen udføres på baggrund af både temperaturer og luftfugtighed (entalpi).",null,10000,null,null,null,"Styring - software - 10 timer"]
[]
[]
[null,null,null,null,null,null,null,null,null,null,null,null,null,null,null,null,null,null,null,null,null,null,null,null,null,null,null,null,null,null,null,null,null,null,null,null,null,null,"4.8","Forsyningslufttemperaturstyring på luftbehandlingsenhedsniveau (AHU)"]
[]
[null,null,null,null,null,null,null,null,null,null,null,null,null,null,null,null,null,null,null,null,null,null,null,null,null,null,null,null,null,null,null,null,null,null,null,null,null,null,null,"Regulerer forsyningslufttemperaturen ved AHU-udløbet eller genopvarmningszonen."]
[]
[null,null,null,null,null,null,null,null,null,null,null,null,null,null,null,null,null,null,null,null,null,null,null,null,null,null,null,null,null,null,null,null,null,null,null,null,null,null,1,"Konstant setpunkt: En blandesløjfe gør det muligt at styre forsyningslufttemperaturen, men setpunktet er konstant og kan kun ændres manuelt."]
[]
[null,null,null,null,null,null,null,null,null,null,null,null,null,null,null,null,null,null,null,null,null,null,null,null,null,null,null,null,null,null,null,null,null,null,null,null,null,null,2,"Variabelt setpunkt med udetemperaturkompensation: En blandelsløjfe gør det muligt at styre forsyningslufttemperaturen. Setpunktet er en simpel funktion af udetemperaturen (f.eks. en lineær funktion).",null,{"$f":"K24+Z26","v":0},null,{"$f":"IF(Bygningsautomatik_efter!D303=1,0,IF(Bygningsautomatik_efter!D303=2,Priser!AP257,IF(Bygningsautomatik_efter!D303=3,Priser!AP260)))","v":0},null,"Udekompensering - sker i CTS"]
[]
[]
[null,null,null,null,null,null,null,null,null,null,null,null,null,null,null,null,null,null,null,null,null,null,null,null,null,null,null,null,null,null,null,null,null,null,null,null,null,null,3,"Variabelt setpunkt med belastningsafhængig kompensation: En kontrolsløjfe gør det muligt at styre forsyningslufttemperaturen. Setpunktet defineres som en funktion af belastningen i rummet. Dette kan normalt kun opnås med et integreret styringssystem, der gør det muligt at indsamle temperaturer eller aktuatorpositioner i de forskellige rum.",null,{"$f":"1.3*K23+Z26","v":0},null,null,null,"Udekompensering - tempføler - sker i CTS"]
[]
[]
[null,null,null,null,null,null,null,null,null,null,null,null,null,null,null,null,null,null,null,null,null,null,null,null,null,null,null,null,null,null,null,null,null,null,null,null,null,null,"4.9","Fugtighedsstyring"]
[]
[null,null,null,null,null,null,null,null,null,null,null,null,null,null,null,null,null,null,null,null,null,null,null,null,null,null,null,null,null,null,null,null,null,null,null,null,null,null,null,"Styrer luftens fugtighedsniveau (befugtning/affugtning)."]
[]
[null,null,null,null,null,null,null,null,null,null,null,null,null,null,null,null,null,null,null,null,null,null,null,null,null,null,null,null,null,null,null,null,null,null,null,null,null,null,0,"Ingen automatisk styring af fugtighed."]
[]
[null,null,null,null,null,null,null,null,null,null,null,null,null,null,null,null,null,null,null,null,null,null,null,null,null,null,null,null,null,null,null,null,null,null,null,null,null,null,1,"Dugpunktstyring: Luftfugtigheden i forsyningsluften eller rummet udtrykkes med dugpunktstemperaturen, og forsyningsluften genopvarmes for at bringe den relative luftfugtighed til setpunktet.",null,{"$f":"Inddata!F11*1000","v":0},null,{"$f":"IF(Bygningsautomatik_efter!D317=0,0,IF(Bygningsautomatik_efter!D317=1,AP269,IF(Bygningsautomatik_efter!D317=2,AP271)))","v":0},null,"Fugtføler i indblæsningskanal eller rum",null,"1.000 kr. pr. rum"]
[]
[null,null,null,null,null,null,null,null,null,null,null,null,null,null,null,null,null,null,null,null,null,null,null,null,null,null,null,null,null,null,null,null,null,null,null,null,null,null,2,"Direkte luftfugtighedsstyring: En kontrolsløjfe gør det muligt at styre luftfugtigheden i forsyningsluften eller rummet ved et givet setpunkt. Setpunktet kan enten være fast og foruddefineret af brugeren eller et variabelt, optimalt niveau, der minimerer energiforbruget, men stadig ligger inden for de fastsatte minimums- og maksimumgrænser for rumforholdene.",null,{"$f":"Inddata!F11*1000","v":0},null,null,null,"Fugtføler i indblæsningskanal eller rum",null,"1.000 kr. pr. rum"]
[]
[]
[null,null,null,null,null,null,null,null,null,null,null,null,null,null,null,null,null,null,null,null,null,null,null,null,null,null,null,null,null,null,null,null,null,null,null,null,null,null,null,null,null,null,null,{"$f":"AR180+AR193+AR201+AR211+AR225+AR235+AR246+AR257+AR269","v":0}]
[null,null,null,null,null,null,null,null,null,null,null,null,null,null,null,null,null,null,null,null,null,null,null,null,null,null,null,null,null,null,null,null,null,null,null,null,null,null,5,"Regulering af belysningsanlæg"]
[]
[null,null,null,null,null,null,null,null,null,null,null,null,null,null,null,null,null,null,null,null,null,null,null,null,null,null,null,null,null,null,null,null,null,null,null,null,null,null,"5.1","Tilstedeværelsesstyring"]
[]
[null,null,null,null,null,null,null,null,null,null,null,null,null,null,null,null,null,null,null,null,null,null,null,null,null,null,null,null,null,null,null,null,null,null,null,null,null,null,null,"Styrer belysningen afhængigt af besættelse i rummet."]
[]
[null,null,null,null,null,null,null,null,null,null,null,null,null,null,null,null,null,null,null,null,null,null,null,null,null,null,null,null,null,null,null,null,null,null,null,null,null,null,0,"Manuel tænd/sluk-kontakt: Lyskilder tændes og slukkes manuelt i rummet."]
[]
[null,null,null,null,null,null,null,null,null,null,null,null,null,null,null,null,null,null,null,null,null,null,null,null,null,null,null,null,null,null,null,null,null,null,null,null,null,null,1,"Manuel tænd/sluk-knap plus yderligere automatisk slukkesignal: Armaturet tændes og slukkes manuelt via en kontakt i rummet. Derudover sender et automatisk signal mindst én gang dagligt, typisk om aftenen, for at undgå unødig drift i nattetimerne."]
[null,null,null,null,null,null,null,null,null,null,null,null,null,null,null,null,null,null,null,null,null,null,null,null,null,null,null,null,null,null,null,null,null,null,null,null,null,null,null,null,null,null,null,null,null,"Bruges ikke"]
[]
[null,null,null,null,null,null,null,null,null,null,null,null,null,null,null,null,null,null,null,null,null,null,null,null,null,null,null,null,null,null,null,null,null,null,null,null,null,null,2,"Automatisk detektion - automatisk tænd/dæmpet sluk: Styringssystemet tænder automatisk armaturet, når det belyste område er i brug, og skifter automatisk til en dæmpet tilstand efter sidste registrerede tilstedeværelse i området. Automatisk tænd/automatisk sluk: Styringssystemet tænder automatisk armaturet, når det belyste område er i brug, og slukker det automatisk helt, når der ikke længere registreres tilstedeværelse.",null,{"$f":"K55+Z56","v":0},null,{"$f":"IF(Bygningsautomatik_efter!D338=0,0,IF(Bygningsautomatik_efter!D338=1,0,IF(Bygningsautomatik_efter!D338=2,Priser!AP286,IF(Bygningsautomatik_efter!D338=3,Priser!AP290))))","v":0},null,{"$f":"K55-K52+Z56","v":0}]
[]
[]
[]
[null,null,null,null,null,null,null,null,null,null,null,null,null,null,null,null,null,null,null,null,null,null,null,null,null,null,null,null,null,null,null,null,null,null,null,null,null,null,3,"Automatisk detektion - manuel tænd/delvis automatisk tænd/dæmpet sluk: Armaturet kan kun tændes manuelt via en kontakt eller automatisk via en tilstedeværelsessensor placeret i (eller tæt på) det belyste område. Hvis det ikke slukkes manuelt, skifter det automatisk til en dæmpet tilstand efter sidste registrerede tilstedeværelse i området. Manuel tænd/delvis automatisk tænd/automatisk sluk: Armaturet kan kun tændes manuelt via en kontakt eller automatisk via en tilstedeværelsessensor og slukkes automatisk helt, hvis det ikke slukkes manuelt.",null,{"$f":"AP286*1.1","v":0},null,null,null,{"$f":"L55-K52+Z56","v":0}]
[]
[]
[]
[null,null,null,null,null,null,null,null,null,null,null,null,null,null,null,null,null,null,null,null,null,null,null,null,null,null,null,null,null,null,null,null,null,null,null,null,null,null,"5.2","Belysningsstyrke-/dagslyskontrol (dagslysudnyttelse)"]
[]
[null,null,null,null,null,null,null,null,null,null,null,null,null,null,null,null,null,null,null,null,null,null,null,null,null,null,null,null,null,null,null,null,null,null,null,null,null,null,null,"Styrer belysning i forhold til dagslysniveau og energibesparelse."]
[]
[null,null,null,null,null,null,null,null,null,null,null,null,null,null,null,null,null,null,null,null,null,null,null,null,null,null,null,null,null,null,null,null,null,null,null,null,null,null,0,"Manuel central kontrol: Lyskilder styres centralt uden mulighed for manuel kontrol i rummet."]
[]
[null,null,null,null,null,null,null,null,null,null,null,null,null,null,null,null,null,null,null,null,null,null,null,null,null,null,null,null,null,null,null,null,null,null,null,null,null,null,1,"Manuel kontrol: Lyskilder kan tændes/slukkes manuelt i rummet."]
[]
[null,null,null,null,null,null,null,null,null,null,null,null,null,null,null,null,null,null,null,null,null,null,null,null,null,null,null,null,null,null,null,null,null,null,null,null,null,null,2,"Automatisk tænd/slukning: Lyskilder slukkes automatisk, hvis dagslyset opfylder minimumskrav til belysningen, og tændes igen, når der ikke er nok dagslys.",null,{"$f":"L55+Z56","v":0},null,{"$f":"IF(Bygningsautomatik_efter!D353=0,0,IF(Bygningsautomatik_efter!D353=1,0,IF(Bygningsautomatik_efter!D353=2,Priser!AP302,IF(Bygningsautomatik_efter!D353=3,Priser!AP304))))","v":0},null,{"$f":"K55+Z56","v":0}]
[]
[null,null,null,null,null,null,null,null,null,null,null,null,null,null,null,null,null,null,null,null,null,null,null,null,null,null,null,null,null,null,null,null,null,null,null,null,null,null,3,"Automatisk dæmpning: Armaturerne dæmpes gradvist og slukkes helt, hvis der er tilstrækkeligt dagslys eller ved scenebaseret lysstyring. Armaturerne tændes og dæmpes op igen, hvis mængden af dagslys falder, eller hvis scenebaseret lysstyring aktiveres.",null,{"$f":"AP302*1.1","v":0},null,null,null,{"$f":"L55+Z56","v":0}]
[]
[]
[null,null,null,null,null,null,null,null,null,null,null,null,null,null,null,null,null,null,null,null,null,null,null,null,null,null,null,null,null,null,null,null,null,null,null,null,null,null,null,null,null,null,null,{"$f":"IF(OR(Bygningsautomatik_efter!D353=2,Bygningsautomatik_efter!D353=3),AR302,IF(OR(Bygningsautomatik_efter!D338=2,Bygningsautomatik_efter!D338=3),AR286,0))","v":0}]
[null,null,null,null,null,null,null,null,null,null,null,null,null,null,null,null,null,null,null,null,null,null,null,null,null,null,null,null,null,null,null,null,null,null,null,null,null,null,6,"Regulering af solafskærmning"]
[]
[null,null,null,null,null,null,null,null,null,null,null,null,null,null,null,null,null,null,null,null,null,null,null,null,null,null,null,null,null,null,null,null,null,null,null,null,null,null,"6.1","Regulering af solafskærmning"]
[]
[null,null,null,null,null,null,null,null,null,null,null,null,null,null,null,null,null,null,null,null,null,null,null,null,null,null,null,null,null,null,null,null,null,null,null,null,null,null,null,"Der er to hovedformål med regulering af solafskærmning: Afskærmning for at undgå overophedning og reduktion af blænding."]
[]
[null,null,null,null,null,null,null,null,null,null,null,null,null,null,null,null,null,null,null,null,null,null,null,null,null,null,null,null,null,null,null,null,null,null,null,null,null,null,0,"Manuel betjening: Solafskærmning styres manuelt, og energibesparelser afhænger af brugerens adfærd."]
[]
[null,null,null,null,null,null,null,null,null,null,null,null,null,null,null,null,null,null,null,null,null,null,null,null,null,null,null,null,null,null,null,null,null,null,null,null,null,null,1,"Motoriseret betjening med manuel styring: Gør det lettere for brugeren at styre solafskærmning ved hjælp af motoriseret funktion."]
[]
[null,null,null,null,null,null,null,null,null,null,null,null,null,null,null,null,null,null,null,null,null,null,null,null,null,null,null,null,null,null,null,null,null,null,null,null,null,null,2,"Motoriseret betjening med automatisk styring: Solafskærmning styres automatisk for at reducere køleenergibehovet.",null,{"$f":"K59+Z61","v":3516000},null,{"$f":"IF(Bygningsautomatik_efter!D369=0,0,IF(Bygningsautomatik_efter!D369=1,0,IF(Bygningsautomatik_efter!D369=2,Priser!AP318,IF(Bygningsautomatik_efter!D369=3,Priser!AP320))))","v":3516000}]
[]
[null,null,null,null,null,null,null,null,null,null,null,null,null,null,null,null,null,null,null,null,null,null,null,null,null,null,null,null,null,null,null,null,null,null,null,null,null,null,3,"Kombineret lys-/solafskærmning-/HVAC-styring: Energiforbruget optimeres ved at integrere styring af HVAC, solafskærmning og belysning.",null,{"$f":"1.1*(K59+Z61)","v":3867600.0000000005}]
[]
[null,null,null,null,null,null,null,null,null,null,null,null,null,null,null,null,null,null,null,null,null,null,null,null,null,null,null,null,null,null,null,null,null,null,null,null,null,null,null,null,null,null,null,{"$f":"AR318","v":3516000}]
[null,null,null,null,null,null,null,null,null,null,null,null,null,null,null,null,null,null,null,null,null,null,null,null,null,null,null,null,null,null,null,null,null,null,null,null,null,null,7,"CTS-anlæg"]
[]
[null,null,null,null,null,null,null,null,null,null,null,null,null,null,null,null,null,null,null,null,null,null,null,null,null,null,null,null,null,null,null,null,null,null,null,null,null,null,null,"CTS-anlæg gør det muligt at tilpasse driften til brugerens behov.\nDet skal sikres, at driftsplanerne for opvarmning, køling, ventilation og belysning regelmæssigt tilpasses de faktiske anvendelsesmønstre, og at setpunkterne også tilpasses behovene.\nOpmærksomhed skal rettes mod justeringen af alle controllere, herunder setpunkter samt kontrolparametre som PI-kontrolkoefficienter.\nRumkontrollernes opvarmnings- og kølingssetpunkter skal kontrolleres regelmæssigt. Brugere ændrer ofte disse setpunkter. Et centraliseret system gør det muligt at opdage og korrigere ekstreme værdier af setpunkter forårsaget af misforståelser fra brugerne.\nHvis sammenkobling mellem opvarmnings- og kølingsstyring kun er delvis, skal setpunktet regelmæssigt ændres for at minimere samtidig brug af opvarmning og køling.\nAlarm- og overvågningsfunktioner vil støtte tilpasningen af driften til brugerens behov og optimering af justeringen af de forskellige controllere. Dette opnås ved at levere brugervenlige værktøjer til at opdage unormal drift (alarmfunktioner) og ved at give nem adgang til at logge og visualisere data (overvågningsfunktioner)."]
[]
[null,null,null,null,null,null,null,null,null,null,null,null,null,null,null,null,null,null,null,null,null,null,null,null,null,null,null,null,null,null,null,null,null,null,null,null,null,null,"7.1","Sætpunktstyring"]
[]
[null,null,null,null,null,null,null,null,null,null,null,null,null,null,null,null,null,null,null,null,null,null,null,null,null,null,null,null,null,null,null,null,null,null,null,null,null,null,null,"Styring, tilpasning og tilbageførsel af BAC-(styrings- og reguleringssystem) sætpunkt afhængigt af rum-/zonedriftstilstande."]
[]
[null,null,null,null,null,null,null,null,null,null,null,null,null,null,null,null,null,null,null,null,null,null,null,null,null,null,null,null,null,null,null,null,null,null,null,null,null,null,0,"Manuel indstilling rum for rum individuelt.",null,null,null,null,null,"Start/stop"]
[]
[null,null,null,null,null,null,null,null,null,null,null,null,null,null,null,null,null,null,null,null,null,null,null,null,null,null,null,null,null,null,null,null,null,null,null,null,null,null,1,"Tilpasning fra distribuerede/decentraliserede anlægsrum.",null,null,null,null,null,"Decentral"]
[]
[null,null,null,null,null,null,null,null,null,null,null,null,null,null,null,null,null,null,null,null,null,null,null,null,null,null,null,null,null,null,null,null,null,null,null,null,null,null,2,"Tilpasning fra et centralt rum (f.eks. arbejdsstation, webdrift; rumdriftsenheder undtaget).",null,null,null,null,null,"CTS"]
[]
[null,null,null,null,null,null,null,null,null,null,null,null,null,null,null,null,null,null,null,null,null,null,null,null,null,null,null,null,null,null,null,null,null,null,null,null,null,null,3,"Tilpasning fra et centralt rum med hyppig tilbageførsel af brugerinput.",null,{"$f":"(AVERAGE(D15,F15)/2)+(AVERAGE(D62,F62)/2)","v":138192.5},null,{"$f":"IF(Bygningsautomatik_efter!D387=0,0,IF(Bygningsautomatik_efter!D387=1,0,IF(Bygningsautomatik_efter!D387=2,0,IF(Bygningsautomatik_efter!D387=3,Priser!AP337))))","v":138192.5},null,"CTS"]
[]
[null,null,null,null,null,null,null,null,null,null,null,null,null,null,null,null,null,null,null,null,null,null,null,null,null,null,null,null,null,null,null,null,null,null,null,null,null,null,"7.2","Driftstidsstyring"]
[]
[null,null,null,null,null,null,null,null,null,null,null,null,null,null,null,null,null,null,null,null,null,null,null,null,null,null,null,null,null,null,null,null,null,null,null,null,null,null,null,"Tilpasning af system-/anlægs driftstider i henhold til et fast tidsskema og/eller kalender."]
[]
[null,null,null,null,null,null,null,null,null,null,null,null,null,null,null,null,null,null,null,null,null,null,null,null,null,null,null,null,null,null,null,null,null,null,null,null,null,null,0,"Manuel indstilling (aktivering af anlæg).",null,null,null,null,null,"Start/stop"]
[]
[null,null,null,null,null,null,null,null,null,null,null,null,null,null,null,null,null,null,null,null,null,null,null,null,null,null,null,null,null,null,null,null,null,null,null,null,null,null,1,"Individuel indstilling i henhold til en foruddefineret tidsplan, inklusive faste forberedelsesfaser.",null,null,null,null,null,"Decentral"]
[]
[null,null,null,null,null,null,null,null,null,null,null,null,null,null,null,null,null,null,null,null,null,null,null,null,null,null,null,null,null,null,null,null,null,null,null,null,null,null,2,"Individuel indstilling i henhold til en foruddefineret tidsplan med tilpasning fra et centralt styringsrum, inklusive variable forberedelsesfaser.",null,{"$f":"(AVERAGE(D15,F15)/2)+(AVERAGE(D62,F62)/2)","v":138192.5},null,{"$f":"IF(Bygningsautomatik_efter!D399=0,0,IF(Bygningsautomatik_efter!D399=1,0,IF(Bygningsautomatik_efter!D399=2,Priser!AP347)))","v":138192.5},null,"CTS"]
[]
[null,null,null,null,null,null,null,null,null,null,null,null,null,null,null,null,null,null,null,null,null,null,null,null,null,null,null,null,null,null,null,null,null,null,null,null,null,null,"7.3","Fejlregistrering og diagnosticering af tekniske bygningsstyringssystemer"]
[]
[null,null,null,null,null,null,null,null,null,null,null,null,null,null,null,null,null,null,null,null,null,null,null,null,null,null,null,null,null,null,null,null,null,null,null,null,null,null,null,"Overvågning og diagnosticering af fejl i tekniske bygningsstyringssystemer."]
[]
[null,null,null,null,null,null,null,null,null,null,null,null,null,null,null,null,null,null,null,null,null,null,null,null,null,null,null,null,null,null,null,null,null,null,null,null,null,null,0,"Ingen central indikation af registrerede fejl og alarmer.",null,null,null,null,null,"Decentral"]
[]
[null,null,null,null,null,null,null,null,null,null,null,null,null,null,null,null,null,null,null,null,null,null,null,null,null,null,null,null,null,null,null,null,null,null,null,null,null,null,1,"Central indikation af registrerede fejl og alarmer.",null,null,null,null,null,"CTS"]
[]
[null,null,null,null,null,null,null,null,null,null,null,null,null,null,null,null,null,null,null,null,null,null,null,null,null,null,null,null,null,null,null,null,null,null,null,null,null,null,2,"Central indikation af registrerede fejl og alarmer, inklusive diagnosticeringsfunktioner.",null,150000,null,{"$f":"IF(Bygningsautomatik_efter!D411=0,0,IF(Bygningsautomatik_efter!D411=1,0,IF(Bygningsautomatik_efter!D411=2,Priser!AP357)))","v":150000},null,"4 ugers programmering","CTS"]
[]
[null,null,null,null,null,null,null,null,null,null,null,null,null,null,null,null,null,null,null,null,null,null,null,null,null,null,null,null,null,null,null,null,null,null,null,null,null,null,"7.4","Rapportering af information om energiforbrug og indeklima"]
[]
[null,null,null,null,null,null,null,null,null,null,null,null,null,null,null,null,null,null,null,null,null,null,null,null,null,null,null,null,null,null,null,null,null,null,null,null,null,null,null,"Registrering og analyse af energiforbrug og indeklima."]
[]
[null,null,null,null,null,null,null,null,null,null,null,null,null,null,null,null,null,null,null,null,null,null,null,null,null,null,null,null,null,null,null,null,null,null,null,null,null,null,0,"Indikering af aktuelle værdier (f.eks. temperaturer, måleraflæsninger).",null,null,null,null,null,"Decentral"]
[]
[null,null,null,null,null,null,null,null,null,null,null,null,null,null,null,null,null,null,null,null,null,null,null,null,null,null,null,null,null,null,null,null,null,null,null,null,null,null,1,"Trendanalyse og forbrugsbestemmelse.",null,null,null,null,null,"CTS"]
[]
[null,null,null,null,null,null,null,null,null,null,null,null,null,null,null,null,null,null,null,null,null,null,null,null,null,null,null,null,null,null,null,null,null,null,null,null,null,null,2,"Analyse, performanceevaluering og benchmarking af indeklima og energiforbrug.",null,300000,null,{"$f":"IF(Bygningsautomatik_efter!D423=0,0,IF(Bygningsautomatik_efter!D423=1,0,IF(Bygningsautomatik_efter!D423=2,Priser!AP367)))","v":300000},null,"8 ugers programmering","CTS"]
[]
[null,null,null,null,null,null,null,null,null,null,null,null,null,null,null,null,null,null,null,null,null,null,null,null,null,null,null,null,null,null,null,null,null,null,null,null,null,null,null,null,null,null,null,{"$f":"AR337+AR347+AR357+AR367","v":726385}]